Workbook

Sheet Forside
B1: Budsjetteringsmaler Universitetet i Oslo
B2: Velg type mal i nedtrekksmenyene under og faner vises automatisk
B3: Kategorisering
B4: Bidrag
B6: Søknadstype - oppdrag
B7: Konferansebudsjett
B9: Søknadstype - bidrag
B10: Ordinære NFR prosjekter
A40: 2024-01-23

Sheet Registrering
A2: Prosjektinformasjon
A3: Prosjekttittel* | B3: Haiex
A4: Prosjektleder* | B4: Eirik Gramstad
A5: Prosjekteier * | B5: Susanne Viefers
A6: Navn på enhet* | B6: Fysisk Institutt
A7: Kort begrunnelse for prosjektes faglige interesse* (Manglende eller dårlig begrunnelse vil kunne medføre avvist prosjektoppretting)
A12: Kort begrunnelse for kategorisering (bidrag/oppdrag)* (Manglende eller dårlig begrunnelse vil kunne medføre avvist prosjektoppretting)
A17: Prosjektnummer (om opprettet)
A18: Saksnummer i ephorte (om opprettet)
A19: Prosjektperiode
A20: Prosjektstart (dd.mm.år)* | B20: 01.10.2025
A21: Prosjektets (avtaleperioden) start*
A22: Prosjektets (avtaleperioden) slutt*
A23: Prosjektslutt (dd.mm.år) | B23: 30.09.2030
A24: Informasjon om finansiering
A25: Navn på finansieringskilde(r) | B25: NFR
A26: NFR-program | B26: KI
A27: Prosjektkategorisering (Oppdrag eller Bidrag)*
A28: Finansieringstype* | B28: Rundsummer NFR | H28: Legg inn prosentsats
A29: Prosjekttype (overheadkostnader)* | B29: Prosjekter som foregår i UiOs lokaler
A30: Rebudsjettering
A31: Beskrivelse av endringer
A36: Fra når gjelder rebudsjetteringene
A37: Ny sluttdato
A38: Oppdrag
A39: Påslag uforutsette hendelser (%)
A40: Påslag fortjeneste (%)
A41: Merverdiavgift
A42: Hvis ikke merverdiavgift, angi årsak
A44: Konferanser
A45: Antall betalende deltakere
A46: Antall deltakere hvor UiO har utlegg (forutsetter like utlegg)
A47: Eventuelle offentlig tilskudd
A48: Subsidiering (NB: husk å trekke ut mva- grunnlaget)
A49: Påslag for indirekte kostnader | B49: 0.4
B50: Vitenskapelig | E50: Teknisk/administrativ
B51: =IF(B29="",0,VLOOKUP(B29,Tabeller!$G$8:$J$13,2,FALSE)) -> 465000 | E51: =IF(B29="",0,VLOOKUP(B29,Tabeller!$G$8:$J$13,3,FALSE)) -> 142000
A52: Pris- lønnsjustering
A53: Årlig lønnsjustering i hele prosjektperioden | B53: Ja
B54: =Budsjett!K3 -> 2024 | E54: 2025 | J54: 2026 og fremover
B55: =Tabeller!J32 -> 0.049 | E55: =Tabeller!L32 -> 0.035 | J55: 0.035

Sheet Budsjett
A1: Alle beløp er angitt i hele kroner | C1: Prosjekttittel: | D1: =Registrering!B3 -> Haiex | AR1: LØNNS- OG DRIFTSKOSTNADER | AX1: =AR4*K84 -> 0 | BF1: OVERHEADKOSTNADER | BU1: Eksternt finansiert overhead | CJ1: Internt finansiert overhead | CY1: Ekstern finansiering | DO1: NFR | EE1: Private | EU1: Internasjonale | FK1: Offentlige | GB1: Egenandel | GS1: Overhead i henhold til TDI
C2: =C10+C17 -> -25815650 | D2: =D10+D17 -> 15752977.2 | E2: =C2+D2 -> -10062672.8 | F2: =E2/D2 -> -0.638779113 | K2: REGISTRER MÅNEDSVERK
B3: Prosjektansatte | C3: Inntekter | D3: Lønn og sos. kostn. | E3: Overhead | F3: Totalt | G3: Årsv | H3: Finansiør | I3: Årslønn | J3: Navn | K3: =Tabeller!D1 -> 2024 | L3: =K3+1 -> 2025 | M3: =L3+1 -> 2026 | N3: 2027 | O3: 2028 | P3: 2029 | Q3: 2030 | R3: 2031 | S3: 2032 | T3: =S3+1 -> 2033 | U3: =T3+1 -> 2034 | V3: 2035 | W3: 2036 | AG3: Bruttolønn | AH3: inkl lønnsv. | AI3: Lønn | AJ3: Feriep | AK3: AGA | AL3: Pensjon | AM3: inkl sos.avg. | AN3: inkl. ind.kost. | AO3: Timesats | AR3: =K3 -> 2024 | AS3: 2025 | AT3: 2026 | AU3: 2027 | AV3: 2028 | AW3: 2029 | AX3: 2030 | AY3: 2031 | AZ3: 2032 | BA3: 2033 | BB3: 2034 | BC3: 2035 | BD3: 2036 | BF3: =AR3 -> 2024 | BG3: 2025 | BH3: 2026 | BI3: 2027 | BJ3: 2028 | BK3: 2029 | BL3: 2030 | BM3: 2031 | BN3: 2032 | BO3: 2033 | BP3: =BB3 -> 2034 | BQ3: 2035 | BR3: 2036 | BU3: =BF3 -> 2024 | BV3: 2025 | BW3: 2026 | BX3: 2027 | BY3: 2028 | BZ3: 2029 | CA3: 2030 | CB3: 2031 | CC3: 2032 | CD3: =BO3 -> 2033 | CE3: =BP3 -> 2034 | CF3: =BQ3 -> 2035 | CG3: =BR3 -> 2036 | CJ3: =CY3 -> 2024 | CK3: 2025 | CL3: 2026 | CM3: 2027 | CN3: 2028 | CO3: 2029 | CP3: 2030 | CQ3: 2031 | CR3: 2032 | CS3: 2033 | CT3: =DI3 -> 2034 | CU3: =DJ3 -> 2035 | CV3: =DK3 -> 2036 | CY3: =BU3 -> 2024 | CZ3: 2025 | DA3: 2026 | DB3: 2027 | DC3: 2028 | DD3: 2029 | DE3: 2030 | DF3: 2031 | DG3: 2032 | DH3: 2033 | DI3: =CE3 -> 2034 | DJ3: 2035 | DK3: 2036 | DL3: Totalt | DP3: =BU3 -> 2024 | DQ3: 2025 | DR3: 2026 | DS3: 2027 | DT3: 2028 | DU3: 2029 | DV3: 2030 | DW3: 2031 | DX3: 2032 | DY3: 2033 | DZ3: =CE3 -> 2034 | EA3: =CF3 -> 2035 | EB3: =CG3 -> 2036 | EC3: Totalt | EF3: =CJ3 -> 2024 | EG3: 2025 | EH3: 2026 | EI3: 2027 | EJ3: 2028 | EK3: 2029 | EL3: 2030 | EM3: 2031 | EN3: 2032 | EO3: 2033 | EP3: =CT3 -> 2034 | EQ3: =CU3 -> 2035 | ER3: =CV3 -> 2036 | ES3: Totalt | EV3: =CY3 -> 2024 | EW3: 2025 | EX3: 2026 | EY3: 2027 | EZ3: 2028 | FA3: 2029 | FB3: 2030 | FC3: 2031 | FD3: 2032 | FE3: 2033 | FF3: =DI3 -> 2034 | FG3: =DJ3 -> 2035 | FH3: =DK3 -> 2036 | FI3: =DL3 -> Totalt | FL3: =DP3 -> 2024 | FM3: 2025 | FN3: 2026 | FO3: 2027 | FP3: 2028 | FQ3: 2029 | FR3: 2030 | FS3: 2031 | FT3: 2032 | FU3: 2033 | FV3: =DZ3 -> 2034 | FW3: 2035 | FX3: 2036 | FY3: =EC3 -> Totalt | GC3: =EF3 -> 2024 | GD3: 2025 | GE3: 2026 | GF3: 2027 | GG3: 2028 | GH3: 2029 | GI3: 2030 | GJ3: 2031 | GK3: 2032 | GL3: 2033 | GM3: =EP3 -> 2034 | GN3: 2035 | GO3: 2036 | GP3: =ES3 -> Totalt | GS3: =AR3 -> 2024 | GT3: 2025 | GU3: 2026 | GV3: 2027 | GW3: 2028 | GX3: 2029 | GY3: 2030 | GZ3: 2031 | HA3: 2032 | HB3: 2033 | HC3: =BB3 -> 2034 | HD3: =BC3 -> 2035 | HE3: =BD3 -> 2036
B4: Stipendiat | C4: =IF(Registrering!$B$28="Fast beløp",0,IF(Registrering!$B$28="Sats for ekst. fin. overhead",0,DL4)) -> -4490750 | D4: =SUM(AR4:BD4) -> 2521529.778 | E4: =IFERROR(SUM(BF4:BR4),0) -> 1610700.555 | F4: =SUM(D4:E4) -> 4132230.332 | G4: =SUM(K4:W4)/12 -> 3 | H4: NFR | I4: 570000 | J4: N.N. a phd | M4: 9 | N4: 12 | O4: 12 | P4: 3 | AG4: =I4 -> 570000 | AH4: =AG4*Tabeller!$I$35 -> 597930 | AI4: =IF(AG4>0,(AH4-400)/52*47,0) -> 540075.1923 | AJ4: =AI4*Tabeller!$H$26 -> 64809.02308 | AK4: =SUM(AI4:AJ4,AL4)*Tabeller!$H$27 -> 62027.31108 | AL4: =AH4*Tabeller!$H$28 -> 84308.13 | AM4: =SUM(AI4:AL4) -> 751219.6565 | AN4: =AM4+(IF(B4="Teknisk adm bistand",Registrering!$E$51,Registrering!$B$51)) -> 1216219.656 | AO4: =AN4/Tabeller!$H$5 -> 747.063671 | AR4: =((K4*Budsjett!$AM4))/12 -> 0 | AS4: =((L4*Budsjett!$AM4)*(Tabeller!J$35))/12 -> 0 | AT4: =((M4*Budsjett!$AM4)*(Tabeller!K$35))/12 -> 603543.9574 | AU4: =((N4*Budsjett!$AM4)*(Tabeller!L$35))/12 -> 832890.6612 | AV4: =((O4*Budsjett!$AM4)*(Tabeller!M$35))/12 -> 862041.8343 | AW4: =((P4*Budsjett!$AM4)*(Tabeller!N$35))/12 -> 223053.3246 | AX4: =((Q4*Budsjett!$AM4)*(Tabeller!O$35))/12 -> 0 | AY4: =((R4*Budsjett!$AM4)*(Tabeller!P$35))/12 -> 0 | AZ4: =((S4*Budsjett!$AM4)*(Tabeller!Q$35))/12 -> 0 | BA4: =((T4*Budsjett!$AM4)*(Tabeller!R$35))/12 -> 0 | BB4: =((U4*Budsjett!$AM4)*(Tabeller!S$35))/12 -> 0 | BC4: =((V4*Budsjett!$AM4)*(Tabeller!T$35))/12 -> 0 | BD4: =((W4*Budsjett!$AM4)*(Tabeller!U$35))/12 -> 0 | BF4: =IFERROR(IF($E$71>$E$70,BU4,GS4),0) -> 0 | BG4: 0 | BH4: 385531.2738 | BI4: 532033.1578 | BJ4: 550654.3183 | BK4: 142481.8049 | BL4: 0 | BM4: 0 | BN4: 0 | BO4: 0 | BP4: 0 | BQ4: 0 | BR4: 0 | BU4: =IFERROR(IF($E$73=$E$72,AR4*$E$73,AR4*Budsjett!$E$72),0) -> 0 | BV4: =IFERROR(IF($E$73=$E$72,AS4*$E$73,AS4*Budsjett!$E$72),0) -> 0 | BW4: =IFERROR(IF($E$73=$E$72,AT4*$E$73,AT4*Budsjett!$E$72),0) -> 385531.2738 | BX4: =IFERROR(IF($E$73=$E$72,AU4*$E$73,AU4*Budsjett!$E$72),0) -> 532033.1578 | BY4: =IFERROR(IF($E$73=$E$72,AV4*$E$73,AV4*Budsjett!$E$72),0) -> 550654.3183 | BZ4: =IFERROR(IF($E$73=$E$72,AW4*$E$73,AW4*Budsjett!$E$72),0) -> 142481.8049 | CA4: =IFERROR(IF($E$73=$E$72,AX4*$E$73,AX4*Budsjett!$E$72),0) -> 0 | CB4: =IFERROR(IF($E$73=$E$72,AY4*$E$73,AY4*Budsjett!$E$72),0) -> 0 | CC4: =IFERROR(IF($E$73=$E$72,AZ4*$E$73,AZ4*Budsjett!$E$72),0) -> 0 | CD4: =IFERROR(IF($E$73=$E$72,BA4*$E$73,BA4*Budsjett!$E$72),0) -> 0 | CE4: =IFERROR(IF($E$73=$E$72,BB4*$E$73,BB4*Budsjett!$E$72),0) -> 0 | CF4: =IFERROR(IF($E$73=$E$72,BC4*$E$73,BC4*Budsjett!$E$72),0) -> 0 | CG4: =IFERROR(IF($E$73=$E$72,BD4*$E$73,BD4*Budsjett!$E$72),0) -> 0 | CJ4: =BF4-BU4 -> 0 | CK4: 0 | CL4: 0 | CM4: 0 | CN4: 0 | CO4: 0 | CP4: 0 | CQ4: 0 | CR4: 0 | CS4: =BO4-CD4 -> 0 | CT4: =BP4-CE4 -> 0 | CU4: =BQ4-CF4 -> 0 | CV4: =BR4-CG4 -> 0 | CX4: =B4 -> Stipendiat | CY4: =-((IF($CX4="Teknisk/adm. bistand/Feltassistent",IF(Budsjett!AR4*(1+Tabeller!$I$62)>Tabeller!I$55,Tabeller!I$55,Budsjett!AR4*(1+Tabeller!$I$62)),0)+(IF($CX4="Forsker - professor",Tabeller!I$55*K4,0)+IF($CX4="Prosjektleder/adm.leder",Tabeller!I$54*K4,0)+IF($CX4="Forsker - 1.aman.",Tabeller!I$56*K4,0)+IF($CX4="Gjesteforsker",Tabeller!I$58*K4,0)+IF($CX4="Postdoktor / forsker",Tabeller!I$59*K4,0)+IF($CX4="Stipendiat",Tabeller!I$60*K4,0)+IF($CX4="Forsker (rundsum)",Tabeller!I$57*K4,0)+IF($CX4="Vit.ass",Tabeller!I$61*K4,0))/12)) -> 0 | CZ4: =-((IF($CX4="Teknisk/adm. bistand/Feltassistent",IF(Budsjett!AS4*(1+Tabeller!$I$62)>Tabeller!J$55,Tabeller!J$55,Budsjett!AS4*(1+Tabeller!$I$62)),0)+(IF($CX4="Forsker - professor",Tabeller!J$55*L4,0)+IF($CX4="Prosjektleder/adm.leder",Tabeller!J$54*L4,0)+IF($CX4="Forsker - 1.aman.",Tabeller!J$56*L4,0)+IF($CX4="Gjesteforsker",Tabeller!J$58*L4,0)+IF($CX4="Postdoktor / forsker",Tabeller!J$59*L4,0)+IF($CX4="Stipendiat",Tabeller!J$60*L4,0)+IF($CX4="Forsker (rundsum)",Tabeller!J$57*L4,0)+IF($CX4="Vit.ass",Tabeller!J$61*L4,0))/12)) -> 0 | DA4: =-((IF($CX4="Teknisk/adm. bistand/Feltassistent",IF(Budsjett!AT4*(1+Tabeller!$I$62)>Tabeller!K$55,Tabeller!K$55,Budsjett!AT4*(1+Tabeller!$I$62)),0)+(IF($CX4="Forsker - professor",Tabeller!K$55*M4,0)+IF($CX4="Prosjektleder/adm.leder",Tabeller!K$54*M4,0)+IF($CX4="Forsker - 1.aman.",Tabeller!K$56*M4,0)+IF($CX4="Gjesteforsker",Tabeller!K$58*M4,0)+IF($CX4="Postdoktor / forsker",Tabeller!K$59*M4,0)+IF($CX4="Stipendiat",Tabeller!K$60*M4,0)+IF($CX4="Forsker (rundsum)",Tabeller!K$57*M4,0)+IF($CX4="Vit.ass",Tabeller!K$61*M4,0))/12)) -> -1073250 | DB4: =-((IF($CX4="Teknisk/adm. bistand/Feltassistent",IF(Budsjett!AU4*(1+Tabeller!$I$62)>Tabeller!L$55,Tabeller!L$55,Budsjett!AU4*(1+Tabeller!$I$62)),0)+(IF($CX4="Forsker - professor",Tabeller!L$55*N4,0)+IF($CX4="Prosjektleder/adm.leder",Tabeller!L$54*N4,0)+IF($CX4="Forsker - 1.aman.",Tabeller!L$56*N4,0)+IF($CX4="Gjesteforsker",Tabeller!L$58*N4,0)+IF($CX4="Postdoktor / forsker",Tabeller!L$59*N4,0)+IF($CX4="Stipendiat",Tabeller!L$60*N4,0)+IF($CX4="Forsker (rundsum)",Tabeller!L$57*N4,0)+IF($CX4="Vit.ass",Tabeller!L$61*N4,0))/12)) -> -1484000 | DC4: =-((IF($CX4="Teknisk/adm. bistand/Feltassistent",IF(Budsjett!AV4*(1+Tabeller!$I$62)>Tabeller!M$55,Tabeller!M$55,Budsjett!AV4*(1+Tabeller!$I$62)),0)+(IF($CX4="Forsker - professor",Tabeller!M$55*O4,0)+IF($CX4="Prosjektleder/adm.leder",Tabeller!M$54*O4,0)+IF($CX4="Forsker - 1.aman.",Tabeller!M$56*O4,0)+IF($CX4="Gjesteforsker",Tabeller!M$58*O4,0)+IF($CX4="Postdoktor / forsker",Tabeller!M$59*O4,0)+IF($CX4="Stipendiat",Tabeller!M$60*O4,0)+IF($CX4="Forsker (rundsum)",Tabeller!M$57*O4,0)+IF($CX4="Vit.ass",Tabeller!M$61*O4,0))/12)) -> -1536000 | DD4: =-((IF($CX4="Teknisk/adm. bistand/Feltassistent",IF(Budsjett!AW4*(1+Tabeller!$I$62)>Tabeller!N$55,Tabeller!N$55,Budsjett!AW4*(1+Tabeller!$I$62)),0)+(IF($CX4="Forsker - professor",Tabeller!N$55*P4,0)+IF($CX4="Prosjektleder/adm.leder",Tabeller!N$54*P4,0)+IF($CX4="Forsker - 1.aman.",Tabeller!N$56*P4,0)+IF($CX4="Gjesteforsker",Tabeller!N$58*P4,0)+IF($CX4="Postdoktor / forsker",Tabeller!N$59*P4,0)+IF($CX4="Stipendiat",Tabeller!N$60*P4,0)+IF($CX4="Forsker (rundsum)",Tabeller!N$57*P4,0)+IF($CX4="Vit.ass",Tabeller!N$61*P4,0))/12)) -> -397500 | DE4: =-((IF($CX4="Teknisk/adm. bistand/Feltassistent",IF(Budsjett!AX4*(1+Tabeller!$I$62)>Tabeller!O$55,Tabeller!O$55,Budsjett!AX4*(1+Tabeller!$I$62)),0)+(IF($CX4="Forsker - professor",Tabeller!O$55*Q4,0)+IF($CX4="Prosjektleder/adm.leder",Tabeller!O$54*Q4,0)+IF($CX4="Forsker - 1.aman.",Tabeller!O$56*Q4,0)+IF($CX4="Gjesteforsker",Tabeller!O$58*Q4,0)+IF($CX4="Postdoktor / forsker",Tabeller!O$59*Q4,0)+IF($CX4="Stipendiat",Tabeller!O$60*Q4,0)+IF($CX4="Forsker (rundsum)",Tabeller!O$57*Q4,0)+IF($CX4="Vit.ass",Tabeller!O$61*Q4,0))/12)) -> 0 | DF4: =-((IF($CX4="Teknisk/adm. bistand/Feltassistent",IF(Budsjett!AY4*(1+Tabeller!$I$62)>Tabeller!P$55,Tabeller!P$55,Budsjett!AY4*(1+Tabeller!$I$62)),0)+(IF($CX4="Forsker - professor",Tabeller!P$55*R4,0)+IF($CX4="Prosjektleder/adm.leder",Tabeller!P$54*R4,0)+IF($CX4="Forsker - 1.aman.",Tabeller!P$56*R4,0)+IF($CX4="Gjesteforsker",Tabeller!P$58*R4,0)+IF($CX4="Postdoktor / forsker",Tabeller!P$59*R4,0)+IF($CX4="Stipendiat",Tabeller!P$60*R4,0)+IF($CX4="Forsker (rundsum)",Tabeller!P$57*R4,0)+IF($CX4="Vit.ass",Tabeller!P$61*R4,0))/12)) -> 0 | DG4: =-((IF($CX4="Teknisk/adm. bistand/Feltassistent",IF(Budsjett!AZ4*(1+Tabeller!$I$62)>Tabeller!Q$55,Tabeller!Q$55,Budsjett!AZ4*(1+Tabeller!$I$62)),0)+(IF($CX4="Forsker - professor",Tabeller!Q$55*S4,0)+IF($CX4="Prosjektleder/adm.leder",Tabeller!Q$54*S4,0)+IF($CX4="Forsker - 1.aman.",Tabeller!Q$56*S4,0)+IF($CX4="Gjesteforsker",Tabeller!Q$58*S4,0)+IF($CX4="Postdoktor / forsker",Tabeller!Q$59*S4,0)+IF($CX4="Stipendiat",Tabeller!Q$60*S4,0)+IF($CX4="Forsker (rundsum)",Tabeller!Q$57*S4,0)+IF($CX4="Vit.ass",Tabeller!Q$61*S4,0))/12)) -> 0 | DH4: =-((IF($CX4="Teknisk/adm. bistand/Feltassistent",IF(Budsjett!BA4*(1+Tabeller!$I$62)>Tabeller!R$55,Tabeller!R$55,Budsjett!BA4*(1+Tabeller!$I$62)),0)+(IF($CX4="Forsker - professor",Tabeller!R$55*T4,0)+IF($CX4="Prosjektleder/adm.leder",Tabeller!R$54*T4,0)+IF($CX4="Forsker - 1.aman.",Tabeller!R$56*T4,0)+IF($CX4="Gjesteforsker",Tabeller!R$58*T4,0)+IF($CX4="Postdoktor / forsker",Tabeller!R$59*T4,0)+IF($CX4="Stipendiat",Tabeller!R$60*T4,0)+IF($CX4="Forsker (rundsum)",Tabeller!R$57*T4,0)+IF($CX4="Vit.ass",Tabeller!R$61*T4,0))/12)) -> 0 | DI4: =-((IF($CX4="Teknisk/adm. bistand/Feltassistent",IF(Budsjett!BB4*(1+Tabeller!$I$62)>Tabeller!S$55,Tabeller!S$55,Budsjett!BB4*(1+Tabeller!$I$62)),0)+(IF($CX4="Forsker - professor",Tabeller!S$55*U4,0)+IF($CX4="Prosjektleder/adm.leder",Tabeller!S$54*U4,0)+IF($CX4="Forsker - 1.aman.",Tabeller!S$56*U4,0)+IF($CX4="Gjesteforsker",Tabeller!S$58*U4,0)+IF($CX4="Postdoktor / forsker",Tabeller!S$59*U4,0)+IF($CX4="Stipendiat",Tabeller!S$60*U4,0)+IF($CX4="Forsker (rundsum)",Tabeller!S$57*U4,0)+IF($CX4="Vit.ass",Tabeller!S$61*U4,0))/12)) -> 0 | DJ4: =-((IF($CX4="Teknisk/adm. bistand/Feltassistent",IF(Budsjett!BC4*(1+Tabeller!$I$62)>Tabeller!T$55,Tabeller!T$55,Budsjett!BC4*(1+Tabeller!$I$62)),0)+(IF($CX4="Forsker - professor",Tabeller!T$55*V4,0)+IF($CX4="Prosjektleder/adm.leder",Tabeller!T$54*V4,0)+IF($CX4="Forsker - 1.aman.",Tabeller!T$56*V4,0)+IF($CX4="Gjesteforsker",Tabeller!T$58*V4,0)+IF($CX4="Postdoktor / forsker",Tabeller!T$59*V4,0)+IF($CX4="Stipendiat",Tabeller!T$60*V4,0)+IF($CX4="Forsker (rundsum)",Tabeller!T$57*V4,0)+IF($CX4="Vit.ass",Tabeller!T$61*V4,0))/12)) -> 0 | DK4: =-((IF($CX4="Teknisk/adm. bistand/Feltassistent",IF(Budsjett!BD4*(1+Tabeller!$I$62)>Tabeller!U$55,Tabeller!U$55,Budsjett!BD4*(1+Tabeller!$I$62)),0)+(IF($CX4="Forsker - professor",Tabeller!U$55*W4,0)+IF($CX4="Prosjektleder/adm.leder",Tabeller!U$54*W4,0)+IF($CX4="Forsker - 1.aman.",Tabeller!U$56*W4,0)+IF($CX4="Gjesteforsker",Tabeller!U$58*W4,0)+IF($CX4="Postdoktor / forsker",Tabeller!U$59*W4,0)+IF($CX4="Stipendiat",Tabeller!U$60*W4,0)+IF($CX4="Forsker (rundsum)",Tabeller!U$57*W4,0)+IF($CX4="Vit.ass",Tabeller!U$61*W4,0))/12)) -> 0 | DL4: =SUM(CY4:DK4) -> -4490750 | DO4: =CX4 -> Stipendiat | DP4: =IF($H4="NFR",CY4,0) -> 0 | DQ4: 0 | DR4: -1073250 | DS4: -1484000 | DT4: -1536000 | DU4: -397500 | DV4: 0 | DW4: 0 | DX4: 0 | DY4: 0 | DZ4: =IF($H4="NFR",DI4,0) -> 0 | EA4: =IF($H4="NFR",DJ4,0) -> 0 | EB4: =IF($H4="NFR",DK4,0) -> 0 | EC4: =SUM(DP4:EB4) -> -4490750 | EE4: =DO4 -> Stipendiat | EF4: =IF($H4=$EE$1,CY4,0) -> 0 | EG4: 0 | EH4: 0 | EI4: 0 | EJ4: 0 | EK4: 0 | EL4: 0 | EM4: 0 | EN4: 0 | EO4: 0 | EP4: 0 | EQ4: 0 | ER4: 0 | ES4: =SUM(EF4:ER4) -> 0 | EU4: =EE4 -> Stipendiat | EV4: =IF($H4=$EU$1,CY4,0) -> 0 | EW4: 0 | EX4: 0 | EY4: 0 | EZ4: 0 | FA4: 0 | FB4: 0 | FC4: 0 | FD4: 0 | FE4: 0 | FF4: 0 | FG4: 0 | FH4: 0 | FI4: =SUM(EV4:FH4) -> 0 | FK4: =EU4 -> Stipendiat | FL4: =IF($H4=$FK$1,CY4,0) -> 0 | FM4: 0 | FN4: 0 | FO4: 0 | FP4: 0 | FQ4: 0 | FR4: 0 | FS4: 0 | FT4: 0 | FU4: 0 | FV4: 0 | FW4: 0 | FX4: 0 | FY4: =SUM(FL4:FX4) -> 0 | GB4: =FK4 -> Stipendiat | GP4: =SUM(GC4:GO4) -> 0 | GS4: =IF(Registrering!$B$29="Prosjekter som foregår i UiOs lokaler",IF($B4="Teknisk/adm. bistand/Feltassistent",(K4/12)*Tabeller!J$11,(K4/12)*Tabeller!J$10),IF($B4="Teknisk/adm. bistand/Feltassistent",(K4/12)*Tabeller!J$13,(K4/12)*Tabeller!J$12)) -> 0 | GT4: =IF(Registrering!$B$29="Prosjekter som foregår i UiOs lokaler",IF($B4="Teknisk/adm. bistand/Feltassistent",(L4/12)*Tabeller!K$11,(L4/12)*Tabeller!K$10),IF($B4="Teknisk/adm. bistand/Feltassistent",(L4/12)*Tabeller!K$13,(L4/12)*Tabeller!K$12)) -> 0 | GU4: =IF(Registrering!$B$29="Prosjekter som foregår i UiOs lokaler",IF($B4="Teknisk/adm. bistand/Feltassistent",(M4/12)*Tabeller!L$11,(M4/12)*Tabeller!L$10),IF($B4="Teknisk/adm. bistand/Feltassistent",(M4/12)*Tabeller!L$13,(M4/12)*Tabeller!L$12)) -> 373589.7187 | GV4: =IF(Registrering!$B$29="Prosjekter som foregår i UiOs lokaler",IF($B4="Teknisk/adm. bistand/Feltassistent",(N4/12)*Tabeller!M$11,(N4/12)*Tabeller!M$10),IF($B4="Teknisk/adm. bistand/Feltassistent",(N4/12)*Tabeller!M$13,(N4/12)*Tabeller!M$12)) -> 515553.8119 | GW4: =IF(Registrering!$B$29="Prosjekter som foregår i UiOs lokaler",IF($B4="Teknisk/adm. bistand/Feltassistent",(O4/12)*Tabeller!N$11,(O4/12)*Tabeller!N$10),IF($B4="Teknisk/adm. bistand/Feltassistent",(O4/12)*Tabeller!N$13,(O4/12)*Tabeller!N$12)) -> 533598.1953 | GX4: =IF(Registrering!$B$29="Prosjekter som foregår i UiOs lokaler",IF($B4="Teknisk/adm. bistand/Feltassistent",(P4/12)*Tabeller!O$11,(P4/12)*Tabeller!O$10),IF($B4="Teknisk/adm. bistand/Feltassistent",(P4/12)*Tabeller!O$13,(P4/12)*Tabeller!O$12)) -> 138068.533 | GY4: =IF(Registrering!$B$29="Prosjekter som foregår i UiOs lokaler",IF($B4="Teknisk/adm. bistand/Feltassistent",(Q4/12)*Tabeller!P$11,(Q4/12)*Tabeller!P$10),IF($B4="Teknisk/adm. bistand/Feltassistent",(Q4/12)*Tabeller!P$13,(Q4/12)*Tabeller!P$12)) -> 0 | GZ4: =IF(Registrering!$B$29="Prosjekter som foregår i UiOs lokaler",IF($B4="Teknisk/adm. bistand/Feltassistent",(R4/12)*Tabeller!Q$11,(R4/12)*Tabeller!Q$10),IF($B4="Teknisk/adm. bistand/Feltassistent",(R4/12)*Tabeller!Q$13,(R4/12)*Tabeller!Q$12)) -> 0 | HA4: =IF(Registrering!$B$29="Prosjekter som foregår i UiOs lokaler",IF($B4="Teknisk/adm. bistand/Feltassistent",(S4/12)*Tabeller!R$11,(S4/12)*Tabeller!R$10),IF($B4="Teknisk/adm. bistand/Feltassistent",(S4/12)*Tabeller!R$13,(S4/12)*Tabeller!R$12)) -> 0 | HB4: =IF(Registrering!$B$29="Prosjekter som foregår i UiOs lokaler",IF($B4="Teknisk/adm. bistand/Feltassistent",(T4/12)*Tabeller!S$11,(T4/12)*Tabeller!S$10),IF($B4="Teknisk/adm. bistand/Feltassistent",(T4/12)*Tabeller!S$13,(T4/12)*Tabeller!S$12)) -> 0 | HC4: =IF(Registrering!$B$29="Prosjekter som foregår i UiOs lokaler",IF($B4="Teknisk/adm. bistand/Feltassistent",(U4/12)*Tabeller!T$11,(U4/12)*Tabeller!T$10),IF($B4="Teknisk/adm. bistand/Feltassistent",(U4/12)*Tabeller!T$13,(U4/12)*Tabeller!T$12)) -> 0 | HD4: =IF(Registrering!$B$29="Prosjekter som foregår i UiOs lokaler",IF($B4="Teknisk/adm. bistand/Feltassistent",(V4/12)*Tabeller!U$11,(V4/12)*Tabeller!U$10),IF($B4="Teknisk/adm. bistand/Feltassistent",(V4/12)*Tabeller!U$13,(V4/12)*Tabeller!U$12)) -> 0 | HE4: =IF(Registrering!$B$29="Prosjekter som foregår i UiOs lokaler",IF($B4="Teknisk/adm. bistand/Feltassistent",(W4/12)*Tabeller!V$11,(W4/12)*Tabeller!V$10),IF($B4="Teknisk/adm. bistand/Feltassistent",(W4/12)*Tabeller!V$13,(W4/12)*Tabeller!V$12)) -> 0
B5: Stipendiat | C5: =IF(Registrering!$B$28="Fast beløp",0,IF(Registrering!$B$28="Sats for ekst. fin. overhead",0,DL5)) -> -4490750 | D5: =SUM(AR5:BD5) -> 2522720.239 | E5: =IFERROR(SUM(BF5:BR5),0) -> 1611460.997 | F5: =SUM(D5:E5) -> 4134181.236 | G5: =SUM(K5:W5)/12 -> 3 | H5: NFR | I5: 570000 | J5: N.N. b phd | M5: 9 | N5: 12 | O5: 12 | P5: 3 | AG5: =I5 -> 570000 | AH5: =AG5*Tabeller!$I$35 -> 597930 | AI5: =IF(AG5>0,(AH5-400)/52*47,0) -> 540075.1923 | AJ5: =AI5*Tabeller!$H$26 -> 64809.02308 | AK5: =SUM(AI5:AJ5,AL5)*Tabeller!$H$28 -> 92876.40607 | AL5: =AH5*Tabeller!$H$27 -> 53813.7 | AM5: =SUM(AI5:AL5) -> 751574.3215 | AN5: =AM5+(IF(B5="Teknisk adm bistand",Registrering!$E$51,Registrering!$B$51)) -> 1216574.321 | AO5: =AN5/Tabeller!$H$5 -> 747.2815242 | AR5: =((K5*Budsjett!$AM5))/12 -> 0 | AS5: =((L5*Budsjett!$AM5)*(Tabeller!J$35))/12 -> 0 | AT5: =((M5*Budsjett!$AM5)*(Tabeller!K$35))/12 -> 603828.9019 | AU5: =((N5*Budsjett!$AM5)*(Tabeller!L$35))/12 -> 833283.8846 | AV5: =((O5*Budsjett!$AM5)*(Tabeller!M$35))/12 -> 862448.8205 | AW5: =((P5*Budsjett!$AM5)*(Tabeller!N$35))/12 -> 223158.6323 | AX5: =((Q5*Budsjett!$AM5)*(Tabeller!O$35))/12 -> 0 | AY5: =((R5*Budsjett!$AM5)*(Tabeller!P$35))/12 -> 0 | AZ5: =((S5*Budsjett!$AM5)*(Tabeller!Q$35))/12 -> 0 | BA5: =((T5*Budsjett!$AM5)*(Tabeller!R$35))/12 -> 0 | BB5: =((U5*Budsjett!$AM5)*(Tabeller!S$35))/12 -> 0 | BC5: =((V5*Budsjett!$AM5)*(Tabeller!T$35))/12 -> 0 | BD5: =((W5*Budsjett!$AM5)*(Tabeller!U$35))/12 -> 0 | BF5: 0 | BG5: 0 | BH5: 385713.2904 | BI5: 532284.3407 | BJ5: 550914.2926 | BK5: 142549.0732 | BL5: 0 | BM5: 0 | BN5: 0 | BO5: 0 | BP5: 0 | BQ5: 0 | BR5: 0 | BU5: =IFERROR(IF($E$73=$E$72,AR5*$E$73,AR5*Budsjett!$E$72),0) -> 0 | BV5: =IFERROR(IF($E$73=$E$72,AS5*$E$73,AS5*Budsjett!$E$72),0) -> 0 | BW5: =IFERROR(IF($E$73=$E$72,AT5*$E$73,AT5*Budsjett!$E$72),0) -> 385713.2904 | BX5: =IFERROR(IF($E$73=$E$72,AU5*$E$73,AU5*Budsjett!$E$72),0) -> 532284.3407 | BY5: =IFERROR(IF($E$73=$E$72,AV5*$E$73,AV5*Budsjett!$E$72),0) -> 550914.2926 | BZ5: =IFERROR(IF($E$73=$E$72,AW5*$E$73,AW5*Budsjett!$E$72),0) -> 142549.0732 | CA5: =IFERROR(IF($E$73=$E$72,AX5*$E$73,AX5*Budsjett!$E$72),0) -> 0 | CB5: =IFERROR(IF($E$73=$E$72,AY5*$E$73,AY5*Budsjett!$E$72),0) -> 0 | CC5: =IFERROR(IF($E$73=$E$72,AZ5*$E$73,AZ5*Budsjett!$E$72),0) -> 0 | CD5: =IFERROR(IF($E$73=$E$72,BA5*$E$73,BA5*Budsjett!$E$72),0) -> 0 | CE5: =IFERROR(IF($E$73=$E$72,BB5*$E$73,BB5*Budsjett!$E$72),0) -> 0 | CF5: =IFERROR(IF($E$73=$E$72,BC5*$E$73,BC5*Budsjett!$E$72),0) -> 0 | CG5: =IFERROR(IF($E$73=$E$72,BD5*$E$73,BD5*Budsjett!$E$72),0) -> 0 | CJ5: 0 | CK5: 0 | CL5: 0 | CM5: 0 | CN5: 0 | CO5: 0 | CP5: 0 | CQ5: 0 | CR5: 0 | CS5: 0 | CT5: 0 | CU5: 0 | CV5: 0 | CX5: Stipendiat | CY5: =-((IF($CX5="Teknisk/adm. bistand/Feltassistent",IF(Budsjett!AR5*(1+Tabeller!$I$62)>Tabeller!I$55,Tabeller!I$55,Budsjett!AR5*(1+Tabeller!$I$62)),0)+(IF($CX5="Forsker - professor",Tabeller!I$55*K5,0)+IF($CX5="Prosjektleder/adm.leder",Tabeller!I$54*K5,0)+IF($CX5="Forsker - 1.aman.",Tabeller!I$56*K5,0)+IF($CX5="Gjesteforsker",Tabeller!I$58*K5,0)+IF($CX5="Postdoktor / forsker",Tabeller!I$59*K5,0)+IF($CX5="Stipendiat",Tabeller!I$60*K5,0)+IF($CX5="Forsker (rundsum)",Tabeller!I$57*K5,0)+IF($CX5="Vit.ass",Tabeller!I$61*K5,0))/12)) -> 0 | CZ5: =-((IF($CX5="Teknisk/adm. bistand/Feltassistent",IF(Budsjett!AS5*(1+Tabeller!$I$62)>Tabeller!J$55,Tabeller!J$55,Budsjett!AS5*(1+Tabeller!$I$62)),0)+(IF($CX5="Forsker - professor",Tabeller!J$55*L5,0)+IF($CX5="Prosjektleder/adm.leder",Tabeller!J$54*L5,0)+IF($CX5="Forsker - 1.aman.",Tabeller!J$56*L5,0)+IF($CX5="Gjesteforsker",Tabeller!J$58*L5,0)+IF($CX5="Postdoktor / forsker",Tabeller!J$59*L5,0)+IF($CX5="Stipendiat",Tabeller!J$60*L5,0)+IF($CX5="Forsker (rundsum)",Tabeller!J$57*L5,0)+IF($CX5="Vit.ass",Tabeller!J$61*L5,0))/12)) -> 0 | DA5: =-((IF($CX5="Teknisk/adm. bistand/Feltassistent",IF(Budsjett!AT5*(1+Tabeller!$I$62)>Tabeller!K$55,Tabeller!K$55,Budsjett!AT5*(1+Tabeller!$I$62)),0)+(IF($CX5="Forsker - professor",Tabeller!K$55*M5,0)+IF($CX5="Prosjektleder/adm.leder",Tabeller!K$54*M5,0)+IF($CX5="Forsker - 1.aman.",Tabeller!K$56*M5,0)+IF($CX5="Gjesteforsker",Tabeller!K$58*M5,0)+IF($CX5="Postdoktor / forsker",Tabeller!K$59*M5,0)+IF($CX5="Stipendiat",Tabeller!K$60*M5,0)+IF($CX5="Forsker (rundsum)",Tabeller!K$57*M5,0)+IF($CX5="Vit.ass",Tabeller!K$61*M5,0))/12)) -> -1073250 | DB5: =-((IF($CX5="Teknisk/adm. bistand/Feltassistent",IF(Budsjett!AU5*(1+Tabeller!$I$62)>Tabeller!L$55,Tabeller!L$55,Budsjett!AU5*(1+Tabeller!$I$62)),0)+(IF($CX5="Forsker - professor",Tabeller!L$55*N5,0)+IF($CX5="Prosjektleder/adm.leder",Tabeller!L$54*N5,0)+IF($CX5="Forsker - 1.aman.",Tabeller!L$56*N5,0)+IF($CX5="Gjesteforsker",Tabeller!L$58*N5,0)+IF($CX5="Postdoktor / forsker",Tabeller!L$59*N5,0)+IF($CX5="Stipendiat",Tabeller!L$60*N5,0)+IF($CX5="Forsker (rundsum)",Tabeller!L$57*N5,0)+IF($CX5="Vit.ass",Tabeller!L$61*N5,0))/12)) -> -1484000 | DC5: =-((IF($CX5="Teknisk/adm. bistand/Feltassistent",IF(Budsjett!AV5*(1+Tabeller!$I$62)>Tabeller!M$55,Tabeller!M$55,Budsjett!AV5*(1+Tabeller!$I$62)),0)+(IF($CX5="Forsker - professor",Tabeller!M$55*O5,0)+IF($CX5="Prosjektleder/adm.leder",Tabeller!M$54*O5,0)+IF($CX5="Forsker - 1.aman.",Tabeller!M$56*O5,0)+IF($CX5="Gjesteforsker",Tabeller!M$58*O5,0)+IF($CX5="Postdoktor / forsker",Tabeller!M$59*O5,0)+IF($CX5="Stipendiat",Tabeller!M$60*O5,0)+IF($CX5="Forsker (rundsum)",Tabeller!M$57*O5,0)+IF($CX5="Vit.ass",Tabeller!M$61*O5,0))/12)) -> -1536000 | DD5: =-((IF($CX5="Teknisk/adm. bistand/Feltassistent",IF(Budsjett!AW5*(1+Tabeller!$I$62)>Tabeller!N$55,Tabeller!N$55,Budsjett!AW5*(1+Tabeller!$I$62)),0)+(IF($CX5="Forsker - professor",Tabeller!N$55*P5,0)+IF($CX5="Prosjektleder/adm.leder",Tabeller!N$54*P5,0)+IF($CX5="Forsker - 1.aman.",Tabeller!N$56*P5,0)+IF($CX5="Gjesteforsker",Tabeller!N$58*P5,0)+IF($CX5="Postdoktor / forsker",Tabeller!N$59*P5,0)+IF($CX5="Stipendiat",Tabeller!N$60*P5,0)+IF($CX5="Forsker (rundsum)",Tabeller!N$57*P5,0)+IF($CX5="Vit.ass",Tabeller!N$61*P5,0))/12)) -> -397500 | DE5: =-((IF($CX5="Teknisk/adm. bistand/Feltassistent",IF(Budsjett!AX5*(1+Tabeller!$I$62)>Tabeller!O$55,Tabeller!O$55,Budsjett!AX5*(1+Tabeller!$I$62)),0)+(IF($CX5="Forsker - professor",Tabeller!O$55*Q5,0)+IF($CX5="Prosjektleder/adm.leder",Tabeller!O$54*Q5,0)+IF($CX5="Forsker - 1.aman.",Tabeller!O$56*Q5,0)+IF($CX5="Gjesteforsker",Tabeller!O$58*Q5,0)+IF($CX5="Postdoktor / forsker",Tabeller!O$59*Q5,0)+IF($CX5="Stipendiat",Tabeller!O$60*Q5,0)+IF($CX5="Forsker (rundsum)",Tabeller!O$57*Q5,0)+IF($CX5="Vit.ass",Tabeller!O$61*Q5,0))/12)) -> 0 | DF5: =-((IF($CX5="Teknisk/adm. bistand/Feltassistent",IF(Budsjett!AY5*(1+Tabeller!$I$62)>Tabeller!P$55,Tabeller!P$55,Budsjett!AY5*(1+Tabeller!$I$62)),0)+(IF($CX5="Forsker - professor",Tabeller!P$55*R5,0)+IF($CX5="Prosjektleder/adm.leder",Tabeller!P$54*R5,0)+IF($CX5="Forsker - 1.aman.",Tabeller!P$56*R5,0)+IF($CX5="Gjesteforsker",Tabeller!P$58*R5,0)+IF($CX5="Postdoktor / forsker",Tabeller!P$59*R5,0)+IF($CX5="Stipendiat",Tabeller!P$60*R5,0)+IF($CX5="Forsker (rundsum)",Tabeller!P$57*R5,0)+IF($CX5="Vit.ass",Tabeller!P$61*R5,0))/12)) -> 0 | DG5: =-((IF($CX5="Teknisk/adm. bistand/Feltassistent",IF(Budsjett!AZ5*(1+Tabeller!$I$62)>Tabeller!Q$55,Tabeller!Q$55,Budsjett!AZ5*(1+Tabeller!$I$62)),0)+(IF($CX5="Forsker - professor",Tabeller!Q$55*S5,0)+IF($CX5="Prosjektleder/adm.leder",Tabeller!Q$54*S5,0)+IF($CX5="Forsker - 1.aman.",Tabeller!Q$56*S5,0)+IF($CX5="Gjesteforsker",Tabeller!Q$58*S5,0)+IF($CX5="Postdoktor / forsker",Tabeller!Q$59*S5,0)+IF($CX5="Stipendiat",Tabeller!Q$60*S5,0)+IF($CX5="Forsker (rundsum)",Tabeller!Q$57*S5,0)+IF($CX5="Vit.ass",Tabeller!Q$61*S5,0))/12)) -> 0 | DH5: =-((IF($CX5="Teknisk/adm. bistand/Feltassistent",IF(Budsjett!BA5*(1+Tabeller!$I$62)>Tabeller!R$55,Tabeller!R$55,Budsjett!BA5*(1+Tabeller!$I$62)),0)+(IF($CX5="Forsker - professor",Tabeller!R$55*T5,0)+IF($CX5="Prosjektleder/adm.leder",Tabeller!R$54*T5,0)+IF($CX5="Forsker - 1.aman.",Tabeller!R$56*T5,0)+IF($CX5="Gjesteforsker",Tabeller!R$58*T5,0)+IF($CX5="Postdoktor / forsker",Tabeller!R$59*T5,0)+IF($CX5="Stipendiat",Tabeller!R$60*T5,0)+IF($CX5="Forsker (rundsum)",Tabeller!R$57*T5,0)+IF($CX5="Vit.ass",Tabeller!R$61*T5,0))/12)) -> 0 | DI5: =-((IF($CX5="Teknisk/adm. bistand/Feltassistent",IF(Budsjett!BB5*(1+Tabeller!$I$62)>Tabeller!S$55,Tabeller!S$55,Budsjett!BB5*(1+Tabeller!$I$62)),0)+(IF($CX5="Forsker - professor",Tabeller!S$55*U5,0)+IF($CX5="Prosjektleder/adm.leder",Tabeller!S$54*U5,0)+IF($CX5="Forsker - 1.aman.",Tabeller!S$56*U5,0)+IF($CX5="Gjesteforsker",Tabeller!S$58*U5,0)+IF($CX5="Postdoktor / forsker",Tabeller!S$59*U5,0)+IF($CX5="Stipendiat",Tabeller!S$60*U5,0)+IF($CX5="Forsker (rundsum)",Tabeller!S$57*U5,0)+IF($CX5="Vit.ass",Tabeller!S$61*U5,0))/12)) -> 0 | DJ5: =-((IF($CX5="Teknisk/adm. bistand/Feltassistent",IF(Budsjett!BC5*(1+Tabeller!$I$62)>Tabeller!T$55,Tabeller!T$55,Budsjett!BC5*(1+Tabeller!$I$62)),0)+(IF($CX5="Forsker - professor",Tabeller!T$55*V5,0)+IF($CX5="Prosjektleder/adm.leder",Tabeller!T$54*V5,0)+IF($CX5="Forsker - 1.aman.",Tabeller!T$56*V5,0)+IF($CX5="Gjesteforsker",Tabeller!T$58*V5,0)+IF($CX5="Postdoktor / forsker",Tabeller!T$59*V5,0)+IF($CX5="Stipendiat",Tabeller!T$60*V5,0)+IF($CX5="Forsker (rundsum)",Tabeller!T$57*V5,0)+IF($CX5="Vit.ass",Tabeller!T$61*V5,0))/12)) -> 0 | DK5: =-((IF($CX5="Teknisk/adm. bistand/Feltassistent",IF(Budsjett!BD5*(1+Tabeller!$I$62)>Tabeller!U$55,Tabeller!U$55,Budsjett!BD5*(1+Tabeller!$I$62)),0)+(IF($CX5="Forsker - professor",Tabeller!U$55*W5,0)+IF($CX5="Prosjektleder/adm.leder",Tabeller!U$54*W5,0)+IF($CX5="Forsker - 1.aman.",Tabeller!U$56*W5,0)+IF($CX5="Gjesteforsker",Tabeller!U$58*W5,0)+IF($CX5="Postdoktor / forsker",Tabeller!U$59*W5,0)+IF($CX5="Stipendiat",Tabeller!U$60*W5,0)+IF($CX5="Forsker (rundsum)",Tabeller!U$57*W5,0)+IF($CX5="Vit.ass",Tabeller!U$61*W5,0))/12)) -> 0 | DL5: =SUM(CY5:DK5) -> -4490750 | DO5: =CX5 -> Stipendiat | DP5: =IF($H5="NFR",CY5,0) -> 0 | DQ5: =IF($H5="NFR",CZ5,0) -> 0 | DR5: -1073250 | DS5: -1484000 | DT5: -1536000 | DU5: -397500 | DV5: 0 | DW5: 0 | DX5: 0 | DY5: 0 | DZ5: 0 | EA5: 0 | EB5: 0 | EC5: =SUM(DP5:EB5) -> -4490750 | EE5: =DO5 -> Stipendiat | EF5: 0 | EG5: 0 | EH5: 0 | EI5: 0 | EJ5: 0 | EK5: 0 | EL5: 0 | EM5: 0 | EN5: 0 | EO5: 0 | EP5: 0 | EQ5: 0 | ER5: 0 | ES5: =SUM(EF5:ER5) -> 0 | EU5: =EE5 -> Stipendiat | EV5: 0 | EW5: 0 | EX5: 0 | EY5: 0 | EZ5: 0 | FA5: 0 | FB5: 0 | FC5: 0 | FD5: 0 | FE5: 0 | FF5: 0 | FG5: 0 | FH5: 0 | FI5: =SUM(EV5:FH5) -> 0 | FK5: =EU5 -> Stipendiat | FL5: 0 | FM5: 0 | FN5: 0 | FO5: 0 | FP5: 0 | FQ5: 0 | FR5: 0 | FS5: 0 | FT5: 0 | FU5: 0 | FV5: 0 | FW5: 0 | FX5: 0 | FY5: =SUM(FL5:FX5) -> 0 | GB5: Stipendiat | GP5: =SUM(GC5:GO5) -> 0 | GS5: =IF(Registrering!$B$29="Prosjekter som foregår i UiOs lokaler",IF($B5="Teknisk/adm. bistand/Feltassistent",(K5/12)*Tabeller!J$11,(K5/12)*Tabeller!J$10),IF($B5="Teknisk/adm. bistand/Feltassistent",(K5/12)*Tabeller!J$13,(K5/12)*Tabeller!J$12)) -> 0 | GT5: =IF(Registrering!$B$29="Prosjekter som foregår i UiOs lokaler",IF($B5="Teknisk/adm. bistand/Feltassistent",(L5/12)*Tabeller!K$11,(L5/12)*Tabeller!K$10),IF($B5="Teknisk/adm. bistand/Feltassistent",(L5/12)*Tabeller!K$13,(L5/12)*Tabeller!K$12)) -> 0 | GU5: =IF(Registrering!$B$29="Prosjekter som foregår i UiOs lokaler",IF($B5="Teknisk/adm. bistand/Feltassistent",(M5/12)*Tabeller!L$11,(M5/12)*Tabeller!L$10),IF($B5="Teknisk/adm. bistand/Feltassistent",(M5/12)*Tabeller!L$13,(M5/12)*Tabeller!L$12)) -> 373589.7187 | GV5: =IF(Registrering!$B$29="Prosjekter som foregår i UiOs lokaler",IF($B5="Teknisk/adm. bistand/Feltassistent",(N5/12)*Tabeller!M$11,(N5/12)*Tabeller!M$10),IF($B5="Teknisk/adm. bistand/Feltassistent",(N5/12)*Tabeller!M$13,(N5/12)*Tabeller!M$12)) -> 515553.8119 | GW5: =IF(Registrering!$B$29="Prosjekter som foregår i UiOs lokaler",IF($B5="Teknisk/adm. bistand/Feltassistent",(O5/12)*Tabeller!N$11,(O5/12)*Tabeller!N$10),IF($B5="Teknisk/adm. bistand/Feltassistent",(O5/12)*Tabeller!N$13,(O5/12)*Tabeller!N$12)) -> 533598.1953 | GX5: =IF(Registrering!$B$29="Prosjekter som foregår i UiOs lokaler",IF($B5="Teknisk/adm. bistand/Feltassistent",(P5/12)*Tabeller!O$11,(P5/12)*Tabeller!O$10),IF($B5="Teknisk/adm. bistand/Feltassistent",(P5/12)*Tabeller!O$13,(P5/12)*Tabeller!O$12)) -> 138068.533 | GY5: =IF(Registrering!$B$29="Prosjekter som foregår i UiOs lokaler",IF($B5="Teknisk/adm. bistand/Feltassistent",(Q5/12)*Tabeller!P$11,(Q5/12)*Tabeller!P$10),IF($B5="Teknisk/adm. bistand/Feltassistent",(Q5/12)*Tabeller!P$13,(Q5/12)*Tabeller!P$12)) -> 0 | GZ5: =IF(Registrering!$B$29="Prosjekter som foregår i UiOs lokaler",IF($B5="Teknisk/adm. bistand/Feltassistent",(R5/12)*Tabeller!Q$11,(R5/12)*Tabeller!Q$10),IF($B5="Teknisk/adm. bistand/Feltassistent",(R5/12)*Tabeller!Q$13,(R5/12)*Tabeller!Q$12)) -> 0 | HA5: =IF(Registrering!$B$29="Prosjekter som foregår i UiOs lokaler",IF($B5="Teknisk/adm. bistand/Feltassistent",(S5/12)*Tabeller!R$11,(S5/12)*Tabeller!R$10),IF($B5="Teknisk/adm. bistand/Feltassistent",(S5/12)*Tabeller!R$13,(S5/12)*Tabeller!R$12)) -> 0 | HB5: =IF(Registrering!$B$29="Prosjekter som foregår i UiOs lokaler",IF($B5="Teknisk/adm. bistand/Feltassistent",(T5/12)*Tabeller!S$11,(T5/12)*Tabeller!S$10),IF($B5="Teknisk/adm. bistand/Feltassistent",(T5/12)*Tabeller!S$13,(T5/12)*Tabeller!S$12)) -> 0 | HC5: =IF(Registrering!$B$29="Prosjekter som foregår i UiOs lokaler",IF($B5="Teknisk/adm. bistand/Feltassistent",(U5/12)*Tabeller!T$11,(U5/12)*Tabeller!T$10),IF($B5="Teknisk/adm. bistand/Feltassistent",(U5/12)*Tabeller!T$13,(U5/12)*Tabeller!T$12)) -> 0 | HD5: =IF(Registrering!$B$29="Prosjekter som foregår i UiOs lokaler",IF($B5="Teknisk/adm. bistand/Feltassistent",(V5/12)*Tabeller!U$11,(V5/12)*Tabeller!U$10),IF($B5="Teknisk/adm. bistand/Feltassistent",(V5/12)*Tabeller!U$13,(V5/12)*Tabeller!U$12)) -> 0 | HE5: =IF(Registrering!$B$29="Prosjekter som foregår i UiOs lokaler",IF($B5="Teknisk/adm. bistand/Feltassistent",(W5/12)*Tabeller!V$11,(W5/12)*Tabeller!V$10),IF($B5="Teknisk/adm. bistand/Feltassistent",(W5/12)*Tabeller!V$13,(W5/12)*Tabeller!V$12)) -> 0
B6: Stipendiat | C6: =IF(Registrering!$B$28="Fast beløp",0,IF(Registrering!$B$28="Sats for ekst. fin. overhead",0,DL6)) -> -4650500 | D6: =SUM(AR6:BD6) -> 2611015.448 | E6: =IFERROR(SUM(BF6:BR6),0) -> 1667862.132 | F6: =SUM(D6:E6) -> 4278877.579 | G6: =SUM(K6:W6)/12 -> 3 | H6: NFR | I6: 570000 | J6: N.N. c phd | N6: 9 | O6: 12 | P6: 12 | Q6: 3 | AG6: 570000 | AH6: =AG6*Tabeller!$I$35 -> 597930 | AI6: 540075.1923 | AJ6: =AI6*Tabeller!$H$26 -> 64809.02308 | AK6: =SUM(AI6:AJ6,AL6)*Tabeller!$H$28 -> 92876.40607 | AL6: =AH6*Tabeller!$H$27 -> 53813.7 | AM6: 751574.3215 | AN6: =AM6+(IF(B6="Teknisk adm bistand",Registrering!$E$51,Registrering!$B$51)) -> 1216574.321 | AO6: =AN6/Tabeller!$H$5 -> 747.2815242 | AR6: =((K6*Budsjett!$AM6))/12 -> 0 | AS6: =((L6*Budsjett!$AM6)*(Tabeller!J$35))/12 -> 0 | AT6: =((M6*Budsjett!$AM6)*(Tabeller!K$35))/12 -> 0 | AU6: =((N6*Budsjett!$AM6)*(Tabeller!L$35))/12 -> 624962.9134 | AV6: =((O6*Budsjett!$AM6)*(Tabeller!M$35))/12 -> 862448.8205 | AW6: =((P6*Budsjett!$AM6)*(Tabeller!N$35))/12 -> 892634.5293 | AX6: =((Q6*Budsjett!$AM6)*(Tabeller!O$35))/12 -> 230969.1844 | AY6: =((R6*Budsjett!$AM6)*(Tabeller!P$35))/12 -> 0 | AZ6: =((S6*Budsjett!$AM6)*(Tabeller!Q$35))/12 -> 0 | BA6: =((T6*Budsjett!$AM6)*(Tabeller!R$35))/12 -> 0 | BB6: =((U6*Budsjett!$AM6)*(Tabeller!S$35))/12 -> 0 | BC6: =((V6*Budsjett!$AM6)*(Tabeller!T$35))/12 -> 0 | BD6: =((W6*Budsjett!$AM6)*(Tabeller!U$35))/12 -> 0 | BF6: 0 | BG6: 0 | BH6: 0 | BI6: 399213.2555 | BJ6: 550914.2926 | BK6: 570196.2929 | BL6: 147538.2908 | BM6: 0 | BN6: 0 | BO6: 0 | BP6: 0 | BQ6: 0 | BR6: 0 | BU6: =IFERROR(IF($E$73=$E$72,AR6*$E$73,AR6*Budsjett!$E$72),0) -> 0 | BV6: =IFERROR(IF($E$73=$E$72,AS6*$E$73,AS6*Budsjett!$E$72),0) -> 0 | BW6: =IFERROR(IF($E$73=$E$72,AT6*$E$73,AT6*Budsjett!$E$72),0) -> 0 | BX6: =IFERROR(IF($E$73=$E$72,AU6*$E$73,AU6*Budsjett!$E$72),0) -> 399213.2555 | BY6: =IFERROR(IF($E$73=$E$72,AV6*$E$73,AV6*Budsjett!$E$72),0) -> 550914.2926 | BZ6: =IFERROR(IF($E$73=$E$72,AW6*$E$73,AW6*Budsjett!$E$72),0) -> 570196.2929 | CA6: =IFERROR(IF($E$73=$E$72,AX6*$E$73,AX6*Budsjett!$E$72),0) -> 147538.2908 | CB6: =IFERROR(IF($E$73=$E$72,AY6*$E$73,AY6*Budsjett!$E$72),0) -> 0 | CC6: =IFERROR(IF($E$73=$E$72,AZ6*$E$73,AZ6*Budsjett!$E$72),0) -> 0 | CD6: =IFERROR(IF($E$73=$E$72,BA6*$E$73,BA6*Budsjett!$E$72),0) -> 0 | CE6: =IFERROR(IF($E$73=$E$72,BB6*$E$73,BB6*Budsjett!$E$72),0) -> 0 | CF6: =IFERROR(IF($E$73=$E$72,BC6*$E$73,BC6*Budsjett!$E$72),0) -> 0 | CG6: =IFERROR(IF($E$73=$E$72,BD6*$E$73,BD6*Budsjett!$E$72),0) -> 0 | CJ6: =BF6-BU6 -> 0 | CK6: =BG6-BV6 -> 0 | CL6: =BH6-BW6 -> 0 | CM6: =BI6-BX6 -> 0 | CN6: =BJ6-BY6 -> 0 | CO6: =BK6-BZ6 -> 0 | CP6: =BL6-CA6 -> 0 | CQ6: =BM6-CB6 -> 0 | CR6: =BN6-CC6 -> 0 | CS6: =BO6-CD6 -> 0 | CT6: =BP6-CE6 -> 0 | CU6: =BQ6-CF6 -> 0 | CV6: =BR6-CG6 -> 0 | CX6: Stipendiat | CY6: =-((IF($CX6="Teknisk/adm. bistand/Feltassistent",IF(Budsjett!AR6*(1+Tabeller!$I$62)>Tabeller!I$55,Tabeller!I$55,Budsjett!AR6*(1+Tabeller!$I$62)),0)+(IF($CX6="Forsker - professor",Tabeller!I$55*K6,0)+IF($CX6="Prosjektleder/adm.leder",Tabeller!I$54*K6,0)+IF($CX6="Forsker - 1.aman.",Tabeller!I$56*K6,0)+IF($CX6="Gjesteforsker",Tabeller!I$58*K6,0)+IF($CX6="Postdoktor / forsker",Tabeller!I$59*K6,0)+IF($CX6="Stipendiat",Tabeller!I$60*K6,0)+IF($CX6="Forsker (rundsum)",Tabeller!I$57*K6,0)+IF($CX6="Vit.ass",Tabeller!I$61*K6,0))/12)) -> 0 | CZ6: =-((IF($CX6="Teknisk/adm. bistand/Feltassistent",IF(Budsjett!AS6*(1+Tabeller!$I$62)>Tabeller!J$55,Tabeller!J$55,Budsjett!AS6*(1+Tabeller!$I$62)),0)+(IF($CX6="Forsker - professor",Tabeller!J$55*L6,0)+IF($CX6="Prosjektleder/adm.leder",Tabeller!J$54*L6,0)+IF($CX6="Forsker - 1.aman.",Tabeller!J$56*L6,0)+IF($CX6="Gjesteforsker",Tabeller!J$58*L6,0)+IF($CX6="Postdoktor / forsker",Tabeller!J$59*L6,0)+IF($CX6="Stipendiat",Tabeller!J$60*L6,0)+IF($CX6="Forsker (rundsum)",Tabeller!J$57*L6,0)+IF($CX6="Vit.ass",Tabeller!J$61*L6,0))/12)) -> 0 | DA6: =-((IF($CX6="Teknisk/adm. bistand/Feltassistent",IF(Budsjett!AT6*(1+Tabeller!$I$62)>Tabeller!K$55,Tabeller!K$55,Budsjett!AT6*(1+Tabeller!$I$62)),0)+(IF($CX6="Forsker - professor",Tabeller!K$55*M6,0)+IF($CX6="Prosjektleder/adm.leder",Tabeller!K$54*M6,0)+IF($CX6="Forsker - 1.aman.",Tabeller!K$56*M6,0)+IF($CX6="Gjesteforsker",Tabeller!K$58*M6,0)+IF($CX6="Postdoktor / forsker",Tabeller!K$59*M6,0)+IF($CX6="Stipendiat",Tabeller!K$60*M6,0)+IF($CX6="Forsker (rundsum)",Tabeller!K$57*M6,0)+IF($CX6="Vit.ass",Tabeller!K$61*M6,0))/12)) -> 0 | DB6: =-((IF($CX6="Teknisk/adm. bistand/Feltassistent",IF(Budsjett!AU6*(1+Tabeller!$I$62)>Tabeller!L$55,Tabeller!L$55,Budsjett!AU6*(1+Tabeller!$I$62)),0)+(IF($CX6="Forsker - professor",Tabeller!L$55*N6,0)+IF($CX6="Prosjektleder/adm.leder",Tabeller!L$54*N6,0)+IF($CX6="Forsker - 1.aman.",Tabeller!L$56*N6,0)+IF($CX6="Gjesteforsker",Tabeller!L$58*N6,0)+IF($CX6="Postdoktor / forsker",Tabeller!L$59*N6,0)+IF($CX6="Stipendiat",Tabeller!L$60*N6,0)+IF($CX6="Forsker (rundsum)",Tabeller!L$57*N6,0)+IF($CX6="Vit.ass",Tabeller!L$61*N6,0))/12)) -> -1113000 | DC6: =-((IF($CX6="Teknisk/adm. bistand/Feltassistent",IF(Budsjett!AV6*(1+Tabeller!$I$62)>Tabeller!M$55,Tabeller!M$55,Budsjett!AV6*(1+Tabeller!$I$62)),0)+(IF($CX6="Forsker - professor",Tabeller!M$55*O6,0)+IF($CX6="Prosjektleder/adm.leder",Tabeller!M$54*O6,0)+IF($CX6="Forsker - 1.aman.",Tabeller!M$56*O6,0)+IF($CX6="Gjesteforsker",Tabeller!M$58*O6,0)+IF($CX6="Postdoktor / forsker",Tabeller!M$59*O6,0)+IF($CX6="Stipendiat",Tabeller!M$60*O6,0)+IF($CX6="Forsker (rundsum)",Tabeller!M$57*O6,0)+IF($CX6="Vit.ass",Tabeller!M$61*O6,0))/12)) -> -1536000 | DD6: =-((IF($CX6="Teknisk/adm. bistand/Feltassistent",IF(Budsjett!AW6*(1+Tabeller!$I$62)>Tabeller!N$55,Tabeller!N$55,Budsjett!AW6*(1+Tabeller!$I$62)),0)+(IF($CX6="Forsker - professor",Tabeller!N$55*P6,0)+IF($CX6="Prosjektleder/adm.leder",Tabeller!N$54*P6,0)+IF($CX6="Forsker - 1.aman.",Tabeller!N$56*P6,0)+IF($CX6="Gjesteforsker",Tabeller!N$58*P6,0)+IF($CX6="Postdoktor / forsker",Tabeller!N$59*P6,0)+IF($CX6="Stipendiat",Tabeller!N$60*P6,0)+IF($CX6="Forsker (rundsum)",Tabeller!N$57*P6,0)+IF($CX6="Vit.ass",Tabeller!N$61*P6,0))/12)) -> -1590000 | DE6: =-((IF($CX6="Teknisk/adm. bistand/Feltassistent",IF(Budsjett!AX6*(1+Tabeller!$I$62)>Tabeller!O$55,Tabeller!O$55,Budsjett!AX6*(1+Tabeller!$I$62)),0)+(IF($CX6="Forsker - professor",Tabeller!O$55*Q6,0)+IF($CX6="Prosjektleder/adm.leder",Tabeller!O$54*Q6,0)+IF($CX6="Forsker - 1.aman.",Tabeller!O$56*Q6,0)+IF($CX6="Gjesteforsker",Tabeller!O$58*Q6,0)+IF($CX6="Postdoktor / forsker",Tabeller!O$59*Q6,0)+IF($CX6="Stipendiat",Tabeller!O$60*Q6,0)+IF($CX6="Forsker (rundsum)",Tabeller!O$57*Q6,0)+IF($CX6="Vit.ass",Tabeller!O$61*Q6,0))/12)) -> -411500 | DF6: =-((IF($CX6="Teknisk/adm. bistand/Feltassistent",IF(Budsjett!AY6*(1+Tabeller!$I$62)>Tabeller!P$55,Tabeller!P$55,Budsjett!AY6*(1+Tabeller!$I$62)),0)+(IF($CX6="Forsker - professor",Tabeller!P$55*R6,0)+IF($CX6="Prosjektleder/adm.leder",Tabeller!P$54*R6,0)+IF($CX6="Forsker - 1.aman.",Tabeller!P$56*R6,0)+IF($CX6="Gjesteforsker",Tabeller!P$58*R6,0)+IF($CX6="Postdoktor / forsker",Tabeller!P$59*R6,0)+IF($CX6="Stipendiat",Tabeller!P$60*R6,0)+IF($CX6="Forsker (rundsum)",Tabeller!P$57*R6,0)+IF($CX6="Vit.ass",Tabeller!P$61*R6,0))/12)) -> 0 | DG6: =-((IF($CX6="Teknisk/adm. bistand/Feltassistent",IF(Budsjett!AZ6*(1+Tabeller!$I$62)>Tabeller!Q$55,Tabeller!Q$55,Budsjett!AZ6*(1+Tabeller!$I$62)),0)+(IF($CX6="Forsker - professor",Tabeller!Q$55*S6,0)+IF($CX6="Prosjektleder/adm.leder",Tabeller!Q$54*S6,0)+IF($CX6="Forsker - 1.aman.",Tabeller!Q$56*S6,0)+IF($CX6="Gjesteforsker",Tabeller!Q$58*S6,0)+IF($CX6="Postdoktor / forsker",Tabeller!Q$59*S6,0)+IF($CX6="Stipendiat",Tabeller!Q$60*S6,0)+IF($CX6="Forsker (rundsum)",Tabeller!Q$57*S6,0)+IF($CX6="Vit.ass",Tabeller!Q$61*S6,0))/12)) -> 0 | DH6: =-((IF($CX6="Teknisk/adm. bistand/Feltassistent",IF(Budsjett!BA6*(1+Tabeller!$I$62)>Tabeller!R$55,Tabeller!R$55,Budsjett!BA6*(1+Tabeller!$I$62)),0)+(IF($CX6="Forsker - professor",Tabeller!R$55*T6,0)+IF($CX6="Prosjektleder/adm.leder",Tabeller!R$54*T6,0)+IF($CX6="Forsker - 1.aman.",Tabeller!R$56*T6,0)+IF($CX6="Gjesteforsker",Tabeller!R$58*T6,0)+IF($CX6="Postdoktor / forsker",Tabeller!R$59*T6,0)+IF($CX6="Stipendiat",Tabeller!R$60*T6,0)+IF($CX6="Forsker (rundsum)",Tabeller!R$57*T6,0)+IF($CX6="Vit.ass",Tabeller!R$61*T6,0))/12)) -> 0 | DI6: =-((IF($CX6="Teknisk/adm. bistand/Feltassistent",IF(Budsjett!BB6*(1+Tabeller!$I$62)>Tabeller!S$55,Tabeller!S$55,Budsjett!BB6*(1+Tabeller!$I$62)),0)+(IF($CX6="Forsker - professor",Tabeller!S$55*U6,0)+IF($CX6="Prosjektleder/adm.leder",Tabeller!S$54*U6,0)+IF($CX6="Forsker - 1.aman.",Tabeller!S$56*U6,0)+IF($CX6="Gjesteforsker",Tabeller!S$58*U6,0)+IF($CX6="Postdoktor / forsker",Tabeller!S$59*U6,0)+IF($CX6="Stipendiat",Tabeller!S$60*U6,0)+IF($CX6="Forsker (rundsum)",Tabeller!S$57*U6,0)+IF($CX6="Vit.ass",Tabeller!S$61*U6,0))/12)) -> 0 | DJ6: =-((IF($CX6="Teknisk/adm. bistand/Feltassistent",IF(Budsjett!BC6*(1+Tabeller!$I$62)>Tabeller!T$55,Tabeller!T$55,Budsjett!BC6*(1+Tabeller!$I$62)),0)+(IF($CX6="Forsker - professor",Tabeller!T$55*V6,0)+IF($CX6="Prosjektleder/adm.leder",Tabeller!T$54*V6,0)+IF($CX6="Forsker - 1.aman.",Tabeller!T$56*V6,0)+IF($CX6="Gjesteforsker",Tabeller!T$58*V6,0)+IF($CX6="Postdoktor / forsker",Tabeller!T$59*V6,0)+IF($CX6="Stipendiat",Tabeller!T$60*V6,0)+IF($CX6="Forsker (rundsum)",Tabeller!T$57*V6,0)+IF($CX6="Vit.ass",Tabeller!T$61*V6,0))/12)) -> 0 | DK6: =-((IF($CX6="Teknisk/adm. bistand/Feltassistent",IF(Budsjett!BD6*(1+Tabeller!$I$62)>Tabeller!U$55,Tabeller!U$55,Budsjett!BD6*(1+Tabeller!$I$62)),0)+(IF($CX6="Forsker - professor",Tabeller!U$55*W6,0)+IF($CX6="Prosjektleder/adm.leder",Tabeller!U$54*W6,0)+IF($CX6="Forsker - 1.aman.",Tabeller!U$56*W6,0)+IF($CX6="Gjesteforsker",Tabeller!U$58*W6,0)+IF($CX6="Postdoktor / forsker",Tabeller!U$59*W6,0)+IF($CX6="Stipendiat",Tabeller!U$60*W6,0)+IF($CX6="Forsker (rundsum)",Tabeller!U$57*W6,0)+IF($CX6="Vit.ass",Tabeller!U$61*W6,0))/12)) -> 0 | DL6: =SUM(CY6:DK6) -> -4650500 | DO6: =CX6 -> Stipendiat | DP6: =IF($H6="NFR",CY6,0) -> 0 | DQ6: =IF($H6="NFR",CZ6,0) -> 0 | DR6: =IF($H6="NFR",DA6,0) -> 0 | DS6: =IF($H6="NFR",DB6,0) -> -1113000 | DT6: =IF($H6="NFR",DC6,0) -> -1536000 | DU6: =IF($H6="NFR",DD6,0) -> -1590000 | DV6: =IF($H6="NFR",DE6,0) -> -411500 | DW6: =IF($H6="NFR",DF6,0) -> 0 | DX6: =IF($H6="NFR",DG6,0) -> 0 | DY6: =IF($H6="NFR",DH6,0) -> 0 | DZ6: =IF($H6="NFR",DI6,0) -> 0 | EA6: =IF($H6="NFR",DJ6,0) -> 0 | EB6: =IF($H6="NFR",DK6,0) -> 0 | EC6: =SUM(DP6:EB6) -> -4650500 | EE6: =DO6 -> Stipendiat | EF6: 0 | EG6: 0 | EH6: 0 | EI6: 0 | EJ6: 0 | EK6: 0 | EL6: 0 | EM6: 0 | EN6: 0 | EO6: 0 | EP6: 0 | EQ6: 0 | ER6: 0 | ES6: =SUM(EF6:ER6) -> 0 | EU6: =EE6 -> Stipendiat | EV6: 0 | EW6: 0 | EX6: 0 | EY6: 0 | EZ6: 0 | FA6: 0 | FB6: 0 | FC6: 0 | FD6: 0 | FE6: 0 | FF6: 0 | FG6: 0 | FH6: 0 | FI6: =SUM(EV6:FH6) -> 0 | FK6: =EU6 -> Stipendiat | FL6: 0 | FM6: 0 | FN6: 0 | FO6: 0 | FP6: 0 | FQ6: 0 | FR6: 0 | FS6: 0 | FT6: 0 | FU6: 0 | FV6: 0 | FW6: 0 | FX6: 0 | FY6: =SUM(FL6:FX6) -> 0 | GB6: =FK6 -> Stipendiat | GP6: =SUM(GC6:GO6) -> 0 | GS6: =IF(Registrering!$B$29="Prosjekter som foregår i UiOs lokaler",IF($B6="Teknisk/adm. bistand/Feltassistent",(K6/12)*Tabeller!J$11,(K6/12)*Tabeller!J$10),IF($B6="Teknisk/adm. bistand/Feltassistent",(K6/12)*Tabeller!J$13,(K6/12)*Tabeller!J$12)) -> 0 | GT6: =IF(Registrering!$B$29="Prosjekter som foregår i UiOs lokaler",IF($B6="Teknisk/adm. bistand/Feltassistent",(L6/12)*Tabeller!K$11,(L6/12)*Tabeller!K$10),IF($B6="Teknisk/adm. bistand/Feltassistent",(L6/12)*Tabeller!K$13,(L6/12)*Tabeller!K$12)) -> 0 | GU6: =IF(Registrering!$B$29="Prosjekter som foregår i UiOs lokaler",IF($B6="Teknisk/adm. bistand/Feltassistent",(M6/12)*Tabeller!L$11,(M6/12)*Tabeller!L$10),IF($B6="Teknisk/adm. bistand/Feltassistent",(M6/12)*Tabeller!L$13,(M6/12)*Tabeller!L$12)) -> 0 | GV6: =IF(Registrering!$B$29="Prosjekter som foregår i UiOs lokaler",IF($B6="Teknisk/adm. bistand/Feltassistent",(N6/12)*Tabeller!M$11,(N6/12)*Tabeller!M$10),IF($B6="Teknisk/adm. bistand/Feltassistent",(N6/12)*Tabeller!M$13,(N6/12)*Tabeller!M$12)) -> 386665.3589 | GW6: =IF(Registrering!$B$29="Prosjekter som foregår i UiOs lokaler",IF($B6="Teknisk/adm. bistand/Feltassistent",(O6/12)*Tabeller!N$11,(O6/12)*Tabeller!N$10),IF($B6="Teknisk/adm. bistand/Feltassistent",(O6/12)*Tabeller!N$13,(O6/12)*Tabeller!N$12)) -> 533598.1953 | GX6: =IF(Registrering!$B$29="Prosjekter som foregår i UiOs lokaler",IF($B6="Teknisk/adm. bistand/Feltassistent",(P6/12)*Tabeller!O$11,(P6/12)*Tabeller!O$10),IF($B6="Teknisk/adm. bistand/Feltassistent",(P6/12)*Tabeller!O$13,(P6/12)*Tabeller!O$12)) -> 552274.1321 | GY6: =IF(Registrering!$B$29="Prosjekter som foregår i UiOs lokaler",IF($B6="Teknisk/adm. bistand/Feltassistent",(Q6/12)*Tabeller!P$11,(Q6/12)*Tabeller!P$10),IF($B6="Teknisk/adm. bistand/Feltassistent",(Q6/12)*Tabeller!P$13,(Q6/12)*Tabeller!P$12)) -> 142900.9317 | GZ6: =IF(Registrering!$B$29="Prosjekter som foregår i UiOs lokaler",IF($B6="Teknisk/adm. bistand/Feltassistent",(R6/12)*Tabeller!Q$11,(R6/12)*Tabeller!Q$10),IF($B6="Teknisk/adm. bistand/Feltassistent",(R6/12)*Tabeller!Q$13,(R6/12)*Tabeller!Q$12)) -> 0 | HA6: =IF(Registrering!$B$29="Prosjekter som foregår i UiOs lokaler",IF($B6="Teknisk/adm. bistand/Feltassistent",(S6/12)*Tabeller!R$11,(S6/12)*Tabeller!R$10),IF($B6="Teknisk/adm. bistand/Feltassistent",(S6/12)*Tabeller!R$13,(S6/12)*Tabeller!R$12)) -> 0 | HB6: =IF(Registrering!$B$29="Prosjekter som foregår i UiOs lokaler",IF($B6="Teknisk/adm. bistand/Feltassistent",(T6/12)*Tabeller!S$11,(T6/12)*Tabeller!S$10),IF($B6="Teknisk/adm. bistand/Feltassistent",(T6/12)*Tabeller!S$13,(T6/12)*Tabeller!S$12)) -> 0 | HC6: =IF(Registrering!$B$29="Prosjekter som foregår i UiOs lokaler",IF($B6="Teknisk/adm. bistand/Feltassistent",(U6/12)*Tabeller!T$11,(U6/12)*Tabeller!T$10),IF($B6="Teknisk/adm. bistand/Feltassistent",(U6/12)*Tabeller!T$13,(U6/12)*Tabeller!T$12)) -> 0 | HD6: =IF(Registrering!$B$29="Prosjekter som foregår i UiOs lokaler",IF($B6="Teknisk/adm. bistand/Feltassistent",(V6/12)*Tabeller!U$11,(V6/12)*Tabeller!U$10),IF($B6="Teknisk/adm. bistand/Feltassistent",(V6/12)*Tabeller!U$13,(V6/12)*Tabeller!U$12)) -> 0 | HE6: =IF(Registrering!$B$29="Prosjekter som foregår i UiOs lokaler",IF($B6="Teknisk/adm. bistand/Feltassistent",(W6/12)*Tabeller!V$11,(W6/12)*Tabeller!V$10),IF($B6="Teknisk/adm. bistand/Feltassistent",(W6/12)*Tabeller!V$13,(W6/12)*Tabeller!V$12)) -> 0
B7: Postdoktor / Forsker | C7: =IF(Registrering!$B$28="Fast beløp",0,IF(Registrering!$B$28="Sats for ekst. fin. overhead",0,DL7)) -> -4490750 | D7: =SUM(AR7:BD7) -> 2788432.98 | E7: =IFERROR(SUM(BF7:BR7),0) -> 1781192.746 | F7: =SUM(D7:E7) -> 4569625.726 | G7: =SUM(K7:W7)/12 -> 3 | H7: NFR | I7: 630000 | J7: Post doc a | M7: 9 | N7: 12 | O7: 12 | P7: 3 | AG7: =I7 -> 630000 | AH7: =AG7*Tabeller!$I$35 -> 660870 | AI7: =IF(AG7>0,(AH7-400)/52*47,0) -> 596963.2692 | AJ7: =AI7*Tabeller!$H$26 -> 71635.59231 | AK7: =SUM(AI7:AJ7,AL7)*Tabeller!$H$28 -> 102658.8798 | AL7: =AH7*Tabeller!$H$27 -> 59478.3 | AM7: =SUM(AI7:AL7) -> 830736.0413 | AN7: =AM7+(IF(B7="Teknisk adm bistand",Registrering!$E$51,Registrering!$B$51)) -> 1295736.041 | AO7: =AN7/Tabeller!$H$5 -> 795.9066593 | AR7: =((K7*Budsjett!$AM7))/12 -> 0 | AS7: =((L7*Budsjett!$AM7)*(Tabeller!J$35))/12 -> 0 | AT7: =((M7*Budsjett!$AM7)*(Tabeller!K$35))/12 -> 667428.9119 | AU7: =((N7*Budsjett!$AM7)*(Tabeller!L$35))/12 -> 921051.8984 | AV7: =((O7*Budsjett!$AM7)*(Tabeller!M$35))/12 -> 953288.7149 | AW7: =((P7*Budsjett!$AM7)*(Tabeller!N$35))/12 -> 246663.455 | AX7: =((Q7*Budsjett!$AM7)*(Tabeller!O$35))/12 -> 0 | AY7: =((R7*Budsjett!$AM7)*(Tabeller!P$35))/12 -> 0 | AZ7: =((S7*Budsjett!$AM7)*(Tabeller!Q$35))/12 -> 0 | BA7: =((T7*Budsjett!$AM7)*(Tabeller!R$35))/12 -> 0 | BB7: =((U7*Budsjett!$AM7)*(Tabeller!S$35))/12 -> 0 | BC7: =((V7*Budsjett!$AM7)*(Tabeller!T$35))/12 -> 0 | BD7: =((W7*Budsjett!$AM7)*(Tabeller!U$35))/12 -> 0 | BF7: 0 | BG7: 0 | BH7: 426339.6483 | BI7: 588348.7147 | BJ7: 608940.9197 | BK7: 157563.463 | BL7: 0 | BM7: 0 | BN7: 0 | BO7: 0 | BP7: 0 | BQ7: 0 | BR7: 0 | BU7: =IFERROR(IF($E$73=$E$72,AR7*$E$73,AR7*Budsjett!$E$72),0) -> 0 | BV7: =IFERROR(IF($E$73=$E$72,AS7*$E$73,AS7*Budsjett!$E$72),0) -> 0 | BW7: =IFERROR(IF($E$73=$E$72,AT7*$E$73,AT7*Budsjett!$E$72),0) -> 426339.6483 | BX7: =IFERROR(IF($E$73=$E$72,AU7*$E$73,AU7*Budsjett!$E$72),0) -> 588348.7147 | BY7: =IFERROR(IF($E$73=$E$72,AV7*$E$73,AV7*Budsjett!$E$72),0) -> 608940.9197 | BZ7: =IFERROR(IF($E$73=$E$72,AW7*$E$73,AW7*Budsjett!$E$72),0) -> 157563.463 | CA7: =IFERROR(IF($E$73=$E$72,AX7*$E$73,AX7*Budsjett!$E$72),0) -> 0 | CB7: =IFERROR(IF($E$73=$E$72,AY7*$E$73,AY7*Budsjett!$E$72),0) -> 0 | CC7: =IFERROR(IF($E$73=$E$72,AZ7*$E$73,AZ7*Budsjett!$E$72),0) -> 0 | CD7: =IFERROR(IF($E$73=$E$72,BA7*$E$73,BA7*Budsjett!$E$72),0) -> 0 | CE7: =IFERROR(IF($E$73=$E$72,BB7*$E$73,BB7*Budsjett!$E$72),0) -> 0 | CF7: =IFERROR(IF($E$73=$E$72,BC7*$E$73,BC7*Budsjett!$E$72),0) -> 0 | CG7: =IFERROR(IF($E$73=$E$72,BD7*$E$73,BD7*Budsjett!$E$72),0) -> 0 | CJ7: =BF7-BU7 -> 0 | CK7: =BG7-BV7 -> 0 | CL7: =BH7-BW7 -> 0 | CM7: =BI7-BX7 -> 0 | CN7: =BJ7-BY7 -> 0 | CO7: =BK7-BZ7 -> 0 | CP7: =BL7-CA7 -> 0 | CQ7: =BM7-CB7 -> 0 | CR7: =BN7-CC7 -> 0 | CS7: =BO7-CD7 -> 0 | CT7: =BP7-CE7 -> 0 | CU7: =BQ7-CF7 -> 0 | CV7: =BR7-CG7 -> 0 | CX7: Postdoktor / Forsker | CY7: =-((IF($CX7="Teknisk/adm. bistand/Feltassistent",IF(Budsjett!AR7*(1+Tabeller!$I$62)>Tabeller!I$55,Tabeller!I$55,Budsjett!AR7*(1+Tabeller!$I$62)),0)+(IF($CX7="Forsker - professor",Tabeller!I$55*K7,0)+IF($CX7="Prosjektleder/adm.leder",Tabeller!I$54*K7,0)+IF($CX7="Forsker - 1.aman.",Tabeller!I$56*K7,0)+IF($CX7="Gjesteforsker",Tabeller!I$58*K7,0)+IF($CX7="Postdoktor / forsker",Tabeller!I$59*K7,0)+IF($CX7="Stipendiat",Tabeller!I$60*K7,0)+IF($CX7="Forsker (rundsum)",Tabeller!I$57*K7,0)+IF($CX7="Vit.ass",Tabeller!I$61*K7,0))/12)) -> 0 | CZ7: =-((IF($CX7="Teknisk/adm. bistand/Feltassistent",IF(Budsjett!AS7*(1+Tabeller!$I$62)>Tabeller!J$55,Tabeller!J$55,Budsjett!AS7*(1+Tabeller!$I$62)),0)+(IF($CX7="Forsker - professor",Tabeller!J$55*L7,0)+IF($CX7="Prosjektleder/adm.leder",Tabeller!J$54*L7,0)+IF($CX7="Forsker - 1.aman.",Tabeller!J$56*L7,0)+IF($CX7="Gjesteforsker",Tabeller!J$58*L7,0)+IF($CX7="Postdoktor / forsker",Tabeller!J$59*L7,0)+IF($CX7="Stipendiat",Tabeller!J$60*L7,0)+IF($CX7="Forsker (rundsum)",Tabeller!J$57*L7,0)+IF($CX7="Vit.ass",Tabeller!J$61*L7,0))/12)) -> 0 | DA7: =-((IF($CX7="Teknisk/adm. bistand/Feltassistent",IF(Budsjett!AT7*(1+Tabeller!$I$62)>Tabeller!K$55,Tabeller!K$55,Budsjett!AT7*(1+Tabeller!$I$62)),0)+(IF($CX7="Forsker - professor",Tabeller!K$55*M7,0)+IF($CX7="Prosjektleder/adm.leder",Tabeller!K$54*M7,0)+IF($CX7="Forsker - 1.aman.",Tabeller!K$56*M7,0)+IF($CX7="Gjesteforsker",Tabeller!K$58*M7,0)+IF($CX7="Postdoktor / forsker",Tabeller!K$59*M7,0)+IF($CX7="Stipendiat",Tabeller!K$60*M7,0)+IF($CX7="Forsker (rundsum)",Tabeller!K$57*M7,0)+IF($CX7="Vit.ass",Tabeller!K$61*M7,0))/12)) -> -1073250 | DB7: =-((IF($CX7="Teknisk/adm. bistand/Feltassistent",IF(Budsjett!AU7*(1+Tabeller!$I$62)>Tabeller!L$55,Tabeller!L$55,Budsjett!AU7*(1+Tabeller!$I$62)),0)+(IF($CX7="Forsker - professor",Tabeller!L$55*N7,0)+IF($CX7="Prosjektleder/adm.leder",Tabeller!L$54*N7,0)+IF($CX7="Forsker - 1.aman.",Tabeller!L$56*N7,0)+IF($CX7="Gjesteforsker",Tabeller!L$58*N7,0)+IF($CX7="Postdoktor / forsker",Tabeller!L$59*N7,0)+IF($CX7="Stipendiat",Tabeller!L$60*N7,0)+IF($CX7="Forsker (rundsum)",Tabeller!L$57*N7,0)+IF($CX7="Vit.ass",Tabeller!L$61*N7,0))/12)) -> -1484000 | DC7: =-((IF($CX7="Teknisk/adm. bistand/Feltassistent",IF(Budsjett!AV7*(1+Tabeller!$I$62)>Tabeller!M$55,Tabeller!M$55,Budsjett!AV7*(1+Tabeller!$I$62)),0)+(IF($CX7="Forsker - professor",Tabeller!M$55*O7,0)+IF($CX7="Prosjektleder/adm.leder",Tabeller!M$54*O7,0)+IF($CX7="Forsker - 1.aman.",Tabeller!M$56*O7,0)+IF($CX7="Gjesteforsker",Tabeller!M$58*O7,0)+IF($CX7="Postdoktor / forsker",Tabeller!M$59*O7,0)+IF($CX7="Stipendiat",Tabeller!M$60*O7,0)+IF($CX7="Forsker (rundsum)",Tabeller!M$57*O7,0)+IF($CX7="Vit.ass",Tabeller!M$61*O7,0))/12)) -> -1536000 | DD7: =-((IF($CX7="Teknisk/adm. bistand/Feltassistent",IF(Budsjett!AW7*(1+Tabeller!$I$62)>Tabeller!N$55,Tabeller!N$55,Budsjett!AW7*(1+Tabeller!$I$62)),0)+(IF($CX7="Forsker - professor",Tabeller!N$55*P7,0)+IF($CX7="Prosjektleder/adm.leder",Tabeller!N$54*P7,0)+IF($CX7="Forsker - 1.aman.",Tabeller!N$56*P7,0)+IF($CX7="Gjesteforsker",Tabeller!N$58*P7,0)+IF($CX7="Postdoktor / forsker",Tabeller!N$59*P7,0)+IF($CX7="Stipendiat",Tabeller!N$60*P7,0)+IF($CX7="Forsker (rundsum)",Tabeller!N$57*P7,0)+IF($CX7="Vit.ass",Tabeller!N$61*P7,0))/12)) -> -397500 | DE7: =-((IF($CX7="Teknisk/adm. bistand/Feltassistent",IF(Budsjett!AX7*(1+Tabeller!$I$62)>Tabeller!O$55,Tabeller!O$55,Budsjett!AX7*(1+Tabeller!$I$62)),0)+(IF($CX7="Forsker - professor",Tabeller!O$55*Q7,0)+IF($CX7="Prosjektleder/adm.leder",Tabeller!O$54*Q7,0)+IF($CX7="Forsker - 1.aman.",Tabeller!O$56*Q7,0)+IF($CX7="Gjesteforsker",Tabeller!O$58*Q7,0)+IF($CX7="Postdoktor / forsker",Tabeller!O$59*Q7,0)+IF($CX7="Stipendiat",Tabeller!O$60*Q7,0)+IF($CX7="Forsker (rundsum)",Tabeller!O$57*Q7,0)+IF($CX7="Vit.ass",Tabeller!O$61*Q7,0))/12)) -> 0 | DF7: =-((IF($CX7="Teknisk/adm. bistand/Feltassistent",IF(Budsjett!AY7*(1+Tabeller!$I$62)>Tabeller!P$55,Tabeller!P$55,Budsjett!AY7*(1+Tabeller!$I$62)),0)+(IF($CX7="Forsker - professor",Tabeller!P$55*R7,0)+IF($CX7="Prosjektleder/adm.leder",Tabeller!P$54*R7,0)+IF($CX7="Forsker - 1.aman.",Tabeller!P$56*R7,0)+IF($CX7="Gjesteforsker",Tabeller!P$58*R7,0)+IF($CX7="Postdoktor / forsker",Tabeller!P$59*R7,0)+IF($CX7="Stipendiat",Tabeller!P$60*R7,0)+IF($CX7="Forsker (rundsum)",Tabeller!P$57*R7,0)+IF($CX7="Vit.ass",Tabeller!P$61*R7,0))/12)) -> 0 | DG7: =-((IF($CX7="Teknisk/adm. bistand/Feltassistent",IF(Budsjett!AZ7*(1+Tabeller!$I$62)>Tabeller!Q$55,Tabeller!Q$55,Budsjett!AZ7*(1+Tabeller!$I$62)),0)+(IF($CX7="Forsker - professor",Tabeller!Q$55*S7,0)+IF($CX7="Prosjektleder/adm.leder",Tabeller!Q$54*S7,0)+IF($CX7="Forsker - 1.aman.",Tabeller!Q$56*S7,0)+IF($CX7="Gjesteforsker",Tabeller!Q$58*S7,0)+IF($CX7="Postdoktor / forsker",Tabeller!Q$59*S7,0)+IF($CX7="Stipendiat",Tabeller!Q$60*S7,0)+IF($CX7="Forsker (rundsum)",Tabeller!Q$57*S7,0)+IF($CX7="Vit.ass",Tabeller!Q$61*S7,0))/12)) -> 0 | DH7: =-((IF($CX7="Teknisk/adm. bistand/Feltassistent",IF(Budsjett!BA7*(1+Tabeller!$I$62)>Tabeller!R$55,Tabeller!R$55,Budsjett!BA7*(1+Tabeller!$I$62)),0)+(IF($CX7="Forsker - professor",Tabeller!R$55*T7,0)+IF($CX7="Prosjektleder/adm.leder",Tabeller!R$54*T7,0)+IF($CX7="Forsker - 1.aman.",Tabeller!R$56*T7,0)+IF($CX7="Gjesteforsker",Tabeller!R$58*T7,0)+IF($CX7="Postdoktor / forsker",Tabeller!R$59*T7,0)+IF($CX7="Stipendiat",Tabeller!R$60*T7,0)+IF($CX7="Forsker (rundsum)",Tabeller!R$57*T7,0)+IF($CX7="Vit.ass",Tabeller!R$61*T7,0))/12)) -> 0 | DI7: =-((IF($CX7="Teknisk/adm. bistand/Feltassistent",IF(Budsjett!BB7*(1+Tabeller!$I$62)>Tabeller!S$55,Tabeller!S$55,Budsjett!BB7*(1+Tabeller!$I$62)),0)+(IF($CX7="Forsker - professor",Tabeller!S$55*U7,0)+IF($CX7="Prosjektleder/adm.leder",Tabeller!S$54*U7,0)+IF($CX7="Forsker - 1.aman.",Tabeller!S$56*U7,0)+IF($CX7="Gjesteforsker",Tabeller!S$58*U7,0)+IF($CX7="Postdoktor / forsker",Tabeller!S$59*U7,0)+IF($CX7="Stipendiat",Tabeller!S$60*U7,0)+IF($CX7="Forsker (rundsum)",Tabeller!S$57*U7,0)+IF($CX7="Vit.ass",Tabeller!S$61*U7,0))/12)) -> 0 | DJ7: =-((IF($CX7="Teknisk/adm. bistand/Feltassistent",IF(Budsjett!BC7*(1+Tabeller!$I$62)>Tabeller!T$55,Tabeller!T$55,Budsjett!BC7*(1+Tabeller!$I$62)),0)+(IF($CX7="Forsker - professor",Tabeller!T$55*V7,0)+IF($CX7="Prosjektleder/adm.leder",Tabeller!T$54*V7,0)+IF($CX7="Forsker - 1.aman.",Tabeller!T$56*V7,0)+IF($CX7="Gjesteforsker",Tabeller!T$58*V7,0)+IF($CX7="Postdoktor / forsker",Tabeller!T$59*V7,0)+IF($CX7="Stipendiat",Tabeller!T$60*V7,0)+IF($CX7="Forsker (rundsum)",Tabeller!T$57*V7,0)+IF($CX7="Vit.ass",Tabeller!T$61*V7,0))/12)) -> 0 | DK7: =-((IF($CX7="Teknisk/adm. bistand/Feltassistent",IF(Budsjett!BD7*(1+Tabeller!$I$62)>Tabeller!U$55,Tabeller!U$55,Budsjett!BD7*(1+Tabeller!$I$62)),0)+(IF($CX7="Forsker - professor",Tabeller!U$55*W7,0)+IF($CX7="Prosjektleder/adm.leder",Tabeller!U$54*W7,0)+IF($CX7="Forsker - 1.aman.",Tabeller!U$56*W7,0)+IF($CX7="Gjesteforsker",Tabeller!U$58*W7,0)+IF($CX7="Postdoktor / forsker",Tabeller!U$59*W7,0)+IF($CX7="Stipendiat",Tabeller!U$60*W7,0)+IF($CX7="Forsker (rundsum)",Tabeller!U$57*W7,0)+IF($CX7="Vit.ass",Tabeller!U$61*W7,0))/12)) -> 0 | DL7: =SUM(CY7:DK7) -> -4490750 | DO7: =CX7 -> Postdoktor / Forsker | DP7: =IF($H7="NFR",CY7,0) -> 0 | DQ7: =IF($H7="NFR",CZ7,0) -> 0 | DR7: =IF($H7="NFR",DA7,0) -> -1073250 | DS7: =IF($H7="NFR",DB7,0) -> -1484000 | DT7: =IF($H7="NFR",DC7,0) -> -1536000 | DU7: =IF($H7="NFR",DD7,0) -> -397500 | DV7: =IF($H7="NFR",DE7,0) -> 0 | DW7: =IF($H7="NFR",DF7,0) -> 0 | DX7: =IF($H7="NFR",DG7,0) -> 0 | DY7: =IF($H7="NFR",DH7,0) -> 0 | DZ7: =IF($H7="NFR",DI7,0) -> 0 | EA7: =IF($H7="NFR",DJ7,0) -> 0 | EB7: =IF($H7="NFR",DK7,0) -> 0 | EC7: =SUM(DP7:EB7) -> -4490750 | EE7: =DO7 -> Postdoktor / Forsker | EF7: =IF($H7=$EE$1,CY7,0) -> 0 | EG7: =IF($H7=$EE$1,CZ7,0) -> 0 | EH7: =IF($H7=$EE$1,DA7,0) -> 0 | EI7: =IF($H7=$EE$1,DB7,0) -> 0 | EJ7: =IF($H7=$EE$1,DC7,0) -> 0 | EK7: =IF($H7=$EE$1,DD7,0) -> 0 | EL7: =IF($H7=$EE$1,DE7,0) -> 0 | EM7: =IF($H7=$EE$1,DF7,0) -> 0 | EN7: =IF($H7=$EE$1,DG7,0) -> 0 | EO7: =IF($H7=$EE$1,DH7,0) -> 0 | EP7: =IF($H7=$EE$1,DI7,0) -> 0 | EQ7: =IF($H7=$EE$1,DJ7,0) -> 0 | ER7: =IF($H7=$EE$1,DK7,0) -> 0 | ES7: =SUM(EF7:ER7) -> 0 | EU7: =EE7 -> Postdoktor / Forsker | EV7: =IF($H7=$EU$1,CY7,0) -> 0 | EW7: =IF($H7=$EU$1,CZ7,0) -> 0 | EX7: =IF($H7=$EU$1,DA7,0) -> 0 | EY7: =IF($H7=$EU$1,DB7,0) -> 0 | EZ7: =IF($H7=$EU$1,DC7,0) -> 0 | FA7: =IF($H7=$EU$1,DD7,0) -> 0 | FB7: =IF($H7=$EU$1,DE7,0) -> 0 | FC7: =IF($H7=$EU$1,DF7,0) -> 0 | FD7: =IF($H7=$EU$1,DG7,0) -> 0 | FE7: =IF($H7=$EU$1,DH7,0) -> 0 | FF7: =IF($H7=$EU$1,DI7,0) -> 0 | FG7: =IF($H7=$EU$1,DJ7,0) -> 0 | FH7: =IF($H7=$EU$1,DK7,0) -> 0 | FI7: =SUM(EV7:FH7) -> 0 | FK7: =EU7 -> Postdoktor / Forsker | FL7: =IF($H7=$FK$1,CY7,0) -> 0 | FM7: =IF($H7=$FK$1,CZ7,0) -> 0 | FN7: =IF($H7=$FK$1,DA7,0) -> 0 | FO7: =IF($H7=$FK$1,DB7,0) -> 0 | FP7: =IF($H7=$FK$1,DC7,0) -> 0 | FQ7: =IF($H7=$FK$1,DD7,0) -> 0 | FR7: =IF($H7=$FK$1,DE7,0) -> 0 | FS7: =IF($H7=$FK$1,DF7,0) -> 0 | FT7: =IF($H7=$FK$1,DG7,0) -> 0 | FU7: =IF($H7=$FK$1,DH7,0) -> 0 | FV7: =IF($H7=$FK$1,DI7,0) -> 0 | FW7: =IF($H7=$FK$1,DJ7,0) -> 0 | FX7: =IF($H7=$FK$1,DK7,0) -> 0 | FY7: =SUM(FL7:FX7) -> 0 | GB7: =FK7 -> Postdoktor / Forsker | GP7: =SUM(GC7:GO7) -> 0 | GS7: =IF(Registrering!$B$29="Prosjekter som foregår i UiOs lokaler",IF($B7="Teknisk/adm. bistand/Feltassistent",(K7/12)*Tabeller!J$11,(K7/12)*Tabeller!J$10),IF($B7="Teknisk/adm. bistand/Feltassistent",(K7/12)*Tabeller!J$13,(K7/12)*Tabeller!J$12)) -> 0 | GT7: =IF(Registrering!$B$29="Prosjekter som foregår i UiOs lokaler",IF($B7="Teknisk/adm. bistand/Feltassistent",(L7/12)*Tabeller!K$11,(L7/12)*Tabeller!K$10),IF($B7="Teknisk/adm. bistand/Feltassistent",(L7/12)*Tabeller!K$13,(L7/12)*Tabeller!K$12)) -> 0 | GU7: =IF(Registrering!$B$29="Prosjekter som foregår i UiOs lokaler",IF($B7="Teknisk/adm. bistand/Feltassistent",(M7/12)*Tabeller!L$11,(M7/12)*Tabeller!L$10),IF($B7="Teknisk/adm. bistand/Feltassistent",(M7/12)*Tabeller!L$13,(M7/12)*Tabeller!L$12)) -> 373589.7187 | GV7: =IF(Registrering!$B$29="Prosjekter som foregår i UiOs lokaler",IF($B7="Teknisk/adm. bistand/Feltassistent",(N7/12)*Tabeller!M$11,(N7/12)*Tabeller!M$10),IF($B7="Teknisk/adm. bistand/Feltassistent",(N7/12)*Tabeller!M$13,(N7/12)*Tabeller!M$12)) -> 515553.8119 | GW7: =IF(Registrering!$B$29="Prosjekter som foregår i UiOs lokaler",IF($B7="Teknisk/adm. bistand/Feltassistent",(O7/12)*Tabeller!N$11,(O7/12)*Tabeller!N$10),IF($B7="Teknisk/adm. bistand/Feltassistent",(O7/12)*Tabeller!N$13,(O7/12)*Tabeller!N$12)) -> 533598.1953 | GX7: =IF(Registrering!$B$29="Prosjekter som foregår i UiOs lokaler",IF($B7="Teknisk/adm. bistand/Feltassistent",(P7/12)*Tabeller!O$11,(P7/12)*Tabeller!O$10),IF($B7="Teknisk/adm. bistand/Feltassistent",(P7/12)*Tabeller!O$13,(P7/12)*Tabeller!O$12)) -> 138068.533 | GY7: =IF(Registrering!$B$29="Prosjekter som foregår i UiOs lokaler",IF($B7="Teknisk/adm. bistand/Feltassistent",(Q7/12)*Tabeller!P$11,(Q7/12)*Tabeller!P$10),IF($B7="Teknisk/adm. bistand/Feltassistent",(Q7/12)*Tabeller!P$13,(Q7/12)*Tabeller!P$12)) -> 0 | GZ7: =IF(Registrering!$B$29="Prosjekter som foregår i UiOs lokaler",IF($B7="Teknisk/adm. bistand/Feltassistent",(R7/12)*Tabeller!Q$11,(R7/12)*Tabeller!Q$10),IF($B7="Teknisk/adm. bistand/Feltassistent",(R7/12)*Tabeller!Q$13,(R7/12)*Tabeller!Q$12)) -> 0 | HA7: =IF(Registrering!$B$29="Prosjekter som foregår i UiOs lokaler",IF($B7="Teknisk/adm. bistand/Feltassistent",(S7/12)*Tabeller!R$11,(S7/12)*Tabeller!R$10),IF($B7="Teknisk/adm. bistand/Feltassistent",(S7/12)*Tabeller!R$13,(S7/12)*Tabeller!R$12)) -> 0 | HB7: =IF(Registrering!$B$29="Prosjekter som foregår i UiOs lokaler",IF($B7="Teknisk/adm. bistand/Feltassistent",(T7/12)*Tabeller!S$11,(T7/12)*Tabeller!S$10),IF($B7="Teknisk/adm. bistand/Feltassistent",(T7/12)*Tabeller!S$13,(T7/12)*Tabeller!S$12)) -> 0 | HC7: =IF(Registrering!$B$29="Prosjekter som foregår i UiOs lokaler",IF($B7="Teknisk/adm. bistand/Feltassistent",(U7/12)*Tabeller!T$11,(U7/12)*Tabeller!T$10),IF($B7="Teknisk/adm. bistand/Feltassistent",(U7/12)*Tabeller!T$13,(U7/12)*Tabeller!T$12)) -> 0 | HD7: =IF(Registrering!$B$29="Prosjekter som foregår i UiOs lokaler",IF($B7="Teknisk/adm. bistand/Feltassistent",(V7/12)*Tabeller!U$11,(V7/12)*Tabeller!U$10),IF($B7="Teknisk/adm. bistand/Feltassistent",(V7/12)*Tabeller!U$13,(V7/12)*Tabeller!U$12)) -> 0 | HE7: =IF(Registrering!$B$29="Prosjekter som foregår i UiOs lokaler",IF($B7="Teknisk/adm. bistand/Feltassistent",(W7/12)*Tabeller!V$11,(W7/12)*Tabeller!V$10),IF($B7="Teknisk/adm. bistand/Feltassistent",(W7/12)*Tabeller!V$13,(W7/12)*Tabeller!V$12)) -> 0
B8: Postdoktor / Forsker | C8: =IF(Registrering!$B$28="Fast beløp",0,IF(Registrering!$B$28="Sats for ekst. fin. overhead",0,DL8)) -> -4650500 | D8: 2886028.134 | E8: 1843534.492 | F8: 4729562.626 | G8: 3 | H8: NFR | I8: 630000 | J8: Post doc b | N8: 9 | O8: 12 | P8: 12 | Q8: 3 | AG8: 630000 | AH8: =AG8*Tabeller!$I$35 -> 660870 | AI8: 596963.2692 | AJ8: =AI8*Tabeller!$H$26 -> 71635.59231 | AK8: =SUM(AI8:AJ8,AL8)*Tabeller!$H$28 -> 102658.8798 | AL8: =AH8*Tabeller!$H$27 -> 59478.3 | AM8: 830736.0413 | AN8: =AM8+(IF(B8="Teknisk adm bistand",Registrering!$E$51,Registrering!$B$51)) -> 1295736.041 | AO8: =AN8/Tabeller!$H$5 -> 795.9066593 | AR8: =((K8*Budsjett!$AM8))/12 -> 0 | AS8: =((L8*Budsjett!$AM8)*(Tabeller!J$35))/12 -> 0 | AT8: =((M8*Budsjett!$AM8)*(Tabeller!K$35))/12 -> 0 | AU8: =((N8*Budsjett!$AM8)*(Tabeller!L$35))/12 -> 690788.9238 | AV8: =((O8*Budsjett!$AM8)*(Tabeller!M$35))/12 -> 953288.7149 | AW8: =((P8*Budsjett!$AM8)*(Tabeller!N$35))/12 -> 986653.8199 | AX8: =((Q8*Budsjett!$AM8)*(Tabeller!O$35))/12 -> 255296.6759 | AY8: =((R8*Budsjett!$AM8)*(Tabeller!P$35))/12 -> 0 | AZ8: =((S8*Budsjett!$AM8)*(Tabeller!Q$35))/12 -> 0 | BA8: =((T8*Budsjett!$AM8)*(Tabeller!R$35))/12 -> 0 | BB8: =((U8*Budsjett!$AM8)*(Tabeller!S$35))/12 -> 0 | BC8: =((V8*Budsjett!$AM8)*(Tabeller!T$35))/12 -> 0 | BD8: =((W8*Budsjett!$AM8)*(Tabeller!U$35))/12 -> 0 | BF8: 0 | BG8: 0 | BH8: 0 | BI8: 441261.536 | BJ8: 608940.9197 | BK8: 630253.8519 | BL8: 163078.1842 | BM8: 0 | BN8: 0 | BO8: 0 | BP8: 0 | BQ8: 0 | BR8: 0 | BU8: =IFERROR(IF($E$73=$E$72,AR8*$E$73,AR8*Budsjett!$E$72),0) -> 0 | BV8: =IFERROR(IF($E$73=$E$72,AS8*$E$73,AS8*Budsjett!$E$72),0) -> 0 | BW8: =IFERROR(IF($E$73=$E$72,AT8*$E$73,AT8*Budsjett!$E$72),0) -> 0 | BX8: =IFERROR(IF($E$73=$E$72,AU8*$E$73,AU8*Budsjett!$E$72),0) -> 441261.536 | BY8: =IFERROR(IF($E$73=$E$72,AV8*$E$73,AV8*Budsjett!$E$72),0) -> 608940.9197 | BZ8: =IFERROR(IF($E$73=$E$72,AW8*$E$73,AW8*Budsjett!$E$72),0) -> 630253.8519 | CA8: =IFERROR(IF($E$73=$E$72,AX8*$E$73,AX8*Budsjett!$E$72),0) -> 163078.1842 | CB8: =IFERROR(IF($E$73=$E$72,AY8*$E$73,AY8*Budsjett!$E$72),0) -> 0 | CC8: =IFERROR(IF($E$73=$E$72,AZ8*$E$73,AZ8*Budsjett!$E$72),0) -> 0 | CD8: =IFERROR(IF($E$73=$E$72,BA8*$E$73,BA8*Budsjett!$E$72),0) -> 0 | CE8: =IFERROR(IF($E$73=$E$72,BB8*$E$73,BB8*Budsjett!$E$72),0) -> 0 | CF8: =IFERROR(IF($E$73=$E$72,BC8*$E$73,BC8*Budsjett!$E$72),0) -> 0 | CG8: =IFERROR(IF($E$73=$E$72,BD8*$E$73,BD8*Budsjett!$E$72),0) -> 0 | CJ8: 0 | CK8: 0 | CL8: 0 | CM8: 0 | CN8: 0 | CO8: 0 | CP8: 0 | CQ8: 0 | CR8: 0 | CS8: 0 | CT8: 0 | CU8: 0 | CV8: 0 | CX8: Postdoktor / Forsker | CY8: =-((IF($CX8="Teknisk/adm. bistand/Feltassistent",IF(Budsjett!AR8*(1+Tabeller!$I$62)>Tabeller!I$55,Tabeller!I$55,Budsjett!AR8*(1+Tabeller!$I$62)),0)+(IF($CX8="Forsker - professor",Tabeller!I$55*K8,0)+IF($CX8="Prosjektleder/adm.leder",Tabeller!I$54*K8,0)+IF($CX8="Forsker - 1.aman.",Tabeller!I$56*K8,0)+IF($CX8="Gjesteforsker",Tabeller!I$58*K8,0)+IF($CX8="Postdoktor / forsker",Tabeller!I$59*K8,0)+IF($CX8="Stipendiat",Tabeller!I$60*K8,0)+IF($CX8="Forsker (rundsum)",Tabeller!I$57*K8,0)+IF($CX8="Vit.ass",Tabeller!I$61*K8,0))/12)) -> 0 | CZ8: =-((IF($CX8="Teknisk/adm. bistand/Feltassistent",IF(Budsjett!AS8*(1+Tabeller!$I$62)>Tabeller!J$55,Tabeller!J$55,Budsjett!AS8*(1+Tabeller!$I$62)),0)+(IF($CX8="Forsker - professor",Tabeller!J$55*L8,0)+IF($CX8="Prosjektleder/adm.leder",Tabeller!J$54*L8,0)+IF($CX8="Forsker - 1.aman.",Tabeller!J$56*L8,0)+IF($CX8="Gjesteforsker",Tabeller!J$58*L8,0)+IF($CX8="Postdoktor / forsker",Tabeller!J$59*L8,0)+IF($CX8="Stipendiat",Tabeller!J$60*L8,0)+IF($CX8="Forsker (rundsum)",Tabeller!J$57*L8,0)+IF($CX8="Vit.ass",Tabeller!J$61*L8,0))/12)) -> 0 | DA8: =-((IF($CX8="Teknisk/adm. bistand/Feltassistent",IF(Budsjett!AT8*(1+Tabeller!$I$62)>Tabeller!K$55,Tabeller!K$55,Budsjett!AT8*(1+Tabeller!$I$62)),0)+(IF($CX8="Forsker - professor",Tabeller!K$55*M8,0)+IF($CX8="Prosjektleder/adm.leder",Tabeller!K$54*M8,0)+IF($CX8="Forsker - 1.aman.",Tabeller!K$56*M8,0)+IF($CX8="Gjesteforsker",Tabeller!K$58*M8,0)+IF($CX8="Postdoktor / forsker",Tabeller!K$59*M8,0)+IF($CX8="Stipendiat",Tabeller!K$60*M8,0)+IF($CX8="Forsker (rundsum)",Tabeller!K$57*M8,0)+IF($CX8="Vit.ass",Tabeller!K$61*M8,0))/12)) -> 0 | DB8: =-((IF($CX8="Teknisk/adm. bistand/Feltassistent",IF(Budsjett!AU8*(1+Tabeller!$I$62)>Tabeller!L$55,Tabeller!L$55,Budsjett!AU8*(1+Tabeller!$I$62)),0)+(IF($CX8="Forsker - professor",Tabeller!L$55*N8,0)+IF($CX8="Prosjektleder/adm.leder",Tabeller!L$54*N8,0)+IF($CX8="Forsker - 1.aman.",Tabeller!L$56*N8,0)+IF($CX8="Gjesteforsker",Tabeller!L$58*N8,0)+IF($CX8="Postdoktor / forsker",Tabeller!L$59*N8,0)+IF($CX8="Stipendiat",Tabeller!L$60*N8,0)+IF($CX8="Forsker (rundsum)",Tabeller!L$57*N8,0)+IF($CX8="Vit.ass",Tabeller!L$61*N8,0))/12)) -> -1113000 | DC8: =-((IF($CX8="Teknisk/adm. bistand/Feltassistent",IF(Budsjett!AV8*(1+Tabeller!$I$62)>Tabeller!M$55,Tabeller!M$55,Budsjett!AV8*(1+Tabeller!$I$62)),0)+(IF($CX8="Forsker - professor",Tabeller!M$55*O8,0)+IF($CX8="Prosjektleder/adm.leder",Tabeller!M$54*O8,0)+IF($CX8="Forsker - 1.aman.",Tabeller!M$56*O8,0)+IF($CX8="Gjesteforsker",Tabeller!M$58*O8,0)+IF($CX8="Postdoktor / forsker",Tabeller!M$59*O8,0)+IF($CX8="Stipendiat",Tabeller!M$60*O8,0)+IF($CX8="Forsker (rundsum)",Tabeller!M$57*O8,0)+IF($CX8="Vit.ass",Tabeller!M$61*O8,0))/12)) -> -1536000 | DD8: =-((IF($CX8="Teknisk/adm. bistand/Feltassistent",IF(Budsjett!AW8*(1+Tabeller!$I$62)>Tabeller!N$55,Tabeller!N$55,Budsjett!AW8*(1+Tabeller!$I$62)),0)+(IF($CX8="Forsker - professor",Tabeller!N$55*P8,0)+IF($CX8="Prosjektleder/adm.leder",Tabeller!N$54*P8,0)+IF($CX8="Forsker - 1.aman.",Tabeller!N$56*P8,0)+IF($CX8="Gjesteforsker",Tabeller!N$58*P8,0)+IF($CX8="Postdoktor / forsker",Tabeller!N$59*P8,0)+IF($CX8="Stipendiat",Tabeller!N$60*P8,0)+IF($CX8="Forsker (rundsum)",Tabeller!N$57*P8,0)+IF($CX8="Vit.ass",Tabeller!N$61*P8,0))/12)) -> -1590000 | DE8: =-((IF($CX8="Teknisk/adm. bistand/Feltassistent",IF(Budsjett!AX8*(1+Tabeller!$I$62)>Tabeller!O$55,Tabeller!O$55,Budsjett!AX8*(1+Tabeller!$I$62)),0)+(IF($CX8="Forsker - professor",Tabeller!O$55*Q8,0)+IF($CX8="Prosjektleder/adm.leder",Tabeller!O$54*Q8,0)+IF($CX8="Forsker - 1.aman.",Tabeller!O$56*Q8,0)+IF($CX8="Gjesteforsker",Tabeller!O$58*Q8,0)+IF($CX8="Postdoktor / forsker",Tabeller!O$59*Q8,0)+IF($CX8="Stipendiat",Tabeller!O$60*Q8,0)+IF($CX8="Forsker (rundsum)",Tabeller!O$57*Q8,0)+IF($CX8="Vit.ass",Tabeller!O$61*Q8,0))/12)) -> -411500 | DF8: =-((IF($CX8="Teknisk/adm. bistand/Feltassistent",IF(Budsjett!AY8*(1+Tabeller!$I$62)>Tabeller!P$55,Tabeller!P$55,Budsjett!AY8*(1+Tabeller!$I$62)),0)+(IF($CX8="Forsker - professor",Tabeller!P$55*R8,0)+IF($CX8="Prosjektleder/adm.leder",Tabeller!P$54*R8,0)+IF($CX8="Forsker - 1.aman.",Tabeller!P$56*R8,0)+IF($CX8="Gjesteforsker",Tabeller!P$58*R8,0)+IF($CX8="Postdoktor / forsker",Tabeller!P$59*R8,0)+IF($CX8="Stipendiat",Tabeller!P$60*R8,0)+IF($CX8="Forsker (rundsum)",Tabeller!P$57*R8,0)+IF($CX8="Vit.ass",Tabeller!P$61*R8,0))/12)) -> 0 | DG8: =-((IF($CX8="Teknisk/adm. bistand/Feltassistent",IF(Budsjett!AZ8*(1+Tabeller!$I$62)>Tabeller!Q$55,Tabeller!Q$55,Budsjett!AZ8*(1+Tabeller!$I$62)),0)+(IF($CX8="Forsker - professor",Tabeller!Q$55*S8,0)+IF($CX8="Prosjektleder/adm.leder",Tabeller!Q$54*S8,0)+IF($CX8="Forsker - 1.aman.",Tabeller!Q$56*S8,0)+IF($CX8="Gjesteforsker",Tabeller!Q$58*S8,0)+IF($CX8="Postdoktor / forsker",Tabeller!Q$59*S8,0)+IF($CX8="Stipendiat",Tabeller!Q$60*S8,0)+IF($CX8="Forsker (rundsum)",Tabeller!Q$57*S8,0)+IF($CX8="Vit.ass",Tabeller!Q$61*S8,0))/12)) -> 0 | DH8: =-((IF($CX8="Teknisk/adm. bistand/Feltassistent",IF(Budsjett!BA8*(1+Tabeller!$I$62)>Tabeller!R$55,Tabeller!R$55,Budsjett!BA8*(1+Tabeller!$I$62)),0)+(IF($CX8="Forsker - professor",Tabeller!R$55*T8,0)+IF($CX8="Prosjektleder/adm.leder",Tabeller!R$54*T8,0)+IF($CX8="Forsker - 1.aman.",Tabeller!R$56*T8,0)+IF($CX8="Gjesteforsker",Tabeller!R$58*T8,0)+IF($CX8="Postdoktor / forsker",Tabeller!R$59*T8,0)+IF($CX8="Stipendiat",Tabeller!R$60*T8,0)+IF($CX8="Forsker (rundsum)",Tabeller!R$57*T8,0)+IF($CX8="Vit.ass",Tabeller!R$61*T8,0))/12)) -> 0 | DI8: =-((IF($CX8="Teknisk/adm. bistand/Feltassistent",IF(Budsjett!BB8*(1+Tabeller!$I$62)>Tabeller!S$55,Tabeller!S$55,Budsjett!BB8*(1+Tabeller!$I$62)),0)+(IF($CX8="Forsker - professor",Tabeller!S$55*U8,0)+IF($CX8="Prosjektleder/adm.leder",Tabeller!S$54*U8,0)+IF($CX8="Forsker - 1.aman.",Tabeller!S$56*U8,0)+IF($CX8="Gjesteforsker",Tabeller!S$58*U8,0)+IF($CX8="Postdoktor / forsker",Tabeller!S$59*U8,0)+IF($CX8="Stipendiat",Tabeller!S$60*U8,0)+IF($CX8="Forsker (rundsum)",Tabeller!S$57*U8,0)+IF($CX8="Vit.ass",Tabeller!S$61*U8,0))/12)) -> 0 | DJ8: =-((IF($CX8="Teknisk/adm. bistand/Feltassistent",IF(Budsjett!BC8*(1+Tabeller!$I$62)>Tabeller!T$55,Tabeller!T$55,Budsjett!BC8*(1+Tabeller!$I$62)),0)+(IF($CX8="Forsker - professor",Tabeller!T$55*V8,0)+IF($CX8="Prosjektleder/adm.leder",Tabeller!T$54*V8,0)+IF($CX8="Forsker - 1.aman.",Tabeller!T$56*V8,0)+IF($CX8="Gjesteforsker",Tabeller!T$58*V8,0)+IF($CX8="Postdoktor / forsker",Tabeller!T$59*V8,0)+IF($CX8="Stipendiat",Tabeller!T$60*V8,0)+IF($CX8="Forsker (rundsum)",Tabeller!T$57*V8,0)+IF($CX8="Vit.ass",Tabeller!T$61*V8,0))/12)) -> 0 | DK8: =-((IF($CX8="Teknisk/adm. bistand/Feltassistent",IF(Budsjett!BD8*(1+Tabeller!$I$62)>Tabeller!U$55,Tabeller!U$55,Budsjett!BD8*(1+Tabeller!$I$62)),0)+(IF($CX8="Forsker - professor",Tabeller!U$55*W8,0)+IF($CX8="Prosjektleder/adm.leder",Tabeller!U$54*W8,0)+IF($CX8="Forsker - 1.aman.",Tabeller!U$56*W8,0)+IF($CX8="Gjesteforsker",Tabeller!U$58*W8,0)+IF($CX8="Postdoktor / forsker",Tabeller!U$59*W8,0)+IF($CX8="Stipendiat",Tabeller!U$60*W8,0)+IF($CX8="Forsker (rundsum)",Tabeller!U$57*W8,0)+IF($CX8="Vit.ass",Tabeller!U$61*W8,0))/12)) -> 0 | DL8: -4650500 | DO8: Postdoktor / Forsker | DP8: 0 | DQ8: 0 | DR8: 0 | DS8: -1113000 | DT8: -1536000 | DU8: -1590000 | DV8: -411500 | DW8: 0 | DX8: 0 | DY8: 0 | DZ8: 0 | EA8: 0 | EB8: 0 | EC8: -4650500 | EE8: Postdoktor / Forsker | EF8: 0 | EG8: 0 | EH8: 0 | EI8: 0 | EJ8: 0 | EK8: 0 | EL8: 0 | EM8: 0 | EN8: 0 | EO8: 0 | EP8: 0 | EQ8: 0 | ER8: 0 | ES8: 0 | EU8: Postdoktor / Forsker | EV8: 0 | EW8: 0 | EX8: 0 | EY8: 0 | EZ8: 0 | FA8: 0 | FB8: 0 | FC8: 0 | FD8: 0 | FE8: 0 | FF8: 0 | FG8: 0 | FH8: 0 | FI8: 0 | FK8: Postdoktor / Forsker | FL8: 0 | FM8: 0 | FN8: 0 | FO8: 0 | FP8: 0 | FQ8: 0 | FR8: 0 | FS8: 0 | FT8: 0 | FU8: 0 | FV8: 0 | FW8: 0 | FX8: 0 | FY8: 0 | GB8: Postdoktor / Forsker | GP8: 0 | GS8: =IF(Registrering!$B$29="Prosjekter som foregår i UiOs lokaler",IF($B8="Teknisk/adm. bistand/Feltassistent",(K8/12)*Tabeller!J$11,(K8/12)*Tabeller!J$10),IF($B8="Teknisk/adm. bistand/Feltassistent",(K8/12)*Tabeller!J$13,(K8/12)*Tabeller!J$12)) -> 0 | GT8: =IF(Registrering!$B$29="Prosjekter som foregår i UiOs lokaler",IF($B8="Teknisk/adm. bistand/Feltassistent",(L8/12)*Tabeller!K$11,(L8/12)*Tabeller!K$10),IF($B8="Teknisk/adm. bistand/Feltassistent",(L8/12)*Tabeller!K$13,(L8/12)*Tabeller!K$12)) -> 0 | GU8: =IF(Registrering!$B$29="Prosjekter som foregår i UiOs lokaler",IF($B8="Teknisk/adm. bistand/Feltassistent",(M8/12)*Tabeller!L$11,(M8/12)*Tabeller!L$10),IF($B8="Teknisk/adm. bistand/Feltassistent",(M8/12)*Tabeller!L$13,(M8/12)*Tabeller!L$12)) -> 0 | GV8: =IF(Registrering!$B$29="Prosjekter som foregår i UiOs lokaler",IF($B8="Teknisk/adm. bistand/Feltassistent",(N8/12)*Tabeller!M$11,(N8/12)*Tabeller!M$10),IF($B8="Teknisk/adm. bistand/Feltassistent",(N8/12)*Tabeller!M$13,(N8/12)*Tabeller!M$12)) -> 386665.3589 | GW8: =IF(Registrering!$B$29="Prosjekter som foregår i UiOs lokaler",IF($B8="Teknisk/adm. bistand/Feltassistent",(O8/12)*Tabeller!N$11,(O8/12)*Tabeller!N$10),IF($B8="Teknisk/adm. bistand/Feltassistent",(O8/12)*Tabeller!N$13,(O8/12)*Tabeller!N$12)) -> 533598.1953 | GX8: =IF(Registrering!$B$29="Prosjekter som foregår i UiOs lokaler",IF($B8="Teknisk/adm. bistand/Feltassistent",(P8/12)*Tabeller!O$11,(P8/12)*Tabeller!O$10),IF($B8="Teknisk/adm. bistand/Feltassistent",(P8/12)*Tabeller!O$13,(P8/12)*Tabeller!O$12)) -> 552274.1321 | GY8: =IF(Registrering!$B$29="Prosjekter som foregår i UiOs lokaler",IF($B8="Teknisk/adm. bistand/Feltassistent",(Q8/12)*Tabeller!P$11,(Q8/12)*Tabeller!P$10),IF($B8="Teknisk/adm. bistand/Feltassistent",(Q8/12)*Tabeller!P$13,(Q8/12)*Tabeller!P$12)) -> 142900.9317 | GZ8: =IF(Registrering!$B$29="Prosjekter som foregår i UiOs lokaler",IF($B8="Teknisk/adm. bistand/Feltassistent",(R8/12)*Tabeller!Q$11,(R8/12)*Tabeller!Q$10),IF($B8="Teknisk/adm. bistand/Feltassistent",(R8/12)*Tabeller!Q$13,(R8/12)*Tabeller!Q$12)) -> 0 | HA8: =IF(Registrering!$B$29="Prosjekter som foregår i UiOs lokaler",IF($B8="Teknisk/adm. bistand/Feltassistent",(S8/12)*Tabeller!R$11,(S8/12)*Tabeller!R$10),IF($B8="Teknisk/adm. bistand/Feltassistent",(S8/12)*Tabeller!R$13,(S8/12)*Tabeller!R$12)) -> 0 | HB8: =IF(Registrering!$B$29="Prosjekter som foregår i UiOs lokaler",IF($B8="Teknisk/adm. bistand/Feltassistent",(T8/12)*Tabeller!S$11,(T8/12)*Tabeller!S$10),IF($B8="Teknisk/adm. bistand/Feltassistent",(T8/12)*Tabeller!S$13,(T8/12)*Tabeller!S$12)) -> 0 | HC8: =IF(Registrering!$B$29="Prosjekter som foregår i UiOs lokaler",IF($B8="Teknisk/adm. bistand/Feltassistent",(U8/12)*Tabeller!T$11,(U8/12)*Tabeller!T$10),IF($B8="Teknisk/adm. bistand/Feltassistent",(U8/12)*Tabeller!T$13,(U8/12)*Tabeller!T$12)) -> 0 | HD8: =IF(Registrering!$B$29="Prosjekter som foregår i UiOs lokaler",IF($B8="Teknisk/adm. bistand/Feltassistent",(V8/12)*Tabeller!U$11,(V8/12)*Tabeller!U$10),IF($B8="Teknisk/adm. bistand/Feltassistent",(V8/12)*Tabeller!U$13,(V8/12)*Tabeller!U$12)) -> 0 | HE8: =IF(Registrering!$B$29="Prosjekter som foregår i UiOs lokaler",IF($B8="Teknisk/adm. bistand/Feltassistent",(W8/12)*Tabeller!V$11,(W8/12)*Tabeller!V$10),IF($B8="Teknisk/adm. bistand/Feltassistent",(W8/12)*Tabeller!V$13,(W8/12)*Tabeller!V$12)) -> 0
B9: Gjesteforsker | C9: =IF(Registrering!$B$28="Fast beløp",0,IF(Registrering!$B$28="Sats for ekst. fin. overhead",0,DL9)) -> -1218950 | D9: 961058.3343 | E9: 613903.9904 | F9: 1574962.325 | G9: 0.8 | H9: NFR | I9: 800000 | J9: Thea Aarrestad | M9: =9*0.2 -> 1.8 | N9: =12*0.2 -> 2.4 | O9: =12*0.2 -> 2.4 | P9: 2.4 | Q9: =3*0.2 -> 0.6 | AG9: 800000 | AH9: =AG9*Tabeller!$I$35 -> 839200 | AI9: 758146.1538 | AJ9: =AI9*Tabeller!$H$26 -> 90977.53846 | AK9: =SUM(AI9:AJ9,AL9)*Tabeller!$H$28 -> 130375.8886 | AL9: =AH9*Tabeller!$H$27 -> 75528 | AM9: 1055027.581 | AN9: =AM9+(IF(B9="Teknisk adm bistand",Registrering!$E$51,Registrering!$B$51)) -> 1520027.581 | AO9: =AN9/Tabeller!$H$5 -> 933.6778753 | AR9: =((K9*Budsjett!$AM9))/12 -> 0 | AS9: =((L9*Budsjett!$AM9)*(Tabeller!J$35))/12 -> 0 | AT9: =((M9*Budsjett!$AM9)*(Tabeller!K$35))/12 -> 169525.7881 | AU9: =((N9*Budsjett!$AM9)*(Tabeller!L$35))/12 -> 233945.5875 | AV9: =((O9*Budsjett!$AM9)*(Tabeller!M$35))/12 -> 242133.6831 | AW9: =((P9*Budsjett!$AM9)*(Tabeller!N$35))/12 -> 250608.362 | AX9: =((Q9*Budsjett!$AM9)*(Tabeller!O$35))/12 -> 64844.91366 | AY9: =((R9*Budsjett!$AM9)*(Tabeller!P$35))/12 -> 0 | AZ9: =((S9*Budsjett!$AM9)*(Tabeller!Q$35))/12 -> 0 | BA9: =((T9*Budsjett!$AM9)*(Tabeller!R$35))/12 -> 0 | BB9: =((U9*Budsjett!$AM9)*(Tabeller!S$35))/12 -> 0 | BC9: =((V9*Budsjett!$AM9)*(Tabeller!T$35))/12 -> 0 | BD9: =((W9*Budsjett!$AM9)*(Tabeller!U$35))/12 -> 0 | BF9: 0 | BG9: 0 | BH9: 108289.5325 | BI9: 149439.5549 | BJ9: 154669.9393 | BK9: 160083.3872 | BL9: 41421.57643 | BM9: 0 | BN9: 0 | BO9: 0 | BP9: 0 | BQ9: 0 | BR9: 0 | BU9: =IFERROR(IF($E$73=$E$72,AR9*$E$73,AR9*Budsjett!$E$72),0) -> 0 | BV9: =IFERROR(IF($E$73=$E$72,AS9*$E$73,AS9*Budsjett!$E$72),0) -> 0 | BW9: =IFERROR(IF($E$73=$E$72,AT9*$E$73,AT9*Budsjett!$E$72),0) -> 108289.5325 | BX9: =IFERROR(IF($E$73=$E$72,AU9*$E$73,AU9*Budsjett!$E$72),0) -> 149439.5549 | BY9: =IFERROR(IF($E$73=$E$72,AV9*$E$73,AV9*Budsjett!$E$72),0) -> 154669.9393 | BZ9: =IFERROR(IF($E$73=$E$72,AW9*$E$73,AW9*Budsjett!$E$72),0) -> 160083.3872 | CA9: =IFERROR(IF($E$73=$E$72,AX9*$E$73,AX9*Budsjett!$E$72),0) -> 41421.57643 | CB9: =IFERROR(IF($E$73=$E$72,AY9*$E$73,AY9*Budsjett!$E$72),0) -> 0 | CC9: =IFERROR(IF($E$73=$E$72,AZ9*$E$73,AZ9*Budsjett!$E$72),0) -> 0 | CD9: =IFERROR(IF($E$73=$E$72,BA9*$E$73,BA9*Budsjett!$E$72),0) -> 0 | CE9: =IFERROR(IF($E$73=$E$72,BB9*$E$73,BB9*Budsjett!$E$72),0) -> 0 | CF9: =IFERROR(IF($E$73=$E$72,BC9*$E$73,BC9*Budsjett!$E$72),0) -> 0 | CG9: =IFERROR(IF($E$73=$E$72,BD9*$E$73,BD9*Budsjett!$E$72),0) -> 0 | CJ9: 0 | CK9: 0 | CL9: 0 | CM9: 0 | CN9: 0 | CO9: 0 | CP9: 0 | CQ9: 0 | CR9: 0 | CS9: 0 | CT9: 0 | CU9: 0 | CV9: 0 | CX9: Gjesteforsker | CY9: =-((IF($CX9="Teknisk/adm. bistand/Feltassistent",IF(Budsjett!AR9*(1+Tabeller!$I$62)>Tabeller!I$55,Tabeller!I$55,Budsjett!AR9*(1+Tabeller!$I$62)),0)+(IF($CX9="Forsker - professor",Tabeller!I$55*K9,0)+IF($CX9="Prosjektleder/adm.leder",Tabeller!I$54*K9,0)+IF($CX9="Forsker - 1.aman.",Tabeller!I$56*K9,0)+IF($CX9="Gjesteforsker",Tabeller!I$58*K9,0)+IF($CX9="Postdoktor / forsker",Tabeller!I$59*K9,0)+IF($CX9="Stipendiat",Tabeller!I$60*K9,0)+IF($CX9="Forsker (rundsum)",Tabeller!I$57*K9,0)+IF($CX9="Vit.ass",Tabeller!I$61*K9,0))/12)) -> 0 | CZ9: =-((IF($CX9="Teknisk/adm. bistand/Feltassistent",IF(Budsjett!AS9*(1+Tabeller!$I$62)>Tabeller!J$55,Tabeller!J$55,Budsjett!AS9*(1+Tabeller!$I$62)),0)+(IF($CX9="Forsker - professor",Tabeller!J$55*L9,0)+IF($CX9="Prosjektleder/adm.leder",Tabeller!J$54*L9,0)+IF($CX9="Forsker - 1.aman.",Tabeller!J$56*L9,0)+IF($CX9="Gjesteforsker",Tabeller!J$58*L9,0)+IF($CX9="Postdoktor / forsker",Tabeller!J$59*L9,0)+IF($CX9="Stipendiat",Tabeller!J$60*L9,0)+IF($CX9="Forsker (rundsum)",Tabeller!J$57*L9,0)+IF($CX9="Vit.ass",Tabeller!J$61*L9,0))/12)) -> 0 | DA9: =-((IF($CX9="Teknisk/adm. bistand/Feltassistent",IF(Budsjett!AT9*(1+Tabeller!$I$62)>Tabeller!K$55,Tabeller!K$55,Budsjett!AT9*(1+Tabeller!$I$62)),0)+(IF($CX9="Forsker - professor",Tabeller!K$55*M9,0)+IF($CX9="Prosjektleder/adm.leder",Tabeller!K$54*M9,0)+IF($CX9="Forsker - 1.aman.",Tabeller!K$56*M9,0)+IF($CX9="Gjesteforsker",Tabeller!K$58*M9,0)+IF($CX9="Postdoktor / forsker",Tabeller!K$59*M9,0)+IF($CX9="Stipendiat",Tabeller!K$60*M9,0)+IF($CX9="Forsker (rundsum)",Tabeller!K$57*M9,0)+IF($CX9="Vit.ass",Tabeller!K$61*M9,0))/12)) -> -214650 | DB9: =-((IF($CX9="Teknisk/adm. bistand/Feltassistent",IF(Budsjett!AU9*(1+Tabeller!$I$62)>Tabeller!L$55,Tabeller!L$55,Budsjett!AU9*(1+Tabeller!$I$62)),0)+(IF($CX9="Forsker - professor",Tabeller!L$55*N9,0)+IF($CX9="Prosjektleder/adm.leder",Tabeller!L$54*N9,0)+IF($CX9="Forsker - 1.aman.",Tabeller!L$56*N9,0)+IF($CX9="Gjesteforsker",Tabeller!L$58*N9,0)+IF($CX9="Postdoktor / forsker",Tabeller!L$59*N9,0)+IF($CX9="Stipendiat",Tabeller!L$60*N9,0)+IF($CX9="Forsker (rundsum)",Tabeller!L$57*N9,0)+IF($CX9="Vit.ass",Tabeller!L$61*N9,0))/12)) -> -296800 | DC9: =-((IF($CX9="Teknisk/adm. bistand/Feltassistent",IF(Budsjett!AV9*(1+Tabeller!$I$62)>Tabeller!M$55,Tabeller!M$55,Budsjett!AV9*(1+Tabeller!$I$62)),0)+(IF($CX9="Forsker - professor",Tabeller!M$55*O9,0)+IF($CX9="Prosjektleder/adm.leder",Tabeller!M$54*O9,0)+IF($CX9="Forsker - 1.aman.",Tabeller!M$56*O9,0)+IF($CX9="Gjesteforsker",Tabeller!M$58*O9,0)+IF($CX9="Postdoktor / forsker",Tabeller!M$59*O9,0)+IF($CX9="Stipendiat",Tabeller!M$60*O9,0)+IF($CX9="Forsker (rundsum)",Tabeller!M$57*O9,0)+IF($CX9="Vit.ass",Tabeller!M$61*O9,0))/12)) -> -307200 | DD9: =-((IF($CX9="Teknisk/adm. bistand/Feltassistent",IF(Budsjett!AW9*(1+Tabeller!$I$62)>Tabeller!N$55,Tabeller!N$55,Budsjett!AW9*(1+Tabeller!$I$62)),0)+(IF($CX9="Forsker - professor",Tabeller!N$55*P9,0)+IF($CX9="Prosjektleder/adm.leder",Tabeller!N$54*P9,0)+IF($CX9="Forsker - 1.aman.",Tabeller!N$56*P9,0)+IF($CX9="Gjesteforsker",Tabeller!N$58*P9,0)+IF($CX9="Postdoktor / forsker",Tabeller!N$59*P9,0)+IF($CX9="Stipendiat",Tabeller!N$60*P9,0)+IF($CX9="Forsker (rundsum)",Tabeller!N$57*P9,0)+IF($CX9="Vit.ass",Tabeller!N$61*P9,0))/12)) -> -318000 | DE9: =-((IF($CX9="Teknisk/adm. bistand/Feltassistent",IF(Budsjett!AX9*(1+Tabeller!$I$62)>Tabeller!O$55,Tabeller!O$55,Budsjett!AX9*(1+Tabeller!$I$62)),0)+(IF($CX9="Forsker - professor",Tabeller!O$55*Q9,0)+IF($CX9="Prosjektleder/adm.leder",Tabeller!O$54*Q9,0)+IF($CX9="Forsker - 1.aman.",Tabeller!O$56*Q9,0)+IF($CX9="Gjesteforsker",Tabeller!O$58*Q9,0)+IF($CX9="Postdoktor / forsker",Tabeller!O$59*Q9,0)+IF($CX9="Stipendiat",Tabeller!O$60*Q9,0)+IF($CX9="Forsker (rundsum)",Tabeller!O$57*Q9,0)+IF($CX9="Vit.ass",Tabeller!O$61*Q9,0))/12)) -> -82300 | DF9: =-((IF($CX9="Teknisk/adm. bistand/Feltassistent",IF(Budsjett!AY9*(1+Tabeller!$I$62)>Tabeller!P$55,Tabeller!P$55,Budsjett!AY9*(1+Tabeller!$I$62)),0)+(IF($CX9="Forsker - professor",Tabeller!P$55*R9,0)+IF($CX9="Prosjektleder/adm.leder",Tabeller!P$54*R9,0)+IF($CX9="Forsker - 1.aman.",Tabeller!P$56*R9,0)+IF($CX9="Gjesteforsker",Tabeller!P$58*R9,0)+IF($CX9="Postdoktor / forsker",Tabeller!P$59*R9,0)+IF($CX9="Stipendiat",Tabeller!P$60*R9,0)+IF($CX9="Forsker (rundsum)",Tabeller!P$57*R9,0)+IF($CX9="Vit.ass",Tabeller!P$61*R9,0))/12)) -> 0 | DG9: =-((IF($CX9="Teknisk/adm. bistand/Feltassistent",IF(Budsjett!AZ9*(1+Tabeller!$I$62)>Tabeller!Q$55,Tabeller!Q$55,Budsjett!AZ9*(1+Tabeller!$I$62)),0)+(IF($CX9="Forsker - professor",Tabeller!Q$55*S9,0)+IF($CX9="Prosjektleder/adm.leder",Tabeller!Q$54*S9,0)+IF($CX9="Forsker - 1.aman.",Tabeller!Q$56*S9,0)+IF($CX9="Gjesteforsker",Tabeller!Q$58*S9,0)+IF($CX9="Postdoktor / forsker",Tabeller!Q$59*S9,0)+IF($CX9="Stipendiat",Tabeller!Q$60*S9,0)+IF($CX9="Forsker (rundsum)",Tabeller!Q$57*S9,0)+IF($CX9="Vit.ass",Tabeller!Q$61*S9,0))/12)) -> 0 | DH9: =-((IF($CX9="Teknisk/adm. bistand/Feltassistent",IF(Budsjett!BA9*(1+Tabeller!$I$62)>Tabeller!R$55,Tabeller!R$55,Budsjett!BA9*(1+Tabeller!$I$62)),0)+(IF($CX9="Forsker - professor",Tabeller!R$55*T9,0)+IF($CX9="Prosjektleder/adm.leder",Tabeller!R$54*T9,0)+IF($CX9="Forsker - 1.aman.",Tabeller!R$56*T9,0)+IF($CX9="Gjesteforsker",Tabeller!R$58*T9,0)+IF($CX9="Postdoktor / forsker",Tabeller!R$59*T9,0)+IF($CX9="Stipendiat",Tabeller!R$60*T9,0)+IF($CX9="Forsker (rundsum)",Tabeller!R$57*T9,0)+IF($CX9="Vit.ass",Tabeller!R$61*T9,0))/12)) -> 0 | DI9: =-((IF($CX9="Teknisk/adm. bistand/Feltassistent",IF(Budsjett!BB9*(1+Tabeller!$I$62)>Tabeller!S$55,Tabeller!S$55,Budsjett!BB9*(1+Tabeller!$I$62)),0)+(IF($CX9="Forsker - professor",Tabeller!S$55*U9,0)+IF($CX9="Prosjektleder/adm.leder",Tabeller!S$54*U9,0)+IF($CX9="Forsker - 1.aman.",Tabeller!S$56*U9,0)+IF($CX9="Gjesteforsker",Tabeller!S$58*U9,0)+IF($CX9="Postdoktor / forsker",Tabeller!S$59*U9,0)+IF($CX9="Stipendiat",Tabeller!S$60*U9,0)+IF($CX9="Forsker (rundsum)",Tabeller!S$57*U9,0)+IF($CX9="Vit.ass",Tabeller!S$61*U9,0))/12)) -> 0 | DJ9: =-((IF($CX9="Teknisk/adm. bistand/Feltassistent",IF(Budsjett!BC9*(1+Tabeller!$I$62)>Tabeller!T$55,Tabeller!T$55,Budsjett!BC9*(1+Tabeller!$I$62)),0)+(IF($CX9="Forsker - professor",Tabeller!T$55*V9,0)+IF($CX9="Prosjektleder/adm.leder",Tabeller!T$54*V9,0)+IF($CX9="Forsker - 1.aman.",Tabeller!T$56*V9,0)+IF($CX9="Gjesteforsker",Tabeller!T$58*V9,0)+IF($CX9="Postdoktor / forsker",Tabeller!T$59*V9,0)+IF($CX9="Stipendiat",Tabeller!T$60*V9,0)+IF($CX9="Forsker (rundsum)",Tabeller!T$57*V9,0)+IF($CX9="Vit.ass",Tabeller!T$61*V9,0))/12)) -> 0 | DK9: =-((IF($CX9="Teknisk/adm. bistand/Feltassistent",IF(Budsjett!BD9*(1+Tabeller!$I$62)>Tabeller!U$55,Tabeller!U$55,Budsjett!BD9*(1+Tabeller!$I$62)),0)+(IF($CX9="Forsker - professor",Tabeller!U$55*W9,0)+IF($CX9="Prosjektleder/adm.leder",Tabeller!U$54*W9,0)+IF($CX9="Forsker - 1.aman.",Tabeller!U$56*W9,0)+IF($CX9="Gjesteforsker",Tabeller!U$58*W9,0)+IF($CX9="Postdoktor / forsker",Tabeller!U$59*W9,0)+IF($CX9="Stipendiat",Tabeller!U$60*W9,0)+IF($CX9="Forsker (rundsum)",Tabeller!U$57*W9,0)+IF($CX9="Vit.ass",Tabeller!U$61*W9,0))/12)) -> 0 | DL9: -1218950 | DO9: Gjesteforsker | DP9: 0 | DQ9: 0 | DR9: -214650 | DS9: -296800 | DT9: -307200 | DU9: -318000 | DV9: -82300 | DW9: 0 | DX9: 0 | DY9: 0 | DZ9: 0 | EA9: 0 | EB9: 0 | EC9: -1218950 | EE9: Gjesteforsker | EF9: 0 | EG9: 0 | EH9: 0 | EI9: 0 | EJ9: 0 | EK9: 0 | EL9: 0 | EM9: 0 | EN9: 0 | EO9: 0 | EP9: 0 | EQ9: 0 | ER9: 0 | ES9: 0 | EU9: Gjesteforsker | EV9: 0 | EW9: 0 | EX9: 0 | EY9: 0 | EZ9: 0 | FA9: 0 | FB9: 0 | FC9: 0 | FD9: 0 | FE9: 0 | FF9: 0 | FG9: 0 | FH9: 0 | FI9: 0 | FK9: Gjesteforsker | FL9: 0 | FM9: 0 | FN9: 0 | FO9: 0 | FP9: 0 | FQ9: 0 | FR9: 0 | FS9: 0 | FT9: 0 | FU9: 0 | FV9: 0 | FW9: 0 | FX9: 0 | FY9: 0 | GB9: Gjesteforsker | GP9: 0 | GS9: =IF(Registrering!$B$29="Prosjekter som foregår i UiOs lokaler",IF($B9="Teknisk/adm. bistand/Feltassistent",(K9/12)*Tabeller!J$11,(K9/12)*Tabeller!J$10),IF($B9="Teknisk/adm. bistand/Feltassistent",(K9/12)*Tabeller!J$13,(K9/12)*Tabeller!J$12)) -> 0 | GT9: =IF(Registrering!$B$29="Prosjekter som foregår i UiOs lokaler",IF($B9="Teknisk/adm. bistand/Feltassistent",(L9/12)*Tabeller!K$11,(L9/12)*Tabeller!K$10),IF($B9="Teknisk/adm. bistand/Feltassistent",(L9/12)*Tabeller!K$13,(L9/12)*Tabeller!K$12)) -> 0 | GU9: =IF(Registrering!$B$29="Prosjekter som foregår i UiOs lokaler",IF($B9="Teknisk/adm. bistand/Feltassistent",(M9/12)*Tabeller!L$11,(M9/12)*Tabeller!L$10),IF($B9="Teknisk/adm. bistand/Feltassistent",(M9/12)*Tabeller!L$13,(M9/12)*Tabeller!L$12)) -> 74717.94375 | GV9: =IF(Registrering!$B$29="Prosjekter som foregår i UiOs lokaler",IF($B9="Teknisk/adm. bistand/Feltassistent",(N9/12)*Tabeller!M$11,(N9/12)*Tabeller!M$10),IF($B9="Teknisk/adm. bistand/Feltassistent",(N9/12)*Tabeller!M$13,(N9/12)*Tabeller!M$12)) -> 103110.7624 | GW9: =IF(Registrering!$B$29="Prosjekter som foregår i UiOs lokaler",IF($B9="Teknisk/adm. bistand/Feltassistent",(O9/12)*Tabeller!N$11,(O9/12)*Tabeller!N$10),IF($B9="Teknisk/adm. bistand/Feltassistent",(O9/12)*Tabeller!N$13,(O9/12)*Tabeller!N$12)) -> 106719.6391 | GX9: =IF(Registrering!$B$29="Prosjekter som foregår i UiOs lokaler",IF($B9="Teknisk/adm. bistand/Feltassistent",(P9/12)*Tabeller!O$11,(P9/12)*Tabeller!O$10),IF($B9="Teknisk/adm. bistand/Feltassistent",(P9/12)*Tabeller!O$13,(P9/12)*Tabeller!O$12)) -> 110454.8264 | GY9: =IF(Registrering!$B$29="Prosjekter som foregår i UiOs lokaler",IF($B9="Teknisk/adm. bistand/Feltassistent",(Q9/12)*Tabeller!P$11,(Q9/12)*Tabeller!P$10),IF($B9="Teknisk/adm. bistand/Feltassistent",(Q9/12)*Tabeller!P$13,(Q9/12)*Tabeller!P$12)) -> 28580.18634 | GZ9: =IF(Registrering!$B$29="Prosjekter som foregår i UiOs lokaler",IF($B9="Teknisk/adm. bistand/Feltassistent",(R9/12)*Tabeller!Q$11,(R9/12)*Tabeller!Q$10),IF($B9="Teknisk/adm. bistand/Feltassistent",(R9/12)*Tabeller!Q$13,(R9/12)*Tabeller!Q$12)) -> 0 | HA9: =IF(Registrering!$B$29="Prosjekter som foregår i UiOs lokaler",IF($B9="Teknisk/adm. bistand/Feltassistent",(S9/12)*Tabeller!R$11,(S9/12)*Tabeller!R$10),IF($B9="Teknisk/adm. bistand/Feltassistent",(S9/12)*Tabeller!R$13,(S9/12)*Tabeller!R$12)) -> 0 | HB9: =IF(Registrering!$B$29="Prosjekter som foregår i UiOs lokaler",IF($B9="Teknisk/adm. bistand/Feltassistent",(T9/12)*Tabeller!S$11,(T9/12)*Tabeller!S$10),IF($B9="Teknisk/adm. bistand/Feltassistent",(T9/12)*Tabeller!S$13,(T9/12)*Tabeller!S$12)) -> 0 | HC9: =IF(Registrering!$B$29="Prosjekter som foregår i UiOs lokaler",IF($B9="Teknisk/adm. bistand/Feltassistent",(U9/12)*Tabeller!T$11,(U9/12)*Tabeller!T$10),IF($B9="Teknisk/adm. bistand/Feltassistent",(U9/12)*Tabeller!T$13,(U9/12)*Tabeller!T$12)) -> 0 | HD9: =IF(Registrering!$B$29="Prosjekter som foregår i UiOs lokaler",IF($B9="Teknisk/adm. bistand/Feltassistent",(V9/12)*Tabeller!U$11,(V9/12)*Tabeller!U$10),IF($B9="Teknisk/adm. bistand/Feltassistent",(V9/12)*Tabeller!U$13,(V9/12)*Tabeller!U$12)) -> 0 | HE9: =IF(Registrering!$B$29="Prosjekter som foregår i UiOs lokaler",IF($B9="Teknisk/adm. bistand/Feltassistent",(W9/12)*Tabeller!V$11,(W9/12)*Tabeller!V$10),IF($B9="Teknisk/adm. bistand/Feltassistent",(W9/12)*Tabeller!V$13,(W9/12)*Tabeller!V$12)) -> 0
B10: Sum ansatte | C10: =SUM(C4:C9) -> -23992200 | D10: =SUM(D4:D9) -> 14290784.91 | E10: =SUM(E4:E9) -> 9128654.911 | F10: =SUM(F4:F9) -> 23419439.82 | G10: =SUM(G4:G9) -> 15.8 | K10: =SUM(K4:K9) -> 0 | L10: 0 | M10: 28.8 | N10: 56.4 | O10: 62.4 | P10: 35.4 | Q10: 6.6 | R10: 0 | S10: 0 | T10: 0 | U10: 0 | V10: 0 | W10: 0 | AR10: =SUM(AR4:AR9) -> 0 | AS10: 0 | AT10: 2044327.559 | AU10: 4136923.869 | AV10: 4735650.588 | AW10: 2822772.123 | AX10: 551110.774 | AY10: 0 | AZ10: 0 | BA10: 0 | BB10: 0 | BC10: 0 | BD10: 0 | BE10: =SUM(AR10:BD10) -> 14290784.91 | BF10: =SUM(BF4:BF9) -> 0 | BG10: 0 | BH10: 1305873.745 | BI10: 2642580.56 | BJ10: 3025034.682 | BK10: 1803127.873 | BL10: 352038.0514 | BM10: 0 | BN10: 0 | BO10: 0 | BP10: 0 | BQ10: 0 | BR10: 0 | BS10: =SUM(BF10:BR10) -> 9128654.911 | BU10: =SUM(BU4:BU9) -> 0 | BV10: 0 | BW10: 1305873.745 | BX10: 2642580.56 | BY10: 3025034.682 | BZ10: 1803127.873 | CA10: 352038.0514 | CB10: 0 | CC10: 0 | CD10: 0 | CE10: 0 | CF10: 0 | CG10: 0 | CJ10: =SUM(CJ4:CJ9) -> 0 | CK10: 0 | CL10: 0 | CM10: 0 | CN10: 0 | CO10: 0 | CP10: 0 | CQ10: 0 | CR10: 0 | CS10: 0 | CT10: 0 | CU10: 0 | CV10: 0 | CY10: =SUM(CY4:CY9) -> 0 | CZ10: 0 | DA10: -3434400 | DB10: -6974800 | DC10: -7987200 | DD10: -4690500 | DE10: -905300 | DF10: 0 | DG10: 0 | DH10: 0 | DI10: 0 | DJ10: 0 | DK10: 0 | DL10: -23992200 | DP10: =SUM(DP4:DP9) -> 0 | DQ10: 0 | DR10: -3434400 | DS10: -6974800 | DT10: -7987200 | DU10: -4690500 | DV10: -905300 | DW10: 0 | DX10: 0 | DY10: 0 | DZ10: 0 | EA10: 0 | EB10: 0 | EC10: -23992200 | EE10: 0 | EF10: =SUM(EF4:EF9) -> 0 | EG10: 0 | EH10: 0 | EI10: 0 | EJ10: 0 | EK10: 0 | EL10: 0 | EM10: 0 | EN10: 0 | EO10: 0 | EP10: 0 | EQ10: 0 | ER10: 0 | ES10: 0 | EU10: 0 | EV10: =SUM(EV4:EV9) -> 0 | EW10: 0 | EX10: 0 | EY10: 0 | EZ10: 0 | FA10: 0 | FB10: 0 | FC10: 0 | FD10: 0 | FE10: 0 | FF10: 0 | FG10: 0 | FH10: 0 | FI10: 0 | FK10: 0 | FL10: =SUM(FL4:FL9) -> 0 | FM10: 0 | FN10: 0 | FO10: 0 | FP10: 0 | FQ10: 0 | FR10: 0 | FS10: 0 | FT10: 0 | FU10: 0 | FV10: 0 | FW10: 0 | FX10: 0 | FY10: 0 | GB10: 0 | GC10: =SUM(GC4:GC9) -> 0 | GD10: 0 | GE10: 0 | GF10: 0 | GG10: 0 | GH10: 0 | GI10: 0 | GJ10: 0 | GK10: 0 | GL10: 0 | GM10: 0 | GN10: 0 | GO10: 0 | GP10: 0 | GS10: =SUM(GS4:GS9) -> 0 | GT10: 0 | GU10: 1195487.1 | GV10: 2423102.916 | GW10: 2774710.616 | GX10: 1629208.69 | GY10: 314382.0497 | GZ10: 0 | HA10: 0 | HB10: 0 | HC10: 0 | HD10: 0 | HE10: 0
K11: ÅRSVERK | EE11: 0 | EU11: 0 | FK11: 0 | GB11: 0
B12: Eksternt frikjøp | C12: Inntekter | D12: Lønn og sos. kostn. | E12: Overhead | F12: Totalt | G12: Årsv | H12: Finansiør | I12: Årslønn | J12: Navn | K12: =K3 -> 2024 | L12: 2025 | M12: 2026 | N12: 2027 | O12: 2028 | P12: 2029 | Q12: 2030 | R12: 2031 | S12: 2032 | T12: 2033 | U12: 2034 | V12: 2035 | W12: 2036 | AG12: Bruttolønn | AH12: inkl lønnsv. | AI12: Lønn | AJ12: Feriep | AK12: AGA | AL12: Pensjon | AM12: inkl sos.avg. | AN12: inkl. ind.kost. | AO12: Timesats | AR12: =K12 -> 2024 | AS12: 2025 | AT12: 2026 | AU12: 2027 | AV12: 2028 | AW12: 2029 | AX12: 2030 | AY12: 2031 | AZ12: 2032 | BA12: 2033 | BB12: 2034 | BC12: 2035 | BD12: 2036 | BF12: =AR12 -> 2024 | BG12: 2025 | BH12: 2026 | BI12: 2027 | BJ12: 2028 | BK12: 2029 | BL12: 2030 | BM12: 2031 | BN12: 2032 | BO12: 2033 | BP12: =BB12 -> 2034 | BQ12: 2035 | BR12: 2036 | BU12: =BF12 -> 2024 | BV12: 2025 | BW12: 2026 | BX12: 2027 | BY12: 2028 | BZ12: 2029 | CA12: 2030 | CB12: 2031 | CC12: 2032 | CD12: =BO12 -> 2033 | CE12: =BP12 -> 2034 | CF12: =BQ12 -> 2035 | CG12: =BR12 -> 2036 | CJ12: =CY12 -> 2024 | CK12: 2025 | CL12: 2026 | CM12: 2027 | CN12: 2028 | CO12: 2029 | CP12: 2030 | CQ12: 2031 | CR12: 2032 | CS12: 2033 | CT12: =DI12 -> 2034 | CU12: =DJ12 -> 2035 | CV12: =DK12 -> 2036 | CY12: =BU12 -> 2024 | CZ12: 2025 | DA12: 2026 | DB12: 2027 | DC12: 2028 | DD12: 2029 | DE12: 2030 | DF12: 2031 | DG12: 2032 | DH12: 2033 | DI12: =CE12 -> 2034 | DJ12: 2035 | DK12: 2036 | DL12: Totalt | DP12: =BU12 -> 2024 | DQ12: 2025 | DR12: 2026 | DS12: 2027 | DT12: 2028 | DU12: 2029 | DV12: 2030 | DW12: 2031 | DX12: 2032 | DY12: 2033 | DZ12: =CE12 -> 2034 | EA12: =CF12 -> 2035 | EB12: =CG12 -> 2036 | EC12: =EC3 -> Totalt | EE12: 0 | EF12: =EF3 -> 2024 | EG12: 2025 | EH12: 2026 | EI12: 2027 | EJ12: 2028 | EK12: 2029 | EL12: 2030 | EM12: 2031 | EN12: 2032 | EO12: 2033 | EP12: 2034 | EQ12: 2035 | ER12: 2036 | ES12: Totalt | EU12: 0 | EV12: =EV3 -> 2024 | EW12: 2025 | EX12: 2026 | EY12: 2027 | EZ12: 2028 | FA12: 2029 | FB12: 2030 | FC12: 2031 | FD12: 2032 | FE12: 2033 | FF12: 2034 | FG12: 2035 | FH12: 2036 | FI12: Totalt | FK12: 0 | FL12: =FL3 -> 2024 | FM12: 2025 | FN12: 2026 | FO12: 2027 | FP12: 2028 | FQ12: 2029 | FR12: 2030 | FS12: 2031 | FT12: 2032 | FU12: 2033 | FV12: 2034 | FW12: 2035 | FX12: 2036 | FY12: Totalt | GB12: 0 | GC12: =GC3 -> 2024 | GD12: 2025 | GE12: 2026 | GF12: 2027 | GG12: 2028 | GH12: 2029 | GI12: 2030 | GJ12: 2031 | GK12: 2032 | GL12: 2033 | GM12: 2034 | GN12: 2035 | GO12: 2036 | GP12: Totalt | GS12: =AR12 -> 2024 | GT12: 2025 | GU12: 2026 | GV12: 2027 | GW12: 2028 | GX12: 2029 | GY12: 2030 | GZ12: 2031 | HA12: 2032 | HB12: 2033 | HC12: =BB12 -> 2034 | HD12: =BC12 -> 2035 | HE12: =BD12 -> 2036
B13: Forsker - professor | C13: =IF(Registrering!$B$28="Fast beløp",0,IF(Registrering!$B$28="Sats for ekst. fin. overhead",0,DL13)) -> -620225 | D13: =SUM(AR13:BD13) -> 550000.4309 | E13: =IFERROR(SUM(BF13:BR13),0) -> 351328.7874 | F13: =SUM(D13:E13) -> 901329.2183 | G13: =SUM(K13:W13) -> 0.4 | H13: NFR | I13: 900000 | J13: Farid Ould-Saada | M13: =+(0.25)*0.1 -> 0.025 | N13: 0.1 | O13: 0.1 | P13: 0.1 | Q13: =+(9/12)*0.1 -> 0.075 | AG13: =I13 -> 900000 | AH13: =AG13*Tabeller!$I$35 -> 944100 | AI13: =IF(AG13>0,(AH13-400)/52*47,0) -> 852959.6154 | AJ13: =AI13*Tabeller!$H$26 -> 102355.1538 | AK13: =SUM(AI13:AJ13,AL13)*Tabeller!$H$28 -> 146680.0115 | AL13: =AH13*Tabeller!$H$27 -> 84969 | AM13: =SUM(AI13:AL13) -> 1186963.781 | AN13: =AM13+(IF(B13="Teknisk adm bistand",Registrering!$E$51,Registrering!$B$51)) -> 1651963.781 | AO13: =AN13/Tabeller!$H$5 -> 1014.719767 | AR13: =((K13*Budsjett!$AM13)) -> 0 | AS13: =((L13*Budsjett!$AM13)*(Tabeller!J$35)) -> 0 | AT13: =((M13*Budsjett!$AM13)*(Tabeller!K$35)) -> 31787.6319 | AU13: =((N13*Budsjett!$AM13)*(Tabeller!L$35)) -> 131600.7961 | AV13: =((O13*Budsjett!$AM13)*(Tabeller!M$35)) -> 136206.8239 | AW13: =((P13*Budsjett!$AM13)*(Tabeller!N$35)) -> 140974.0628 | AX13: =((Q13*Budsjett!$AM13)*(Tabeller!O$35)) -> 109431.1162 | AY13: =((R13*Budsjett!$AM13)*(Tabeller!P$35)) -> 0 | AZ13: =((S13*Budsjett!$AM13)*(Tabeller!Q$35)) -> 0 | BA13: =((T13*Budsjett!$AM13)*(Tabeller!R$35)) -> 0 | BB13: =((U13*Budsjett!$AM13)*(Tabeller!S$35)) -> 0 | BC13: =((V13*Budsjett!$AM13)*(Tabeller!T$35)) -> 0 | BD13: =((W13*Budsjett!$AM13)*(Tabeller!U$35)) -> 0 | BF13: =IFERROR(IF($E$71>$E$70,BU13,GS13),0) -> 0 | BG13: 0 | BH13: 20305.27531 | BI13: 84063.83978 | BJ13: 87006.07417 | BK13: 90051.28677 | BL13: 69902.31136 | BM13: 0 | BN13: 0 | BO13: 0 | BP13: 0 | BQ13: 0 | BR13: 0 | BU13: =IFERROR(IF($F$81=$M$81,AR13*$E$72,AR13*Budsjett!$E$73),0) -> 0 | BV13: =IFERROR(IF($F$81=$M$81,AS13*$E$72,AS13*Budsjett!$E$73),0) -> 0 | BW13: =IFERROR(IF($F$81=$M$81,AT13*$E$72,AT13*Budsjett!$E$73),0) -> 20305.27531 | BX13: =IFERROR(IF($F$81=$M$81,AU13*$E$72,AU13*Budsjett!$E$73),0) -> 84063.83978 | BY13: =IFERROR(IF($F$81=$M$81,AV13*$E$72,AV13*Budsjett!$E$73),0) -> 87006.07417 | BZ13: =IFERROR(IF($F$81=$M$81,AW13*$E$72,AW13*Budsjett!$E$73),0) -> 90051.28677 | CA13: =IFERROR(IF($F$81=$M$81,AX13*$E$72,AX13*Budsjett!$E$73),0) -> 69902.31136 | CB13: =IFERROR(IF($F$81=$M$81,AY13*$E$72,AY13*Budsjett!$E$73),0) -> 0 | CC13: =IFERROR(IF($F$81=$M$81,AZ13*$E$72,AZ13*Budsjett!$E$73),0) -> 0 | CD13: =IFERROR(IF($F$81=$M$81,BA13*$E$72,BA13*Budsjett!$E$73),0) -> 0 | CE13: =IFERROR(IF($F$81=$M$81,BB13*$E$72,BB13*Budsjett!$E$73),0) -> 0 | CF13: =IFERROR(IF($F$81=$M$81,BC13*$E$72,BC13*Budsjett!$E$73),0) -> 0 | CG13: =IFERROR(IF($F$81=$M$81,BD13*$E$72,BD13*Budsjett!$E$73),0) -> 0 | CJ13: =BF13-BU13 -> 0 | CK13: 0 | CL13: 0 | CM13: 0 | CN13: 0 | CO13: 0 | CP13: 0 | CQ13: 0 | CR13: 0 | CS13: =BO13-CD13 -> 0 | CT13: =BP13-CE13 -> 0 | CU13: =BQ13-CF13 -> 0 | CV13: =BR13-CG13 -> 0 | CX13: =B13 -> Forsker - professor | CY13: =-((IF($CX13="Teknisk/adm. bistand/Feltassistent",IF(Budsjett!AR13*(1+Tabeller!$I$62)>Tabeller!I$55,Tabeller!I$55,Budsjett!AR13*(1+Tabeller!$I$62)),0)+(IF($CX13="Forsker - professor",Tabeller!I$55*K13,0)+IF($CX13="Prosjektleder/adm.leder",Tabeller!I$54*K13,0)+IF($CX13="Forsker - 1.aman.",Tabeller!I$56*K13,0)+IF($CX13="Gjesteforsker",Tabeller!I$58*K13,0)+IF($CX13="Postdoktor / forsker",Tabeller!I$59*K13,0)+IF($CX13="Stipendiat",Tabeller!I$60*K13,0)+IF($CX13="Forsker (rundsum)",Tabeller!I$57*K13,0)+IF($CX13="Vit.ass",Tabeller!I$61*K13,0))/1)) -> 0 | CZ13: =-((IF($CX13="Teknisk/adm. bistand/Feltassistent",IF(Budsjett!AS13*(1+Tabeller!$I$62)>Tabeller!J$55,Tabeller!J$55,Budsjett!AS13*(1+Tabeller!$I$62)),0)+(IF($CX13="Forsker - professor",Tabeller!J$55*L13,0)+IF($CX13="Prosjektleder/adm.leder",Tabeller!J$54*L13,0)+IF($CX13="Forsker - 1.aman.",Tabeller!J$56*L13,0)+IF($CX13="Gjesteforsker",Tabeller!J$58*L13,0)+IF($CX13="Postdoktor / forsker",Tabeller!J$59*L13,0)+IF($CX13="Stipendiat",Tabeller!J$60*L13,0)+IF($CX13="Forsker (rundsum)",Tabeller!J$57*L13,0)+IF($CX13="Vit.ass",Tabeller!J$61*L13,0))/1)) -> 0 | DA13: =-((IF($CX13="Teknisk/adm. bistand/Feltassistent",IF(Budsjett!AT13*(1+Tabeller!$I$62)>Tabeller!K$55,Tabeller!K$55,Budsjett!AT13*(1+Tabeller!$I$62)),0)+(IF($CX13="Forsker - professor",Tabeller!K$55*M13,0)+IF($CX13="Prosjektleder/adm.leder",Tabeller!K$54*M13,0)+IF($CX13="Forsker - 1.aman.",Tabeller!K$56*M13,0)+IF($CX13="Gjesteforsker",Tabeller!K$58*M13,0)+IF($CX13="Postdoktor / forsker",Tabeller!K$59*M13,0)+IF($CX13="Stipendiat",Tabeller!K$60*M13,0)+IF($CX13="Forsker (rundsum)",Tabeller!K$57*M13,0)+IF($CX13="Vit.ass",Tabeller!K$61*M13,0))/1)) -> -35775 | DB13: =-((IF($CX13="Teknisk/adm. bistand/Feltassistent",IF(Budsjett!AU13*(1+Tabeller!$I$62)>Tabeller!L$55,Tabeller!L$55,Budsjett!AU13*(1+Tabeller!$I$62)),0)+(IF($CX13="Forsker - professor",Tabeller!L$55*N13,0)+IF($CX13="Prosjektleder/adm.leder",Tabeller!L$54*N13,0)+IF($CX13="Forsker - 1.aman.",Tabeller!L$56*N13,0)+IF($CX13="Gjesteforsker",Tabeller!L$58*N13,0)+IF($CX13="Postdoktor / forsker",Tabeller!L$59*N13,0)+IF($CX13="Stipendiat",Tabeller!L$60*N13,0)+IF($CX13="Forsker (rundsum)",Tabeller!L$57*N13,0)+IF($CX13="Vit.ass",Tabeller!L$61*N13,0))/1)) -> -148400 | DC13: =-((IF($CX13="Teknisk/adm. bistand/Feltassistent",IF(Budsjett!AV13*(1+Tabeller!$I$62)>Tabeller!M$55,Tabeller!M$55,Budsjett!AV13*(1+Tabeller!$I$62)),0)+(IF($CX13="Forsker - professor",Tabeller!M$55*O13,0)+IF($CX13="Prosjektleder/adm.leder",Tabeller!M$54*O13,0)+IF($CX13="Forsker - 1.aman.",Tabeller!M$56*O13,0)+IF($CX13="Gjesteforsker",Tabeller!M$58*O13,0)+IF($CX13="Postdoktor / forsker",Tabeller!M$59*O13,0)+IF($CX13="Stipendiat",Tabeller!M$60*O13,0)+IF($CX13="Forsker (rundsum)",Tabeller!M$57*O13,0)+IF($CX13="Vit.ass",Tabeller!M$61*O13,0))/1)) -> -153600 | DD13: =-((IF($CX13="Teknisk/adm. bistand/Feltassistent",IF(Budsjett!AW13*(1+Tabeller!$I$62)>Tabeller!N$55,Tabeller!N$55,Budsjett!AW13*(1+Tabeller!$I$62)),0)+(IF($CX13="Forsker - professor",Tabeller!N$55*P13,0)+IF($CX13="Prosjektleder/adm.leder",Tabeller!N$54*P13,0)+IF($CX13="Forsker - 1.aman.",Tabeller!N$56*P13,0)+IF($CX13="Gjesteforsker",Tabeller!N$58*P13,0)+IF($CX13="Postdoktor / forsker",Tabeller!N$59*P13,0)+IF($CX13="Stipendiat",Tabeller!N$60*P13,0)+IF($CX13="Forsker (rundsum)",Tabeller!N$57*P13,0)+IF($CX13="Vit.ass",Tabeller!N$61*P13,0))/1)) -> -159000 | DE13: =-((IF($CX13="Teknisk/adm. bistand/Feltassistent",IF(Budsjett!AX13*(1+Tabeller!$I$62)>Tabeller!O$55,Tabeller!O$55,Budsjett!AX13*(1+Tabeller!$I$62)),0)+(IF($CX13="Forsker - professor",Tabeller!O$55*Q13,0)+IF($CX13="Prosjektleder/adm.leder",Tabeller!O$54*Q13,0)+IF($CX13="Forsker - 1.aman.",Tabeller!O$56*Q13,0)+IF($CX13="Gjesteforsker",Tabeller!O$58*Q13,0)+IF($CX13="Postdoktor / forsker",Tabeller!O$59*Q13,0)+IF($CX13="Stipendiat",Tabeller!O$60*Q13,0)+IF($CX13="Forsker (rundsum)",Tabeller!O$57*Q13,0)+IF($CX13="Vit.ass",Tabeller!O$61*Q13,0))/1)) -> -123450 | DF13: =-((IF($CX13="Teknisk/adm. bistand/Feltassistent",IF(Budsjett!AY13*(1+Tabeller!$I$62)>Tabeller!P$55,Tabeller!P$55,Budsjett!AY13*(1+Tabeller!$I$62)),0)+(IF($CX13="Forsker - professor",Tabeller!P$55*R13,0)+IF($CX13="Prosjektleder/adm.leder",Tabeller!P$54*R13,0)+IF($CX13="Forsker - 1.aman.",Tabeller!P$56*R13,0)+IF($CX13="Gjesteforsker",Tabeller!P$58*R13,0)+IF($CX13="Postdoktor / forsker",Tabeller!P$59*R13,0)+IF($CX13="Stipendiat",Tabeller!P$60*R13,0)+IF($CX13="Forsker (rundsum)",Tabeller!P$57*R13,0)+IF($CX13="Vit.ass",Tabeller!P$61*R13,0))/1)) -> 0 | DG13: =-((IF($CX13="Teknisk/adm. bistand/Feltassistent",IF(Budsjett!AZ13*(1+Tabeller!$I$62)>Tabeller!Q$55,Tabeller!Q$55,Budsjett!AZ13*(1+Tabeller!$I$62)),0)+(IF($CX13="Forsker - professor",Tabeller!Q$55*S13,0)+IF($CX13="Prosjektleder/adm.leder",Tabeller!Q$54*S13,0)+IF($CX13="Forsker - 1.aman.",Tabeller!Q$56*S13,0)+IF($CX13="Gjesteforsker",Tabeller!Q$58*S13,0)+IF($CX13="Postdoktor / forsker",Tabeller!Q$59*S13,0)+IF($CX13="Stipendiat",Tabeller!Q$60*S13,0)+IF($CX13="Forsker (rundsum)",Tabeller!Q$57*S13,0)+IF($CX13="Vit.ass",Tabeller!Q$61*S13,0))/1)) -> 0 | DH13: =-((IF($CX13="Teknisk/adm. bistand/Feltassistent",IF(Budsjett!BA13*(1+Tabeller!$I$62)>Tabeller!R$55,Tabeller!R$55,Budsjett!BA13*(1+Tabeller!$I$62)),0)+(IF($CX13="Forsker - professor",Tabeller!R$55*T13,0)+IF($CX13="Prosjektleder/adm.leder",Tabeller!R$54*T13,0)+IF($CX13="Forsker - 1.aman.",Tabeller!R$56*T13,0)+IF($CX13="Gjesteforsker",Tabeller!R$58*T13,0)+IF($CX13="Postdoktor / forsker",Tabeller!R$59*T13,0)+IF($CX13="Stipendiat",Tabeller!R$60*T13,0)+IF($CX13="Forsker (rundsum)",Tabeller!R$57*T13,0)+IF($CX13="Vit.ass",Tabeller!R$61*T13,0))/1)) -> 0 | DI13: =-((IF($CX13="Teknisk/adm. bistand/Feltassistent",IF(Budsjett!BB13*(1+Tabeller!$I$62)>Tabeller!S$55,Tabeller!S$55,Budsjett!BB13*(1+Tabeller!$I$62)),0)+(IF($CX13="Forsker - professor",Tabeller!S$55*U13,0)+IF($CX13="Prosjektleder/adm.leder",Tabeller!S$54*U13,0)+IF($CX13="Forsker - 1.aman.",Tabeller!S$56*U13,0)+IF($CX13="Gjesteforsker",Tabeller!S$58*U13,0)+IF($CX13="Postdoktor / forsker",Tabeller!S$59*U13,0)+IF($CX13="Stipendiat",Tabeller!S$60*U13,0)+IF($CX13="Forsker (rundsum)",Tabeller!S$57*U13,0)+IF($CX13="Vit.ass",Tabeller!S$61*U13,0))/1)) -> 0 | DJ13: =-((IF($CX13="Teknisk/adm. bistand/Feltassistent",IF(Budsjett!BC13*(1+Tabeller!$I$62)>Tabeller!T$55,Tabeller!T$55,Budsjett!BC13*(1+Tabeller!$I$62)),0)+(IF($CX13="Forsker - professor",Tabeller!T$55*V13,0)+IF($CX13="Prosjektleder/adm.leder",Tabeller!T$54*V13,0)+IF($CX13="Forsker - 1.aman.",Tabeller!T$56*V13,0)+IF($CX13="Gjesteforsker",Tabeller!T$58*V13,0)+IF($CX13="Postdoktor / forsker",Tabeller!T$59*V13,0)+IF($CX13="Stipendiat",Tabeller!T$60*V13,0)+IF($CX13="Forsker (rundsum)",Tabeller!T$57*V13,0)+IF($CX13="Vit.ass",Tabeller!T$61*V13,0))/1)) -> 0 | DK13: =-((IF($CX13="Teknisk/adm. bistand/Feltassistent",IF(Budsjett!BD13*(1+Tabeller!$I$62)>Tabeller!U$55,Tabeller!U$55,Budsjett!BD13*(1+Tabeller!$I$62)),0)+(IF($CX13="Forsker - professor",Tabeller!U$55*W13,0)+IF($CX13="Prosjektleder/adm.leder",Tabeller!U$54*W13,0)+IF($CX13="Forsker - 1.aman.",Tabeller!U$56*W13,0)+IF($CX13="Gjesteforsker",Tabeller!U$58*W13,0)+IF($CX13="Postdoktor / forsker",Tabeller!U$59*W13,0)+IF($CX13="Stipendiat",Tabeller!U$60*W13,0)+IF($CX13="Forsker (rundsum)",Tabeller!U$57*W13,0)+IF($CX13="Vit.ass",Tabeller!U$61*W13,0))/1)) -> 0 | DL13: =SUM(CY13:DK13) -> -620225 | DO13: =CX13 -> Forsker - professor | DP13: =IF($H13="NFR",CY13,0) -> 0 | DQ13: 0 | DR13: -35775 | DS13: -148400 | DT13: -153600 | DU13: -159000 | DV13: -123450 | DW13: 0 | DX13: 0 | DY13: 0 | DZ13: =IF($H13="NFR",DI13,0) -> 0 | EA13: =IF($H13="NFR",DJ13,0) -> 0 | EB13: =IF($H13="NFR",DK13,0) -> 0 | EC13: =SUM(DP13:EB13) -> -620225 | EE13: Forsker - professor | EF13: =IF($H13=$EE$1,CY13,0) -> 0 | EG13: 0 | EH13: 0 | EI13: 0 | EJ13: 0 | EK13: 0 | EL13: 0 | EM13: 0 | EN13: 0 | EO13: 0 | EP13: 0 | EQ13: 0 | ER13: 0 | ES13: =SUM(EF13:ER13) -> 0 | EU13: Forsker - professor | EV13: =IF($H13=$EU$1,CY13,0) -> 0 | EW13: 0 | EX13: 0 | EY13: 0 | EZ13: 0 | FA13: 0 | FB13: 0 | FC13: 0 | FD13: 0 | FE13: 0 | FF13: 0 | FG13: 0 | FH13: 0 | FI13: =SUM(EV13:FH13) -> 0 | FK13: Forsker - professor | FL13: =IF($H13=$FK$1,CY13,0) -> 0 | FM13: 0 | FN13: 0 | FO13: 0 | FP13: 0 | FQ13: 0 | FR13: 0 | FS13: 0 | FT13: 0 | FU13: 0 | FV13: 0 | FW13: 0 | FX13: 0 | FY13: =SUM(FL13:FX13) -> 0 | GB13: Forsker - professor | GP13: =SUM(GC13:GO13) -> 0 | GS13: =IF(Registrering!$B$29="Prosjekter som foregår i UiOs lokaler",IF($B13="Teknisk/adm. bistand/Feltassistent",K13*Tabeller!J$11,K13*Tabeller!J$10),IF($B13="Teknisk/adm. bistand/Feltassistent",K13*Tabeller!J$13,K13*Tabeller!J$12)) -> 0 | GT13: =IF(Registrering!$B$29="Prosjekter som foregår i UiOs lokaler",IF($B13="Teknisk/adm. bistand/Feltassistent",L13*Tabeller!K$11,L13*Tabeller!K$10),IF($B13="Teknisk/adm. bistand/Feltassistent",L13*Tabeller!K$13,L13*Tabeller!K$12)) -> 0 | GU13: =IF(Registrering!$B$29="Prosjekter som foregår i UiOs lokaler",IF($B13="Teknisk/adm. bistand/Feltassistent",M13*Tabeller!L$11,M13*Tabeller!L$10),IF($B13="Teknisk/adm. bistand/Feltassistent",M13*Tabeller!L$13,M13*Tabeller!L$12)) -> 12452.99062 | GV13: =IF(Registrering!$B$29="Prosjekter som foregår i UiOs lokaler",IF($B13="Teknisk/adm. bistand/Feltassistent",N13*Tabeller!M$11,N13*Tabeller!M$10),IF($B13="Teknisk/adm. bistand/Feltassistent",N13*Tabeller!M$13,N13*Tabeller!M$12)) -> 51555.38119 | GW13: =IF(Registrering!$B$29="Prosjekter som foregår i UiOs lokaler",IF($B13="Teknisk/adm. bistand/Feltassistent",O13*Tabeller!N$11,O13*Tabeller!N$10),IF($B13="Teknisk/adm. bistand/Feltassistent",O13*Tabeller!N$13,O13*Tabeller!N$12)) -> 53359.81953 | GX13: =IF(Registrering!$B$29="Prosjekter som foregår i UiOs lokaler",IF($B13="Teknisk/adm. bistand/Feltassistent",P13*Tabeller!O$11,P13*Tabeller!O$10),IF($B13="Teknisk/adm. bistand/Feltassistent",P13*Tabeller!O$13,P13*Tabeller!O$12)) -> 55227.41321 | GY13: =IF(Registrering!$B$29="Prosjekter som foregår i UiOs lokaler",IF($B13="Teknisk/adm. bistand/Feltassistent",Q13*Tabeller!P$11,Q13*Tabeller!P$10),IF($B13="Teknisk/adm. bistand/Feltassistent",Q13*Tabeller!P$13,Q13*Tabeller!P$12)) -> 42870.27951 | GZ13: =IF(Registrering!$B$29="Prosjekter som foregår i UiOs lokaler",IF($B13="Teknisk/adm. bistand/Feltassistent",R13*Tabeller!Q$11,R13*Tabeller!Q$10),IF($B13="Teknisk/adm. bistand/Feltassistent",R13*Tabeller!Q$13,R13*Tabeller!Q$12)) -> 0 | HA13: =IF(Registrering!$B$29="Prosjekter som foregår i UiOs lokaler",IF($B13="Teknisk/adm. bistand/Feltassistent",S13*Tabeller!R$11,S13*Tabeller!R$10),IF($B13="Teknisk/adm. bistand/Feltassistent",S13*Tabeller!R$13,S13*Tabeller!R$12)) -> 0 | HB13: =IF(Registrering!$B$29="Prosjekter som foregår i UiOs lokaler",IF($B13="Teknisk/adm. bistand/Feltassistent",T13*Tabeller!S$11,T13*Tabeller!S$10),IF($B13="Teknisk/adm. bistand/Feltassistent",T13*Tabeller!S$13,T13*Tabeller!S$12)) -> 0 | HC13: =IF(Registrering!$B$29="Prosjekter som foregår i UiOs lokaler",IF($B13="Teknisk/adm. bistand/Feltassistent",U13*Tabeller!T$11,U13*Tabeller!T$10),IF($B13="Teknisk/adm. bistand/Feltassistent",U13*Tabeller!T$13,U13*Tabeller!T$12)) -> 0 | HD13: =IF(Registrering!$B$29="Prosjekter som foregår i UiOs lokaler",IF($B13="Teknisk/adm. bistand/Feltassistent",V13*Tabeller!U$11,V13*Tabeller!U$10),IF($B13="Teknisk/adm. bistand/Feltassistent",V13*Tabeller!U$13,V13*Tabeller!U$12)) -> 0 | HE13: =IF(Registrering!$B$29="Prosjekter som foregår i UiOs lokaler",IF($B13="Teknisk/adm. bistand/Feltassistent",W13*Tabeller!V$11,W13*Tabeller!V$10),IF($B13="Teknisk/adm. bistand/Feltassistent",W13*Tabeller!V$13,W13*Tabeller!V$12)) -> 0
B14: Forsker - professor | C14: =IF(Registrering!$B$28="Fast beløp",0,IF(Registrering!$B$28="Sats for ekst. fin. overhead",0,DL14)) -> -310112.5 | D14: =SUM(AR14:BD14) -> 275000.2154 | E14: =IFERROR(SUM(BF14:BR14),0) -> 175664.3937 | F14: 450664.6091 | G14: =SUM(K14:W14) -> 0.2 | H14: NFR | I14: 900000 | J14: Alexander Read | M14: =+(0.25)*0.05 -> 0.0125 | N14: 0.05 | O14: 0.05 | P14: 0.05 | Q14: =+(9/12)*0.05 -> 0.0375 | AG14: =I14 -> 900000 | AH14: =AG14*Tabeller!$I$35 -> 944100 | AI14: =IF(AG14>0,(AH14-400)/52*47,0) -> 852959.6154 | AJ14: =AI14*Tabeller!$H$26 -> 102355.1538 | AK14: =SUM(AI14:AJ14,AL14)*Tabeller!$H$28 -> 146680.0115 | AL14: =AH14*Tabeller!$H$27 -> 84969 | AM14: =SUM(AI14:AL14) -> 1186963.781 | AN14: =AM14+(IF(B14="Teknisk adm bistand",Registrering!$E$51,Registrering!$B$51)) -> 1651963.781 | AO14: =AN14/Tabeller!$H$5 -> 1014.719767 | AR14: =((K14*Budsjett!$AM14)) -> 0 | AS14: =((L14*Budsjett!$AM14)*(Tabeller!J$35)) -> 0 | AT14: =((M14*Budsjett!$AM14)*(Tabeller!K$35)) -> 15893.81595 | AU14: =((N14*Budsjett!$AM14)*(Tabeller!L$35)) -> 65800.39803 | AV14: =((O14*Budsjett!$AM14)*(Tabeller!M$35)) -> 68103.41196 | AW14: =((P14*Budsjett!$AM14)*(Tabeller!N$35)) -> 70487.03138 | AX14: =((Q14*Budsjett!$AM14)*(Tabeller!O$35)) -> 54715.55811 | AY14: =((R14*Budsjett!$AM14)*(Tabeller!P$35)) -> 0 | AZ14: =((S14*Budsjett!$AM14)*(Tabeller!Q$35)) -> 0 | BA14: =((T14*Budsjett!$AM14)*(Tabeller!R$35)) -> 0 | BB14: =((U14*Budsjett!$AM14)*(Tabeller!S$35)) -> 0 | BC14: =((V14*Budsjett!$AM14)*(Tabeller!T$35)) -> 0 | BD14: =((W14*Budsjett!$AM14)*(Tabeller!U$35)) -> 0 | BF14: 0 | BG14: 0 | BH14: 10152.63765 | BI14: 42031.91989 | BJ14: 43503.03709 | BK14: 45025.64339 | BL14: 34951.15568 | BM14: 0 | BN14: 0 | BO14: 0 | BP14: 0 | BQ14: 0 | BR14: 0 | BU14: =IFERROR(IF($F$81=$M$81,AR14*$E$72,AR14*Budsjett!$E$73),0) -> 0 | BV14: =IFERROR(IF($F$81=$M$81,AS14*$E$72,AS14*Budsjett!$E$73),0) -> 0 | BW14: =IFERROR(IF($F$81=$M$81,AT14*$E$72,AT14*Budsjett!$E$73),0) -> 10152.63765 | BX14: =IFERROR(IF($F$81=$M$81,AU14*$E$72,AU14*Budsjett!$E$73),0) -> 42031.91989 | BY14: =IFERROR(IF($F$81=$M$81,AV14*$E$72,AV14*Budsjett!$E$73),0) -> 43503.03709 | BZ14: =IFERROR(IF($F$81=$M$81,AW14*$E$72,AW14*Budsjett!$E$73),0) -> 45025.64339 | CA14: =IFERROR(IF($F$81=$M$81,AX14*$E$72,AX14*Budsjett!$E$73),0) -> 34951.15568 | CB14: =IFERROR(IF($F$81=$M$81,AY14*$E$72,AY14*Budsjett!$E$73),0) -> 0 | CC14: =IFERROR(IF($F$81=$M$81,AZ14*$E$72,AZ14*Budsjett!$E$73),0) -> 0 | CD14: =IFERROR(IF($F$81=$M$81,BA14*$E$72,BA14*Budsjett!$E$73),0) -> 0 | CE14: =IFERROR(IF($F$81=$M$81,BB14*$E$72,BB14*Budsjett!$E$73),0) -> 0 | CF14: =IFERROR(IF($F$81=$M$81,BC14*$E$72,BC14*Budsjett!$E$73),0) -> 0 | CG14: =IFERROR(IF($F$81=$M$81,BD14*$E$72,BD14*Budsjett!$E$73),0) -> 0 | CJ14: 0 | CK14: 0 | CL14: 0 | CM14: 0 | CN14: 0 | CO14: 0 | CP14: 0 | CQ14: 0 | CR14: 0 | CS14: 0 | CT14: 0 | CU14: 0 | CV14: 0 | CX14: =B14 -> Forsker - professor | CY14: =-((IF($CX14="Teknisk/adm. bistand/Feltassistent",IF(Budsjett!AR14*(1+Tabeller!$I$62)>Tabeller!I$55,Tabeller!I$55,Budsjett!AR14*(1+Tabeller!$I$62)),0)+(IF($CX14="Forsker - professor",Tabeller!I$55*K14,0)+IF($CX14="Prosjektleder/adm.leder",Tabeller!I$54*K14,0)+IF($CX14="Forsker - 1.aman.",Tabeller!I$56*K14,0)+IF($CX14="Gjesteforsker",Tabeller!I$58*K14,0)+IF($CX14="Postdoktor / forsker",Tabeller!I$59*K14,0)+IF($CX14="Stipendiat",Tabeller!I$60*K14,0)+IF($CX14="Forsker (rundsum)",Tabeller!I$57*K14,0)+IF($CX14="Vit.ass",Tabeller!I$61*K14,0))/1)) -> 0 | CZ14: =-((IF($CX14="Teknisk/adm. bistand/Feltassistent",IF(Budsjett!AS14*(1+Tabeller!$I$62)>Tabeller!J$55,Tabeller!J$55,Budsjett!AS14*(1+Tabeller!$I$62)),0)+(IF($CX14="Forsker - professor",Tabeller!J$55*L14,0)+IF($CX14="Prosjektleder/adm.leder",Tabeller!J$54*L14,0)+IF($CX14="Forsker - 1.aman.",Tabeller!J$56*L14,0)+IF($CX14="Gjesteforsker",Tabeller!J$58*L14,0)+IF($CX14="Postdoktor / forsker",Tabeller!J$59*L14,0)+IF($CX14="Stipendiat",Tabeller!J$60*L14,0)+IF($CX14="Forsker (rundsum)",Tabeller!J$57*L14,0)+IF($CX14="Vit.ass",Tabeller!J$61*L14,0))/1)) -> 0 | DA14: =-((IF($CX14="Teknisk/adm. bistand/Feltassistent",IF(Budsjett!AT14*(1+Tabeller!$I$62)>Tabeller!K$55,Tabeller!K$55,Budsjett!AT14*(1+Tabeller!$I$62)),0)+(IF($CX14="Forsker - professor",Tabeller!K$55*M14,0)+IF($CX14="Prosjektleder/adm.leder",Tabeller!K$54*M14,0)+IF($CX14="Forsker - 1.aman.",Tabeller!K$56*M14,0)+IF($CX14="Gjesteforsker",Tabeller!K$58*M14,0)+IF($CX14="Postdoktor / forsker",Tabeller!K$59*M14,0)+IF($CX14="Stipendiat",Tabeller!K$60*M14,0)+IF($CX14="Forsker (rundsum)",Tabeller!K$57*M14,0)+IF($CX14="Vit.ass",Tabeller!K$61*M14,0))/1)) -> -17887.5 | DB14: =-((IF($CX14="Teknisk/adm. bistand/Feltassistent",IF(Budsjett!AU14*(1+Tabeller!$I$62)>Tabeller!L$55,Tabeller!L$55,Budsjett!AU14*(1+Tabeller!$I$62)),0)+(IF($CX14="Forsker - professor",Tabeller!L$55*N14,0)+IF($CX14="Prosjektleder/adm.leder",Tabeller!L$54*N14,0)+IF($CX14="Forsker - 1.aman.",Tabeller!L$56*N14,0)+IF($CX14="Gjesteforsker",Tabeller!L$58*N14,0)+IF($CX14="Postdoktor / forsker",Tabeller!L$59*N14,0)+IF($CX14="Stipendiat",Tabeller!L$60*N14,0)+IF($CX14="Forsker (rundsum)",Tabeller!L$57*N14,0)+IF($CX14="Vit.ass",Tabeller!L$61*N14,0))/1)) -> -74200 | DC14: =-((IF($CX14="Teknisk/adm. bistand/Feltassistent",IF(Budsjett!AV14*(1+Tabeller!$I$62)>Tabeller!M$55,Tabeller!M$55,Budsjett!AV14*(1+Tabeller!$I$62)),0)+(IF($CX14="Forsker - professor",Tabeller!M$55*O14,0)+IF($CX14="Prosjektleder/adm.leder",Tabeller!M$54*O14,0)+IF($CX14="Forsker - 1.aman.",Tabeller!M$56*O14,0)+IF($CX14="Gjesteforsker",Tabeller!M$58*O14,0)+IF($CX14="Postdoktor / forsker",Tabeller!M$59*O14,0)+IF($CX14="Stipendiat",Tabeller!M$60*O14,0)+IF($CX14="Forsker (rundsum)",Tabeller!M$57*O14,0)+IF($CX14="Vit.ass",Tabeller!M$61*O14,0))/1)) -> -76800 | DD14: =-((IF($CX14="Teknisk/adm. bistand/Feltassistent",IF(Budsjett!AW14*(1+Tabeller!$I$62)>Tabeller!N$55,Tabeller!N$55,Budsjett!AW14*(1+Tabeller!$I$62)),0)+(IF($CX14="Forsker - professor",Tabeller!N$55*P14,0)+IF($CX14="Prosjektleder/adm.leder",Tabeller!N$54*P14,0)+IF($CX14="Forsker - 1.aman.",Tabeller!N$56*P14,0)+IF($CX14="Gjesteforsker",Tabeller!N$58*P14,0)+IF($CX14="Postdoktor / forsker",Tabeller!N$59*P14,0)+IF($CX14="Stipendiat",Tabeller!N$60*P14,0)+IF($CX14="Forsker (rundsum)",Tabeller!N$57*P14,0)+IF($CX14="Vit.ass",Tabeller!N$61*P14,0))/1)) -> -79500 | DE14: =-((IF($CX14="Teknisk/adm. bistand/Feltassistent",IF(Budsjett!AX14*(1+Tabeller!$I$62)>Tabeller!O$55,Tabeller!O$55,Budsjett!AX14*(1+Tabeller!$I$62)),0)+(IF($CX14="Forsker - professor",Tabeller!O$55*Q14,0)+IF($CX14="Prosjektleder/adm.leder",Tabeller!O$54*Q14,0)+IF($CX14="Forsker - 1.aman.",Tabeller!O$56*Q14,0)+IF($CX14="Gjesteforsker",Tabeller!O$58*Q14,0)+IF($CX14="Postdoktor / forsker",Tabeller!O$59*Q14,0)+IF($CX14="Stipendiat",Tabeller!O$60*Q14,0)+IF($CX14="Forsker (rundsum)",Tabeller!O$57*Q14,0)+IF($CX14="Vit.ass",Tabeller!O$61*Q14,0))/1)) -> -61725 | DF14: =-((IF($CX14="Teknisk/adm. bistand/Feltassistent",IF(Budsjett!AY14*(1+Tabeller!$I$62)>Tabeller!P$55,Tabeller!P$55,Budsjett!AY14*(1+Tabeller!$I$62)),0)+(IF($CX14="Forsker - professor",Tabeller!P$55*R14,0)+IF($CX14="Prosjektleder/adm.leder",Tabeller!P$54*R14,0)+IF($CX14="Forsker - 1.aman.",Tabeller!P$56*R14,0)+IF($CX14="Gjesteforsker",Tabeller!P$58*R14,0)+IF($CX14="Postdoktor / forsker",Tabeller!P$59*R14,0)+IF($CX14="Stipendiat",Tabeller!P$60*R14,0)+IF($CX14="Forsker (rundsum)",Tabeller!P$57*R14,0)+IF($CX14="Vit.ass",Tabeller!P$61*R14,0))/1)) -> 0 | DG14: =-((IF($CX14="Teknisk/adm. bistand/Feltassistent",IF(Budsjett!AZ14*(1+Tabeller!$I$62)>Tabeller!Q$55,Tabeller!Q$55,Budsjett!AZ14*(1+Tabeller!$I$62)),0)+(IF($CX14="Forsker - professor",Tabeller!Q$55*S14,0)+IF($CX14="Prosjektleder/adm.leder",Tabeller!Q$54*S14,0)+IF($CX14="Forsker - 1.aman.",Tabeller!Q$56*S14,0)+IF($CX14="Gjesteforsker",Tabeller!Q$58*S14,0)+IF($CX14="Postdoktor / forsker",Tabeller!Q$59*S14,0)+IF($CX14="Stipendiat",Tabeller!Q$60*S14,0)+IF($CX14="Forsker (rundsum)",Tabeller!Q$57*S14,0)+IF($CX14="Vit.ass",Tabeller!Q$61*S14,0))/1)) -> 0 | DH14: =-((IF($CX14="Teknisk/adm. bistand/Feltassistent",IF(Budsjett!BA14*(1+Tabeller!$I$62)>Tabeller!R$55,Tabeller!R$55,Budsjett!BA14*(1+Tabeller!$I$62)),0)+(IF($CX14="Forsker - professor",Tabeller!R$55*T14,0)+IF($CX14="Prosjektleder/adm.leder",Tabeller!R$54*T14,0)+IF($CX14="Forsker - 1.aman.",Tabeller!R$56*T14,0)+IF($CX14="Gjesteforsker",Tabeller!R$58*T14,0)+IF($CX14="Postdoktor / forsker",Tabeller!R$59*T14,0)+IF($CX14="Stipendiat",Tabeller!R$60*T14,0)+IF($CX14="Forsker (rundsum)",Tabeller!R$57*T14,0)+IF($CX14="Vit.ass",Tabeller!R$61*T14,0))/1)) -> 0 | DI14: =-((IF($CX14="Teknisk/adm. bistand/Feltassistent",IF(Budsjett!BB14*(1+Tabeller!$I$62)>Tabeller!S$55,Tabeller!S$55,Budsjett!BB14*(1+Tabeller!$I$62)),0)+(IF($CX14="Forsker - professor",Tabeller!S$55*U14,0)+IF($CX14="Prosjektleder/adm.leder",Tabeller!S$54*U14,0)+IF($CX14="Forsker - 1.aman.",Tabeller!S$56*U14,0)+IF($CX14="Gjesteforsker",Tabeller!S$58*U14,0)+IF($CX14="Postdoktor / forsker",Tabeller!S$59*U14,0)+IF($CX14="Stipendiat",Tabeller!S$60*U14,0)+IF($CX14="Forsker (rundsum)",Tabeller!S$57*U14,0)+IF($CX14="Vit.ass",Tabeller!S$61*U14,0))/1)) -> 0 | DJ14: =-((IF($CX14="Teknisk/adm. bistand/Feltassistent",IF(Budsjett!BC14*(1+Tabeller!$I$62)>Tabeller!T$55,Tabeller!T$55,Budsjett!BC14*(1+Tabeller!$I$62)),0)+(IF($CX14="Forsker - professor",Tabeller!T$55*V14,0)+IF($CX14="Prosjektleder/adm.leder",Tabeller!T$54*V14,0)+IF($CX14="Forsker - 1.aman.",Tabeller!T$56*V14,0)+IF($CX14="Gjesteforsker",Tabeller!T$58*V14,0)+IF($CX14="Postdoktor / forsker",Tabeller!T$59*V14,0)+IF($CX14="Stipendiat",Tabeller!T$60*V14,0)+IF($CX14="Forsker (rundsum)",Tabeller!T$57*V14,0)+IF($CX14="Vit.ass",Tabeller!T$61*V14,0))/1)) -> 0 | DK14: =-((IF($CX14="Teknisk/adm. bistand/Feltassistent",IF(Budsjett!BD14*(1+Tabeller!$I$62)>Tabeller!U$55,Tabeller!U$55,Budsjett!BD14*(1+Tabeller!$I$62)),0)+(IF($CX14="Forsker - professor",Tabeller!U$55*W14,0)+IF($CX14="Prosjektleder/adm.leder",Tabeller!U$54*W14,0)+IF($CX14="Forsker - 1.aman.",Tabeller!U$56*W14,0)+IF($CX14="Gjesteforsker",Tabeller!U$58*W14,0)+IF($CX14="Postdoktor / forsker",Tabeller!U$59*W14,0)+IF($CX14="Stipendiat",Tabeller!U$60*W14,0)+IF($CX14="Forsker (rundsum)",Tabeller!U$57*W14,0)+IF($CX14="Vit.ass",Tabeller!U$61*W14,0))/1)) -> 0 | DL14: -310112.5 | DO14: Forsker - professor | DP14: 0 | DQ14: 0 | DR14: -17887.5 | DS14: -74200 | DT14: -76800 | DU14: -79500 | DV14: -61725 | DW14: 0 | DX14: 0 | DY14: 0 | DZ14: 0 | EA14: 0 | EB14: 0 | EC14: -310112.5 | EE14: Forsker - professor | EF14: 0 | EG14: 0 | EH14: 0 | EI14: 0 | EJ14: 0 | EK14: 0 | EL14: 0 | EM14: 0 | EN14: 0 | EO14: 0 | EP14: 0 | EQ14: 0 | ER14: 0 | ES14: 0 | EU14: Forsker - professor | EV14: 0 | EW14: 0 | EX14: 0 | EY14: 0 | EZ14: 0 | FA14: 0 | FB14: 0 | FC14: 0 | FD14: 0 | FE14: 0 | FF14: 0 | FG14: 0 | FH14: 0 | FI14: 0 | FK14: Forsker - professor | FL14: 0 | FM14: 0 | FN14: 0 | FO14: 0 | FP14: 0 | FQ14: 0 | FR14: 0 | FS14: 0 | FT14: 0 | FU14: 0 | FV14: 0 | FW14: 0 | FX14: 0 | FY14: 0 | GB14: Forsker - professor | GP14: 0 | GS14: =IF(Registrering!$B$29="Prosjekter som foregår i UiOs lokaler",IF($B14="Teknisk/adm. bistand/Feltassistent",K14*Tabeller!J$11,K14*Tabeller!J$10),IF($B14="Teknisk/adm. bistand/Feltassistent",K14*Tabeller!J$13,K14*Tabeller!J$12)) -> 0 | GT14: =IF(Registrering!$B$29="Prosjekter som foregår i UiOs lokaler",IF($B14="Teknisk/adm. bistand/Feltassistent",L14*Tabeller!K$11,L14*Tabeller!K$10),IF($B14="Teknisk/adm. bistand/Feltassistent",L14*Tabeller!K$13,L14*Tabeller!K$12)) -> 0 | GU14: =IF(Registrering!$B$29="Prosjekter som foregår i UiOs lokaler",IF($B14="Teknisk/adm. bistand/Feltassistent",M14*Tabeller!L$11,M14*Tabeller!L$10),IF($B14="Teknisk/adm. bistand/Feltassistent",M14*Tabeller!L$13,M14*Tabeller!L$12)) -> 6226.495312 | GV14: =IF(Registrering!$B$29="Prosjekter som foregår i UiOs lokaler",IF($B14="Teknisk/adm. bistand/Feltassistent",N14*Tabeller!M$11,N14*Tabeller!M$10),IF($B14="Teknisk/adm. bistand/Feltassistent",N14*Tabeller!M$13,N14*Tabeller!M$12)) -> 25777.69059 | GW14: =IF(Registrering!$B$29="Prosjekter som foregår i UiOs lokaler",IF($B14="Teknisk/adm. bistand/Feltassistent",O14*Tabeller!N$11,O14*Tabeller!N$10),IF($B14="Teknisk/adm. bistand/Feltassistent",O14*Tabeller!N$13,O14*Tabeller!N$12)) -> 26679.90976 | GX14: =IF(Registrering!$B$29="Prosjekter som foregår i UiOs lokaler",IF($B14="Teknisk/adm. bistand/Feltassistent",P14*Tabeller!O$11,P14*Tabeller!O$10),IF($B14="Teknisk/adm. bistand/Feltassistent",P14*Tabeller!O$13,P14*Tabeller!O$12)) -> 27613.70661 | GY14: =IF(Registrering!$B$29="Prosjekter som foregår i UiOs lokaler",IF($B14="Teknisk/adm. bistand/Feltassistent",Q14*Tabeller!P$11,Q14*Tabeller!P$10),IF($B14="Teknisk/adm. bistand/Feltassistent",Q14*Tabeller!P$13,Q14*Tabeller!P$12)) -> 21435.13975 | GZ14: =IF(Registrering!$B$29="Prosjekter som foregår i UiOs lokaler",IF($B14="Teknisk/adm. bistand/Feltassistent",R14*Tabeller!Q$11,R14*Tabeller!Q$10),IF($B14="Teknisk/adm. bistand/Feltassistent",R14*Tabeller!Q$13,R14*Tabeller!Q$12)) -> 0 | HA14: =IF(Registrering!$B$29="Prosjekter som foregår i UiOs lokaler",IF($B14="Teknisk/adm. bistand/Feltassistent",S14*Tabeller!R$11,S14*Tabeller!R$10),IF($B14="Teknisk/adm. bistand/Feltassistent",S14*Tabeller!R$13,S14*Tabeller!R$12)) -> 0 | HB14: =IF(Registrering!$B$29="Prosjekter som foregår i UiOs lokaler",IF($B14="Teknisk/adm. bistand/Feltassistent",T14*Tabeller!S$11,T14*Tabeller!S$10),IF($B14="Teknisk/adm. bistand/Feltassistent",T14*Tabeller!S$13,T14*Tabeller!S$12)) -> 0 | HC14: =IF(Registrering!$B$29="Prosjekter som foregår i UiOs lokaler",IF($B14="Teknisk/adm. bistand/Feltassistent",U14*Tabeller!T$11,U14*Tabeller!T$10),IF($B14="Teknisk/adm. bistand/Feltassistent",U14*Tabeller!T$13,U14*Tabeller!T$12)) -> 0 | HD14: =IF(Registrering!$B$29="Prosjekter som foregår i UiOs lokaler",IF($B14="Teknisk/adm. bistand/Feltassistent",V14*Tabeller!U$11,V14*Tabeller!U$10),IF($B14="Teknisk/adm. bistand/Feltassistent",V14*Tabeller!U$13,V14*Tabeller!U$12)) -> 0 | HE14: =IF(Registrering!$B$29="Prosjekter som foregår i UiOs lokaler",IF($B14="Teknisk/adm. bistand/Feltassistent",W14*Tabeller!V$11,W14*Tabeller!V$10),IF($B14="Teknisk/adm. bistand/Feltassistent",W14*Tabeller!V$13,W14*Tabeller!V$12)) -> 0
B15: Postdoktor / Forsker | C15: =IF(Registrering!$B$28="Fast beløp",0,IF(Registrering!$B$28="Sats for ekst. fin. overhead",0,DL15)) -> -583000 | D15: 362191.4229 | E15: 231360.3158 | F15: 593551.7387 | G15: =SUM(K15:W15) -> 0.4 | H15: NFR | I15: 630000 | J15: N.N postdoc UiO | M15: 0.2 | N15: 0.2 | AG15: =I15 -> 630000 | AH15: =AG15*Tabeller!$I$35 -> 660870 | AI15: =IF(AG15>0,(AH15-400)/52*47,0) -> 596963.2692 | AJ15: =AI15*Tabeller!$H$26 -> 71635.59231 | AK15: =SUM(AI15:AJ15,AL15)*Tabeller!$H$28 -> 102658.8798 | AL15: =AH15*Tabeller!$H$27 -> 59478.3 | AM15: =SUM(AI15:AL15) -> 830736.0413 | AN15: =AM15+(IF(B15="Teknisk adm bistand",Registrering!$E$51,Registrering!$B$51)) -> 1295736.041 | AO15: =AN15/Tabeller!$H$5 -> 795.9066593 | AR15: =((K15*Budsjett!$AM15)) -> 0 | AS15: =((L15*Budsjett!$AM15)*(Tabeller!J$35)) -> 0 | AT15: =((M15*Budsjett!$AM15)*(Tabeller!K$35)) -> 177981.0432 | AU15: =((N15*Budsjett!$AM15)*(Tabeller!L$35)) -> 184210.3797 | AV15: =((O15*Budsjett!$AM15)*(Tabeller!M$35)) -> 0 | AW15: =((P15*Budsjett!$AM15)*(Tabeller!N$35)) -> 0 | AX15: =((Q15*Budsjett!$AM15)*(Tabeller!O$35)) -> 0 | AY15: =((R15*Budsjett!$AM15)*(Tabeller!P$35)) -> 0 | AZ15: =((S15*Budsjett!$AM15)*(Tabeller!Q$35)) -> 0 | BA15: =((T15*Budsjett!$AM15)*(Tabeller!R$35)) -> 0 | BB15: =((U15*Budsjett!$AM15)*(Tabeller!S$35)) -> 0 | BC15: =((V15*Budsjett!$AM15)*(Tabeller!T$35)) -> 0 | BD15: =((W15*Budsjett!$AM15)*(Tabeller!U$35)) -> 0 | BF15: 0 | BG15: 0 | BH15: 113690.5729 | BI15: 117669.7429 | BJ15: 0 | BK15: 0 | BL15: 0 | BM15: 0 | BN15: 0 | BO15: 0 | BP15: 0 | BQ15: 0 | BR15: 0 | BU15: =IFERROR(IF($F$81=$M$81,AR15*$E$72,AR15*Budsjett!$E$73),0) -> 0 | BV15: =IFERROR(IF($F$81=$M$81,AS15*$E$72,AS15*Budsjett!$E$73),0) -> 0 | BW15: =IFERROR(IF($F$81=$M$81,AT15*$E$72,AT15*Budsjett!$E$73),0) -> 113690.5729 | BX15: =IFERROR(IF($F$81=$M$81,AU15*$E$72,AU15*Budsjett!$E$73),0) -> 117669.7429 | BY15: =IFERROR(IF($F$81=$M$81,AV15*$E$72,AV15*Budsjett!$E$73),0) -> 0 | BZ15: =IFERROR(IF($F$81=$M$81,AW15*$E$72,AW15*Budsjett!$E$73),0) -> 0 | CA15: =IFERROR(IF($F$81=$M$81,AX15*$E$72,AX15*Budsjett!$E$73),0) -> 0 | CB15: =IFERROR(IF($F$81=$M$81,AY15*$E$72,AY15*Budsjett!$E$73),0) -> 0 | CC15: =IFERROR(IF($F$81=$M$81,AZ15*$E$72,AZ15*Budsjett!$E$73),0) -> 0 | CD15: =IFERROR(IF($F$81=$M$81,BA15*$E$72,BA15*Budsjett!$E$73),0) -> 0 | CE15: =IFERROR(IF($F$81=$M$81,BB15*$E$72,BB15*Budsjett!$E$73),0) -> 0 | CF15: =IFERROR(IF($F$81=$M$81,BC15*$E$72,BC15*Budsjett!$E$73),0) -> 0 | CG15: =IFERROR(IF($F$81=$M$81,BD15*$E$72,BD15*Budsjett!$E$73),0) -> 0 | CJ15: 0 | CK15: 0 | CL15: 0 | CM15: 0 | CN15: 0 | CO15: 0 | CP15: 0 | CQ15: 0 | CR15: 0 | CS15: 0 | CT15: 0 | CU15: 0 | CV15: 0 | CX15: =B15 -> Postdoktor / Forsker | CY15: =-((IF($CX15="Teknisk/adm. bistand/Feltassistent",IF(Budsjett!AR15*(1+Tabeller!$I$62)>Tabeller!I$55,Tabeller!I$55,Budsjett!AR15*(1+Tabeller!$I$62)),0)+(IF($CX15="Forsker - professor",Tabeller!I$55*K15,0)+IF($CX15="Prosjektleder/adm.leder",Tabeller!I$54*K15,0)+IF($CX15="Forsker - 1.aman.",Tabeller!I$56*K15,0)+IF($CX15="Gjesteforsker",Tabeller!I$58*K15,0)+IF($CX15="Postdoktor / forsker",Tabeller!I$59*K15,0)+IF($CX15="Stipendiat",Tabeller!I$60*K15,0)+IF($CX15="Forsker (rundsum)",Tabeller!I$57*K15,0)+IF($CX15="Vit.ass",Tabeller!I$61*K15,0))/1)) -> 0 | CZ15: =-((IF($CX15="Teknisk/adm. bistand/Feltassistent",IF(Budsjett!AS15*(1+Tabeller!$I$62)>Tabeller!J$55,Tabeller!J$55,Budsjett!AS15*(1+Tabeller!$I$62)),0)+(IF($CX15="Forsker - professor",Tabeller!J$55*L15,0)+IF($CX15="Prosjektleder/adm.leder",Tabeller!J$54*L15,0)+IF($CX15="Forsker - 1.aman.",Tabeller!J$56*L15,0)+IF($CX15="Gjesteforsker",Tabeller!J$58*L15,0)+IF($CX15="Postdoktor / forsker",Tabeller!J$59*L15,0)+IF($CX15="Stipendiat",Tabeller!J$60*L15,0)+IF($CX15="Forsker (rundsum)",Tabeller!J$57*L15,0)+IF($CX15="Vit.ass",Tabeller!J$61*L15,0))/1)) -> 0 | DA15: =-((IF($CX15="Teknisk/adm. bistand/Feltassistent",IF(Budsjett!AT15*(1+Tabeller!$I$62)>Tabeller!K$55,Tabeller!K$55,Budsjett!AT15*(1+Tabeller!$I$62)),0)+(IF($CX15="Forsker - professor",Tabeller!K$55*M15,0)+IF($CX15="Prosjektleder/adm.leder",Tabeller!K$54*M15,0)+IF($CX15="Forsker - 1.aman.",Tabeller!K$56*M15,0)+IF($CX15="Gjesteforsker",Tabeller!K$58*M15,0)+IF($CX15="Postdoktor / forsker",Tabeller!K$59*M15,0)+IF($CX15="Stipendiat",Tabeller!K$60*M15,0)+IF($CX15="Forsker (rundsum)",Tabeller!K$57*M15,0)+IF($CX15="Vit.ass",Tabeller!K$61*M15,0))/1)) -> -286200 | DB15: =-((IF($CX15="Teknisk/adm. bistand/Feltassistent",IF(Budsjett!AU15*(1+Tabeller!$I$62)>Tabeller!L$55,Tabeller!L$55,Budsjett!AU15*(1+Tabeller!$I$62)),0)+(IF($CX15="Forsker - professor",Tabeller!L$55*N15,0)+IF($CX15="Prosjektleder/adm.leder",Tabeller!L$54*N15,0)+IF($CX15="Forsker - 1.aman.",Tabeller!L$56*N15,0)+IF($CX15="Gjesteforsker",Tabeller!L$58*N15,0)+IF($CX15="Postdoktor / forsker",Tabeller!L$59*N15,0)+IF($CX15="Stipendiat",Tabeller!L$60*N15,0)+IF($CX15="Forsker (rundsum)",Tabeller!L$57*N15,0)+IF($CX15="Vit.ass",Tabeller!L$61*N15,0))/1)) -> -296800 | DC15: =-((IF($CX15="Teknisk/adm. bistand/Feltassistent",IF(Budsjett!AV15*(1+Tabeller!$I$62)>Tabeller!M$55,Tabeller!M$55,Budsjett!AV15*(1+Tabeller!$I$62)),0)+(IF($CX15="Forsker - professor",Tabeller!M$55*O15,0)+IF($CX15="Prosjektleder/adm.leder",Tabeller!M$54*O15,0)+IF($CX15="Forsker - 1.aman.",Tabeller!M$56*O15,0)+IF($CX15="Gjesteforsker",Tabeller!M$58*O15,0)+IF($CX15="Postdoktor / forsker",Tabeller!M$59*O15,0)+IF($CX15="Stipendiat",Tabeller!M$60*O15,0)+IF($CX15="Forsker (rundsum)",Tabeller!M$57*O15,0)+IF($CX15="Vit.ass",Tabeller!M$61*O15,0))/1)) -> 0 | DD15: =-((IF($CX15="Teknisk/adm. bistand/Feltassistent",IF(Budsjett!AW15*(1+Tabeller!$I$62)>Tabeller!N$55,Tabeller!N$55,Budsjett!AW15*(1+Tabeller!$I$62)),0)+(IF($CX15="Forsker - professor",Tabeller!N$55*P15,0)+IF($CX15="Prosjektleder/adm.leder",Tabeller!N$54*P15,0)+IF($CX15="Forsker - 1.aman.",Tabeller!N$56*P15,0)+IF($CX15="Gjesteforsker",Tabeller!N$58*P15,0)+IF($CX15="Postdoktor / forsker",Tabeller!N$59*P15,0)+IF($CX15="Stipendiat",Tabeller!N$60*P15,0)+IF($CX15="Forsker (rundsum)",Tabeller!N$57*P15,0)+IF($CX15="Vit.ass",Tabeller!N$61*P15,0))/1)) -> 0 | DE15: =-((IF($CX15="Teknisk/adm. bistand/Feltassistent",IF(Budsjett!AX15*(1+Tabeller!$I$62)>Tabeller!O$55,Tabeller!O$55,Budsjett!AX15*(1+Tabeller!$I$62)),0)+(IF($CX15="Forsker - professor",Tabeller!O$55*Q15,0)+IF($CX15="Prosjektleder/adm.leder",Tabeller!O$54*Q15,0)+IF($CX15="Forsker - 1.aman.",Tabeller!O$56*Q15,0)+IF($CX15="Gjesteforsker",Tabeller!O$58*Q15,0)+IF($CX15="Postdoktor / forsker",Tabeller!O$59*Q15,0)+IF($CX15="Stipendiat",Tabeller!O$60*Q15,0)+IF($CX15="Forsker (rundsum)",Tabeller!O$57*Q15,0)+IF($CX15="Vit.ass",Tabeller!O$61*Q15,0))/1)) -> 0 | DF15: =-((IF($CX15="Teknisk/adm. bistand/Feltassistent",IF(Budsjett!AY15*(1+Tabeller!$I$62)>Tabeller!P$55,Tabeller!P$55,Budsjett!AY15*(1+Tabeller!$I$62)),0)+(IF($CX15="Forsker - professor",Tabeller!P$55*R15,0)+IF($CX15="Prosjektleder/adm.leder",Tabeller!P$54*R15,0)+IF($CX15="Forsker - 1.aman.",Tabeller!P$56*R15,0)+IF($CX15="Gjesteforsker",Tabeller!P$58*R15,0)+IF($CX15="Postdoktor / forsker",Tabeller!P$59*R15,0)+IF($CX15="Stipendiat",Tabeller!P$60*R15,0)+IF($CX15="Forsker (rundsum)",Tabeller!P$57*R15,0)+IF($CX15="Vit.ass",Tabeller!P$61*R15,0))/1)) -> 0 | DG15: =-((IF($CX15="Teknisk/adm. bistand/Feltassistent",IF(Budsjett!AZ15*(1+Tabeller!$I$62)>Tabeller!Q$55,Tabeller!Q$55,Budsjett!AZ15*(1+Tabeller!$I$62)),0)+(IF($CX15="Forsker - professor",Tabeller!Q$55*S15,0)+IF($CX15="Prosjektleder/adm.leder",Tabeller!Q$54*S15,0)+IF($CX15="Forsker - 1.aman.",Tabeller!Q$56*S15,0)+IF($CX15="Gjesteforsker",Tabeller!Q$58*S15,0)+IF($CX15="Postdoktor / forsker",Tabeller!Q$59*S15,0)+IF($CX15="Stipendiat",Tabeller!Q$60*S15,0)+IF($CX15="Forsker (rundsum)",Tabeller!Q$57*S15,0)+IF($CX15="Vit.ass",Tabeller!Q$61*S15,0))/1)) -> 0 | DH15: =-((IF($CX15="Teknisk/adm. bistand/Feltassistent",IF(Budsjett!BA15*(1+Tabeller!$I$62)>Tabeller!R$55,Tabeller!R$55,Budsjett!BA15*(1+Tabeller!$I$62)),0)+(IF($CX15="Forsker - professor",Tabeller!R$55*T15,0)+IF($CX15="Prosjektleder/adm.leder",Tabeller!R$54*T15,0)+IF($CX15="Forsker - 1.aman.",Tabeller!R$56*T15,0)+IF($CX15="Gjesteforsker",Tabeller!R$58*T15,0)+IF($CX15="Postdoktor / forsker",Tabeller!R$59*T15,0)+IF($CX15="Stipendiat",Tabeller!R$60*T15,0)+IF($CX15="Forsker (rundsum)",Tabeller!R$57*T15,0)+IF($CX15="Vit.ass",Tabeller!R$61*T15,0))/1)) -> 0 | DI15: =-((IF($CX15="Teknisk/adm. bistand/Feltassistent",IF(Budsjett!BB15*(1+Tabeller!$I$62)>Tabeller!S$55,Tabeller!S$55,Budsjett!BB15*(1+Tabeller!$I$62)),0)+(IF($CX15="Forsker - professor",Tabeller!S$55*U15,0)+IF($CX15="Prosjektleder/adm.leder",Tabeller!S$54*U15,0)+IF($CX15="Forsker - 1.aman.",Tabeller!S$56*U15,0)+IF($CX15="Gjesteforsker",Tabeller!S$58*U15,0)+IF($CX15="Postdoktor / forsker",Tabeller!S$59*U15,0)+IF($CX15="Stipendiat",Tabeller!S$60*U15,0)+IF($CX15="Forsker (rundsum)",Tabeller!S$57*U15,0)+IF($CX15="Vit.ass",Tabeller!S$61*U15,0))/1)) -> 0 | DJ15: =-((IF($CX15="Teknisk/adm. bistand/Feltassistent",IF(Budsjett!BC15*(1+Tabeller!$I$62)>Tabeller!T$55,Tabeller!T$55,Budsjett!BC15*(1+Tabeller!$I$62)),0)+(IF($CX15="Forsker - professor",Tabeller!T$55*V15,0)+IF($CX15="Prosjektleder/adm.leder",Tabeller!T$54*V15,0)+IF($CX15="Forsker - 1.aman.",Tabeller!T$56*V15,0)+IF($CX15="Gjesteforsker",Tabeller!T$58*V15,0)+IF($CX15="Postdoktor / forsker",Tabeller!T$59*V15,0)+IF($CX15="Stipendiat",Tabeller!T$60*V15,0)+IF($CX15="Forsker (rundsum)",Tabeller!T$57*V15,0)+IF($CX15="Vit.ass",Tabeller!T$61*V15,0))/1)) -> 0 | DK15: =-((IF($CX15="Teknisk/adm. bistand/Feltassistent",IF(Budsjett!BD15*(1+Tabeller!$I$62)>Tabeller!U$55,Tabeller!U$55,Budsjett!BD15*(1+Tabeller!$I$62)),0)+(IF($CX15="Forsker - professor",Tabeller!U$55*W15,0)+IF($CX15="Prosjektleder/adm.leder",Tabeller!U$54*W15,0)+IF($CX15="Forsker - 1.aman.",Tabeller!U$56*W15,0)+IF($CX15="Gjesteforsker",Tabeller!U$58*W15,0)+IF($CX15="Postdoktor / forsker",Tabeller!U$59*W15,0)+IF($CX15="Stipendiat",Tabeller!U$60*W15,0)+IF($CX15="Forsker (rundsum)",Tabeller!U$57*W15,0)+IF($CX15="Vit.ass",Tabeller!U$61*W15,0))/1)) -> 0 | DL15: -583000 | DO15: Postdoktor / Forsker | DP15: 0 | DQ15: 0 | DR15: -286200 | DS15: -296800 | DT15: 0 | DU15: 0 | DV15: 0 | DW15: 0 | DX15: 0 | DY15: 0 | DZ15: 0 | EA15: 0 | EB15: 0 | EC15: -583000 | EE15: Postdoktor / Forsker | EF15: =IF($H15=$EE$1,CY15,0) -> 0 | EG15: =IF($H15=$EE$1,CZ15,0) -> 0 | EH15: =IF($H15=$EE$1,DA15,0) -> 0 | EI15: =IF($H15=$EE$1,DB15,0) -> 0 | EJ15: =IF($H15=$EE$1,DC15,0) -> 0 | EK15: =IF($H15=$EE$1,DD15,0) -> 0 | EL15: =IF($H15=$EE$1,DE15,0) -> 0 | EM15: =IF($H15=$EE$1,DF15,0) -> 0 | EN15: =IF($H15=$EE$1,DG15,0) -> 0 | EO15: =IF($H15=$EE$1,DH15,0) -> 0 | EP15: =IF($H15=$EE$1,DI15,0) -> 0 | EQ15: =IF($H15=$EE$1,DJ15,0) -> 0 | ER15: =IF($H15=$EE$1,DK15,0) -> 0 | ES15: =SUM(EF15:ER15) -> 0 | EU15: Postdoktor / Forsker | EV15: =IF($H15=$EU$1,CY15,0) -> 0 | EW15: =IF($H15=$EU$1,CZ15,0) -> 0 | EX15: =IF($H15=$EU$1,DA15,0) -> 0 | EY15: =IF($H15=$EU$1,DB15,0) -> 0 | EZ15: =IF($H15=$EU$1,DC15,0) -> 0 | FA15: =IF($H15=$EU$1,DD15,0) -> 0 | FB15: =IF($H15=$EU$1,DE15,0) -> 0 | FC15: =IF($H15=$EU$1,DF15,0) -> 0 | FD15: =IF($H15=$EU$1,DG15,0) -> 0 | FE15: =IF($H15=$EU$1,DH15,0) -> 0 | FF15: =IF($H15=$EU$1,DI15,0) -> 0 | FG15: =IF($H15=$EU$1,DJ15,0) -> 0 | FH15: =IF($H15=$EU$1,DK15,0) -> 0 | FI15: =SUM(EV15:FH15) -> 0 | FK15: Postdoktor / Forsker | FL15: =IF($H15=$FK$1,CY15,0) -> 0 | FM15: =IF($H15=$FK$1,CZ15,0) -> 0 | FN15: =IF($H15=$FK$1,DA15,0) -> 0 | FO15: =IF($H15=$FK$1,DB15,0) -> 0 | FP15: =IF($H15=$FK$1,DC15,0) -> 0 | FQ15: =IF($H15=$FK$1,DD15,0) -> 0 | FR15: =IF($H15=$FK$1,DE15,0) -> 0 | FS15: =IF($H15=$FK$1,DF15,0) -> 0 | FT15: =IF($H15=$FK$1,DG15,0) -> 0 | FU15: =IF($H15=$FK$1,DH15,0) -> 0 | FV15: =IF($H15=$FK$1,DI15,0) -> 0 | FW15: =IF($H15=$FK$1,DJ15,0) -> 0 | FX15: =IF($H15=$FK$1,DK15,0) -> 0 | FY15: =SUM(FL15:FX15) -> 0 | GB15: Postdoktor / Forsker | GP15: =SUM(GC15:GO15) -> 0 | GS15: =IF(Registrering!$B$29="Prosjekter som foregår i UiOs lokaler",IF($B15="Teknisk/adm. bistand/Feltassistent",K15*Tabeller!J$11,K15*Tabeller!J$10),IF($B15="Teknisk/adm. bistand/Feltassistent",K15*Tabeller!J$13,K15*Tabeller!J$12)) -> 0 | GT15: =IF(Registrering!$B$29="Prosjekter som foregår i UiOs lokaler",IF($B15="Teknisk/adm. bistand/Feltassistent",L15*Tabeller!K$11,L15*Tabeller!K$10),IF($B15="Teknisk/adm. bistand/Feltassistent",L15*Tabeller!K$13,L15*Tabeller!K$12)) -> 0 | GU15: =IF(Registrering!$B$29="Prosjekter som foregår i UiOs lokaler",IF($B15="Teknisk/adm. bistand/Feltassistent",M15*Tabeller!L$11,M15*Tabeller!L$10),IF($B15="Teknisk/adm. bistand/Feltassistent",M15*Tabeller!L$13,M15*Tabeller!L$12)) -> 99623.925 | GV15: =IF(Registrering!$B$29="Prosjekter som foregår i UiOs lokaler",IF($B15="Teknisk/adm. bistand/Feltassistent",N15*Tabeller!M$11,N15*Tabeller!M$10),IF($B15="Teknisk/adm. bistand/Feltassistent",N15*Tabeller!M$13,N15*Tabeller!M$12)) -> 103110.7624 | GW15: =IF(Registrering!$B$29="Prosjekter som foregår i UiOs lokaler",IF($B15="Teknisk/adm. bistand/Feltassistent",O15*Tabeller!N$11,O15*Tabeller!N$10),IF($B15="Teknisk/adm. bistand/Feltassistent",O15*Tabeller!N$13,O15*Tabeller!N$12)) -> 0 | GX15: =IF(Registrering!$B$29="Prosjekter som foregår i UiOs lokaler",IF($B15="Teknisk/adm. bistand/Feltassistent",P15*Tabeller!O$11,P15*Tabeller!O$10),IF($B15="Teknisk/adm. bistand/Feltassistent",P15*Tabeller!O$13,P15*Tabeller!O$12)) -> 0 | GY15: =IF(Registrering!$B$29="Prosjekter som foregår i UiOs lokaler",IF($B15="Teknisk/adm. bistand/Feltassistent",Q15*Tabeller!P$11,Q15*Tabeller!P$10),IF($B15="Teknisk/adm. bistand/Feltassistent",Q15*Tabeller!P$13,Q15*Tabeller!P$12)) -> 0 | GZ15: =IF(Registrering!$B$29="Prosjekter som foregår i UiOs lokaler",IF($B15="Teknisk/adm. bistand/Feltassistent",R15*Tabeller!Q$11,R15*Tabeller!Q$10),IF($B15="Teknisk/adm. bistand/Feltassistent",R15*Tabeller!Q$13,R15*Tabeller!Q$12)) -> 0 | HA15: =IF(Registrering!$B$29="Prosjekter som foregår i UiOs lokaler",IF($B15="Teknisk/adm. bistand/Feltassistent",S15*Tabeller!R$11,S15*Tabeller!R$10),IF($B15="Teknisk/adm. bistand/Feltassistent",S15*Tabeller!R$13,S15*Tabeller!R$12)) -> 0 | HB15: =IF(Registrering!$B$29="Prosjekter som foregår i UiOs lokaler",IF($B15="Teknisk/adm. bistand/Feltassistent",T15*Tabeller!S$11,T15*Tabeller!S$10),IF($B15="Teknisk/adm. bistand/Feltassistent",T15*Tabeller!S$13,T15*Tabeller!S$12)) -> 0 | HC15: =IF(Registrering!$B$29="Prosjekter som foregår i UiOs lokaler",IF($B15="Teknisk/adm. bistand/Feltassistent",U15*Tabeller!T$11,U15*Tabeller!T$10),IF($B15="Teknisk/adm. bistand/Feltassistent",U15*Tabeller!T$13,U15*Tabeller!T$12)) -> 0 | HD15: =IF(Registrering!$B$29="Prosjekter som foregår i UiOs lokaler",IF($B15="Teknisk/adm. bistand/Feltassistent",V15*Tabeller!U$11,V15*Tabeller!U$10),IF($B15="Teknisk/adm. bistand/Feltassistent",V15*Tabeller!U$13,V15*Tabeller!U$12)) -> 0 | HE15: =IF(Registrering!$B$29="Prosjekter som foregår i UiOs lokaler",IF($B15="Teknisk/adm. bistand/Feltassistent",W15*Tabeller!V$11,W15*Tabeller!V$10),IF($B15="Teknisk/adm. bistand/Feltassistent",W15*Tabeller!V$13,W15*Tabeller!V$12)) -> 0
B16: Forsker - professor | C16: =IF(Registrering!$B$28="Fast beløp",0,IF(Registrering!$B$28="Sats for ekst. fin. overhead",0,DL16)) -> -310112.5 | D16: =SUM(AR16:BD16) -> 275000.2154 | E16: =IFERROR(SUM(BF16:BR16),0) -> 175664.3937 | F16: =SUM(D16:E16) -> 450664.6091 | G16: =SUM(K16:W16) -> 0.2 | H16: NFR | I16: 900000 | J16: Heidi Sandaker | M16: =+(0.25)*0.05 -> 0.0125 | N16: 0.05 | O16: 0.05 | P16: 0.05 | Q16: =+(9/12)*0.05 -> 0.0375 | AG16: 900000 | AH16: =AG16*Tabeller!$I$35 -> 944100 | AI16: 852959.6154 | AJ16: =AI16*Tabeller!$H$26 -> 102355.1538 | AK16: =SUM(AI16:AJ16,AL16)*Tabeller!$H$28 -> 146680.0115 | AL16: =AH16*Tabeller!$H$27 -> 84969 | AM16: 1186963.781 | AN16: =AM16+(IF(B16="Teknisk adm bistand",Registrering!$E$51,Registrering!$B$51)) -> 1651963.781 | AO16: =AN16/Tabeller!$H$5 -> 1014.719767 | AR16: =((K16*Budsjett!$AM16)) -> 0 | AS16: =((L16*Budsjett!$AM16)*(Tabeller!J$35)) -> 0 | AT16: =((M16*Budsjett!$AM16)*(Tabeller!K$35)) -> 15893.81595 | AU16: =((N16*Budsjett!$AM16)*(Tabeller!L$35)) -> 65800.39803 | AV16: =((O16*Budsjett!$AM16)*(Tabeller!M$35)) -> 68103.41196 | AW16: =((P16*Budsjett!$AM16)*(Tabeller!N$35)) -> 70487.03138 | AX16: =((Q16*Budsjett!$AM16)*(Tabeller!O$35)) -> 54715.55811 | AY16: =((R16*Budsjett!$AM16)*(Tabeller!P$35)) -> 0 | AZ16: =((S16*Budsjett!$AM16)*(Tabeller!Q$35)) -> 0 | BA16: =((T16*Budsjett!$AM16)*(Tabeller!R$35)) -> 0 | BB16: =((U16*Budsjett!$AM16)*(Tabeller!S$35)) -> 0 | BC16: =((V16*Budsjett!$AM16)*(Tabeller!T$35)) -> 0 | BD16: =((W16*Budsjett!$AM16)*(Tabeller!U$35)) -> 0 | BF16: 0 | BG16: 0 | BH16: 10152.63765 | BI16: 42031.91989 | BJ16: 43503.03709 | BK16: 45025.64339 | BL16: 34951.15568 | BM16: 0 | BN16: 0 | BO16: 0 | BP16: 0 | BQ16: 0 | BR16: 0 | BU16: =IFERROR(IF($F$81=$M$81,AR16*$E$72,AR16*Budsjett!$E$73),0) -> 0 | BV16: =IFERROR(IF($F$81=$M$81,AS16*$E$72,AS16*Budsjett!$E$73),0) -> 0 | BW16: =IFERROR(IF($F$81=$M$81,AT16*$E$72,AT16*Budsjett!$E$73),0) -> 10152.63765 | BX16: =IFERROR(IF($F$81=$M$81,AU16*$E$72,AU16*Budsjett!$E$73),0) -> 42031.91989 | BY16: =IFERROR(IF($F$81=$M$81,AV16*$E$72,AV16*Budsjett!$E$73),0) -> 43503.03709 | BZ16: =IFERROR(IF($F$81=$M$81,AW16*$E$72,AW16*Budsjett!$E$73),0) -> 45025.64339 | CA16: =IFERROR(IF($F$81=$M$81,AX16*$E$72,AX16*Budsjett!$E$73),0) -> 34951.15568 | CB16: =IFERROR(IF($F$81=$M$81,AY16*$E$72,AY16*Budsjett!$E$73),0) -> 0 | CC16: =IFERROR(IF($F$81=$M$81,AZ16*$E$72,AZ16*Budsjett!$E$73),0) -> 0 | CD16: =IFERROR(IF($F$81=$M$81,BA16*$E$72,BA16*Budsjett!$E$73),0) -> 0 | CE16: =IFERROR(IF($F$81=$M$81,BB16*$E$72,BB16*Budsjett!$E$73),0) -> 0 | CF16: =IFERROR(IF($F$81=$M$81,BC16*$E$72,BC16*Budsjett!$E$73),0) -> 0 | CG16: =IFERROR(IF($F$81=$M$81,BD16*$E$72,BD16*Budsjett!$E$73),0) -> 0 | CJ16: =BF16-BU16 -> 0 | CK16: =BG16-BV16 -> 0 | CL16: =BH16-BW16 -> 0 | CM16: =BI16-BX16 -> 0 | CN16: =BJ16-BY16 -> 0 | CO16: =BK16-BZ16 -> 0 | CP16: =BL16-CA16 -> 0 | CQ16: =BM16-CB16 -> 0 | CR16: =BN16-CC16 -> 0 | CS16: =BO16-CD16 -> 0 | CT16: =BP16-CE16 -> 0 | CU16: =BQ16-CF16 -> 0 | CV16: =BR16-CG16 -> 0 | CX16: =B16 -> Forsker - professor | CY16: =-((IF($CX16="Teknisk/adm. bistand/Feltassistent",IF(Budsjett!AR16*(1+Tabeller!$I$62)>Tabeller!I$55,Tabeller!I$55,Budsjett!AR16*(1+Tabeller!$I$62)),0)+(IF($CX16="Forsker - professor",Tabeller!I$55*K16,0)+IF($CX16="Prosjektleder/adm.leder",Tabeller!I$54*K16,0)+IF($CX16="Forsker - 1.aman.",Tabeller!I$56*K16,0)+IF($CX16="Gjesteforsker",Tabeller!I$58*K16,0)+IF($CX16="Postdoktor / forsker",Tabeller!I$59*K16,0)+IF($CX16="Stipendiat",Tabeller!I$60*K16,0)+IF($CX16="Forsker (rundsum)",Tabeller!I$57*K16,0)+IF($CX16="Vit.ass",Tabeller!I$61*K16,0))/1)) -> 0 | CZ16: =-((IF($CX16="Teknisk/adm. bistand/Feltassistent",IF(Budsjett!AS16*(1+Tabeller!$I$62)>Tabeller!J$55,Tabeller!J$55,Budsjett!AS16*(1+Tabeller!$I$62)),0)+(IF($CX16="Forsker - professor",Tabeller!J$55*L16,0)+IF($CX16="Prosjektleder/adm.leder",Tabeller!J$54*L16,0)+IF($CX16="Forsker - 1.aman.",Tabeller!J$56*L16,0)+IF($CX16="Gjesteforsker",Tabeller!J$58*L16,0)+IF($CX16="Postdoktor / forsker",Tabeller!J$59*L16,0)+IF($CX16="Stipendiat",Tabeller!J$60*L16,0)+IF($CX16="Forsker (rundsum)",Tabeller!J$57*L16,0)+IF($CX16="Vit.ass",Tabeller!J$61*L16,0))/1)) -> 0 | DA16: =-((IF($CX16="Teknisk/adm. bistand/Feltassistent",IF(Budsjett!AT16*(1+Tabeller!$I$62)>Tabeller!K$55,Tabeller!K$55,Budsjett!AT16*(1+Tabeller!$I$62)),0)+(IF($CX16="Forsker - professor",Tabeller!K$55*M16,0)+IF($CX16="Prosjektleder/adm.leder",Tabeller!K$54*M16,0)+IF($CX16="Forsker - 1.aman.",Tabeller!K$56*M16,0)+IF($CX16="Gjesteforsker",Tabeller!K$58*M16,0)+IF($CX16="Postdoktor / forsker",Tabeller!K$59*M16,0)+IF($CX16="Stipendiat",Tabeller!K$60*M16,0)+IF($CX16="Forsker (rundsum)",Tabeller!K$57*M16,0)+IF($CX16="Vit.ass",Tabeller!K$61*M16,0))/1)) -> -17887.5 | DB16: =-((IF($CX16="Teknisk/adm. bistand/Feltassistent",IF(Budsjett!AU16*(1+Tabeller!$I$62)>Tabeller!L$55,Tabeller!L$55,Budsjett!AU16*(1+Tabeller!$I$62)),0)+(IF($CX16="Forsker - professor",Tabeller!L$55*N16,0)+IF($CX16="Prosjektleder/adm.leder",Tabeller!L$54*N16,0)+IF($CX16="Forsker - 1.aman.",Tabeller!L$56*N16,0)+IF($CX16="Gjesteforsker",Tabeller!L$58*N16,0)+IF($CX16="Postdoktor / forsker",Tabeller!L$59*N16,0)+IF($CX16="Stipendiat",Tabeller!L$60*N16,0)+IF($CX16="Forsker (rundsum)",Tabeller!L$57*N16,0)+IF($CX16="Vit.ass",Tabeller!L$61*N16,0))/1)) -> -74200 | DC16: =-((IF($CX16="Teknisk/adm. bistand/Feltassistent",IF(Budsjett!AV16*(1+Tabeller!$I$62)>Tabeller!M$55,Tabeller!M$55,Budsjett!AV16*(1+Tabeller!$I$62)),0)+(IF($CX16="Forsker - professor",Tabeller!M$55*O16,0)+IF($CX16="Prosjektleder/adm.leder",Tabeller!M$54*O16,0)+IF($CX16="Forsker - 1.aman.",Tabeller!M$56*O16,0)+IF($CX16="Gjesteforsker",Tabeller!M$58*O16,0)+IF($CX16="Postdoktor / forsker",Tabeller!M$59*O16,0)+IF($CX16="Stipendiat",Tabeller!M$60*O16,0)+IF($CX16="Forsker (rundsum)",Tabeller!M$57*O16,0)+IF($CX16="Vit.ass",Tabeller!M$61*O16,0))/1)) -> -76800 | DD16: =-((IF($CX16="Teknisk/adm. bistand/Feltassistent",IF(Budsjett!AW16*(1+Tabeller!$I$62)>Tabeller!N$55,Tabeller!N$55,Budsjett!AW16*(1+Tabeller!$I$62)),0)+(IF($CX16="Forsker - professor",Tabeller!N$55*P16,0)+IF($CX16="Prosjektleder/adm.leder",Tabeller!N$54*P16,0)+IF($CX16="Forsker - 1.aman.",Tabeller!N$56*P16,0)+IF($CX16="Gjesteforsker",Tabeller!N$58*P16,0)+IF($CX16="Postdoktor / forsker",Tabeller!N$59*P16,0)+IF($CX16="Stipendiat",Tabeller!N$60*P16,0)+IF($CX16="Forsker (rundsum)",Tabeller!N$57*P16,0)+IF($CX16="Vit.ass",Tabeller!N$61*P16,0))/1)) -> -79500 | DE16: =-((IF($CX16="Teknisk/adm. bistand/Feltassistent",IF(Budsjett!AX16*(1+Tabeller!$I$62)>Tabeller!O$55,Tabeller!O$55,Budsjett!AX16*(1+Tabeller!$I$62)),0)+(IF($CX16="Forsker - professor",Tabeller!O$55*Q16,0)+IF($CX16="Prosjektleder/adm.leder",Tabeller!O$54*Q16,0)+IF($CX16="Forsker - 1.aman.",Tabeller!O$56*Q16,0)+IF($CX16="Gjesteforsker",Tabeller!O$58*Q16,0)+IF($CX16="Postdoktor / forsker",Tabeller!O$59*Q16,0)+IF($CX16="Stipendiat",Tabeller!O$60*Q16,0)+IF($CX16="Forsker (rundsum)",Tabeller!O$57*Q16,0)+IF($CX16="Vit.ass",Tabeller!O$61*Q16,0))/1)) -> -61725 | DF16: =-((IF($CX16="Teknisk/adm. bistand/Feltassistent",IF(Budsjett!AY16*(1+Tabeller!$I$62)>Tabeller!P$55,Tabeller!P$55,Budsjett!AY16*(1+Tabeller!$I$62)),0)+(IF($CX16="Forsker - professor",Tabeller!P$55*R16,0)+IF($CX16="Prosjektleder/adm.leder",Tabeller!P$54*R16,0)+IF($CX16="Forsker - 1.aman.",Tabeller!P$56*R16,0)+IF($CX16="Gjesteforsker",Tabeller!P$58*R16,0)+IF($CX16="Postdoktor / forsker",Tabeller!P$59*R16,0)+IF($CX16="Stipendiat",Tabeller!P$60*R16,0)+IF($CX16="Forsker (rundsum)",Tabeller!P$57*R16,0)+IF($CX16="Vit.ass",Tabeller!P$61*R16,0))/1)) -> 0 | DG16: =-((IF($CX16="Teknisk/adm. bistand/Feltassistent",IF(Budsjett!AZ16*(1+Tabeller!$I$62)>Tabeller!Q$55,Tabeller!Q$55,Budsjett!AZ16*(1+Tabeller!$I$62)),0)+(IF($CX16="Forsker - professor",Tabeller!Q$55*S16,0)+IF($CX16="Prosjektleder/adm.leder",Tabeller!Q$54*S16,0)+IF($CX16="Forsker - 1.aman.",Tabeller!Q$56*S16,0)+IF($CX16="Gjesteforsker",Tabeller!Q$58*S16,0)+IF($CX16="Postdoktor / forsker",Tabeller!Q$59*S16,0)+IF($CX16="Stipendiat",Tabeller!Q$60*S16,0)+IF($CX16="Forsker (rundsum)",Tabeller!Q$57*S16,0)+IF($CX16="Vit.ass",Tabeller!Q$61*S16,0))/1)) -> 0 | DH16: =-((IF($CX16="Teknisk/adm. bistand/Feltassistent",IF(Budsjett!BA16*(1+Tabeller!$I$62)>Tabeller!R$55,Tabeller!R$55,Budsjett!BA16*(1+Tabeller!$I$62)),0)+(IF($CX16="Forsker - professor",Tabeller!R$55*T16,0)+IF($CX16="Prosjektleder/adm.leder",Tabeller!R$54*T16,0)+IF($CX16="Forsker - 1.aman.",Tabeller!R$56*T16,0)+IF($CX16="Gjesteforsker",Tabeller!R$58*T16,0)+IF($CX16="Postdoktor / forsker",Tabeller!R$59*T16,0)+IF($CX16="Stipendiat",Tabeller!R$60*T16,0)+IF($CX16="Forsker (rundsum)",Tabeller!R$57*T16,0)+IF($CX16="Vit.ass",Tabeller!R$61*T16,0))/1)) -> 0 | DI16: =-((IF($CX16="Teknisk/adm. bistand/Feltassistent",IF(Budsjett!BB16*(1+Tabeller!$I$62)>Tabeller!S$55,Tabeller!S$55,Budsjett!BB16*(1+Tabeller!$I$62)),0)+(IF($CX16="Forsker - professor",Tabeller!S$55*U16,0)+IF($CX16="Prosjektleder/adm.leder",Tabeller!S$54*U16,0)+IF($CX16="Forsker - 1.aman.",Tabeller!S$56*U16,0)+IF($CX16="Gjesteforsker",Tabeller!S$58*U16,0)+IF($CX16="Postdoktor / forsker",Tabeller!S$59*U16,0)+IF($CX16="Stipendiat",Tabeller!S$60*U16,0)+IF($CX16="Forsker (rundsum)",Tabeller!S$57*U16,0)+IF($CX16="Vit.ass",Tabeller!S$61*U16,0))/1)) -> 0 | DJ16: =-((IF($CX16="Teknisk/adm. bistand/Feltassistent",IF(Budsjett!BC16*(1+Tabeller!$I$62)>Tabeller!T$55,Tabeller!T$55,Budsjett!BC16*(1+Tabeller!$I$62)),0)+(IF($CX16="Forsker - professor",Tabeller!T$55*V16,0)+IF($CX16="Prosjektleder/adm.leder",Tabeller!T$54*V16,0)+IF($CX16="Forsker - 1.aman.",Tabeller!T$56*V16,0)+IF($CX16="Gjesteforsker",Tabeller!T$58*V16,0)+IF($CX16="Postdoktor / forsker",Tabeller!T$59*V16,0)+IF($CX16="Stipendiat",Tabeller!T$60*V16,0)+IF($CX16="Forsker (rundsum)",Tabeller!T$57*V16,0)+IF($CX16="Vit.ass",Tabeller!T$61*V16,0))/1)) -> 0 | DK16: =-((IF($CX16="Teknisk/adm. bistand/Feltassistent",IF(Budsjett!BD16*(1+Tabeller!$I$62)>Tabeller!U$55,Tabeller!U$55,Budsjett!BD16*(1+Tabeller!$I$62)),0)+(IF($CX16="Forsker - professor",Tabeller!U$55*W16,0)+IF($CX16="Prosjektleder/adm.leder",Tabeller!U$54*W16,0)+IF($CX16="Forsker - 1.aman.",Tabeller!U$56*W16,0)+IF($CX16="Gjesteforsker",Tabeller!U$58*W16,0)+IF($CX16="Postdoktor / forsker",Tabeller!U$59*W16,0)+IF($CX16="Stipendiat",Tabeller!U$60*W16,0)+IF($CX16="Forsker (rundsum)",Tabeller!U$57*W16,0)+IF($CX16="Vit.ass",Tabeller!U$61*W16,0))/1)) -> 0 | DL16: =SUM(CY16:DK16) -> -310112.5 | DO16: =CX16 -> Forsker - professor | DP16: =IF($H16="NFR",CY16,0) -> 0 | DQ16: =IF($H16="NFR",CZ16,0) -> 0 | DR16: =IF($H16="NFR",DA16,0) -> -17887.5 | DS16: =IF($H16="NFR",DB16,0) -> -74200 | DT16: =IF($H16="NFR",DC16,0) -> -76800 | DU16: =IF($H16="NFR",DD16,0) -> -79500 | DV16: =IF($H16="NFR",DE16,0) -> -61725 | DW16: =IF($H16="NFR",DF16,0) -> 0 | DX16: =IF($H16="NFR",DG16,0) -> 0 | DY16: =IF($H16="NFR",DH16,0) -> 0 | DZ16: =IF($H16="NFR",DI16,0) -> 0 | EA16: =IF($H16="NFR",DJ16,0) -> 0 | EB16: =IF($H16="NFR",DK16,0) -> 0 | EC16: =SUM(DP16:EB16) -> -310112.5 | EE16: =DO16 -> Forsker - professor | EF16: 0 | EG16: 0 | EH16: 0 | EI16: 0 | EJ16: 0 | EK16: 0 | EL16: 0 | EM16: 0 | EN16: 0 | EO16: 0 | EP16: 0 | EQ16: 0 | ER16: 0 | ES16: =SUM(EF16:ER16) -> 0 | EU16: =EE16 -> Forsker - professor | EV16: 0 | EW16: 0 | EX16: 0 | EY16: 0 | EZ16: 0 | FA16: 0 | FB16: 0 | FC16: 0 | FD16: 0 | FE16: 0 | FF16: 0 | FG16: 0 | FH16: 0 | FI16: =SUM(EV16:FH16) -> 0 | FK16: =EU16 -> Forsker - professor | FL16: 0 | FM16: 0 | FN16: 0 | FO16: 0 | FP16: 0 | FQ16: 0 | FR16: 0 | FS16: 0 | FT16: 0 | FU16: 0 | FV16: 0 | FW16: 0 | FX16: 0 | FY16: =SUM(FL16:FX16) -> 0 | GB16: =FK16 -> Forsker - professor | GP16: =SUM(GC16:GO16) -> 0 | GS16: =IF(Registrering!$B$29="Prosjekter som foregår i UiOs lokaler",IF($B16="Teknisk/adm. bistand/Feltassistent",K16*Tabeller!J$11,K16*Tabeller!J$10),IF($B16="Teknisk/adm. bistand/Feltassistent",K16*Tabeller!J$13,K16*Tabeller!J$12)) -> 0 | GT16: =IF(Registrering!$B$29="Prosjekter som foregår i UiOs lokaler",IF($B16="Teknisk/adm. bistand/Feltassistent",L16*Tabeller!K$11,L16*Tabeller!K$10),IF($B16="Teknisk/adm. bistand/Feltassistent",L16*Tabeller!K$13,L16*Tabeller!K$12)) -> 0 | GU16: =IF(Registrering!$B$29="Prosjekter som foregår i UiOs lokaler",IF($B16="Teknisk/adm. bistand/Feltassistent",M16*Tabeller!L$11,M16*Tabeller!L$10),IF($B16="Teknisk/adm. bistand/Feltassistent",M16*Tabeller!L$13,M16*Tabeller!L$12)) -> 6226.495312 | GV16: =IF(Registrering!$B$29="Prosjekter som foregår i UiOs lokaler",IF($B16="Teknisk/adm. bistand/Feltassistent",N16*Tabeller!M$11,N16*Tabeller!M$10),IF($B16="Teknisk/adm. bistand/Feltassistent",N16*Tabeller!M$13,N16*Tabeller!M$12)) -> 25777.69059 | GW16: =IF(Registrering!$B$29="Prosjekter som foregår i UiOs lokaler",IF($B16="Teknisk/adm. bistand/Feltassistent",O16*Tabeller!N$11,O16*Tabeller!N$10),IF($B16="Teknisk/adm. bistand/Feltassistent",O16*Tabeller!N$13,O16*Tabeller!N$12)) -> 26679.90976 | GX16: =IF(Registrering!$B$29="Prosjekter som foregår i UiOs lokaler",IF($B16="Teknisk/adm. bistand/Feltassistent",P16*Tabeller!O$11,P16*Tabeller!O$10),IF($B16="Teknisk/adm. bistand/Feltassistent",P16*Tabeller!O$13,P16*Tabeller!O$12)) -> 27613.70661 | GY16: =IF(Registrering!$B$29="Prosjekter som foregår i UiOs lokaler",IF($B16="Teknisk/adm. bistand/Feltassistent",Q16*Tabeller!P$11,Q16*Tabeller!P$10),IF($B16="Teknisk/adm. bistand/Feltassistent",Q16*Tabeller!P$13,Q16*Tabeller!P$12)) -> 21435.13975 | GZ16: =IF(Registrering!$B$29="Prosjekter som foregår i UiOs lokaler",IF($B16="Teknisk/adm. bistand/Feltassistent",R16*Tabeller!Q$11,R16*Tabeller!Q$10),IF($B16="Teknisk/adm. bistand/Feltassistent",R16*Tabeller!Q$13,R16*Tabeller!Q$12)) -> 0 | HA16: =IF(Registrering!$B$29="Prosjekter som foregår i UiOs lokaler",IF($B16="Teknisk/adm. bistand/Feltassistent",S16*Tabeller!R$11,S16*Tabeller!R$10),IF($B16="Teknisk/adm. bistand/Feltassistent",S16*Tabeller!R$13,S16*Tabeller!R$12)) -> 0 | HB16: =IF(Registrering!$B$29="Prosjekter som foregår i UiOs lokaler",IF($B16="Teknisk/adm. bistand/Feltassistent",T16*Tabeller!S$11,T16*Tabeller!S$10),IF($B16="Teknisk/adm. bistand/Feltassistent",T16*Tabeller!S$13,T16*Tabeller!S$12)) -> 0 | HC16: =IF(Registrering!$B$29="Prosjekter som foregår i UiOs lokaler",IF($B16="Teknisk/adm. bistand/Feltassistent",U16*Tabeller!T$11,U16*Tabeller!T$10),IF($B16="Teknisk/adm. bistand/Feltassistent",U16*Tabeller!T$13,U16*Tabeller!T$12)) -> 0 | HD16: =IF(Registrering!$B$29="Prosjekter som foregår i UiOs lokaler",IF($B16="Teknisk/adm. bistand/Feltassistent",V16*Tabeller!U$11,V16*Tabeller!U$10),IF($B16="Teknisk/adm. bistand/Feltassistent",V16*Tabeller!U$13,V16*Tabeller!U$12)) -> 0 | HE16: =IF(Registrering!$B$29="Prosjekter som foregår i UiOs lokaler",IF($B16="Teknisk/adm. bistand/Feltassistent",W16*Tabeller!V$11,W16*Tabeller!V$10),IF($B16="Teknisk/adm. bistand/Feltassistent",W16*Tabeller!V$13,W16*Tabeller!V$12)) -> 0
B17: Sum frikjøp art 5892 | C17: =SUM(C13:C16) -> -1823450 | D17: =SUM(D13:D16) -> 1462192.285 | E17: =SUM(E13:E16) -> 934017.8906 | F17: =SUM(F13:F16) -> 2396210.175 | G17: =SUM(G13:G16) -> 1.2 | K17: =SUM(K13:K16) -> 0 | L17: 0 | M17: 0.25 | N17: 0.4 | O17: 0.2 | P17: 0.2 | Q17: 0.15 | R17: 0 | S17: 0 | T17: 0 | U17: 0 | V17: 0 | W17: 0 | AR17: =SUM(AR13:AR16) -> 0 | AS17: 0 | AT17: 241556.307 | AU17: 447411.9718 | AV17: 272413.6479 | AW17: 281948.1255 | AX17: 218862.2324 | AY17: 0 | AZ17: 0 | BA17: 0 | BB17: 0 | BC17: 0 | BD17: 0 | BE17: =SUM(AR17:BD17) -> 1462192.285 | BF17: =SUM(BF13:BF16) -> 0 | BG17: 0 | BH17: 154301.1235 | BI17: 285797.4225 | BJ17: 174012.1483 | BK17: 180102.5735 | BL17: 139804.6227 | BM17: 0 | BN17: 0 | BO17: 0 | BP17: 0 | BQ17: 0 | BR17: 0 | BS17: =SUM(BF17:BR17) -> 934017.8906 | BU17: =SUM(BU13:BU16) -> 0 | BV17: 0 | BW17: 154301.1235 | BX17: 285797.4225 | BY17: 174012.1483 | BZ17: 180102.5735 | CA17: 139804.6227 | CB17: 0 | CC17: 0 | CD17: 0 | CE17: 0 | CF17: 0 | CG17: 0 | CJ17: =SUM(CJ13:CJ16) -> 0 | CK17: 0 | CL17: 0 | CM17: 0 | CN17: 0 | CO17: 0 | CP17: 0 | CQ17: 0 | CR17: 0 | CS17: 0 | CT17: 0 | CU17: 0 | CV17: 0 | CY17: =SUM(CY13:CY16) -> 0 | CZ17: 0 | DA17: -357750 | DB17: -593600 | DC17: -307200 | DD17: -318000 | DE17: -246900 | DF17: 0 | DG17: 0 | DH17: 0 | DI17: 0 | DJ17: 0 | DK17: 0 | DL17: -1823450 | DP17: =SUM(DP13:DP16) -> 0 | DQ17: 0 | DR17: -357750 | DS17: -593600 | DT17: -307200 | DU17: -318000 | DV17: -246900 | DW17: 0 | DX17: 0 | DY17: 0 | DZ17: 0 | EA17: 0 | EB17: 0 | EC17: -1823450 | EE17: 0 | EF17: =SUM(EF13:EF16) -> 0 | EG17: 0 | EH17: 0 | EI17: 0 | EJ17: 0 | EK17: 0 | EL17: 0 | EM17: 0 | EN17: 0 | EO17: 0 | EP17: 0 | EQ17: 0 | ER17: 0 | ES17: 0 | EU17: 0 | EV17: =SUM(EV13:EV16) -> 0 | EW17: 0 | EX17: 0 | EY17: 0 | EZ17: 0 | FA17: 0 | FB17: 0 | FC17: 0 | FD17: 0 | FE17: 0 | FF17: 0 | FG17: 0 | FH17: 0 | FI17: 0 | FK17: 0 | FL17: =SUM(FL13:FL16) -> 0 | FM17: 0 | FN17: 0 | FO17: 0 | FP17: 0 | FQ17: 0 | FR17: 0 | FS17: 0 | FT17: 0 | FU17: 0 | FV17: 0 | FW17: 0 | FX17: 0 | FY17: 0 | GB17: 0 | GC17: =SUM(GC13:GC16) -> 0 | GD17: 0 | GE17: 0 | GF17: 0 | GG17: 0 | GH17: 0 | GI17: 0 | GJ17: 0 | GK17: 0 | GL17: 0 | GM17: 0 | GN17: 0 | GO17: 0 | GP17: 0 | GS17: =SUM(GS13:GS16) -> 0 | GT17: 0 | GU17: 124529.9062 | GV17: 206221.5247 | GW17: 106719.6391 | GX17: 110454.8264 | GY17: 85740.55901 | GZ17: 0 | HA17: 0 | HB17: 0 | HC17: 0 | HD17: 0 | HE17: 0
K18: ÅRSVERK | EE18: 0 | EU18: 0 | FK18: 0 | GB18: 0
B19: Internt frikjøp | C19: Inntekter | D19: Lønn og sos. kostn. | E19: Overhead | F19: Totalt | G19: Årsv | H19: Finansiør | I19: Årslønn | J19: Navn | K19: =K12 -> 2024 | L19: 2025 | M19: 2026 | N19: 2027 | O19: 2028 | P19: 2029 | Q19: 2030 | R19: 2031 | S19: 2032 | T19: 2033 | U19: 2034 | V19: 2035 | W19: 2036 | AG19: Bruttolønn | AH19: inkl lønnsv. | AI19: Lønn | AJ19: Feriep | AK19: AGA | AL19: Pensjon | AM19: inkl sos.avg. | AN19: inkl. ind.kost. | AO19: Timesats | AR19: =K19 -> 2024 | AS19: 2025 | AT19: 2026 | AU19: 2027 | AV19: 2028 | AW19: 2029 | AX19: 2030 | AY19: 2031 | AZ19: 2032 | BA19: 2033 | BB19: 2034 | BC19: 2035 | BD19: 2036 | BF19: =AR19 -> 2024 | BG19: 2025 | BH19: 2026 | BI19: 2027 | BJ19: 2028 | BK19: 2029 | BL19: 2030 | BM19: 2031 | BN19: 2032 | BO19: 2033 | BP19: =BB19 -> 2034 | BQ19: 2035 | BR19: 2036 | BU19: =BF19 -> 2024 | BV19: 2025 | BW19: 2026 | BX19: 2027 | BY19: 2028 | BZ19: 2029 | CA19: 2030 | CB19: 2031 | CC19: 2032 | CD19: =BO19 -> 2033 | CE19: =BP19 -> 2034 | CF19: =BQ19 -> 2035 | CG19: =BR19 -> 2036 | CJ19: =CY19 -> 2024 | CK19: 2025 | CL19: 2026 | CM19: 2027 | CN19: 2028 | CO19: 2029 | CP19: 2030 | CQ19: 2031 | CR19: 2032 | CS19: 2033 | CT19: =DI19 -> 2034 | CU19: =DJ19 -> 2035 | CV19: =DK19 -> 2036 | CY19: =BU19 -> 2024 | CZ19: 2025 | DA19: 2026 | DB19: 2027 | DC19: 2028 | DD19: 2029 | DE19: 2030 | DF19: 2031 | DG19: 2032 | DH19: 2033 | DI19: =CE19 -> 2034 | DJ19: 2035 | DK19: 2036 | DL19: Totalt | DP19: =BU19 -> 2024 | DQ19: 2025 | DR19: 2026 | DS19: 2027 | DT19: 2028 | DU19: 2029 | DV19: 2030 | DW19: 2031 | DX19: 2032 | DY19: 2033 | DZ19: =CE19 -> 2034 | EA19: =CF19 -> 2035 | EB19: =CG19 -> 2036 | EC19: =EC3 -> Totalt | EE19: 0 | EF19: =EF12 -> 2024 | EG19: 2025 | EH19: 2026 | EI19: 2027 | EJ19: 2028 | EK19: 2029 | EL19: 2030 | EM19: 2031 | EN19: 2032 | EO19: 2033 | EP19: 2034 | EQ19: 2035 | ER19: 2036 | ES19: Totalt | EU19: 0 | EV19: =EV12 -> 2024 | EW19: 2025 | EX19: 2026 | EY19: 2027 | EZ19: 2028 | FA19: 2029 | FB19: 2030 | FC19: 2031 | FD19: 2032 | FE19: 2033 | FF19: 2034 | FG19: 2035 | FH19: 2036 | FI19: Totalt | FK19: 0 | FL19: =FL12 -> 2024 | FM19: 2025 | FN19: 2026 | FO19: 2027 | FP19: 2028 | FQ19: 2029 | FR19: 2030 | FS19: 2031 | FT19: 2032 | FU19: 2033 | FV19: 2034 | FW19: 2035 | FX19: 2036 | FY19: Totalt | GB19: 0 | GC19: =GC12 -> 2024 | GD19: 2025 | GE19: 2026 | GF19: 2027 | GG19: 2028 | GH19: 2029 | GI19: 2030 | GJ19: 2031 | GK19: 2032 | GL19: 2033 | GM19: 2034 | GN19: 2035 | GO19: 2036 | GP19: Totalt | GS19: =AR19 -> 2024 | GT19: 2025 | GU19: 2026 | GV19: 2027 | GW19: 2028 | GX19: 2029 | GY19: 2030 | GZ19: 2031 | HA19: 2032 | HB19: 2033 | HC19: =BB19 -> 2034 | HD19: =BC19 -> 2035 | HE19: =BD19 -> 2036
B20: Prosjektleder/adm.leder | C20: =DL20 -> 0 | D20: =SUM(AR20:BD20) -> 1036527.082 | E20: =IFERROR(SUM(BF20:BR20),0) -> 529713.4619 | F20: =SUM(D20:E20) -> 1566240.544 | G20: =SUM(K20:W20) -> 1 | H20: Egenandel | I20: 690000 | J20: Eirik Gramstad | L20: =+(0.25)*0.2 -> 0.05 | M20: 0.2 | N20: 0.2 | O20: 0.2 | P20: 0.2 | Q20: =+(0.75)*0.2 -> 0.15 | AG20: =I20 -> 690000 | AH20: =AG20*Tabeller!$I$35 -> 723810 | AI20: =IF(AG20>0,(AH20-400)/52*47,0) -> 653851.3462 | AJ20: =AI20*Tabeller!$H$26 -> 78462.16154 | AK20: =SUM(AI20:AJ20,AL20)*Tabeller!$H$28 -> 112441.3535 | AL20: =AH20*Tabeller!$H$27 -> 65142.9 | AM20: =SUM(AI20:AL20) -> 909897.7612 | AN20: =AM20+(IF(B20="Teknisk adm bistand",Registrering!$E$51,Registrering!$B$51)) -> 1374897.761 | AO20: =AN20/Tabeller!$H$5 -> 844.5317943 | AR20: =((K20*Budsjett!$AM20)) -> 0 | AS20: =((L20*Budsjett!$AM20)*(Tabeller!J$35)) -> 47087.20914 | AT20: =((M20*Budsjett!$AM20)*(Tabeller!K$35)) -> 194941.0458 | AU20: =((N20*Budsjett!$AM20)*(Tabeller!L$35)) -> 201763.9824 | AV20: =((O20*Budsjett!$AM20)*(Tabeller!M$35)) -> 208825.7218 | AW20: =((P20*Budsjett!$AM20)*(Tabeller!N$35)) -> 216134.6221 | AX20: =((Q20*Budsjett!$AM20)*(Tabeller!O$35)) -> 167774.5004 | AY20: =((R20*Budsjett!$AM20)*(Tabeller!P$35)) -> 0 | AZ20: =((S20*Budsjett!$AM20)*(Tabeller!Q$35)) -> 0 | BA20: =((T20*Budsjett!$AM20)*(Tabeller!R$35)) -> 0 | BB20: =((U20*Budsjett!$AM20)*(Tabeller!S$35)) -> 0 | BC20: =((V20*Budsjett!$AM20)*(Tabeller!T$35)) -> 0 | BD20: =((W20*Budsjett!$AM20)*(Tabeller!U$35)) -> 0 | BF20: =GS20 -> 0 | BG20: =GT20 -> 24063.75 | BH20: 99623.925 | BI20: 103110.7624 | BJ20: 106719.6391 | BK20: 110454.8264 | BL20: 85740.55901 | BM20: 0 | BN20: 0 | BO20: 0 | BP20: 0 | BQ20: 0 | BR20: 0 | CJ20: =BF20 -> 0 | CK20: 24063.75 | CL20: 99623.925 | CM20: 103110.7624 | CN20: 106719.6391 | CO20: 110454.8264 | CP20: 85740.55901 | CQ20: 0 | CR20: 0 | CS20: =BO20 -> 0 | CT20: =BP20 -> 0 | CU20: =BQ20 -> 0 | CV20: =BR20 -> 0 | CX20: =B20 -> Prosjektleder/adm.leder | DL20: =SUM(CY20:DK20) -> 0 | DO20: =CX20 -> Prosjektleder/adm.leder | EC20: =SUM(DP20:EB20) -> 0 | EE20: Prosjektleder/adm.leder | ES20: =SUM(EF20:ER20) -> 0 | EU20: Prosjektleder/adm.leder | FI20: =SUM(EV20:FH20) -> 0 | FK20: Prosjektleder/adm.leder | FY20: =SUM(FL20:FX20) -> 0 | GB20: Prosjektleder/adm.leder | GC20: =IF($H20=$GB$1,AR20,0) -> 0 | GD20: 47087.20914 | GE20: 194941.0458 | GF20: 201763.9824 | GG20: 208825.7218 | GH20: 216134.6221 | GI20: 167774.5004 | GJ20: 0 | GK20: 0 | GL20: 0 | GM20: 0 | GN20: 0 | GO20: 0 | GP20: =SUM(GC20:GO20) -> 1036527.082 | GS20: =IF(Registrering!$B$29="Prosjekter som foregår i UiOs lokaler",IF($B20="Teknisk/adm. bistand/Feltassistent",K20*Tabeller!J$11,K20*Tabeller!J$10),IF($B20="Teknisk/adm. bistand/Feltassistent",K20*Tabeller!J$13,K20*Tabeller!J$12)) -> 0 | GT20: =IF(Registrering!$B$29="Prosjekter som foregår i UiOs lokaler",IF($B20="Teknisk/adm. bistand/Feltassistent",L20*Tabeller!K$11,L20*Tabeller!K$10),IF($B20="Teknisk/adm. bistand/Feltassistent",L20*Tabeller!K$13,L20*Tabeller!K$12)) -> 24063.75 | GU20: =IF(Registrering!$B$29="Prosjekter som foregår i UiOs lokaler",IF($B20="Teknisk/adm. bistand/Feltassistent",M20*Tabeller!L$11,M20*Tabeller!L$10),IF($B20="Teknisk/adm. bistand/Feltassistent",M20*Tabeller!L$13,M20*Tabeller!L$12)) -> 99623.925 | GV20: =IF(Registrering!$B$29="Prosjekter som foregår i UiOs lokaler",IF($B20="Teknisk/adm. bistand/Feltassistent",N20*Tabeller!M$11,N20*Tabeller!M$10),IF($B20="Teknisk/adm. bistand/Feltassistent",N20*Tabeller!M$13,N20*Tabeller!M$12)) -> 103110.7624 | GW20: =IF(Registrering!$B$29="Prosjekter som foregår i UiOs lokaler",IF($B20="Teknisk/adm. bistand/Feltassistent",O20*Tabeller!N$11,O20*Tabeller!N$10),IF($B20="Teknisk/adm. bistand/Feltassistent",O20*Tabeller!N$13,O20*Tabeller!N$12)) -> 106719.6391 | GX20: =IF(Registrering!$B$29="Prosjekter som foregår i UiOs lokaler",IF($B20="Teknisk/adm. bistand/Feltassistent",P20*Tabeller!O$11,P20*Tabeller!O$10),IF($B20="Teknisk/adm. bistand/Feltassistent",P20*Tabeller!O$13,P20*Tabeller!O$12)) -> 110454.8264 | GY20: =IF(Registrering!$B$29="Prosjekter som foregår i UiOs lokaler",IF($B20="Teknisk/adm. bistand/Feltassistent",Q20*Tabeller!P$11,Q20*Tabeller!P$10),IF($B20="Teknisk/adm. bistand/Feltassistent",Q20*Tabeller!P$13,Q20*Tabeller!P$12)) -> 85740.55901 | GZ20: =IF(Registrering!$B$29="Prosjekter som foregår i UiOs lokaler",IF($B20="Teknisk/adm. bistand/Feltassistent",R20*Tabeller!Q$11,R20*Tabeller!Q$10),IF($B20="Teknisk/adm. bistand/Feltassistent",R20*Tabeller!Q$13,R20*Tabeller!Q$12)) -> 0 | HA20: =IF(Registrering!$B$29="Prosjekter som foregår i UiOs lokaler",IF($B20="Teknisk/adm. bistand/Feltassistent",S20*Tabeller!R$11,S20*Tabeller!R$10),IF($B20="Teknisk/adm. bistand/Feltassistent",S20*Tabeller!R$13,S20*Tabeller!R$12)) -> 0 | HB20: =IF(Registrering!$B$29="Prosjekter som foregår i UiOs lokaler",IF($B20="Teknisk/adm. bistand/Feltassistent",T20*Tabeller!S$11,T20*Tabeller!S$10),IF($B20="Teknisk/adm. bistand/Feltassistent",T20*Tabeller!S$13,T20*Tabeller!S$12)) -> 0 | HC20: =IF(Registrering!$B$29="Prosjekter som foregår i UiOs lokaler",IF($B20="Teknisk/adm. bistand/Feltassistent",U20*Tabeller!T$11,U20*Tabeller!T$10),IF($B20="Teknisk/adm. bistand/Feltassistent",U20*Tabeller!T$13,U20*Tabeller!T$12)) -> 0 | HD20: =IF(Registrering!$B$29="Prosjekter som foregår i UiOs lokaler",IF($B20="Teknisk/adm. bistand/Feltassistent",V20*Tabeller!U$11,V20*Tabeller!U$10),IF($B20="Teknisk/adm. bistand/Feltassistent",V20*Tabeller!U$13,V20*Tabeller!U$12)) -> 0 | HE20: =IF(Registrering!$B$29="Prosjekter som foregår i UiOs lokaler",IF($B20="Teknisk/adm. bistand/Feltassistent",W20*Tabeller!V$11,W20*Tabeller!V$10),IF($B20="Teknisk/adm. bistand/Feltassistent",W20*Tabeller!V$13,W20*Tabeller!V$12)) -> 0
B21: Prosjektleder/adm.leder | C21: =DL21 -> 0 | D21: =SUM(AR21:BD21) -> 1036527.082 | E21: =IFERROR(SUM(BF21:BR21),0) -> 529713.4619 | F21: 1566240.544 | G21: =SUM(K21:W21) -> 1 | H21: Egenandel | I21: 690000 | J21: James Catmore | L21: =+(0.25)*0.2 -> 0.05 | M21: 0.2 | N21: 0.2 | O21: 0.2 | P21: 0.2 | Q21: =+(0.75)*0.2 -> 0.15 | AG21: =I21 -> 690000 | AH21: =AG21*Tabeller!$I$35 -> 723810 | AI21: =IF(AG21>0,(AH21-400)/52*47,0) -> 653851.3462 | AJ21: =AI21*Tabeller!$H$26 -> 78462.16154 | AK21: =SUM(AI21:AJ21,AL21)*Tabeller!$H$28 -> 112441.3535 | AL21: =AH21*Tabeller!$H$27 -> 65142.9 | AM21: =SUM(AI21:AL21) -> 909897.7612 | AN21: =AM21+(IF(B21="Teknisk adm bistand",Registrering!$E$51,Registrering!$B$51)) -> 1374897.761 | AO21: =AN21/Tabeller!$H$5 -> 844.5317943 | AQ21: =AR20*0.67 -> 0 | AR21: =((K21*Budsjett!$AM21)) -> 0 | AS21: =((L21*Budsjett!$AM21)*(Tabeller!J$35)) -> 47087.20914 | AT21: =((M21*Budsjett!$AM21)*(Tabeller!K$35)) -> 194941.0458 | AU21: =((N21*Budsjett!$AM21)*(Tabeller!L$35)) -> 201763.9824 | AV21: =((O21*Budsjett!$AM21)*(Tabeller!M$35)) -> 208825.7218 | AW21: =((P21*Budsjett!$AM21)*(Tabeller!N$35)) -> 216134.6221 | AX21: =((Q21*Budsjett!$AM21)*(Tabeller!O$35)) -> 167774.5004 | AY21: =((R21*Budsjett!$AM21)*(Tabeller!P$35)) -> 0 | AZ21: =((S21*Budsjett!$AM21)*(Tabeller!Q$35)) -> 0 | BA21: =((T21*Budsjett!$AM21)*(Tabeller!R$35)) -> 0 | BB21: =((U21*Budsjett!$AM21)*(Tabeller!S$35)) -> 0 | BC21: =((V21*Budsjett!$AM21)*(Tabeller!T$35)) -> 0 | BD21: =((W21*Budsjett!$AM21)*(Tabeller!U$35)) -> 0 | BF21: =GS21 -> 0 | BG21: 24063.75 | BH21: 99623.925 | BI21: 103110.7624 | BJ21: 106719.6391 | BK21: 110454.8264 | BL21: 85740.55901 | BM21: 0 | BN21: 0 | BO21: 0 | BP21: 0 | BQ21: 0 | BR21: 0 | CJ21: 0 | CK21: 24063.75 | CL21: 99623.925 | CM21: 103110.7624 | CN21: 106719.6391 | CO21: 110454.8264 | CP21: 85740.55901 | CQ21: 0 | CR21: 0 | CS21: 0 | CT21: 0 | CU21: 0 | CV21: 0 | CX21: =B21 -> Prosjektleder/adm.leder | DL21: =SUM(CY21:DK21) -> 0 | DO21: Prosjektleder/adm.leder | EC21: 0 | EE21: Prosjektleder/adm.leder | ES21: 0 | EU21: Prosjektleder/adm.leder | FI21: 0 | FK21: Prosjektleder/adm.leder | FY21: 0 | GB21: Prosjektleder/adm.leder | GC21: 0 | GD21: 47087.20914 | GE21: 194941.0458 | GF21: 201763.9824 | GG21: 208825.7218 | GH21: 216134.6221 | GI21: 167774.5004 | GJ21: 0 | GK21: 0 | GL21: 0 | GM21: 0 | GN21: 0 | GO21: 0 | GP21: 1036527.082 | GS21: =IF(Registrering!$B$29="Prosjekter som foregår i UiOs lokaler",IF($B21="Teknisk/adm. bistand/Feltassistent",K21*Tabeller!J$11,K21*Tabeller!J$10),IF($B21="Teknisk/adm. bistand/Feltassistent",K21*Tabeller!J$13,K21*Tabeller!J$12)) -> 0 | GT21: =IF(Registrering!$B$29="Prosjekter som foregår i UiOs lokaler",IF($B21="Teknisk/adm. bistand/Feltassistent",L21*Tabeller!K$11,L21*Tabeller!K$10),IF($B21="Teknisk/adm. bistand/Feltassistent",L21*Tabeller!K$13,L21*Tabeller!K$12)) -> 24063.75 | GU21: =IF(Registrering!$B$29="Prosjekter som foregår i UiOs lokaler",IF($B21="Teknisk/adm. bistand/Feltassistent",M21*Tabeller!L$11,M21*Tabeller!L$10),IF($B21="Teknisk/adm. bistand/Feltassistent",M21*Tabeller!L$13,M21*Tabeller!L$12)) -> 99623.925 | GV21: =IF(Registrering!$B$29="Prosjekter som foregår i UiOs lokaler",IF($B21="Teknisk/adm. bistand/Feltassistent",N21*Tabeller!M$11,N21*Tabeller!M$10),IF($B21="Teknisk/adm. bistand/Feltassistent",N21*Tabeller!M$13,N21*Tabeller!M$12)) -> 103110.7624 | GW21: =IF(Registrering!$B$29="Prosjekter som foregår i UiOs lokaler",IF($B21="Teknisk/adm. bistand/Feltassistent",O21*Tabeller!N$11,O21*Tabeller!N$10),IF($B21="Teknisk/adm. bistand/Feltassistent",O21*Tabeller!N$13,O21*Tabeller!N$12)) -> 106719.6391 | GX21: =IF(Registrering!$B$29="Prosjekter som foregår i UiOs lokaler",IF($B21="Teknisk/adm. bistand/Feltassistent",P21*Tabeller!O$11,P21*Tabeller!O$10),IF($B21="Teknisk/adm. bistand/Feltassistent",P21*Tabeller!O$13,P21*Tabeller!O$12)) -> 110454.8264 | GY21: =IF(Registrering!$B$29="Prosjekter som foregår i UiOs lokaler",IF($B21="Teknisk/adm. bistand/Feltassistent",Q21*Tabeller!P$11,Q21*Tabeller!P$10),IF($B21="Teknisk/adm. bistand/Feltassistent",Q21*Tabeller!P$13,Q21*Tabeller!P$12)) -> 85740.55901 | GZ21: =IF(Registrering!$B$29="Prosjekter som foregår i UiOs lokaler",IF($B21="Teknisk/adm. bistand/Feltassistent",R21*Tabeller!Q$11,R21*Tabeller!Q$10),IF($B21="Teknisk/adm. bistand/Feltassistent",R21*Tabeller!Q$13,R21*Tabeller!Q$12)) -> 0 | HA21: =IF(Registrering!$B$29="Prosjekter som foregår i UiOs lokaler",IF($B21="Teknisk/adm. bistand/Feltassistent",S21*Tabeller!R$11,S21*Tabeller!R$10),IF($B21="Teknisk/adm. bistand/Feltassistent",S21*Tabeller!R$13,S21*Tabeller!R$12)) -> 0 | HB21: =IF(Registrering!$B$29="Prosjekter som foregår i UiOs lokaler",IF($B21="Teknisk/adm. bistand/Feltassistent",T21*Tabeller!S$11,T21*Tabeller!S$10),IF($B21="Teknisk/adm. bistand/Feltassistent",T21*Tabeller!S$13,T21*Tabeller!S$12)) -> 0 | HC21: =IF(Registrering!$B$29="Prosjekter som foregår i UiOs lokaler",IF($B21="Teknisk/adm. bistand/Feltassistent",U21*Tabeller!T$11,U21*Tabeller!T$10),IF($B21="Teknisk/adm. bistand/Feltassistent",U21*Tabeller!T$13,U21*Tabeller!T$12)) -> 0 | HD21: =IF(Registrering!$B$29="Prosjekter som foregår i UiOs lokaler",IF($B21="Teknisk/adm. bistand/Feltassistent",V21*Tabeller!U$11,V21*Tabeller!U$10),IF($B21="Teknisk/adm. bistand/Feltassistent",V21*Tabeller!U$13,V21*Tabeller!U$12)) -> 0 | HE21: =IF(Registrering!$B$29="Prosjekter som foregår i UiOs lokaler",IF($B21="Teknisk/adm. bistand/Feltassistent",W21*Tabeller!V$11,W21*Tabeller!V$10),IF($B21="Teknisk/adm. bistand/Feltassistent",W21*Tabeller!V$13,W21*Tabeller!V$12)) -> 0
B22: Stipendiat | C22: 0 | D22: =SUM(AR22:BD22) -> 2523587.745 | E22: =IFERROR(SUM(BF22:BR22),0) -> 1561346.986 | F22: 4084934.731 | G22: =SUM(K22:W22) -> 3 | H22: Egenandel | I22: 570000 | J22: KD stipendiat | L22: =0.75*3/12 -> 0.1875 | M22: 0.75 | N22: 0.75 | O22: 0.75 | P22: =0.75*0.75 -> 0.5625 | AG22: 570000 | AH22: =AG22*Tabeller!$I$35 -> 597930 | AI22: 540075.1923 | AJ22: =AI22*Tabeller!$H$26 -> 64809.02308 | AK22: =SUM(AI22:AJ22,AL22)*Tabeller!$H$28 -> 92876.40607 | AL22: =AH22*Tabeller!$H$27 -> 53813.7 | AM22: 751574.3215 | AN22: =AM22+(IF(B22="Teknisk adm bistand",Registrering!$E$51,Registrering!$B$51)) -> 1216574.321 | AO22: =AN22/Tabeller!$H$5 -> 747.2815242 | AR22: =((K22*Budsjett!$AM22)) -> 0 | AS22: =((L22*Budsjett!$AM22)*(Tabeller!J$35)) -> 145852.3918 | AT22: =((M22*Budsjett!$AM22)*(Tabeller!K$35)) -> 603828.9019 | AU22: =((N22*Budsjett!$AM22)*(Tabeller!L$35)) -> 624962.9134 | AV22: =((O22*Budsjett!$AM22)*(Tabeller!M$35)) -> 646836.6154 | AW22: =((P22*Budsjett!$AM22)*(Tabeller!N$35)) -> 502106.9227 | AX22: =((Q22*Budsjett!$AM22)*(Tabeller!O$35)) -> 0 | AY22: =((R22*Budsjett!$AM22)*(Tabeller!P$35)) -> 0 | AZ22: =((S22*Budsjett!$AM22)*(Tabeller!Q$35)) -> 0 | BA22: =((T22*Budsjett!$AM22)*(Tabeller!R$35)) -> 0 | BB22: =((U22*Budsjett!$AM22)*(Tabeller!S$35)) -> 0 | BC22: =((V22*Budsjett!$AM22)*(Tabeller!T$35)) -> 0 | BD22: =((W22*Budsjett!$AM22)*(Tabeller!U$35)) -> 0 | BF22: =GS22 -> 0 | BG22: 90239.0625 | BH22: 373589.7187 | BI22: 386665.3589 | BJ22: 400198.6465 | BK22: 310654.1993 | BL22: 0 | BM22: 0 | BN22: 0 | BO22: 0 | BP22: 0 | BQ22: 0 | BR22: 0 | CJ22: 0 | CK22: 90239.0625 | CL22: 373589.7187 | CM22: 386665.3589 | CN22: 400198.6465 | CO22: 310654.1993 | CP22: 0 | CQ22: 0 | CR22: 0 | CS22: 0 | CT22: 0 | CU22: 0 | CV22: 0 | CX22: =B22 -> Stipendiat | DL22: =SUM(CY22:DK22) -> 0 | DO22: Stipendiat | EC22: =SUM(DP22:EB22) -> 0 | EE22: Stipendiat | ES22: =SUM(EF22:ER22) -> 0 | EU22: Stipendiat | FI22: =SUM(EV22:FH22) -> 0 | FK22: Stipendiat | FY22: =SUM(FL22:FX22) -> 0 | GB22: Stipendiat | GC22: 0 | GD22: 145852.3918 | GE22: 603828.9019 | GF22: 624962.9134 | GG22: 646836.6154 | GH22: 502106.9227 | GI22: 0 | GJ22: 0 | GK22: 0 | GL22: 0 | GM22: 0 | GN22: 0 | GO22: 0 | GP22: 2523587.745 | GS22: =IF(Registrering!$B$29="Prosjekter som foregår i UiOs lokaler",IF($B22="Teknisk/adm. bistand/Feltassistent",K22*Tabeller!J$11,K22*Tabeller!J$10),IF($B22="Teknisk/adm. bistand/Feltassistent",K22*Tabeller!J$13,K22*Tabeller!J$12)) -> 0 | GT22: =IF(Registrering!$B$29="Prosjekter som foregår i UiOs lokaler",IF($B22="Teknisk/adm. bistand/Feltassistent",L22*Tabeller!K$11,L22*Tabeller!K$10),IF($B22="Teknisk/adm. bistand/Feltassistent",L22*Tabeller!K$13,L22*Tabeller!K$12)) -> 90239.0625 | GU22: =IF(Registrering!$B$29="Prosjekter som foregår i UiOs lokaler",IF($B22="Teknisk/adm. bistand/Feltassistent",M22*Tabeller!L$11,M22*Tabeller!L$10),IF($B22="Teknisk/adm. bistand/Feltassistent",M22*Tabeller!L$13,M22*Tabeller!L$12)) -> 373589.7187 | GV22: =IF(Registrering!$B$29="Prosjekter som foregår i UiOs lokaler",IF($B22="Teknisk/adm. bistand/Feltassistent",N22*Tabeller!M$11,N22*Tabeller!M$10),IF($B22="Teknisk/adm. bistand/Feltassistent",N22*Tabeller!M$13,N22*Tabeller!M$12)) -> 386665.3589 | GW22: =IF(Registrering!$B$29="Prosjekter som foregår i UiOs lokaler",IF($B22="Teknisk/adm. bistand/Feltassistent",O22*Tabeller!N$11,O22*Tabeller!N$10),IF($B22="Teknisk/adm. bistand/Feltassistent",O22*Tabeller!N$13,O22*Tabeller!N$12)) -> 400198.6465 | GX22: =IF(Registrering!$B$29="Prosjekter som foregår i UiOs lokaler",IF($B22="Teknisk/adm. bistand/Feltassistent",P22*Tabeller!O$11,P22*Tabeller!O$10),IF($B22="Teknisk/adm. bistand/Feltassistent",P22*Tabeller!O$13,P22*Tabeller!O$12)) -> 310654.1993 | GY22: =IF(Registrering!$B$29="Prosjekter som foregår i UiOs lokaler",IF($B22="Teknisk/adm. bistand/Feltassistent",Q22*Tabeller!P$11,Q22*Tabeller!P$10),IF($B22="Teknisk/adm. bistand/Feltassistent",Q22*Tabeller!P$13,Q22*Tabeller!P$12)) -> 0 | GZ22: =IF(Registrering!$B$29="Prosjekter som foregår i UiOs lokaler",IF($B22="Teknisk/adm. bistand/Feltassistent",R22*Tabeller!Q$11,R22*Tabeller!Q$10),IF($B22="Teknisk/adm. bistand/Feltassistent",R22*Tabeller!Q$13,R22*Tabeller!Q$12)) -> 0 | HA22: =IF(Registrering!$B$29="Prosjekter som foregår i UiOs lokaler",IF($B22="Teknisk/adm. bistand/Feltassistent",S22*Tabeller!R$11,S22*Tabeller!R$10),IF($B22="Teknisk/adm. bistand/Feltassistent",S22*Tabeller!R$13,S22*Tabeller!R$12)) -> 0 | HB22: =IF(Registrering!$B$29="Prosjekter som foregår i UiOs lokaler",IF($B22="Teknisk/adm. bistand/Feltassistent",T22*Tabeller!S$11,T22*Tabeller!S$10),IF($B22="Teknisk/adm. bistand/Feltassistent",T22*Tabeller!S$13,T22*Tabeller!S$12)) -> 0 | HC22: =IF(Registrering!$B$29="Prosjekter som foregår i UiOs lokaler",IF($B22="Teknisk/adm. bistand/Feltassistent",U22*Tabeller!T$11,U22*Tabeller!T$10),IF($B22="Teknisk/adm. bistand/Feltassistent",U22*Tabeller!T$13,U22*Tabeller!T$12)) -> 0 | HD22: =IF(Registrering!$B$29="Prosjekter som foregår i UiOs lokaler",IF($B22="Teknisk/adm. bistand/Feltassistent",V22*Tabeller!U$11,V22*Tabeller!U$10),IF($B22="Teknisk/adm. bistand/Feltassistent",V22*Tabeller!U$13,V22*Tabeller!U$12)) -> 0 | HE22: =IF(Registrering!$B$29="Prosjekter som foregår i UiOs lokaler",IF($B22="Teknisk/adm. bistand/Feltassistent",W22*Tabeller!V$11,W22*Tabeller!V$10),IF($B22="Teknisk/adm. bistand/Feltassistent",W22*Tabeller!V$13,W22*Tabeller!V$12)) -> 0
C23: =DL23 -> 0 | D23: =SUM(AR23:BD23) -> 0 | E23: =IFERROR(SUM(BF23:BR23),0) -> 0 | F23: =SUM(D23:E23) -> 0 | G23: =SUM(K23:W23) -> 0 | H23: Egenandel | AG23: 0 | AH23: =AG23*Tabeller!$I$35 -> 0 | AI23: 0 | AJ23: =AI23*Tabeller!$H$26 -> 0 | AK23: =SUM(AI23:AJ23,AL23)*Tabeller!$H$28 -> 0 | AL23: =AH23*Tabeller!$H$27 -> 0 | AM23: 0 | AN23: =AM23+(IF(B23="Teknisk adm bistand",Registrering!$E$51,Registrering!$B$51)) -> 465000 | AO23: =AN23/Tabeller!$H$5 -> 285.6265356 | AR23: =((K23*Budsjett!$AM23)) -> 0 | AS23: =((L23*Budsjett!$AM23)*(Tabeller!J$35)) -> 0 | AT23: =((M23*Budsjett!$AM23)*(Tabeller!K$35)) -> 0 | AU23: =((N23*Budsjett!$AM23)*(Tabeller!L$35)) -> 0 | AV23: =((O23*Budsjett!$AM23)*(Tabeller!M$35)) -> 0 | AW23: =((P23*Budsjett!$AM23)*(Tabeller!N$35)) -> 0 | AX23: =((Q23*Budsjett!$AM23)*(Tabeller!O$35)) -> 0 | AY23: =((R23*Budsjett!$AM23)*(Tabeller!P$35)) -> 0 | AZ23: =((S23*Budsjett!$AM23)*(Tabeller!Q$35)) -> 0 | BA23: =((T23*Budsjett!$AM23)*(Tabeller!R$35)) -> 0 | BB23: =((U23*Budsjett!$AM23)*(Tabeller!S$35)) -> 0 | BC23: =((V23*Budsjett!$AM23)*(Tabeller!T$35)) -> 0 | BD23: =((W23*Budsjett!$AM23)*(Tabeller!U$35)) -> 0 | BF23: =GS23 -> 0 | BG23: =GT23 -> 0 | BH23: =GU23 -> 0 | BI23: =GV23 -> 0 | BJ23: =GW23 -> 0 | BK23: =GX23 -> 0 | BL23: =GY23 -> 0 | BM23: =GZ23 -> 0 | BN23: =HA23 -> 0 | BO23: =HB23 -> 0 | BP23: =HC23 -> 0 | BQ23: =HD23 -> 0 | BR23: =HE23 -> 0 | CJ23: =BF23 -> 0 | CK23: =BG23 -> 0 | CL23: =BH23 -> 0 | CM23: =BI23 -> 0 | CN23: =BJ23 -> 0 | CO23: =BK23 -> 0 | CP23: =BL23 -> 0 | CQ23: =BM23 -> 0 | CR23: =BN23 -> 0 | CS23: =BO23 -> 0 | CT23: =BP23 -> 0 | CU23: =BQ23 -> 0 | CV23: =BR23 -> 0 | CX23: =B23 -> 0 | DL23: 0 | DO23: =CX23 -> 0 | EC23: =SUM(DP23:EB23) -> 0 | EE23: =DO23 -> 0 | ES23: =SUM(EF23:ER23) -> 0 | EU23: =EE23 -> 0 | FI23: =SUM(EV23:FH23) -> 0 | FK23: =EU23 -> 0 | FY23: =SUM(FL23:FX23) -> 0 | GB23: =FK23 -> 0 | GC23: 0 | GD23: 0 | GE23: 0 | GF23: 0 | GG23: 0 | GH23: 0 | GI23: 0 | GJ23: 0 | GK23: 0 | GL23: 0 | GM23: 0 | GN23: 0 | GO23: 0 | GP23: =SUM(GC23:GO23) -> 0 | GS23: =IF(Registrering!$B$29="Prosjekter som foregår i UiOs lokaler",IF($B23="Teknisk/adm. bistand/Feltassistent",K23*Tabeller!J$11,K23*Tabeller!J$10),IF($B23="Teknisk/adm. bistand/Feltassistent",K23*Tabeller!J$13,K23*Tabeller!J$12)) -> 0 | GT23: =IF(Registrering!$B$29="Prosjekter som foregår i UiOs lokaler",IF($B23="Teknisk/adm. bistand/Feltassistent",L23*Tabeller!K$11,L23*Tabeller!K$10),IF($B23="Teknisk/adm. bistand/Feltassistent",L23*Tabeller!K$13,L23*Tabeller!K$12)) -> 0 | GU23: =IF(Registrering!$B$29="Prosjekter som foregår i UiOs lokaler",IF($B23="Teknisk/adm. bistand/Feltassistent",M23*Tabeller!L$11,M23*Tabeller!L$10),IF($B23="Teknisk/adm. bistand/Feltassistent",M23*Tabeller!L$13,M23*Tabeller!L$12)) -> 0 | GV23: =IF(Registrering!$B$29="Prosjekter som foregår i UiOs lokaler",IF($B23="Teknisk/adm. bistand/Feltassistent",N23*Tabeller!M$11,N23*Tabeller!M$10),IF($B23="Teknisk/adm. bistand/Feltassistent",N23*Tabeller!M$13,N23*Tabeller!M$12)) -> 0 | GW23: =IF(Registrering!$B$29="Prosjekter som foregår i UiOs lokaler",IF($B23="Teknisk/adm. bistand/Feltassistent",O23*Tabeller!N$11,O23*Tabeller!N$10),IF($B23="Teknisk/adm. bistand/Feltassistent",O23*Tabeller!N$13,O23*Tabeller!N$12)) -> 0 | GX23: =IF(Registrering!$B$29="Prosjekter som foregår i UiOs lokaler",IF($B23="Teknisk/adm. bistand/Feltassistent",P23*Tabeller!O$11,P23*Tabeller!O$10),IF($B23="Teknisk/adm. bistand/Feltassistent",P23*Tabeller!O$13,P23*Tabeller!O$12)) -> 0 | GY23: =IF(Registrering!$B$29="Prosjekter som foregår i UiOs lokaler",IF($B23="Teknisk/adm. bistand/Feltassistent",Q23*Tabeller!P$11,Q23*Tabeller!P$10),IF($B23="Teknisk/adm. bistand/Feltassistent",Q23*Tabeller!P$13,Q23*Tabeller!P$12)) -> 0 | GZ23: =IF(Registrering!$B$29="Prosjekter som foregår i UiOs lokaler",IF($B23="Teknisk/adm. bistand/Feltassistent",R23*Tabeller!Q$11,R23*Tabeller!Q$10),IF($B23="Teknisk/adm. bistand/Feltassistent",R23*Tabeller!Q$13,R23*Tabeller!Q$12)) -> 0 | HA23: =IF(Registrering!$B$29="Prosjekter som foregår i UiOs lokaler",IF($B23="Teknisk/adm. bistand/Feltassistent",S23*Tabeller!R$11,S23*Tabeller!R$10),IF($B23="Teknisk/adm. bistand/Feltassistent",S23*Tabeller!R$13,S23*Tabeller!R$12)) -> 0 | HB23: =IF(Registrering!$B$29="Prosjekter som foregår i UiOs lokaler",IF($B23="Teknisk/adm. bistand/Feltassistent",T23*Tabeller!S$11,T23*Tabeller!S$10),IF($B23="Teknisk/adm. bistand/Feltassistent",T23*Tabeller!S$13,T23*Tabeller!S$12)) -> 0 | HC23: =IF(Registrering!$B$29="Prosjekter som foregår i UiOs lokaler",IF($B23="Teknisk/adm. bistand/Feltassistent",U23*Tabeller!T$11,U23*Tabeller!T$10),IF($B23="Teknisk/adm. bistand/Feltassistent",U23*Tabeller!T$13,U23*Tabeller!T$12)) -> 0 | HD23: =IF(Registrering!$B$29="Prosjekter som foregår i UiOs lokaler",IF($B23="Teknisk/adm. bistand/Feltassistent",V23*Tabeller!U$11,V23*Tabeller!U$10),IF($B23="Teknisk/adm. bistand/Feltassistent",V23*Tabeller!U$13,V23*Tabeller!U$12)) -> 0 | HE23: =IF(Registrering!$B$29="Prosjekter som foregår i UiOs lokaler",IF($B23="Teknisk/adm. bistand/Feltassistent",W23*Tabeller!V$11,W23*Tabeller!V$10),IF($B23="Teknisk/adm. bistand/Feltassistent",W23*Tabeller!V$13,W23*Tabeller!V$12)) -> 0
B24: Sum frikjøp art 5896 | C24: =SUM(C20:C23) -> 0 | D24: =SUM(D20:D23) -> 4596641.909 | E24: =SUM(E20:E23) -> 2620773.91 | F24: =SUM(F20:F23) -> 7217415.818 | G24: =SUM(G20:G23) -> 5 | K24: =SUM(K20:K23) -> 0 | L24: 0.2875 | M24: 1.15 | N24: 1.15 | O24: 1.15 | P24: 0.9625 | Q24: 0.3 | R24: 0 | S24: 0 | T24: 0 | U24: 0 | V24: 0 | W24: 0 | AR24: =SUM(AR20:AR23) -> 0 | AS24: 240026.81 | AT24: 993710.9936 | AU24: 1028490.878 | AV24: 1064488.059 | AW24: 934376.1669 | AX24: 335549.0008 | AY24: 0 | AZ24: 0 | BA24: 0 | BB24: 0 | BC24: 0 | BD24: 0 | BE24: =SUM(AR24:BD24) -> 4596641.909 | BF24: =SUM(BF20:BF23) -> 0 | BG24: 138366.5625 | BH24: 572837.5687 | BI24: 592886.8837 | BJ24: 613637.9246 | BK24: 531563.8522 | BL24: 171481.118 | BM24: 0 | BN24: 0 | BO24: 0 | BP24: 0 | BQ24: 0 | BR24: 0 | BS24: =SUM(BF24:BR24) -> 2620773.91 | BU24: =SUM(BU20:BU23) -> 0 | BV24: 0 | BW24: 0 | BX24: 0 | BY24: 0 | BZ24: 0 | CA24: 0 | CB24: 0 | CC24: 0 | CD24: 0 | CE24: 0 | CF24: 0 | CG24: 0 | CJ24: =SUM(CJ20:CJ23) -> 0 | CK24: 138366.5625 | CL24: 572837.5687 | CM24: 592886.8837 | CN24: 613637.9246 | CO24: 531563.8522 | CP24: 171481.118 | CQ24: 0 | CR24: 0 | CS24: 0 | CT24: 0 | CU24: 0 | CV24: 0 | CX24: =B24 -> Sum frikjøp art 5896 | DL24: 0 | DO24: Sum frikjøp art 5896 | EC24: 0 | EE24: Sum frikjøp art 5896 | ES24: 0 | EU24: Sum frikjøp art 5896 | FI24: 0 | FK24: Sum frikjøp art 5896 | FY24: 0 | GB24: Sum frikjøp art 5896 | GC24: =SUM(GC20:GC23) -> 0 | GD24: 240026.81 | GE24: 993710.9936 | GF24: 1028490.878 | GG24: 1064488.059 | GH24: 934376.1669 | GI24: 335549.0008 | GJ24: 0 | GK24: 0 | GL24: 0 | GM24: 0 | GN24: 0 | GO24: 0 | GP24: 4596641.909 | GS24: =SUM(GS20:GS23) -> 0 | GT24: 138366.5625 | GU24: 572837.5687 | GV24: 592886.8837 | GW24: 613637.9246 | GX24: 531563.8522 | GY24: 171481.118 | GZ24: 0 | HA24: 0 | HB24: 0 | HC24: 0 | HD24: 0 | HE24: 0
K25: TIMER | EE25: 0 | EU25: 0 | FK25: 0 | GB25: 0
B26: Timelønn | C26: Inntekter | D26: Lønn og sos. kostn. | E26: Overhead | F26: Totalt | G26: Årsv | H26: Finansiør | I26: Årslønn | J26: Navn | K26: =K19 -> 2024 | L26: 2025 | M26: 2026 | N26: 2027 | O26: 2028 | P26: 2029 | Q26: 2030 | R26: 2031 | S26: 2032 | T26: 2033 | U26: 2034 | V26: 2035 | W26: 2036 | AG26: Bruttolønn | AH26: inkl lønnsv. | AI26: Lønn | AJ26: Feriep | AK26: AGA | AL26: Pensjon | AM26: inkl sos.avg. | AN26: inkl. ind.kost. | AO26: Timesats | AR26: =K26 -> 2024 | AS26: 2025 | AT26: 2026 | AU26: 2027 | AV26: 2028 | AW26: 2029 | AX26: 2030 | AY26: 2031 | AZ26: 2032 | BA26: 2033 | BB26: 2034 | BC26: 2035 | BD26: 2036 | BF26: =AR26 -> 2024 | BG26: 2025 | BH26: 2026 | BI26: 2027 | BJ26: 2028 | BK26: 2029 | BL26: 2030 | BM26: 2031 | BN26: 2032 | BO26: 2033 | BP26: =BB26 -> 2034 | BQ26: 2035 | BR26: 2036 | BU26: =BF26 -> 2024 | BV26: 2025 | BW26: 2026 | BX26: 2027 | BY26: 2028 | BZ26: 2029 | CA26: 2030 | CB26: 2031 | CC26: 2032 | CD26: =BO26 -> 2033 | CE26: =BP26 -> 2034 | CF26: =BQ26 -> 2035 | CG26: =BR26 -> 2036 | CJ26: =CY26 -> 2024 | CK26: 2025 | CL26: 2026 | CM26: 2027 | CN26: 2028 | CO26: 2029 | CP26: 2030 | CQ26: 2031 | CR26: 2032 | CS26: 2033 | CT26: =DI26 -> 2034 | CU26: =DJ26 -> 2035 | CV26: =DK26 -> 2036 | CY26: =BU26 -> 2024 | CZ26: 2025 | DA26: 2026 | DB26: 2027 | DC26: 2028 | DD26: 2029 | DE26: 2030 | DF26: 2031 | DG26: 2032 | DH26: 2033 | DI26: =CE26 -> 2034 | DJ26: 2035 | DK26: 2036 | DL26: Totalt | DP26: =BU26 -> 2024 | DQ26: 2025 | DR26: 2026 | DS26: 2027 | DT26: 2028 | DU26: 2029 | DV26: 2030 | DW26: 2031 | DX26: 2032 | DY26: 2033 | DZ26: =CE26 -> 2034 | EA26: =CF26 -> 2035 | EB26: =CG26 -> 2036 | EC26: =EC3 -> Totalt | EE26: 0 | EF26: =EF19 -> 2024 | EG26: 2025 | EH26: 2026 | EI26: 2027 | EJ26: 2028 | EK26: 2029 | EL26: 2030 | EM26: 2031 | EN26: 2032 | EO26: 2033 | EP26: 2034 | EQ26: 2035 | ER26: 2036 | ES26: Totalt | EU26: 0 | EV26: =EV19 -> 2024 | EW26: 2025 | EX26: 2026 | EY26: 2027 | EZ26: 2028 | FA26: 2029 | FB26: 2030 | FC26: 2031 | FD26: 2032 | FE26: 2033 | FF26: 2034 | FG26: 2035 | FH26: 2036 | FI26: Totalt | FK26: 0 | FL26: =FL19 -> 2024 | FM26: 2025 | FN26: 2026 | FO26: 2027 | FP26: 2028 | FQ26: 2029 | FR26: 2030 | FS26: 2031 | FT26: 2032 | FU26: 2033 | FV26: 2034 | FW26: 2035 | FX26: 2036 | FY26: Totalt | GB26: 0 | GC26: =GC19 -> 2024 | GD26: 2025 | GE26: 2026 | GF26: 2027 | GG26: 2028 | GH26: 2029 | GI26: 2030 | GJ26: 2031 | GK26: 2032 | GL26: 2033 | GM26: 2034 | GN26: 2035 | GO26: 2036 | GP26: Totalt | GS26: =AR26 -> 2024 | GT26: 2025 | GU26: 2026 | GV26: 2027 | GW26: 2028 | GX26: 2029 | GY26: 2030 | GZ26: 2031 | HA26: 2032 | HB26: 2033 | HC26: =BB26 -> 2034 | HD26: =BC26 -> 2035 | HE26: =BD26 -> 2036
C27: =IF(Registrering!$B$28="Fast beløp",0,IF(Registrering!$B$28="Sats for ekst. fin. overhead",0,DL27)) -> 0 | D27: =SUM(AR27:BD27) -> 0 | E27: =IFERROR(SUM(BF27:BR27),0) -> 0 | F27: =SUM(D27:E27) -> 0 | G27: =SUM(K27:W27)/Tabeller!$H$5 -> 0 | AG27: =I27 -> 0 | AH27: =AG27*Tabeller!$I$35 -> 0 | AI27: =IF(AG27>0,(AH27-400)/52*47,0) -> 0 | AJ27: =AI27*Tabeller!$H$26 -> 0 | AK27: =SUM(AI27:AJ27,AL27)*Tabeller!$H$28 -> 0 | AL27: =AH27*Tabeller!$H$27 -> 0 | AM27: =SUM(AI27:AL27) -> 0 | AN27: =AM27+(IF(B27="Teknisk adm bistand",Registrering!$E$51,Registrering!$B$51)) -> 465000 | AO27: =AM27/Tabeller!$H$5 -> 0 | AR27: =((K27*Budsjett!$AO27)*(Tabeller!I$37)) -> 0 | AS27: =((L27*Budsjett!$AO27)*(Tabeller!J$35)) -> 0 | AT27: =((M27*Budsjett!$AO27)*(Tabeller!K$35)) -> 0 | AU27: =((N27*Budsjett!$AO27)*(Tabeller!L$35)) -> 0 | AV27: =((O27*Budsjett!$AO27)*(Tabeller!M$35)) -> 0 | AW27: =((P27*Budsjett!$AO27)*(Tabeller!N$35)) -> 0 | AX27: =((Q27*Budsjett!$AO27)*(Tabeller!O$35)) -> 0 | AY27: =((R27*Budsjett!$AO27)*(Tabeller!P$35)) -> 0 | AZ27: =((S27*Budsjett!$AO27)*(Tabeller!Q$35)) -> 0 | BA27: =((T27*Budsjett!$AO27)*(Tabeller!R$35)) -> 0 | BB27: =((U27*Budsjett!$AO27)*(Tabeller!S$35)) -> 0 | BC27: =((V27*Budsjett!$AO27)*(Tabeller!T$35)) -> 0 | BD27: =((W27*Budsjett!$AO27)*(Tabeller!U$35)) -> 0 | BF27: =IFERROR(IF($E$71>$E$70,BU27,GS27),0) -> 0 | BG27: 0 | BH27: 0 | BI27: 0 | BJ27: 0 | BK27: 0 | BL27: 0 | BM27: 0 | BN27: 0 | BO27: 0 | BP27: 0 | BQ27: 0 | BR27: 0 | BU27: =IFERROR(IF($F$85=$K$84,AR27*$E$72,AR27*Budsjett!$F$85),0) -> 0 | BV27: =IFERROR(IF($F$85=$K$84,AS27*$E$72,AS27*Budsjett!$F$85),0) -> 0 | BW27: =IFERROR(IF($F$85=$K$84,AT27*$E$72,AT27*Budsjett!$F$85),0) -> 0 | BX27: =IFERROR(IF($F$85=$K$84,AU27*$E$72,AU27*Budsjett!$F$85),0) -> 0 | BY27: =IFERROR(IF($F$85=$K$84,AV27*$E$72,AV27*Budsjett!$F$85),0) -> 0 | BZ27: =IFERROR(IF($F$85=$K$84,AW27*$E$72,AW27*Budsjett!$F$85),0) -> 0 | CA27: =IFERROR(IF($F$85=$K$84,AX27*$E$72,AX27*Budsjett!$F$85),0) -> 0 | CB27: =IFERROR(IF($F$85=$K$84,AY27*$E$72,AY27*Budsjett!$F$85),0) -> 0 | CC27: =IFERROR(IF($F$85=$K$84,AZ27*$E$72,AZ27*Budsjett!$F$85),0) -> 0 | CD27: =IFERROR(IF($F$85=$K$84,BA27*$E$72,BA27*Budsjett!$F$85),0) -> 0 | CE27: =IFERROR(IF($F$85=$K$84,BB27*$E$72,BB27*Budsjett!$F$85),0) -> 0 | CF27: =IFERROR(IF($F$85=$K$84,BC27*$E$72,BC27*Budsjett!$F$85),0) -> 0 | CG27: =IFERROR(IF($F$85=$K$84,BD27*$E$72,BD27*Budsjett!$F$85),0) -> 0 | CJ27: =BF27-BU27 -> 0 | CK27: 0 | CL27: 0 | CM27: 0 | CN27: 0 | CO27: 0 | CP27: 0 | CQ27: 0 | CR27: 0 | CS27: =BO27-CD27 -> 0 | CT27: =BP27-CE27 -> 0 | CU27: =BQ27-CF27 -> 0 | CV27: =BR27-CG27 -> 0 | CX27: =B27 -> 0 | CY27: =-(AR27*(1+Tabeller!$I$68)) -> 0 | CZ27: =-(AS27*(1+Tabeller!$I$68)) -> 0 | DA27: =-(AT27*(1+Tabeller!$I$68)) -> 0 | DB27: =-(AU27*(1+Tabeller!$I$68)) -> 0 | DC27: =-(AV27*(1+Tabeller!$I$68)) -> 0 | DD27: =-(AW27*(1+Tabeller!$I$68)) -> 0 | DE27: =-(AX27*(1+Tabeller!$I$68)) -> 0 | DF27: =-(AY27*(1+Tabeller!$I$68)) -> 0 | DG27: =-(AZ27*(1+Tabeller!$I$68)) -> 0 | DH27: =-(BA27*(1+Tabeller!$I$68)) -> 0 | DI27: =-(BB27*(1+Tabeller!$I$68)) -> 0 | DJ27: =-(BC27*(1+Tabeller!$I$68)) -> 0 | DK27: =-(BD27*(1+Tabeller!$I$68)) -> 0 | DL27: =SUM(CY27:DK27) -> 0 | DO27: =CX27 -> 0 | DP27: =IF($H27="NFR",CY27,0) -> 0 | DQ27: 0 | DR27: 0 | DS27: 0 | DT27: 0 | DU27: 0 | DV27: 0 | DW27: 0 | DX27: 0 | DY27: 0 | DZ27: =IF($H27="NFR",DI27,0) -> 0 | EA27: =IF($H27="NFR",DJ27,0) -> 0 | EB27: =IF($H27="NFR",DK27,0) -> 0 | EC27: =SUM(DP27:EB27) -> 0 | EE27: 0 | EF27: =IF($H27=$EE$1,CY27,0) -> 0 | EG27: 0 | EH27: 0 | EI27: 0 | EJ27: 0 | EK27: 0 | EL27: 0 | EM27: 0 | EN27: 0 | EO27: 0 | EP27: 0 | EQ27: 0 | ER27: 0 | ES27: =SUM(EF27:ER27) -> 0 | EU27: 0 | EV27: =IF($H27=$EU$1,CY27,0) -> 0 | EW27: 0 | EX27: 0 | EY27: 0 | EZ27: 0 | FA27: 0 | FB27: 0 | FC27: 0 | FD27: 0 | FE27: 0 | FF27: 0 | FG27: 0 | FH27: 0 | FI27: =SUM(EV27:FH27) -> 0 | FK27: 0 | FL27: =IF($H27=$FK$1,CY27,0) -> 0 | FM27: 0 | FN27: 0 | FO27: 0 | FP27: 0 | FQ27: 0 | FR27: 0 | FS27: 0 | FT27: 0 | FU27: 0 | FV27: 0 | FW27: 0 | FX27: 0 | FY27: =SUM(FL27:FX27) -> 0 | GB27: 0 | GP27: =SUM(GC27:GO27) -> 0 | GS27: =IF(Registrering!$B$29="Prosjekter som foregår i UiOs lokaler",IF($B27="Teknisk/adm. bistand/Feltassistent",K27*Tabeller!J$11,K27*Tabeller!J$10)/Tabeller!$H$5,IF($B27="Teknisk/adm. bistand/Feltassistent",K27*Tabeller!J$13,K27*Tabeller!J$12)/Tabeller!$H$5) -> 0 | GT27: =IF(Registrering!$B$29="Prosjekter som foregår i UiOs lokaler",IF($B27="Teknisk/adm. bistand/Feltassistent",L27*Tabeller!K$11,L27*Tabeller!K$10)/Tabeller!$H$5,IF($B27="Teknisk/adm. bistand/Feltassistent",L27*Tabeller!K$13,L27*Tabeller!K$12)/Tabeller!$H$5) -> 0 | GU27: =IF(Registrering!$B$29="Prosjekter som foregår i UiOs lokaler",IF($B27="Teknisk/adm. bistand/Feltassistent",M27*Tabeller!L$11,M27*Tabeller!L$10)/Tabeller!$H$5,IF($B27="Teknisk/adm. bistand/Feltassistent",M27*Tabeller!L$13,M27*Tabeller!L$12)/Tabeller!$H$5) -> 0 | GV27: =IF(Registrering!$B$29="Prosjekter som foregår i UiOs lokaler",IF($B27="Teknisk/adm. bistand/Feltassistent",N27*Tabeller!M$11,N27*Tabeller!M$10)/Tabeller!$H$5,IF($B27="Teknisk/adm. bistand/Feltassistent",N27*Tabeller!M$13,N27*Tabeller!M$12)/Tabeller!$H$5) -> 0 | GW27: =IF(Registrering!$B$29="Prosjekter som foregår i UiOs lokaler",IF($B27="Teknisk/adm. bistand/Feltassistent",O27*Tabeller!N$11,O27*Tabeller!N$10)/Tabeller!$H$5,IF($B27="Teknisk/adm. bistand/Feltassistent",O27*Tabeller!N$13,O27*Tabeller!N$12)/Tabeller!$H$5) -> 0 | GX27: =IF(Registrering!$B$29="Prosjekter som foregår i UiOs lokaler",IF($B27="Teknisk/adm. bistand/Feltassistent",P27*Tabeller!O$11,P27*Tabeller!O$10)/Tabeller!$H$5,IF($B27="Teknisk/adm. bistand/Feltassistent",P27*Tabeller!O$13,P27*Tabeller!O$12)/Tabeller!$H$5) -> 0 | GY27: =IF(Registrering!$B$29="Prosjekter som foregår i UiOs lokaler",IF($B27="Teknisk/adm. bistand/Feltassistent",Q27*Tabeller!P$11,Q27*Tabeller!P$10)/Tabeller!$H$5,IF($B27="Teknisk/adm. bistand/Feltassistent",Q27*Tabeller!P$13,Q27*Tabeller!P$12)/Tabeller!$H$5) -> 0 | GZ27: =IF(Registrering!$B$29="Prosjekter som foregår i UiOs lokaler",IF($B27="Teknisk/adm. bistand/Feltassistent",R27*Tabeller!Q$11,R27*Tabeller!Q$10)/Tabeller!$H$5,IF($B27="Teknisk/adm. bistand/Feltassistent",R27*Tabeller!Q$13,R27*Tabeller!Q$12)/Tabeller!$H$5) -> 0 | HA27: =IF(Registrering!$B$29="Prosjekter som foregår i UiOs lokaler",IF($B27="Teknisk/adm. bistand/Feltassistent",S27*Tabeller!R$11,S27*Tabeller!R$10)/Tabeller!$H$5,IF($B27="Teknisk/adm. bistand/Feltassistent",S27*Tabeller!R$13,S27*Tabeller!R$12)/Tabeller!$H$5) -> 0 | HB27: =IF(Registrering!$B$29="Prosjekter som foregår i UiOs lokaler",IF($B27="Teknisk/adm. bistand/Feltassistent",T27*Tabeller!S$11,T27*Tabeller!S$10)/Tabeller!$H$5,IF($B27="Teknisk/adm. bistand/Feltassistent",T27*Tabeller!S$13,T27*Tabeller!S$12)/Tabeller!$H$5) -> 0 | HC27: =IF(Registrering!$B$29="Prosjekter som foregår i UiOs lokaler",IF($B27="Teknisk/adm. bistand/Feltassistent",U27*Tabeller!T$11,U27*Tabeller!T$10)/Tabeller!$H$5,IF($B27="Teknisk/adm. bistand/Feltassistent",U27*Tabeller!T$13,U27*Tabeller!T$12)/Tabeller!$H$5) -> 0 | HD27: =IF(Registrering!$B$29="Prosjekter som foregår i UiOs lokaler",IF($B27="Teknisk/adm. bistand/Feltassistent",V27*Tabeller!U$11,V27*Tabeller!U$10)/Tabeller!$H$5,IF($B27="Teknisk/adm. bistand/Feltassistent",V27*Tabeller!U$13,V27*Tabeller!U$12)/Tabeller!$H$5) -> 0 | HE27: =IF(Registrering!$B$29="Prosjekter som foregår i UiOs lokaler",IF($B27="Teknisk/adm. bistand/Feltassistent",W27*Tabeller!V$11,W27*Tabeller!V$10)/Tabeller!$H$5,IF($B27="Teknisk/adm. bistand/Feltassistent",W27*Tabeller!V$13,W27*Tabeller!V$12)/Tabeller!$H$5) -> 0
C28: =IF(Registrering!$B$28="Fast beløp",0,IF(Registrering!$B$28="Sats for ekst. fin. overhead",0,DL28)) -> 0 | D28: =SUM(AR28:BD28) -> 0 | E28: =IFERROR(SUM(BF28:BR28),0) -> 0 | F28: 0 | G28: =SUM(K28:W28)/Tabeller!$H$5 -> 0 | AG28: =I28 -> 0 | AH28: =AG28*Tabeller!$I$35 -> 0 | AI28: 0 | AJ28: =AI28*Tabeller!$H$26 -> 0 | AK28: =SUM(AI28:AJ28,AL28)*Tabeller!$H$28 -> 0 | AL28: =AH28*Tabeller!$H$27 -> 0 | AM28: =SUM(AI28:AL28) -> 0 | AN28: =AM28+(IF(B28="Teknisk adm bistand",Registrering!$E$51,Registrering!$B$51)) -> 465000 | AO28: =AM28/Tabeller!$H$5 -> 0 | AR28: =((K28*Budsjett!$AO28)*(Tabeller!I$37)) -> 0 | AS28: =((L28*Budsjett!$AO28)*(Tabeller!J$35)) -> 0 | AT28: =((M28*Budsjett!$AO28)*(Tabeller!K$35)) -> 0 | AU28: =((N28*Budsjett!$AO28)*(Tabeller!L$35)) -> 0 | AV28: =((O28*Budsjett!$AO28)*(Tabeller!M$35)) -> 0 | AW28: =((P28*Budsjett!$AO28)*(Tabeller!N$35)) -> 0 | AX28: =((Q28*Budsjett!$AO28)*(Tabeller!O$35)) -> 0 | AY28: =((R28*Budsjett!$AO28)*(Tabeller!P$35)) -> 0 | AZ28: =((S28*Budsjett!$AO28)*(Tabeller!Q$35)) -> 0 | BA28: =((T28*Budsjett!$AO28)*(Tabeller!R$35)) -> 0 | BB28: =((U28*Budsjett!$AO28)*(Tabeller!S$35)) -> 0 | BC28: =((V28*Budsjett!$AO28)*(Tabeller!T$35)) -> 0 | BD28: =((W28*Budsjett!$AO28)*(Tabeller!U$35)) -> 0 | BF28: 0 | BG28: 0 | BH28: 0 | BI28: 0 | BJ28: 0 | BK28: 0 | BL28: 0 | BM28: 0 | BN28: 0 | BO28: 0 | BP28: 0 | BQ28: 0 | BR28: 0 | BU28: =IFERROR(IF($F$85=$K$84,AR28*$E$72,AR28*Budsjett!$F$85),0) -> 0 | BV28: =IFERROR(IF($F$85=$K$84,AS28*$E$72,AS28*Budsjett!$F$85),0) -> 0 | BW28: =IFERROR(IF($F$85=$K$84,AT28*$E$72,AT28*Budsjett!$F$85),0) -> 0 | BX28: =IFERROR(IF($F$85=$K$84,AU28*$E$72,AU28*Budsjett!$F$85),0) -> 0 | BY28: =IFERROR(IF($F$85=$K$84,AV28*$E$72,AV28*Budsjett!$F$85),0) -> 0 | BZ28: =IFERROR(IF($F$85=$K$84,AW28*$E$72,AW28*Budsjett!$F$85),0) -> 0 | CA28: =IFERROR(IF($F$85=$K$84,AX28*$E$72,AX28*Budsjett!$F$85),0) -> 0 | CB28: =IFERROR(IF($F$85=$K$84,AY28*$E$72,AY28*Budsjett!$F$85),0) -> 0 | CC28: =IFERROR(IF($F$85=$K$84,AZ28*$E$72,AZ28*Budsjett!$F$85),0) -> 0 | CD28: =IFERROR(IF($F$85=$K$84,BA28*$E$72,BA28*Budsjett!$F$85),0) -> 0 | CE28: =IFERROR(IF($F$85=$K$84,BB28*$E$72,BB28*Budsjett!$F$85),0) -> 0 | CF28: =IFERROR(IF($F$85=$K$84,BC28*$E$72,BC28*Budsjett!$F$85),0) -> 0 | CG28: =IFERROR(IF($F$85=$K$84,BD28*$E$72,BD28*Budsjett!$F$85),0) -> 0 | CJ28: 0 | CK28: 0 | CL28: 0 | CM28: 0 | CN28: 0 | CO28: 0 | CP28: 0 | CQ28: 0 | CR28: 0 | CS28: 0 | CT28: 0 | CU28: 0 | CV28: 0 | CX28: =B28 -> 0 | CY28: =-(AR28*(1+Tabeller!$I$68)) -> 0 | CZ28: =-(AS28*(1+Tabeller!$I$68)) -> 0 | DA28: =-(AT28*(1+Tabeller!$I$68)) -> 0 | DB28: =-(AU28*(1+Tabeller!$I$68)) -> 0 | DC28: =-(AV28*(1+Tabeller!$I$68)) -> 0 | DD28: =-(AW28*(1+Tabeller!$I$68)) -> 0 | DE28: =-(AX28*(1+Tabeller!$I$68)) -> 0 | DF28: =-(AY28*(1+Tabeller!$I$68)) -> 0 | DG28: =-(AZ28*(1+Tabeller!$I$68)) -> 0 | DH28: =-(BA28*(1+Tabeller!$I$68)) -> 0 | DI28: =-(BB28*(1+Tabeller!$I$68)) -> 0 | DJ28: =-(BC28*(1+Tabeller!$I$68)) -> 0 | DK28: =-(BD28*(1+Tabeller!$I$68)) -> 0 | DL28: 0 | DO28: 0 | DP28: 0 | DQ28: 0 | DR28: 0 | DS28: 0 | DT28: 0 | DU28: 0 | DV28: 0 | DW28: 0 | DX28: 0 | DY28: 0 | DZ28: 0 | EA28: 0 | EB28: 0 | EC28: 0 | EE28: 0 | EF28: 0 | EG28: 0 | EH28: 0 | EI28: 0 | EJ28: 0 | EK28: 0 | EL28: 0 | EM28: 0 | EN28: 0 | EO28: 0 | EP28: 0 | EQ28: 0 | ER28: 0 | ES28: 0 | EU28: 0 | EV28: 0 | EW28: 0 | EX28: 0 | EY28: 0 | EZ28: 0 | FA28: 0 | FB28: 0 | FC28: 0 | FD28: 0 | FE28: 0 | FF28: 0 | FG28: 0 | FH28: 0 | FI28: 0 | FK28: 0 | FL28: 0 | FM28: 0 | FN28: 0 | FO28: 0 | FP28: 0 | FQ28: 0 | FR28: 0 | FS28: 0 | FT28: 0 | FU28: 0 | FV28: 0 | FW28: 0 | FX28: 0 | FY28: 0 | GB28: 0 | GP28: 0 | GS28: =IF(Registrering!$B$29="Prosjekter som foregår i UiOs lokaler",IF($B28="Teknisk/adm. bistand/Feltassistent",K28*Tabeller!J$11,K28*Tabeller!J$10)/Tabeller!$H$5,IF($B28="Teknisk/adm. bistand/Feltassistent",K28*Tabeller!J$13,K28*Tabeller!J$12)/Tabeller!$H$5) -> 0 | GT28: =IF(Registrering!$B$29="Prosjekter som foregår i UiOs lokaler",IF($B28="Teknisk/adm. bistand/Feltassistent",L28*Tabeller!K$11,L28*Tabeller!K$10)/Tabeller!$H$5,IF($B28="Teknisk/adm. bistand/Feltassistent",L28*Tabeller!K$13,L28*Tabeller!K$12)/Tabeller!$H$5) -> 0 | GU28: =IF(Registrering!$B$29="Prosjekter som foregår i UiOs lokaler",IF($B28="Teknisk/adm. bistand/Feltassistent",M28*Tabeller!L$11,M28*Tabeller!L$10)/Tabeller!$H$5,IF($B28="Teknisk/adm. bistand/Feltassistent",M28*Tabeller!L$13,M28*Tabeller!L$12)/Tabeller!$H$5) -> 0 | GV28: =IF(Registrering!$B$29="Prosjekter som foregår i UiOs lokaler",IF($B28="Teknisk/adm. bistand/Feltassistent",N28*Tabeller!M$11,N28*Tabeller!M$10)/Tabeller!$H$5,IF($B28="Teknisk/adm. bistand/Feltassistent",N28*Tabeller!M$13,N28*Tabeller!M$12)/Tabeller!$H$5) -> 0 | GW28: =IF(Registrering!$B$29="Prosjekter som foregår i UiOs lokaler",IF($B28="Teknisk/adm. bistand/Feltassistent",O28*Tabeller!N$11,O28*Tabeller!N$10)/Tabeller!$H$5,IF($B28="Teknisk/adm. bistand/Feltassistent",O28*Tabeller!N$13,O28*Tabeller!N$12)/Tabeller!$H$5) -> 0 | GX28: =IF(Registrering!$B$29="Prosjekter som foregår i UiOs lokaler",IF($B28="Teknisk/adm. bistand/Feltassistent",P28*Tabeller!O$11,P28*Tabeller!O$10)/Tabeller!$H$5,IF($B28="Teknisk/adm. bistand/Feltassistent",P28*Tabeller!O$13,P28*Tabeller!O$12)/Tabeller!$H$5) -> 0 | GY28: =IF(Registrering!$B$29="Prosjekter som foregår i UiOs lokaler",IF($B28="Teknisk/adm. bistand/Feltassistent",Q28*Tabeller!P$11,Q28*Tabeller!P$10)/Tabeller!$H$5,IF($B28="Teknisk/adm. bistand/Feltassistent",Q28*Tabeller!P$13,Q28*Tabeller!P$12)/Tabeller!$H$5) -> 0 | GZ28: =IF(Registrering!$B$29="Prosjekter som foregår i UiOs lokaler",IF($B28="Teknisk/adm. bistand/Feltassistent",R28*Tabeller!Q$11,R28*Tabeller!Q$10)/Tabeller!$H$5,IF($B28="Teknisk/adm. bistand/Feltassistent",R28*Tabeller!Q$13,R28*Tabeller!Q$12)/Tabeller!$H$5) -> 0 | HA28: =IF(Registrering!$B$29="Prosjekter som foregår i UiOs lokaler",IF($B28="Teknisk/adm. bistand/Feltassistent",S28*Tabeller!R$11,S28*Tabeller!R$10)/Tabeller!$H$5,IF($B28="Teknisk/adm. bistand/Feltassistent",S28*Tabeller!R$13,S28*Tabeller!R$12)/Tabeller!$H$5) -> 0 | HB28: =IF(Registrering!$B$29="Prosjekter som foregår i UiOs lokaler",IF($B28="Teknisk/adm. bistand/Feltassistent",T28*Tabeller!S$11,T28*Tabeller!S$10)/Tabeller!$H$5,IF($B28="Teknisk/adm. bistand/Feltassistent",T28*Tabeller!S$13,T28*Tabeller!S$12)/Tabeller!$H$5) -> 0 | HC28: =IF(Registrering!$B$29="Prosjekter som foregår i UiOs lokaler",IF($B28="Teknisk/adm. bistand/Feltassistent",U28*Tabeller!T$11,U28*Tabeller!T$10)/Tabeller!$H$5,IF($B28="Teknisk/adm. bistand/Feltassistent",U28*Tabeller!T$13,U28*Tabeller!T$12)/Tabeller!$H$5) -> 0 | HD28: =IF(Registrering!$B$29="Prosjekter som foregår i UiOs lokaler",IF($B28="Teknisk/adm. bistand/Feltassistent",V28*Tabeller!U$11,V28*Tabeller!U$10)/Tabeller!$H$5,IF($B28="Teknisk/adm. bistand/Feltassistent",V28*Tabeller!U$13,V28*Tabeller!U$12)/Tabeller!$H$5) -> 0 | HE28: =IF(Registrering!$B$29="Prosjekter som foregår i UiOs lokaler",IF($B28="Teknisk/adm. bistand/Feltassistent",W28*Tabeller!V$11,W28*Tabeller!V$10)/Tabeller!$H$5,IF($B28="Teknisk/adm. bistand/Feltassistent",W28*Tabeller!V$13,W28*Tabeller!V$12)/Tabeller!$H$5) -> 0
C29: =IF(Registrering!$B$28="Fast beløp",0,IF(Registrering!$B$28="Sats for ekst. fin. overhead",0,DL29)) -> 0 | D29: =SUM(AR29:BD29) -> 0 | E29: =IFERROR(SUM(BF29:BR29),0) -> 0 | F29: =SUM(D29:E29) -> 0 | G29: =SUM(K29:W29)/Tabeller!$H$5 -> 0 | AG29: 0 | AH29: =AG29*Tabeller!$I$35 -> 0 | AI29: 0 | AJ29: =AI29*Tabeller!$H$26 -> 0 | AK29: =SUM(AI29:AJ29,AL29)*Tabeller!$H$28 -> 0 | AL29: =AH29*Tabeller!$H$27 -> 0 | AM29: 0 | AN29: =AM29+(IF(B29="Teknisk adm bistand",Registrering!$E$51,Registrering!$B$51)) -> 465000 | AO29: =AM29/Tabeller!$H$5 -> 0 | AR29: =((K29*Budsjett!$AO29)*(Tabeller!I$37)) -> 0 | AS29: =((L29*Budsjett!$AO29)*(Tabeller!J$35)) -> 0 | AT29: =((M29*Budsjett!$AO29)*(Tabeller!K$35)) -> 0 | AU29: =((N29*Budsjett!$AO29)*(Tabeller!L$35)) -> 0 | AV29: =((O29*Budsjett!$AO29)*(Tabeller!M$35)) -> 0 | AW29: =((P29*Budsjett!$AO29)*(Tabeller!N$35)) -> 0 | AX29: =((Q29*Budsjett!$AO29)*(Tabeller!O$35)) -> 0 | AY29: =((R29*Budsjett!$AO29)*(Tabeller!P$35)) -> 0 | AZ29: =((S29*Budsjett!$AO29)*(Tabeller!Q$35)) -> 0 | BA29: =((T29*Budsjett!$AO29)*(Tabeller!R$35)) -> 0 | BB29: =((U29*Budsjett!$AO29)*(Tabeller!S$35)) -> 0 | BC29: =((V29*Budsjett!$AO29)*(Tabeller!T$35)) -> 0 | BD29: =((W29*Budsjett!$AO29)*(Tabeller!U$35)) -> 0 | BF29: 0 | BG29: 0 | BH29: 0 | BI29: 0 | BJ29: 0 | BK29: 0 | BL29: 0 | BM29: 0 | BN29: 0 | BO29: 0 | BP29: 0 | BQ29: 0 | BR29: 0 | BU29: =IFERROR(IF($F$85=$K$84,AR29*$E$72,AR29*Budsjett!$F$85),0) -> 0 | BV29: =IFERROR(IF($F$85=$K$84,AS29*$E$72,AS29*Budsjett!$F$85),0) -> 0 | BW29: =IFERROR(IF($F$85=$K$84,AT29*$E$72,AT29*Budsjett!$F$85),0) -> 0 | BX29: =IFERROR(IF($F$85=$K$84,AU29*$E$72,AU29*Budsjett!$F$85),0) -> 0 | BY29: =IFERROR(IF($F$85=$K$84,AV29*$E$72,AV29*Budsjett!$F$85),0) -> 0 | BZ29: =IFERROR(IF($F$85=$K$84,AW29*$E$72,AW29*Budsjett!$F$85),0) -> 0 | CA29: =IFERROR(IF($F$85=$K$84,AX29*$E$72,AX29*Budsjett!$F$85),0) -> 0 | CB29: =IFERROR(IF($F$85=$K$84,AY29*$E$72,AY29*Budsjett!$F$85),0) -> 0 | CC29: =IFERROR(IF($F$85=$K$84,AZ29*$E$72,AZ29*Budsjett!$F$85),0) -> 0 | CD29: =IFERROR(IF($F$85=$K$84,BA29*$E$72,BA29*Budsjett!$F$85),0) -> 0 | CE29: =IFERROR(IF($F$85=$K$84,BB29*$E$72,BB29*Budsjett!$F$85),0) -> 0 | CF29: =IFERROR(IF($F$85=$K$84,BC29*$E$72,BC29*Budsjett!$F$85),0) -> 0 | CG29: =IFERROR(IF($F$85=$K$84,BD29*$E$72,BD29*Budsjett!$F$85),0) -> 0 | CJ29: =BF29-BU29 -> 0 | CK29: =BG29-BV29 -> 0 | CL29: =BH29-BW29 -> 0 | CM29: =BI29-BX29 -> 0 | CN29: =BJ29-BY29 -> 0 | CO29: =BK29-BZ29 -> 0 | CP29: =BL29-CA29 -> 0 | CQ29: =BM29-CB29 -> 0 | CR29: =BN29-CC29 -> 0 | CS29: 0 | CT29: =BP29-CE29 -> 0 | CU29: =BQ29-CF29 -> 0 | CV29: =BR29-CG29 -> 0 | CX29: =B29 -> 0 | CY29: =-(AR29*(1+Tabeller!$I$68)) -> 0 | CZ29: =-(AS29*(1+Tabeller!$I$68)) -> 0 | DA29: =-(AT29*(1+Tabeller!$I$68)) -> 0 | DB29: =-(AU29*(1+Tabeller!$I$68)) -> 0 | DC29: =-(AV29*(1+Tabeller!$I$68)) -> 0 | DD29: =-(AW29*(1+Tabeller!$I$68)) -> 0 | DE29: =-(AX29*(1+Tabeller!$I$68)) -> 0 | DF29: =-(AY29*(1+Tabeller!$I$68)) -> 0 | DG29: =-(AZ29*(1+Tabeller!$I$68)) -> 0 | DH29: =-(BA29*(1+Tabeller!$I$68)) -> 0 | DI29: =-(BB29*(1+Tabeller!$I$68)) -> 0 | DJ29: =-(BC29*(1+Tabeller!$I$68)) -> 0 | DK29: =-(BD29*(1+Tabeller!$I$68)) -> 0 | DL29: 0 | DO29: 0 | DP29: 0 | DQ29: 0 | DR29: 0 | DS29: 0 | DT29: 0 | DU29: 0 | DV29: 0 | DW29: 0 | DX29: 0 | DY29: 0 | DZ29: =IF($H29="NFR",DI29,0) -> 0 | EA29: =IF($H29="NFR",DJ29,0) -> 0 | EB29: =IF($H29="NFR",DK29,0) -> 0 | EC29: =SUM(DP29:EB29) -> 0 | EE29: 0 | EF29: 0 | EG29: 0 | EH29: 0 | EI29: 0 | EJ29: 0 | EK29: 0 | EL29: 0 | EM29: 0 | EN29: 0 | EO29: 0 | EP29: 0 | EQ29: 0 | ER29: 0 | ES29: =SUM(EF29:ER29) -> 0 | EU29: 0 | EV29: 0 | EW29: 0 | EX29: 0 | EY29: 0 | EZ29: 0 | FA29: 0 | FB29: 0 | FC29: 0 | FD29: 0 | FE29: 0 | FF29: 0 | FG29: 0 | FH29: 0 | FI29: =SUM(EV29:FH29) -> 0 | FK29: 0 | FL29: 0 | FM29: 0 | FN29: 0 | FO29: 0 | FP29: 0 | FQ29: 0 | FR29: 0 | FS29: 0 | FT29: 0 | FU29: 0 | FV29: 0 | FW29: 0 | FX29: 0 | FY29: =SUM(FL29:FX29) -> 0 | GB29: 0 | GP29: =SUM(GC29:GO29) -> 0 | GS29: =IF(Registrering!$B$29="Prosjekter som foregår i UiOs lokaler",IF($B29="Teknisk/adm. bistand/Feltassistent",K29*Tabeller!J$11,K29*Tabeller!J$10)/Tabeller!$H$5,IF($B29="Teknisk/adm. bistand/Feltassistent",K29*Tabeller!J$13,K29*Tabeller!J$12)/Tabeller!$H$5) -> 0 | GT29: =IF(Registrering!$B$29="Prosjekter som foregår i UiOs lokaler",IF($B29="Teknisk/adm. bistand/Feltassistent",L29*Tabeller!K$11,L29*Tabeller!K$10)/Tabeller!$H$5,IF($B29="Teknisk/adm. bistand/Feltassistent",L29*Tabeller!K$13,L29*Tabeller!K$12)/Tabeller!$H$5) -> 0 | GU29: =IF(Registrering!$B$29="Prosjekter som foregår i UiOs lokaler",IF($B29="Teknisk/adm. bistand/Feltassistent",M29*Tabeller!L$11,M29*Tabeller!L$10)/Tabeller!$H$5,IF($B29="Teknisk/adm. bistand/Feltassistent",M29*Tabeller!L$13,M29*Tabeller!L$12)/Tabeller!$H$5) -> 0 | GV29: =IF(Registrering!$B$29="Prosjekter som foregår i UiOs lokaler",IF($B29="Teknisk/adm. bistand/Feltassistent",N29*Tabeller!M$11,N29*Tabeller!M$10)/Tabeller!$H$5,IF($B29="Teknisk/adm. bistand/Feltassistent",N29*Tabeller!M$13,N29*Tabeller!M$12)/Tabeller!$H$5) -> 0 | GW29: =IF(Registrering!$B$29="Prosjekter som foregår i UiOs lokaler",IF($B29="Teknisk/adm. bistand/Feltassistent",O29*Tabeller!N$11,O29*Tabeller!N$10)/Tabeller!$H$5,IF($B29="Teknisk/adm. bistand/Feltassistent",O29*Tabeller!N$13,O29*Tabeller!N$12)/Tabeller!$H$5) -> 0 | GX29: =IF(Registrering!$B$29="Prosjekter som foregår i UiOs lokaler",IF($B29="Teknisk/adm. bistand/Feltassistent",P29*Tabeller!O$11,P29*Tabeller!O$10)/Tabeller!$H$5,IF($B29="Teknisk/adm. bistand/Feltassistent",P29*Tabeller!O$13,P29*Tabeller!O$12)/Tabeller!$H$5) -> 0 | GY29: =IF(Registrering!$B$29="Prosjekter som foregår i UiOs lokaler",IF($B29="Teknisk/adm. bistand/Feltassistent",Q29*Tabeller!P$11,Q29*Tabeller!P$10)/Tabeller!$H$5,IF($B29="Teknisk/adm. bistand/Feltassistent",Q29*Tabeller!P$13,Q29*Tabeller!P$12)/Tabeller!$H$5) -> 0 | GZ29: =IF(Registrering!$B$29="Prosjekter som foregår i UiOs lokaler",IF($B29="Teknisk/adm. bistand/Feltassistent",R29*Tabeller!Q$11,R29*Tabeller!Q$10)/Tabeller!$H$5,IF($B29="Teknisk/adm. bistand/Feltassistent",R29*Tabeller!Q$13,R29*Tabeller!Q$12)/Tabeller!$H$5) -> 0 | HA29: =IF(Registrering!$B$29="Prosjekter som foregår i UiOs lokaler",IF($B29="Teknisk/adm. bistand/Feltassistent",S29*Tabeller!R$11,S29*Tabeller!R$10)/Tabeller!$H$5,IF($B29="Teknisk/adm. bistand/Feltassistent",S29*Tabeller!R$13,S29*Tabeller!R$12)/Tabeller!$H$5) -> 0 | HB29: =IF(Registrering!$B$29="Prosjekter som foregår i UiOs lokaler",IF($B29="Teknisk/adm. bistand/Feltassistent",T29*Tabeller!S$11,T29*Tabeller!S$10)/Tabeller!$H$5,IF($B29="Teknisk/adm. bistand/Feltassistent",T29*Tabeller!S$13,T29*Tabeller!S$12)/Tabeller!$H$5) -> 0 | HC29: =IF(Registrering!$B$29="Prosjekter som foregår i UiOs lokaler",IF($B29="Teknisk/adm. bistand/Feltassistent",U29*Tabeller!T$11,U29*Tabeller!T$10)/Tabeller!$H$5,IF($B29="Teknisk/adm. bistand/Feltassistent",U29*Tabeller!T$13,U29*Tabeller!T$12)/Tabeller!$H$5) -> 0 | HD29: =IF(Registrering!$B$29="Prosjekter som foregår i UiOs lokaler",IF($B29="Teknisk/adm. bistand/Feltassistent",V29*Tabeller!U$11,V29*Tabeller!U$10)/Tabeller!$H$5,IF($B29="Teknisk/adm. bistand/Feltassistent",V29*Tabeller!U$13,V29*Tabeller!U$12)/Tabeller!$H$5) -> 0 | HE29: =IF(Registrering!$B$29="Prosjekter som foregår i UiOs lokaler",IF($B29="Teknisk/adm. bistand/Feltassistent",W29*Tabeller!V$11,W29*Tabeller!V$10)/Tabeller!$H$5,IF($B29="Teknisk/adm. bistand/Feltassistent",W29*Tabeller!V$13,W29*Tabeller!V$12)/Tabeller!$H$5) -> 0
B30: Sum timelønn | C30: =SUM(C27:C29) -> 0 | D30: =SUM(D27:D29) -> 0 | E30: =SUM(E27:E29) -> 0 | F30: =SUM(F27:F29) -> 0 | G30: =SUM(G27:G29) -> 0 | K30: =SUM(K27:K29) -> 0 | L30: 0 | M30: 0 | N30: 0 | O30: 0 | P30: 0 | Q30: 0 | R30: 0 | S30: 0 | T30: 0 | U30: 0 | V30: 0 | W30: 0 | AR30: =SUM(AR27:AR29) -> 0 | AS30: 0 | AT30: 0 | AU30: 0 | AV30: 0 | AW30: 0 | AX30: 0 | AY30: 0 | AZ30: 0 | BA30: 0 | BB30: 0 | BC30: 0 | BD30: 0 | BE30: =SUM(AR30:BD30) -> 0 | BF30: =SUM(BF27:BF29) -> 0 | BG30: 0 | BH30: 0 | BI30: 0 | BJ30: 0 | BK30: 0 | BL30: 0 | BM30: 0 | BN30: 0 | BO30: 0 | BP30: 0 | BQ30: 0 | BR30: 0 | BS30: =SUM(BF30:BR30) -> 0 | BU30: =SUM(BU27:BU29) -> 0 | BV30: 0 | BW30: 0 | BX30: 0 | BY30: 0 | BZ30: 0 | CA30: 0 | CB30: 0 | CC30: 0 | CD30: 0 | CE30: 0 | CF30: 0 | CG30: 0 | CJ30: =SUM(CJ27:CJ29) -> 0 | CK30: 0 | CL30: 0 | CM30: 0 | CN30: 0 | CO30: 0 | CP30: 0 | CQ30: 0 | CR30: 0 | CS30: 0 | CT30: 0 | CU30: 0 | CV30: 0 | CY30: =SUM(CY27:CY29) -> 0 | CZ30: 0 | DA30: 0 | DB30: 0 | DC30: 0 | DD30: 0 | DE30: 0 | DF30: 0 | DG30: 0 | DH30: 0 | DI30: 0 | DJ30: 0 | DK30: 0 | DL30: 0 | DP30: =SUM(DP27:DP29) -> 0 | DQ30: 0 | DR30: 0 | DS30: 0 | DT30: 0 | DU30: 0 | DV30: 0 | DW30: 0 | DX30: 0 | DY30: 0 | DZ30: 0 | EA30: 0 | EB30: 0 | EC30: 0 | EE30: 0 | EF30: =SUM(EF27:EF29) -> 0 | EG30: 0 | EH30: 0 | EI30: 0 | EJ30: 0 | EK30: 0 | EL30: 0 | EM30: 0 | EN30: 0 | EO30: 0 | EP30: 0 | EQ30: 0 | ER30: 0 | ES30: 0 | EU30: 0 | EV30: =SUM(EV27:EV29) -> 0 | EW30: 0 | EX30: 0 | EY30: 0 | EZ30: 0 | FA30: 0 | FB30: 0 | FC30: 0 | FD30: 0 | FE30: 0 | FF30: 0 | FG30: 0 | FH30: 0 | FI30: 0 | FK30: 0 | FL30: =SUM(FL27:FL29) -> 0 | FM30: 0 | FN30: 0 | FO30: 0 | FP30: 0 | FQ30: 0 | FR30: 0 | FS30: 0 | FT30: 0 | FU30: 0 | FV30: 0 | FW30: 0 | FX30: 0 | FY30: 0 | GB30: 0 | GC30: =SUM(GC27:GC29) -> 0 | GD30: 0 | GE30: 0 | GF30: 0 | GG30: 0 | GH30: 0 | GI30: 0 | GJ30: 0 | GK30: 0 | GL30: 0 | GM30: 0 | GN30: 0 | GO30: 0 | GP30: 0 | GS30: =SUM(GS27:GS29) -> 0 | GT30: 0 | GU30: 0 | GV30: 0 | GW30: 0 | GX30: 0 | GY30: 0 | GZ30: 0 | HA30: 0 | HB30: 0 | HC30: 0 | HD30: 0 | HE30: 0
B32: Total arbeidsinnsats | C32: =C24+C17+C10+C30 -> -25815650 | D32: =D24+D17+D10+D30 -> 20349619.11 | E32: =E24+E17+E10+E30 -> 12683446.71 | F32: =F24+F17+F10+F30 -> 33033065.82 | G32: =G10+G24+G17+G30 -> 22 | K32: =(K10/12)+K24+K17+(K30/Tabeller!$H$5) -> 0 | L32: =(L10/12)+L24+L17+(L30/Tabeller!$H$5) -> 0.2875 | M32: =(M10/12)+M24+M17+(M30/Tabeller!$H$5) -> 3.8 | N32: =(N10/12)+N24+N17+(N30/Tabeller!$H$5) -> 6.25 | O32: =(O10/12)+O24+O17+(O30/Tabeller!$H$5) -> 6.55 | P32: =(P10/12)+P24+P17+(P30/Tabeller!$H$5) -> 4.1125 | Q32: =(Q10/12)+Q24+Q17+(Q30/Tabeller!$H$5) -> 1 | R32: =(R10/12)+R24+R17+(R30/Tabeller!$H$5) -> 0 | S32: =(S10/12)+S24+S17+(S30/Tabeller!$H$5) -> 0 | T32: =(T10/12)+T24+T17+(T30/Tabeller!$H$5) -> 0 | U32: =(U10/12)+U24+U17+(U30/Tabeller!$H$5) -> 0 | V32: =(V10/12)+V24+V17+(V30/Tabeller!$H$5) -> 0 | W32: =(W10/12)+W24+W17+(W30/Tabeller!$H$5) -> 0 | AR32: =AR24+AR17+AR10+AR30 -> 0 | AS32: 240026.81 | AT32: 3279594.86 | AU32: 5612826.719 | AV32: 6072552.295 | AW32: 4039096.415 | AX32: 1105522.007 | AY32: 0 | AZ32: 0 | BA32: 0 | BB32: 0 | BC32: 0 | BD32: 0 | BE32: =SUM(AR32:BD32) -> 20349619.11 | BF32: =BF24+BF17+BF10+BF30 -> 0 | BG32: 138366.5625 | BH32: 2033012.437 | BI32: 3521264.866 | BJ32: 3812684.755 | BK32: 2514794.299 | BL32: 663323.7921 | BM32: 0 | BN32: 0 | BO32: 0 | BP32: 0 | BQ32: 0 | BR32: 0 | BS32: =SUM(BF32:BR32) -> 12683446.71 | BU32: =BU24+BU17+BU10+BU30 -> 0 | BV32: 0 | BW32: 1460174.869 | BX32: 2928377.982 | BY32: 3199046.831 | BZ32: 1983230.447 | CA32: 491842.6741 | CB32: 0 | CC32: 0 | CD32: 0 | CE32: 0 | CF32: 0 | CG32: 0 | CH32: =SUM(BU32:CG32) -> 10062672.8 | CJ32: =CJ24+CJ17+CJ10+CJ30 -> 0 | CK32: 138366.5625 | CL32: 572837.5687 | CM32: 592886.8837 | CN32: 613637.9246 | CO32: 531563.8522 | CP32: 171481.118 | CQ32: 0 | CR32: 0 | CS32: 0 | CT32: 0 | CU32: 0 | CV32: 0 | CY32: =CY24+CY17+CY10+CY30 -> 0 | CZ32: 0 | DA32: -3792150 | DB32: -7568400 | DC32: -8294400 | DD32: -5008500 | DE32: -1152200 | DF32: 0 | DG32: 0 | DH32: 0 | DI32: 0 | DJ32: 0 | DK32: 0 | DL32: -25815650 | DP32: =DP24+DP17+DP10+DP30 -> 0 | DQ32: 0 | DR32: -3792150 | DS32: -7568400 | DT32: -8294400 | DU32: -5008500 | DV32: -1152200 | DW32: 0 | DX32: 0 | DY32: 0 | DZ32: 0 | EA32: 0 | EB32: 0 | EC32: -25815650 | EE32: 0 | EF32: =EF24+EF17+EF10+EF30 -> 0 | EG32: 0 | EH32: 0 | EI32: 0 | EJ32: 0 | EK32: 0 | EL32: 0 | EM32: 0 | EN32: 0 | EO32: 0 | EP32: 0 | EQ32: 0 | ER32: 0 | ES32: 0 | EU32: 0 | EV32: =EV24+EV17+EV10+EV30 -> 0 | EW32: 0 | EX32: 0 | EY32: 0 | EZ32: 0 | FA32: 0 | FB32: 0 | FC32: 0 | FD32: 0 | FE32: 0 | FF32: 0 | FG32: 0 | FH32: 0 | FI32: 0 | FK32: 0 | FL32: =FL24+FL17+FL10+FL30 -> 0 | FM32: 0 | FN32: 0 | FO32: 0 | FP32: 0 | FQ32: 0 | FR32: 0 | FS32: 0 | FT32: 0 | FU32: 0 | FV32: 0 | FW32: 0 | FX32: 0 | FY32: 0 | GB32: 0 | GC32: =GC24+GC17+GC10+GC30 -> 0 | GD32: 240026.81 | GE32: 993710.9936 | GF32: 1028490.878 | GG32: 1064488.059 | GH32: 934376.1669 | GI32: 335549.0008 | GJ32: 0 | GK32: 0 | GL32: 0 | GM32: 0 | GN32: 0 | GO32: 0 | GP32: 4596641.909 | GS32: =GS24+GS17+GS10+GS30 -> 0 | GT32: 138366.5625 | GU32: 1892854.575 | GV32: 3222211.324 | GW32: 3495068.179 | GX32: 2271227.368 | GY32: 571603.7268 | GZ32: 0 | HA32: 0 | HB32: 0 | HC32: 0 | HD32: 0 | HE32: 0
K33: STIPENDER | EE33: 0 | EU33: 0 | FK33: 0 | GB33: 0
B34: Stipender | C34: Inntekter | D34: Sats | F34: Totalt | G34: Antall måneder | H34: Finansiør | J34: Kommentarfelt | K34: =K26 -> 2024 | L34: 2025 | M34: 2026 | N34: 2027 | O34: 2028 | P34: 2029 | Q34: 2030 | R34: 2031 | S34: 2032 | T34: 2033 | U34: 2034 | V34: 2035 | W34: 2036 | AJ34: Det i gult låg med link | AR34: =K34 -> 2024 | AS34: 2025 | AT34: 2026 | AU34: 2027 | AV34: 2028 | AW34: 2029 | AX34: 2030 | AY34: 2031 | AZ34: 2032 | BA34: 2033 | BB34: 2034 | BC34: 2035 | BD34: 2036 | CY34: =CY26 -> 2024 | CZ34: 2025 | DA34: 2026 | DB34: 2027 | DC34: 2028 | DD34: 2029 | DE34: 2030 | DF34: 2031 | DG34: 2032 | DH34: 2033 | DI34: 2034 | DJ34: 2035 | DK34: 2036 | DL34: Totalt | DP34: =DP26 -> 2024 | DQ34: 2025 | DR34: 2026 | DS34: 2027 | DT34: 2028 | DU34: 2029 | DV34: 2030 | DW34: 2031 | DX34: 2032 | DY34: 2033 | DZ34: 2034 | EA34: 2035 | EB34: 2036 | EC34: Totalt | EE34: 0 | EF34: =EF26 -> 2024 | EG34: 2025 | EH34: 2026 | EI34: 2027 | EJ34: 2028 | EK34: 2029 | EL34: 2030 | EM34: 2031 | EN34: 2032 | EO34: 2033 | EP34: 2034 | EQ34: 2035 | ER34: 2036 | ES34: Totalt | EU34: 0 | EV34: =EV26 -> 2024 | EW34: 2025 | EX34: 2026 | EY34: 2027 | EZ34: 2028 | FA34: 2029 | FB34: 2030 | FC34: 2031 | FD34: 2032 | FE34: 2033 | FF34: 2034 | FG34: 2035 | FH34: 2036 | FI34: Totalt | FK34: 0 | FL34: =FL26 -> 2024 | FM34: 2025 | FN34: 2026 | FO34: 2027 | FP34: 2028 | FQ34: 2029 | FR34: 2030 | FS34: 2031 | FT34: 2032 | FU34: 2033 | FV34: 2034 | FW34: 2035 | FX34: 2036 | FY34: Totalt | GB34: 0 | GC34: =GC26 -> 2024 | GD34: 2025 | GE34: 2026 | GF34: 2027 | GG34: 2028 | GH34: 2029 | GI34: 2030 | GJ34: 2031 | GK34: 2032 | GL34: 2033 | GM34: 2034 | GN34: 2035 | GO34: 2036 | GP34: Totalt
C35: =DL35 -> 0 | D35: =IF(B35="",0,VLOOKUP(B35,Tabeller!$G$63:$I$67,3,FALSE)) -> 0 | F35: =IF(C35=0,0,G35*D35) -> 0 | G35: =SUM(K35:W35) -> 0 | AJ35: til feil lønnsmultiplikator | AR35: =K35*$D35 -> 0 | AS35: 0 | AT35: 0 | AU35: 0 | AV35: 0 | AW35: 0 | AX35: 0 | AY35: 0 | AZ35: 0 | BA35: 0 | BB35: 0 | BC35: 0 | BD35: 0 | CX35: =B35 -> 0 | CY35: =-AR35 -> 0 | CZ35: 0 | DA35: 0 | DB35: 0 | DC35: 0 | DD35: 0 | DE35: 0 | DF35: 0 | DG35: 0 | DH35: 0 | DI35: =-BB35 -> 0 | DJ35: 0 | DK35: 0 | DL35: =SUM(CY35:DK35) -> 0 | DO35: =CX35 -> 0 | DP35: =IF($H35="NFR",CY35,0) -> 0 | DQ35: 0 | DR35: 0 | DS35: 0 | DT35: 0 | DU35: 0 | DV35: 0 | DW35: 0 | DX35: 0 | DY35: 0 | DZ35: =IF($H35="NFR",DI35,0) -> 0 | EA35: =IF($H35="NFR",DJ35,0) -> 0 | EB35: =IF($H35="NFR",DK35,0) -> 0 | EC35: =SUM(DP35:EB35) -> 0 | EE35: 0 | EF35: =IF($H35=$EE$1,CY35,0) -> 0 | EG35: 0 | EH35: 0 | EI35: 0 | EJ35: 0 | EK35: 0 | EL35: 0 | EM35: 0 | EN35: 0 | EO35: 0 | EP35: 0 | EQ35: 0 | ER35: 0 | ES35: =SUM(EF35:ER35) -> 0 | EU35: 0 | EV35: =IF($H35=$EU$1,CY35,0) -> 0 | EW35: 0 | EX35: 0 | EY35: 0 | EZ35: 0 | FA35: 0 | FB35: 0 | FC35: 0 | FD35: 0 | FE35: 0 | FF35: 0 | FG35: 0 | FH35: 0 | FI35: =SUM(EV35:FH35) -> 0 | FK35: 0 | FL35: =IF($H35=$FK$1,CY35,0) -> 0 | FM35: 0 | FN35: 0 | FO35: 0 | FP35: 0 | FQ35: 0 | FR35: 0 | FS35: 0 | FT35: 0 | FU35: 0 | FV35: 0 | FW35: 0 | FX35: 0 | FY35: =SUM(FL35:FX35) -> 0 | GB35: 0 | GP35: =SUM(GC35:GO35) -> 0
C36: 0 | D36: =IF(B36="",0,VLOOKUP(B36,Tabeller!$G$63:$I$67,3,FALSE)) -> 0 | F36: =IF(C36=0,0,G36*D36) -> 0 | G36: =SUM(K36:W36) -> 0 | AR36: 0 | AS36: 0 | AT36: 0 | AU36: 0 | AV36: 0 | AW36: 0 | AX36: 0 | AY36: 0 | AZ36: 0 | BA36: 0 | BB36: 0 | BC36: 0 | BD36: 0 | CX36: =B36 -> 0 | CY36: 0 | CZ36: 0 | DA36: 0 | DB36: 0 | DC36: 0 | DD36: 0 | DE36: 0 | DF36: 0 | DG36: 0 | DH36: 0 | DI36: 0 | DJ36: 0 | DK36: 0 | DL36: 0 | DO36: 0 | DP36: 0 | DQ36: 0 | DR36: 0 | DS36: 0 | DT36: 0 | DU36: 0 | DV36: 0 | DW36: 0 | DX36: 0 | DY36: 0 | DZ36: 0 | EA36: 0 | EB36: 0 | EC36: 0 | EE36: 0 | EF36: 0 | EG36: 0 | EH36: 0 | EI36: 0 | EJ36: 0 | EK36: 0 | EL36: 0 | EM36: 0 | EN36: 0 | EO36: 0 | EP36: 0 | EQ36: 0 | ER36: 0 | ES36: 0 | EU36: 0 | EV36: 0 | EW36: 0 | EX36: 0 | EY36: 0 | EZ36: 0 | FA36: 0 | FB36: 0 | FC36: 0 | FD36: 0 | FE36: 0 | FF36: 0 | FG36: 0 | FH36: 0 | FI36: 0 | FK36: 0 | FL36: 0 | FM36: 0 | FN36: 0 | FO36: 0 | FP36: 0 | FQ36: 0 | FR36: 0 | FS36: 0 | FT36: 0 | FU36: 0 | FV36: 0 | FW36: 0 | FX36: 0 | FY36: 0 | GB36: 0 | GP36: 0
C37: 0 | D37: =IF(B37="",0,VLOOKUP(B37,Tabeller!$G$63:$I$67,3,FALSE)) -> 0 | F37: 0 | G37: 0 | AJ37: Lønnsmultiplikator i Tabeller er lagt inn | AR37: 0 | AS37: 0 | AT37: 0 | AU37: 0 | AV37: 0 | AW37: 0 | AX37: 0 | AY37: 0 | AZ37: 0 | BA37: 0 | BB37: 0 | BC37: 0 | BD37: 0 | CX37: =B37 -> 0 | CY37: 0 | CZ37: 0 | DA37: 0 | DB37: 0 | DC37: 0 | DD37: 0 | DE37: 0 | DF37: 0 | DG37: 0 | DH37: 0 | DI37: 0 | DJ37: 0 | DK37: 0 | DL37: 0 | DO37: 0 | DP37: 0 | DQ37: 0 | DR37: 0 | DS37: 0 | DT37: 0 | DU37: 0 | DV37: 0 | DW37: 0 | DX37: 0 | DY37: 0 | DZ37: 0 | EA37: 0 | EB37: 0 | EC37: 0 | EE37: 0 | EF37: 0 | EG37: 0 | EH37: 0 | EI37: 0 | EJ37: 0 | EK37: 0 | EL37: 0 | EM37: 0 | EN37: 0 | EO37: 0 | EP37: 0 | EQ37: 0 | ER37: 0 | ES37: 0 | EU37: 0 | EV37: 0 | EW37: 0 | EX37: 0 | EY37: 0 | EZ37: 0 | FA37: 0 | FB37: 0 | FC37: 0 | FD37: 0 | FE37: 0 | FF37: 0 | FG37: 0 | FH37: 0 | FI37: 0 | FK37: 0 | FL37: 0 | FM37: 0 | FN37: 0 | FO37: 0 | FP37: 0 | FQ37: 0 | FR37: 0 | FS37: 0 | FT37: 0 | FU37: 0 | FV37: 0 | FW37: 0 | FX37: 0 | FY37: 0 | GB37: 0 | GP37: 0
B38: Sum stipender | C38: =SUM(C35:C37) -> 0 | D38: =SUM(D35:D37) -> 0 | F38: =SUM(F35:F37) -> 0 | G38: =SUM(G35:G37) -> 0 | K38: =SUM(K35:K37) -> 0 | L38: 0 | M38: 0 | N38: 0 | O38: 0 | P38: 0 | Q38: 0 | R38: 0 | S38: 0 | T38: 0 | U38: =SUM(U35:U37) -> 0 | V38: 0 | W38: 0 | AJ38: med for få desimaler | AR38: =SUM(AR35:AR37) -> 0 | AS38: 0 | AT38: 0 | AU38: 0 | AV38: 0 | AW38: 0 | AX38: 0 | AY38: 0 | AZ38: 0 | BA38: 0 | BB38: =SUM(BB35:BB37) -> 0 | BC38: 0 | BD38: 0 | CY38: =SUM(CY35:CY37) -> 0 | CZ38: 0 | DA38: 0 | DB38: 0 | DC38: 0 | DD38: 0 | DE38: 0 | DF38: 0 | DG38: 0 | DH38: 0 | DI38: =SUM(DI35:DI37) -> 0 | DJ38: 0 | DK38: 0 | DL38: 0 | DP38: =SUM(DP35:DP37) -> 0 | DQ38: 0 | DR38: 0 | DS38: 0 | DT38: 0 | DU38: 0 | DV38: 0 | DW38: 0 | DX38: 0 | DY38: 0 | DZ38: =SUM(DZ35:DZ37) -> 0 | EA38: 0 | EB38: 0 | EC38: 0 | EE38: 0 | EF38: =SUM(EF35:EF37) -> 0 | EG38: 0 | EH38: 0 | EI38: 0 | EJ38: 0 | EK38: 0 | EL38: 0 | EM38: 0 | EN38: 0 | EO38: 0 | EP38: =SUM(EP35:EP37) -> 0 | EQ38: 0 | ER38: 0 | ES38: 0 | EU38: 0 | EV38: =SUM(EV35:EV37) -> 0 | EW38: 0 | EX38: 0 | EY38: 0 | EZ38: 0 | FA38: 0 | FB38: 0 | FC38: 0 | FD38: 0 | FE38: 0 | FF38: =SUM(FF35:FF37) -> 0 | FG38: 0 | FH38: 0 | FI38: 0 | FK38: 0 | FL38: =SUM(FL35:FL37) -> 0 | FM38: 0 | FN38: 0 | FO38: 0 | FP38: 0 | FQ38: 0 | FR38: 0 | FS38: 0 | FT38: 0 | FU38: 0 | FV38: =SUM(FV35:FV37) -> 0 | FW38: 0 | FX38: 0 | FY38: 0 | GB38: 0 | GC38: =SUM(GC35:GC37) -> 0 | GD38: 0 | GE38: 0 | GF38: 0 | GG38: 0 | GH38: 0 | GI38: 0 | GJ38: 0 | GK38: 0 | GL38: 0 | GM38: =SUM(GM35:GM37) -> 0 | GN38: 0 | GO38: 0 | GP38: 0
EE39: 0 | EU39: 0 | FK39: 0 | GB39: 0
B40: Drift | C40: Inntekter | F40: Totalt | H40: Finansiør | J40: Kommentarfelt | K40: =K34 -> 2024 | L40: 2025 | M40: 2026 | N40: 2027 | O40: 2028 | P40: 2029 | Q40: 2030 | R40: 2031 | S40: 2032 | T40: 2033 | U40: =U34 -> 2034 | V40: 2035 | W40: 2036 | AR40: =K40 -> 2024 | AS40: =L40 -> 2025 | AT40: =M40 -> 2026 | AU40: =N40 -> 2027 | AV40: =O40 -> 2028 | AW40: =P40 -> 2029 | AX40: =Q40 -> 2030 | AY40: =R40 -> 2031 | AZ40: =S40 -> 2032 | BA40: =T40 -> 2033 | BB40: =U40 -> 2034 | BC40: =V40 -> 2035 | BD40: =W40 -> 2036 | CY40: =AR40 -> 2024 | CZ40: 2025 | DA40: 2026 | DB40: 2027 | DC40: 2028 | DD40: 2029 | DE40: 2030 | DF40: 2031 | DG40: 2032 | DH40: 2033 | DI40: =BB40 -> 2034 | DJ40: 2035 | DK40: 2036 | DL40: Totalt | DP40: =AR40 -> 2024 | DQ40: 2025 | DR40: 2026 | DS40: 2027 | DT40: 2028 | DU40: 2029 | DV40: 2030 | DW40: 2031 | DX40: 2032 | DY40: 2033 | DZ40: =BB40 -> 2034 | EA40: =BC40 -> 2035 | EB40: =BD40 -> 2036 | EC40: =EC3 -> Totalt | EE40: 0 | EF40: =EF34 -> 2024 | EG40: 2025 | EH40: 2026 | EI40: 2027 | EJ40: 2028 | EK40: 2029 | EL40: 2030 | EM40: 2031 | EN40: 2032 | EO40: 2033 | EP40: =EP34 -> 2034 | EQ40: 2035 | ER40: 2036 | ES40: Totalt | EU40: 0 | EV40: =EV34 -> 2024 | EW40: 2025 | EX40: 2026 | EY40: 2027 | EZ40: 2028 | FA40: 2029 | FB40: 2030 | FC40: 2031 | FD40: 2032 | FE40: 2033 | FF40: =FF34 -> 2034 | FG40: 2035 | FH40: 2036 | FI40: Totalt | FK40: 0 | FL40: =FL34 -> 2024 | FM40: 2025 | FN40: 2026 | FO40: 2027 | FP40: 2028 | FQ40: 2029 | FR40: 2030 | FS40: 2031 | FT40: 2032 | FU40: 2033 | FV40: =FV34 -> 2034 | FW40: 2035 | FX40: 2036 | FY40: Totalt | GB40: 0 | GC40: =GC34 -> 2024 | GD40: 2025 | GE40: 2026 | GF40: 2027 | GG40: 2028 | GH40: 2029 | GI40: 2030 | GJ40: 2031 | GK40: 2032 | GL40: 2033 | GM40: =GM34 -> 2034 | GN40: 2035 | GO40: 2036 | GP40: Totalt
B41: Generelle driftsmidler (kun NFR) | F41: =SUM(K41:W41) -> 0 | J41: Dekkes fra rundsum | AR41: 0 | AS41: 0 | AT41: 0 | AU41: 0 | AV41: 0 | AW41: 0 | AX41: 0 | AY41: 0 | AZ41: 0 | BA41: 0 | BB41: 0 | BC41: 0 | BD41: 0 | BE41: =SUM(AR41:BD41) -> 0 | EE41: 0 | EU41: 0 | FK41: 0 | GB41: 0
B42: Andre driftskostnader | C42: =IF(Registrering!$B$28="Fast beløp",0,IF(Registrering!$B$28="Sats for ekst. fin. overhead",0,-F42)) -> -2500000 | F42: =SUM(K42:W42) -> 2500000 | H42: NFR | J42: Sigma Data and computing power | M42: =+(0.75)*625000 -> 468750 | N42: 625000 | O42: 625000 | P42: 625000 | Q42: =+P42-M42 -> 156250 | AR42: 0 | AS42: 0 | AT42: 468750 | AU42: 625000 | AV42: 625000 | AW42: 625000 | AX42: 156250 | AY42: 0 | AZ42: 0 | BA42: 0 | BB42: 0 | BC42: 0 | BD42: 0 | BE42: =SUM(AR42:BD42) -> 2500000 | CX42: =B42 -> Andre driftskostnader | CY42: =IF($H42="Egenandel",0,-AR42) -> 0 | CZ42: 0 | DA42: -468750 | DB42: -625000 | DC42: -625000 | DD42: -625000 | DE42: -156250 | DF42: 0 | DG42: 0 | DH42: 0 | DI42: =IF($H42="Egenandel",0,-BB42) -> 0 | DJ42: 0 | DK42: 0 | DL42: =SUM(CY42:DK42) -> -2500000 | DO42: =CX42 -> Andre driftskostnader | DP42: =IF($H42="NFR",CY42,0) -> 0 | DQ42: 0 | DR42: -468750 | DS42: -625000 | DT42: -625000 | DU42: -625000 | DV42: -156250 | DW42: 0 | DX42: 0 | DY42: 0 | DZ42: =IF($H42="NFR",DI42,0) -> 0 | EA42: =IF($H42="NFR",DJ42,0) -> 0 | EB42: =IF($H42="NFR",DK42,0) -> 0 | EC42: =SUM(DP42:EB42) -> -2500000 | EE42: Andre driftskostnader | EF42: =IF($H42=$EE$1,CY42,0) -> 0 | EG42: 0 | EH42: 0 | EI42: 0 | EJ42: 0 | EK42: 0 | EL42: 0 | EM42: 0 | EN42: 0 | EO42: 0 | EP42: 0 | EQ42: 0 | ER42: 0 | ES42: =SUM(EF42:ER42) -> 0 | EU42: Andre driftskostnader | EV42: =IF($H42=$EU$1,CY42,0) -> 0 | EW42: 0 | EX42: 0 | EY42: 0 | EZ42: 0 | FA42: 0 | FB42: 0 | FC42: 0 | FD42: 0 | FE42: 0 | FF42: 0 | FG42: 0 | FH42: 0 | FI42: =SUM(EV42:FH42) -> 0 | FK42: Andre driftskostnader | FL42: =IF($H42=$FK$1,CY42,0) -> 0 | FM42: 0 | FN42: 0 | FO42: 0 | FP42: 0 | FQ42: 0 | FR42: 0 | FS42: 0 | FT42: 0 | FU42: 0 | FV42: 0 | FW42: 0 | FX42: 0 | FY42: =SUM(FL42:FX42) -> 0 | GB42: Andre driftskostnader | GC42: =IF($H42=$GB$1,AR42,0) -> 0 | GD42: =IF($H42=$GB$1,-AS42,0) -> 0 | GE42: 0 | GF42: 0 | GG42: 0 | GH42: 0 | GI42: 0 | GJ42: 0 | GK42: 0 | GL42: 0 | GM42: 0 | GN42: 0 | GO42: 0 | GP42: =SUM(GC42:GO42) -> 0
C43: =IF(Registrering!$B$28="Fast beløp",0,IF(Registrering!$B$28="Sats for ekst. fin. overhead",0,-F43)) -> 0 | F43: 0 | AR43: 0 | AS43: 0 | AT43: 0 | AU43: 0 | AV43: 0 | AW43: 0 | AX43: 0 | AY43: 0 | AZ43: 0 | BA43: 0 | BB43: 0 | BC43: 0 | BD43: 0 | BE43: 0 | CX43: 0 | CY43: 0 | CZ43: 0 | DA43: 0 | DB43: 0 | DC43: 0 | DD43: 0 | DE43: 0 | DF43: 0 | DG43: 0 | DH43: 0 | DI43: 0 | DJ43: 0 | DK43: 0 | DL43: 0 | DO43: 0 | DP43: 0 | DQ43: 0 | DR43: 0 | DS43: 0 | DT43: 0 | DU43: 0 | DV43: 0 | DW43: 0 | DX43: 0 | DY43: 0 | DZ43: 0 | EA43: 0 | EB43: 0 | EC43: 0 | EE43: 0 | EF43: 0 | EG43: 0 | EH43: 0 | EI43: 0 | EJ43: 0 | EK43: 0 | EL43: 0 | EM43: 0 | EN43: 0 | EO43: 0 | EP43: 0 | EQ43: 0 | ER43: 0 | ES43: 0 | EU43: 0 | EV43: 0 | EW43: 0 | EX43: 0 | EY43: 0 | EZ43: 0 | FA43: 0 | FB43: 0 | FC43: 0 | FD43: 0 | FE43: 0 | FF43: 0 | FG43: 0 | FH43: 0 | FI43: 0 | FK43: 0 | FL43: 0 | FM43: 0 | FN43: 0 | FO43: 0 | FP43: 0 | FQ43: 0 | FR43: 0 | FS43: 0 | FT43: 0 | FU43: 0 | FV43: 0 | FW43: 0 | FX43: 0 | FY43: 0 | GB43: 0 | GC43: =IF($H43=$GB$1,AR43,0) -> 0 | GD43: 0 | GE43: 0 | GF43: 0 | GG43: 0 | GH43: 0 | GI43: 0 | GJ43: 0 | GK43: 0 | GL43: 0 | GM43: 0 | GN43: 0 | GO43: 0 | GP43: 0
C44: =IF(Registrering!$B$28="Fast beløp",0,IF(Registrering!$B$28="Sats for ekst. fin. overhead",0,-F44)) -> 0 | F44: 0 | AR44: 0 | AS44: 0 | AT44: 0 | AU44: 0 | AV44: 0 | AW44: 0 | AX44: 0 | AY44: 0 | AZ44: 0 | BA44: 0 | BB44: 0 | BC44: 0 | BD44: 0 | BE44: 0 | CX44: 0 | CY44: 0 | CZ44: 0 | DA44: 0 | DB44: 0 | DC44: 0 | DD44: 0 | DE44: 0 | DF44: 0 | DG44: 0 | DH44: 0 | DI44: 0 | DJ44: 0 | DK44: 0 | DL44: 0 | DO44: =CX44 -> 0 | DP44: =IF($H44="NFR",CY44,0) -> 0 | DQ44: =IF($H44="NFR",CZ44,0) -> 0 | DR44: =IF($H44="NFR",DA44,0) -> 0 | DS44: =IF($H44="NFR",DB44,0) -> 0 | DT44: =IF($H44="NFR",DC44,0) -> 0 | DU44: =IF($H44="NFR",DD44,0) -> 0 | DV44: =IF($H44="NFR",DE44,0) -> 0 | DW44: =IF($H44="NFR",DF44,0) -> 0 | DX44: =IF($H44="NFR",DG44,0) -> 0 | DY44: =IF($H44="NFR",DH44,0) -> 0 | DZ44: 0 | EA44: 0 | EB44: 0 | EC44: 0 | EE44: =DO44 -> 0 | EF44: 0 | EG44: 0 | EH44: 0 | EI44: 0 | EJ44: 0 | EK44: 0 | EL44: 0 | EM44: 0 | EN44: 0 | EO44: 0 | EP44: 0 | EQ44: 0 | ER44: 0 | ES44: 0 | EU44: =EE44 -> 0 | EV44: 0 | EW44: 0 | EX44: 0 | EY44: 0 | EZ44: 0 | FA44: 0 | FB44: 0 | FC44: 0 | FD44: 0 | FE44: 0 | FF44: 0 | FG44: 0 | FH44: 0 | FI44: 0 | FK44: =EU44 -> 0 | FL44: 0 | FM44: 0 | FN44: 0 | FO44: 0 | FP44: 0 | FQ44: 0 | FR44: 0 | FS44: 0 | FT44: 0 | FU44: 0 | FV44: 0 | FW44: 0 | FX44: 0 | FY44: 0 | GB44: =FK44 -> 0 | GC44: =IF($H44=$GB$1,AR44,0) -> 0 | GD44: 0 | GE44: 0 | GF44: 0 | GG44: 0 | GH44: 0 | GI44: 0 | GJ44: 0 | GK44: 0 | GL44: 0 | GM44: 0 | GN44: 0 | GO44: 0 | GP44: 0
B45: Leiested - internt finansiert | F45: 0 | H45: Egenandel | K45: =IF(Leiested!$B$8="Egenandel",Leiested!E8,0)+IF(Leiested!$B$12="Egenandel",Leiested!E12,0)+IF(Leiested!$B$16="Egenandel",Leiested!E16,0)+IF(Leiested!$B$20="Egenandel",Leiested!E20,0)+IF(Leiested!$B$24="Egenandel",Leiested!E24,0)+IF(Leiested!$B$28="Egenandel",Leiested!E28,0)+IF(Leiested!$B$32="Egenandel",Leiested!E32,0)+IF(Leiested!$B$36="Egenandel",Leiested!E36,0)+IF(Leiested!$B$40="Egenandel",Leiested!E40,0)+IF(Leiested!$B$44="Egenandel",Leiested!E44,0)+IF(Leiested!$B$48="Egenandel",Leiested!E48,0)+IF(Leiested!$B$52="Egenandel",Leiested!E52,0)+IF(Leiested!$B$56="Egenandel",Leiested!E56,0)+IF(Leiested!$B$60="Egenandel",Leiested!E60,0)+IF(Leiested!$B$64="Egenandel",Leiested!E64,0) -> 0 | L45: =IF(Leiested!$B$8="Egenandel",Leiested!F8,0)+IF(Leiested!$B$12="Egenandel",Leiested!F12,0)+IF(Leiested!$B$16="Egenandel",Leiested!F16,0)+IF(Leiested!$B$20="Egenandel",Leiested!F20,0)+IF(Leiested!$B$24="Egenandel",Leiested!F24,0)+IF(Leiested!$B$28="Egenandel",Leiested!F28,0)+IF(Leiested!$B$32="Egenandel",Leiested!F32,0)+IF(Leiested!$B$36="Egenandel",Leiested!F36,0)+IF(Leiested!$B$40="Egenandel",Leiested!F40,0)+IF(Leiested!$B$44="Egenandel",Leiested!F44,0)+IF(Leiested!$B$48="Egenandel",Leiested!F48,0)+IF(Leiested!$B$52="Egenandel",Leiested!F52,0)+IF(Leiested!$B$56="Egenandel",Leiested!F56,0)+IF(Leiested!$B$60="Egenandel",Leiested!F60,0)+IF(Leiested!$B$64="Egenandel",Leiested!F64,0) -> 0 | M45: =IF(Leiested!$B$8="Egenandel",Leiested!G8,0)+IF(Leiested!$B$12="Egenandel",Leiested!G12,0)+IF(Leiested!$B$16="Egenandel",Leiested!G16,0)+IF(Leiested!$B$20="Egenandel",Leiested!G20,0)+IF(Leiested!$B$24="Egenandel",Leiested!G24,0)+IF(Leiested!$B$28="Egenandel",Leiested!G28,0)+IF(Leiested!$B$32="Egenandel",Leiested!G32,0)+IF(Leiested!$B$36="Egenandel",Leiested!G36,0)+IF(Leiested!$B$40="Egenandel",Leiested!G40,0)+IF(Leiested!$B$44="Egenandel",Leiested!G44,0)+IF(Leiested!$B$48="Egenandel",Leiested!G48,0)+IF(Leiested!$B$52="Egenandel",Leiested!G52,0)+IF(Leiested!$B$56="Egenandel",Leiested!G56,0)+IF(Leiested!$B$60="Egenandel",Leiested!G60,0)+IF(Leiested!$B$64="Egenandel",Leiested!G64,0) -> 0 | N45: =IF(Leiested!$B$8="Egenandel",Leiested!H8,0)+IF(Leiested!$B$12="Egenandel",Leiested!H12,0)+IF(Leiested!$B$16="Egenandel",Leiested!H16,0)+IF(Leiested!$B$20="Egenandel",Leiested!H20,0)+IF(Leiested!$B$24="Egenandel",Leiested!H24,0)+IF(Leiested!$B$28="Egenandel",Leiested!H28,0)+IF(Leiested!$B$32="Egenandel",Leiested!H32,0)+IF(Leiested!$B$36="Egenandel",Leiested!H36,0)+IF(Leiested!$B$40="Egenandel",Leiested!H40,0)+IF(Leiested!$B$44="Egenandel",Leiested!H44,0)+IF(Leiested!$B$48="Egenandel",Leiested!H48,0)+IF(Leiested!$B$52="Egenandel",Leiested!H52,0)+IF(Leiested!$B$56="Egenandel",Leiested!H56,0)+IF(Leiested!$B$60="Egenandel",Leiested!H60,0)+IF(Leiested!$B$64="Egenandel",Leiested!H64,0) -> 0 | O45: =IF(Leiested!$B$8="Egenandel",Leiested!I8,0)+IF(Leiested!$B$12="Egenandel",Leiested!I12,0)+IF(Leiested!$B$16="Egenandel",Leiested!I16,0)+IF(Leiested!$B$20="Egenandel",Leiested!I20,0)+IF(Leiested!$B$24="Egenandel",Leiested!I24,0)+IF(Leiested!$B$28="Egenandel",Leiested!I28,0)+IF(Leiested!$B$32="Egenandel",Leiested!I32,0)+IF(Leiested!$B$36="Egenandel",Leiested!I36,0)+IF(Leiested!$B$40="Egenandel",Leiested!I40,0)+IF(Leiested!$B$44="Egenandel",Leiested!I44,0)+IF(Leiested!$B$48="Egenandel",Leiested!I48,0)+IF(Leiested!$B$52="Egenandel",Leiested!I52,0)+IF(Leiested!$B$56="Egenandel",Leiested!I56,0)+IF(Leiested!$B$60="Egenandel",Leiested!I60,0)+IF(Leiested!$B$64="Egenandel",Leiested!I64,0) -> 0 | P45: =IF(Leiested!$B$8="Egenandel",Leiested!J8,0)+IF(Leiested!$B$12="Egenandel",Leiested!J12,0)+IF(Leiested!$B$16="Egenandel",Leiested!J16,0)+IF(Leiested!$B$20="Egenandel",Leiested!J20,0)+IF(Leiested!$B$24="Egenandel",Leiested!J24,0)+IF(Leiested!$B$28="Egenandel",Leiested!J28,0)+IF(Leiested!$B$32="Egenandel",Leiested!J32,0)+IF(Leiested!$B$36="Egenandel",Leiested!J36,0)+IF(Leiested!$B$40="Egenandel",Leiested!J40,0)+IF(Leiested!$B$44="Egenandel",Leiested!J44,0)+IF(Leiested!$B$48="Egenandel",Leiested!J48,0)+IF(Leiested!$B$52="Egenandel",Leiested!J52,0)+IF(Leiested!$B$56="Egenandel",Leiested!J56,0)+IF(Leiested!$B$60="Egenandel",Leiested!J60,0)+IF(Leiested!$B$64="Egenandel",Leiested!J64,0) -> 0 | Q45: =IF(Leiested!$B$8="Egenandel",Leiested!K8,0)+IF(Leiested!$B$12="Egenandel",Leiested!K12,0)+IF(Leiested!$B$16="Egenandel",Leiested!K16,0)+IF(Leiested!$B$20="Egenandel",Leiested!K20,0)+IF(Leiested!$B$24="Egenandel",Leiested!K24,0)+IF(Leiested!$B$28="Egenandel",Leiested!K28,0)+IF(Leiested!$B$32="Egenandel",Leiested!K32,0)+IF(Leiested!$B$36="Egenandel",Leiested!K36,0)+IF(Leiested!$B$40="Egenandel",Leiested!K40,0)+IF(Leiested!$B$44="Egenandel",Leiested!K44,0)+IF(Leiested!$B$48="Egenandel",Leiested!K48,0)+IF(Leiested!$B$52="Egenandel",Leiested!K52,0)+IF(Leiested!$B$56="Egenandel",Leiested!K56,0)+IF(Leiested!$B$60="Egenandel",Leiested!K60,0)+IF(Leiested!$B$64="Egenandel",Leiested!K64,0) -> 0 | R45: =IF(Leiested!$B$8="Egenandel",Leiested!L8,0)+IF(Leiested!$B$12="Egenandel",Leiested!L12,0)+IF(Leiested!$B$16="Egenandel",Leiested!L16,0)+IF(Leiested!$B$20="Egenandel",Leiested!L20,0)+IF(Leiested!$B$24="Egenandel",Leiested!L24,0)+IF(Leiested!$B$28="Egenandel",Leiested!L28,0)+IF(Leiested!$B$32="Egenandel",Leiested!L32,0)+IF(Leiested!$B$36="Egenandel",Leiested!L36,0)+IF(Leiested!$B$40="Egenandel",Leiested!L40,0)+IF(Leiested!$B$44="Egenandel",Leiested!L44,0)+IF(Leiested!$B$48="Egenandel",Leiested!L48,0)+IF(Leiested!$B$52="Egenandel",Leiested!L52,0)+IF(Leiested!$B$56="Egenandel",Leiested!L56,0)+IF(Leiested!$B$60="Egenandel",Leiested!L60,0)+IF(Leiested!$B$64="Egenandel",Leiested!L64,0) -> 0 | S45: =IF(Leiested!$B$8="Egenandel",Leiested!M8,0)+IF(Leiested!$B$12="Egenandel",Leiested!M12,0)+IF(Leiested!$B$16="Egenandel",Leiested!M16,0)+IF(Leiested!$B$20="Egenandel",Leiested!M20,0)+IF(Leiested!$B$24="Egenandel",Leiested!M24,0)+IF(Leiested!$B$28="Egenandel",Leiested!M28,0)+IF(Leiested!$B$32="Egenandel",Leiested!M32,0)+IF(Leiested!$B$36="Egenandel",Leiested!M36,0)+IF(Leiested!$B$40="Egenandel",Leiested!M40,0)+IF(Leiested!$B$44="Egenandel",Leiested!M44,0)+IF(Leiested!$B$48="Egenandel",Leiested!M48,0)+IF(Leiested!$B$52="Egenandel",Leiested!M52,0)+IF(Leiested!$B$56="Egenandel",Leiested!M56,0)+IF(Leiested!$B$60="Egenandel",Leiested!M60,0)+IF(Leiested!$B$64="Egenandel",Leiested!M64,0) -> 0 | T45: =IF(Leiested!$B$8="Egenandel",Leiested!N8,0)+IF(Leiested!$B$12="Egenandel",Leiested!N12,0)+IF(Leiested!$B$16="Egenandel",Leiested!N16,0)+IF(Leiested!$B$20="Egenandel",Leiested!N20,0)+IF(Leiested!$B$24="Egenandel",Leiested!N24,0)+IF(Leiested!$B$28="Egenandel",Leiested!N28,0)+IF(Leiested!$B$32="Egenandel",Leiested!N32,0)+IF(Leiested!$B$36="Egenandel",Leiested!N36,0)+IF(Leiested!$B$40="Egenandel",Leiested!N40,0)+IF(Leiested!$B$44="Egenandel",Leiested!N44,0)+IF(Leiested!$B$48="Egenandel",Leiested!N48,0)+IF(Leiested!$B$52="Egenandel",Leiested!N52,0)+IF(Leiested!$B$56="Egenandel",Leiested!N56,0)+IF(Leiested!$B$60="Egenandel",Leiested!N60,0)+IF(Leiested!$B$64="Egenandel",Leiested!N64,0) -> 0 | U45: =IF(Leiested!$B$8="Egenandel",Leiested!O8,0)+IF(Leiested!$B$12="Egenandel",Leiested!O12,0)+IF(Leiested!$B$16="Egenandel",Leiested!O16,0)+IF(Leiested!$B$20="Egenandel",Leiested!O20,0)+IF(Leiested!$B$24="Egenandel",Leiested!O24,0)+IF(Leiested!$B$28="Egenandel",Leiested!O28,0)+IF(Leiested!$B$32="Egenandel",Leiested!O32,0)+IF(Leiested!$B$36="Egenandel",Leiested!O36,0)+IF(Leiested!$B$40="Egenandel",Leiested!O40,0)+IF(Leiested!$B$44="Egenandel",Leiested!O44,0)+IF(Leiested!$B$48="Egenandel",Leiested!O48,0)+IF(Leiested!$B$52="Egenandel",Leiested!O52,0)+IF(Leiested!$B$56="Egenandel",Leiested!O56,0)+IF(Leiested!$B$60="Egenandel",Leiested!O60,0)+IF(Leiested!$B$64="Egenandel",Leiested!O64,0) -> 0 | V45: =IF(Leiested!$B$8="Egenandel",Leiested!P8,0)+IF(Leiested!$B$12="Egenandel",Leiested!P12,0)+IF(Leiested!$B$16="Egenandel",Leiested!P16,0)+IF(Leiested!$B$20="Egenandel",Leiested!P20,0)+IF(Leiested!$B$24="Egenandel",Leiested!P24,0)+IF(Leiested!$B$28="Egenandel",Leiested!P28,0)+IF(Leiested!$B$32="Egenandel",Leiested!P32,0)+IF(Leiested!$B$36="Egenandel",Leiested!P36,0)+IF(Leiested!$B$40="Egenandel",Leiested!P40,0)+IF(Leiested!$B$44="Egenandel",Leiested!P44,0)+IF(Leiested!$B$48="Egenandel",Leiested!P48,0)+IF(Leiested!$B$52="Egenandel",Leiested!P52,0)+IF(Leiested!$B$56="Egenandel",Leiested!P56,0)+IF(Leiested!$B$60="Egenandel",Leiested!P60,0)+IF(Leiested!$B$64="Egenandel",Leiested!P64,0) -> 0 | W45: =IF(Leiested!$B$8="Egenandel",Leiested!Q8,0)+IF(Leiested!$B$12="Egenandel",Leiested!Q12,0)+IF(Leiested!$B$16="Egenandel",Leiested!Q16,0)+IF(Leiested!$B$20="Egenandel",Leiested!Q20,0)+IF(Leiested!$B$24="Egenandel",Leiested!Q24,0)+IF(Leiested!$B$28="Egenandel",Leiested!Q28,0)+IF(Leiested!$B$32="Egenandel",Leiested!Q32,0)+IF(Leiested!$B$36="Egenandel",Leiested!Q36,0)+IF(Leiested!$B$40="Egenandel",Leiested!Q40,0)+IF(Leiested!$B$44="Egenandel",Leiested!Q44,0)+IF(Leiested!$B$48="Egenandel",Leiested!Q48,0)+IF(Leiested!$B$52="Egenandel",Leiested!Q52,0)+IF(Leiested!$B$56="Egenandel",Leiested!Q56,0)+IF(Leiested!$B$60="Egenandel",Leiested!Q60,0)+IF(Leiested!$B$64="Egenandel",Leiested!Q64,0) -> 0 | AR45: 0 | AS45: 0 | AT45: 0 | AU45: 0 | AV45: 0 | AW45: 0 | AX45: 0 | AY45: 0 | AZ45: 0 | BA45: 0 | BB45: 0 | BC45: 0 | BD45: 0 | BE45: 0 | CX45: Leiested - internt finansiert | CY45: 0 | CZ45: 0 | DA45: 0 | DB45: 0 | DC45: 0 | DD45: 0 | DE45: 0 | DF45: 0 | DG45: 0 | DH45: 0 | DI45: 0 | DJ45: 0 | DK45: 0 | DL45: 0 | DO45: Leiested - internt finansiert | DP45: =IF($H45="NFR",CY45,0) -> 0 | DQ45: 0 | DR45: 0 | DS45: 0 | DT45: 0 | DU45: 0 | DV45: 0 | DW45: 0 | DX45: 0 | DY45: 0 | DZ45: 0 | EA45: 0 | EB45: 0 | EC45: 0 | EE45: Leiested - internt finansiert | EF45: 0 | EG45: 0 | EH45: 0 | EI45: 0 | EJ45: 0 | EK45: 0 | EL45: 0 | EM45: 0 | EN45: 0 | EO45: 0 | EP45: 0 | EQ45: 0 | ER45: 0 | ES45: 0 | EU45: Leiested - internt finansiert | EV45: 0 | EW45: 0 | EX45: 0 | EY45: 0 | EZ45: 0 | FA45: 0 | FB45: 0 | FC45: 0 | FD45: 0 | FE45: 0 | FF45: 0 | FG45: 0 | FH45: 0 | FI45: 0 | FK45: Leiested - internt finansiert | FL45: 0 | FM45: 0 | FN45: 0 | FO45: 0 | FP45: 0 | FQ45: 0 | FR45: 0 | FS45: 0 | FT45: 0 | FU45: 0 | FV45: 0 | FW45: 0 | FX45: 0 | FY45: 0 | GB45: Leiested - internt finansiert | GC45: =(IF($H45=$GB$1,AR45,0)) -> 0 | GD45: 0 | GE45: 0 | GF45: 0 | GG45: 0 | GH45: 0 | GI45: 0 | GJ45: 0 | GK45: 0 | GL45: 0 | GM45: 0 | GN45: 0 | GO45: 0 | GP45: 0
B46: Leiested - eksternt finansiert | C46: =IF(Registrering!$B$28="Fast beløp",0,IF(Registrering!$B$28="Sats for ekst. fin. overhead",0,-F46)) -> 0 | F46: 0 | H46: Eksternt | K46: =IF(Leiested!$B$8="Egenandel",0,Leiested!E8)+IF(Leiested!$B$12="Egenandel",0,Leiested!E12)+IF(Leiested!$B$16="Egenandel",0,Leiested!E16)+IF(Leiested!$B$20="Egenandel",0,Leiested!E20)+IF(Leiested!$B$24="Egenandel",0,Leiested!E24)+IF(Leiested!$B$28="Egenandel",0,Leiested!E28)+IF(Leiested!$B$32="Egenandel",0,Leiested!E32)+IF(Leiested!$B$36="Egenandel",0,Leiested!E36)+IF(Leiested!$B$40="Egenandel",0,Leiested!E40)+IF(Leiested!$B$44="Egenandel",0,Leiested!E44)+IF(Leiested!$B$48="Egenandel",0,Leiested!E48)+IF(Leiested!$B$52="Egenandel",0,Leiested!E52)+IF(Leiested!$B$56="Egenandel",0,Leiested!E56)+IF(Leiested!$B$60="Egenandel",0,Leiested!E60)+IF(Leiested!$B$64="Egenandel",0,Leiested!E64) -> 0 | L46: =IF(Leiested!$B$8="Egenandel",0,Leiested!F8)+IF(Leiested!$B$12="Egenandel",0,Leiested!F12)+IF(Leiested!$B$16="Egenandel",0,Leiested!F16)+IF(Leiested!$B$20="Egenandel",0,Leiested!F20)+IF(Leiested!$B$24="Egenandel",0,Leiested!F24)+IF(Leiested!$B$28="Egenandel",0,Leiested!F28)+IF(Leiested!$B$32="Egenandel",0,Leiested!F32)+IF(Leiested!$B$36="Egenandel",0,Leiested!F36)+IF(Leiested!$B$40="Egenandel",0,Leiested!F40)+IF(Leiested!$B$44="Egenandel",0,Leiested!F44)+IF(Leiested!$B$48="Egenandel",0,Leiested!F48)+IF(Leiested!$B$52="Egenandel",0,Leiested!F52)+IF(Leiested!$B$56="Egenandel",0,Leiested!F56)+IF(Leiested!$B$60="Egenandel",0,Leiested!F60)+IF(Leiested!$B$64="Egenandel",0,Leiested!F64) -> 0 | M46: =IF(Leiested!$B$8="Egenandel",0,Leiested!G8)+IF(Leiested!$B$12="Egenandel",0,Leiested!G12)+IF(Leiested!$B$16="Egenandel",0,Leiested!G16)+IF(Leiested!$B$20="Egenandel",0,Leiested!G20)+IF(Leiested!$B$24="Egenandel",0,Leiested!G24)+IF(Leiested!$B$28="Egenandel",0,Leiested!G28)+IF(Leiested!$B$32="Egenandel",0,Leiested!G32)+IF(Leiested!$B$36="Egenandel",0,Leiested!G36)+IF(Leiested!$B$40="Egenandel",0,Leiested!G40)+IF(Leiested!$B$44="Egenandel",0,Leiested!G44)+IF(Leiested!$B$48="Egenandel",0,Leiested!G48)+IF(Leiested!$B$52="Egenandel",0,Leiested!G52)+IF(Leiested!$B$56="Egenandel",0,Leiested!G56)+IF(Leiested!$B$60="Egenandel",0,Leiested!G60)+IF(Leiested!$B$64="Egenandel",0,Leiested!G64) -> 0 | N46: =IF(Leiested!$B$8="Egenandel",0,Leiested!H8)+IF(Leiested!$B$12="Egenandel",0,Leiested!H12)+IF(Leiested!$B$16="Egenandel",0,Leiested!H16)+IF(Leiested!$B$20="Egenandel",0,Leiested!H20)+IF(Leiested!$B$24="Egenandel",0,Leiested!H24)+IF(Leiested!$B$28="Egenandel",0,Leiested!H28)+IF(Leiested!$B$32="Egenandel",0,Leiested!H32)+IF(Leiested!$B$36="Egenandel",0,Leiested!H36)+IF(Leiested!$B$40="Egenandel",0,Leiested!H40)+IF(Leiested!$B$44="Egenandel",0,Leiested!H44)+IF(Leiested!$B$48="Egenandel",0,Leiested!H48)+IF(Leiested!$B$52="Egenandel",0,Leiested!H52)+IF(Leiested!$B$56="Egenandel",0,Leiested!H56)+IF(Leiested!$B$60="Egenandel",0,Leiested!H60)+IF(Leiested!$B$64="Egenandel",0,Leiested!H64) -> 0 | O46: =IF(Leiested!$B$8="Egenandel",0,Leiested!I8)+IF(Leiested!$B$12="Egenandel",0,Leiested!I12)+IF(Leiested!$B$16="Egenandel",0,Leiested!I16)+IF(Leiested!$B$20="Egenandel",0,Leiested!I20)+IF(Leiested!$B$24="Egenandel",0,Leiested!I24)+IF(Leiested!$B$28="Egenandel",0,Leiested!I28)+IF(Leiested!$B$32="Egenandel",0,Leiested!I32)+IF(Leiested!$B$36="Egenandel",0,Leiested!I36)+IF(Leiested!$B$40="Egenandel",0,Leiested!I40)+IF(Leiested!$B$44="Egenandel",0,Leiested!I44)+IF(Leiested!$B$48="Egenandel",0,Leiested!I48)+IF(Leiested!$B$52="Egenandel",0,Leiested!I52)+IF(Leiested!$B$56="Egenandel",0,Leiested!I56)+IF(Leiested!$B$60="Egenandel",0,Leiested!I60)+IF(Leiested!$B$64="Egenandel",0,Leiested!I64) -> 0 | P46: =IF(Leiested!$B$8="Egenandel",0,Leiested!J8)+IF(Leiested!$B$12="Egenandel",0,Leiested!J12)+IF(Leiested!$B$16="Egenandel",0,Leiested!J16)+IF(Leiested!$B$20="Egenandel",0,Leiested!J20)+IF(Leiested!$B$24="Egenandel",0,Leiested!J24)+IF(Leiested!$B$28="Egenandel",0,Leiested!J28)+IF(Leiested!$B$32="Egenandel",0,Leiested!J32)+IF(Leiested!$B$36="Egenandel",0,Leiested!J36)+IF(Leiested!$B$40="Egenandel",0,Leiested!J40)+IF(Leiested!$B$44="Egenandel",0,Leiested!J44)+IF(Leiested!$B$48="Egenandel",0,Leiested!J48)+IF(Leiested!$B$52="Egenandel",0,Leiested!J52)+IF(Leiested!$B$56="Egenandel",0,Leiested!J56)+IF(Leiested!$B$60="Egenandel",0,Leiested!J60)+IF(Leiested!$B$64="Egenandel",0,Leiested!J64) -> 0 | Q46: =IF(Leiested!$B$8="Egenandel",0,Leiested!K8)+IF(Leiested!$B$12="Egenandel",0,Leiested!K12)+IF(Leiested!$B$16="Egenandel",0,Leiested!K16)+IF(Leiested!$B$20="Egenandel",0,Leiested!K20)+IF(Leiested!$B$24="Egenandel",0,Leiested!K24)+IF(Leiested!$B$28="Egenandel",0,Leiested!K28)+IF(Leiested!$B$32="Egenandel",0,Leiested!K32)+IF(Leiested!$B$36="Egenandel",0,Leiested!K36)+IF(Leiested!$B$40="Egenandel",0,Leiested!K40)+IF(Leiested!$B$44="Egenandel",0,Leiested!K44)+IF(Leiested!$B$48="Egenandel",0,Leiested!K48)+IF(Leiested!$B$52="Egenandel",0,Leiested!K52)+IF(Leiested!$B$56="Egenandel",0,Leiested!K56)+IF(Leiested!$B$60="Egenandel",0,Leiested!K60)+IF(Leiested!$B$64="Egenandel",0,Leiested!K64) -> 0 | R46: =IF(Leiested!$B$8="Egenandel",0,Leiested!L8)+IF(Leiested!$B$12="Egenandel",0,Leiested!L12)+IF(Leiested!$B$16="Egenandel",0,Leiested!L16)+IF(Leiested!$B$20="Egenandel",0,Leiested!L20)+IF(Leiested!$B$24="Egenandel",0,Leiested!L24)+IF(Leiested!$B$28="Egenandel",0,Leiested!L28)+IF(Leiested!$B$32="Egenandel",0,Leiested!L32)+IF(Leiested!$B$36="Egenandel",0,Leiested!L36)+IF(Leiested!$B$40="Egenandel",0,Leiested!L40)+IF(Leiested!$B$44="Egenandel",0,Leiested!L44)+IF(Leiested!$B$48="Egenandel",0,Leiested!L48)+IF(Leiested!$B$52="Egenandel",0,Leiested!L52)+IF(Leiested!$B$56="Egenandel",0,Leiested!L56)+IF(Leiested!$B$60="Egenandel",0,Leiested!L60)+IF(Leiested!$B$64="Egenandel",0,Leiested!L64) -> 0 | S46: =IF(Leiested!$B$8="Egenandel",0,Leiested!M8)+IF(Leiested!$B$12="Egenandel",0,Leiested!M12)+IF(Leiested!$B$16="Egenandel",0,Leiested!M16)+IF(Leiested!$B$20="Egenandel",0,Leiested!M20)+IF(Leiested!$B$24="Egenandel",0,Leiested!M24)+IF(Leiested!$B$28="Egenandel",0,Leiested!M28)+IF(Leiested!$B$32="Egenandel",0,Leiested!M32)+IF(Leiested!$B$36="Egenandel",0,Leiested!M36)+IF(Leiested!$B$40="Egenandel",0,Leiested!M40)+IF(Leiested!$B$44="Egenandel",0,Leiested!M44)+IF(Leiested!$B$48="Egenandel",0,Leiested!M48)+IF(Leiested!$B$52="Egenandel",0,Leiested!M52)+IF(Leiested!$B$56="Egenandel",0,Leiested!M56)+IF(Leiested!$B$60="Egenandel",0,Leiested!M60)+IF(Leiested!$B$64="Egenandel",0,Leiested!M64) -> 0 | T46: =IF(Leiested!$B$8="Egenandel",0,Leiested!N8)+IF(Leiested!$B$12="Egenandel",0,Leiested!N12)+IF(Leiested!$B$16="Egenandel",0,Leiested!N16)+IF(Leiested!$B$20="Egenandel",0,Leiested!N20)+IF(Leiested!$B$24="Egenandel",0,Leiested!N24)+IF(Leiested!$B$28="Egenandel",0,Leiested!N28)+IF(Leiested!$B$32="Egenandel",0,Leiested!N32)+IF(Leiested!$B$36="Egenandel",0,Leiested!N36)+IF(Leiested!$B$40="Egenandel",0,Leiested!N40)+IF(Leiested!$B$44="Egenandel",0,Leiested!N44)+IF(Leiested!$B$48="Egenandel",0,Leiested!N48)+IF(Leiested!$B$52="Egenandel",0,Leiested!N52)+IF(Leiested!$B$56="Egenandel",0,Leiested!N56)+IF(Leiested!$B$60="Egenandel",0,Leiested!N60)+IF(Leiested!$B$64="Egenandel",0,Leiested!N64) -> 0 | U46: =IF(Leiested!$B$8="Egenandel",0,Leiested!O8)+IF(Leiested!$B$12="Egenandel",0,Leiested!O12)+IF(Leiested!$B$16="Egenandel",0,Leiested!O16)+IF(Leiested!$B$20="Egenandel",0,Leiested!O20)+IF(Leiested!$B$24="Egenandel",0,Leiested!O24)+IF(Leiested!$B$28="Egenandel",0,Leiested!O28)+IF(Leiested!$B$32="Egenandel",0,Leiested!O32)+IF(Leiested!$B$36="Egenandel",0,Leiested!O36)+IF(Leiested!$B$40="Egenandel",0,Leiested!O40)+IF(Leiested!$B$44="Egenandel",0,Leiested!O44)+IF(Leiested!$B$48="Egenandel",0,Leiested!O48)+IF(Leiested!$B$52="Egenandel",0,Leiested!O52)+IF(Leiested!$B$56="Egenandel",0,Leiested!O56)+IF(Leiested!$B$60="Egenandel",0,Leiested!O60)+IF(Leiested!$B$64="Egenandel",0,Leiested!O64) -> 0 | V46: =IF(Leiested!$B$8="Egenandel",0,Leiested!P8)+IF(Leiested!$B$12="Egenandel",0,Leiested!P12)+IF(Leiested!$B$16="Egenandel",0,Leiested!P16)+IF(Leiested!$B$20="Egenandel",0,Leiested!P20)+IF(Leiested!$B$24="Egenandel",0,Leiested!P24)+IF(Leiested!$B$28="Egenandel",0,Leiested!P28)+IF(Leiested!$B$32="Egenandel",0,Leiested!P32)+IF(Leiested!$B$36="Egenandel",0,Leiested!P36)+IF(Leiested!$B$40="Egenandel",0,Leiested!P40)+IF(Leiested!$B$44="Egenandel",0,Leiested!P44)+IF(Leiested!$B$48="Egenandel",0,Leiested!P48)+IF(Leiested!$B$52="Egenandel",0,Leiested!P52)+IF(Leiested!$B$56="Egenandel",0,Leiested!P56)+IF(Leiested!$B$60="Egenandel",0,Leiested!P60)+IF(Leiested!$B$64="Egenandel",0,Leiested!P64) -> 0 | W46: =IF(Leiested!$B$8="Egenandel",0,Leiested!Q8)+IF(Leiested!$B$12="Egenandel",0,Leiested!Q12)+IF(Leiested!$B$16="Egenandel",0,Leiested!Q16)+IF(Leiested!$B$20="Egenandel",0,Leiested!Q20)+IF(Leiested!$B$24="Egenandel",0,Leiested!Q24)+IF(Leiested!$B$28="Egenandel",0,Leiested!Q28)+IF(Leiested!$B$32="Egenandel",0,Leiested!Q32)+IF(Leiested!$B$36="Egenandel",0,Leiested!Q36)+IF(Leiested!$B$40="Egenandel",0,Leiested!Q40)+IF(Leiested!$B$44="Egenandel",0,Leiested!Q44)+IF(Leiested!$B$48="Egenandel",0,Leiested!Q48)+IF(Leiested!$B$52="Egenandel",0,Leiested!Q52)+IF(Leiested!$B$56="Egenandel",0,Leiested!Q56)+IF(Leiested!$B$60="Egenandel",0,Leiested!Q60)+IF(Leiested!$B$64="Egenandel",0,Leiested!Q64) -> 0 | AR46: 0 | AS46: 0 | AT46: 0 | AU46: 0 | AV46: 0 | AW46: 0 | AX46: 0 | AY46: 0 | AZ46: 0 | BA46: 0 | BB46: 0 | BC46: 0 | BD46: 0 | BE46: 0 | CX46: Leiested - eksternt finansiert | CY46: 0 | CZ46: 0 | DA46: 0 | DB46: 0 | DC46: 0 | DD46: 0 | DE46: 0 | DF46: 0 | DG46: 0 | DH46: 0 | DI46: 0 | DJ46: 0 | DK46: 0 | DL46: 0 | DO46: Leiested - eksternt finansiert | DP46: =-(IF(Leiested!$B$8="NFR",Leiested!E8,0)+IF(Leiested!$B$12="NFR",Leiested!E12,0)+IF(Leiested!$B$16="NFR",Leiested!E16,0)+IF(Leiested!$B$20="NFR",Leiested!E20,0)+IF(Leiested!$B$24="NFR",Leiested!E24,0)+IF(Leiested!$B$28="NFR",Leiested!E28,0)+IF(Leiested!$B$32="NFR",Leiested!E32,0)+IF(Leiested!$B$36="NFR",Leiested!E36,0)+IF(Leiested!$B$40="NFR",Leiested!E40,0)+IF(Leiested!$B$44="NFR",Leiested!E44,0)+IF(Leiested!$B$48="NFR",Leiested!E48,0)+IF(Leiested!$B$52="NFR",Leiested!E52,0)+IF(Leiested!$B$56="NFR",Leiested!E56,0)+IF(Leiested!$B$60="NFR",Leiested!E60,0)+IF(Leiested!$B$64="NFR",Leiested!E64,0)) -> 0 | DQ46: =-(IF(Leiested!$B$8="NFR",Leiested!F8,0)+IF(Leiested!$B$12="NFR",Leiested!F12,0)+IF(Leiested!$B$16="NFR",Leiested!F16,0)+IF(Leiested!$B$20="NFR",Leiested!F20,0)+IF(Leiested!$B$24="NFR",Leiested!F24,0)+IF(Leiested!$B$28="NFR",Leiested!F28,0)+IF(Leiested!$B$32="NFR",Leiested!F32,0)+IF(Leiested!$B$36="NFR",Leiested!F36,0)+IF(Leiested!$B$40="NFR",Leiested!F40,0)+IF(Leiested!$B$44="NFR",Leiested!F44,0)+IF(Leiested!$B$48="NFR",Leiested!F48,0)+IF(Leiested!$B$52="NFR",Leiested!F52,0)+IF(Leiested!$B$56="NFR",Leiested!F56,0)+IF(Leiested!$B$60="NFR",Leiested!F60,0)+IF(Leiested!$B$64="NFR",Leiested!F64,0)) -> 0 | DR46: =-(IF(Leiested!$B$8="NFR",Leiested!G8,0)+IF(Leiested!$B$12="NFR",Leiested!G12,0)+IF(Leiested!$B$16="NFR",Leiested!G16,0)+IF(Leiested!$B$20="NFR",Leiested!G20,0)+IF(Leiested!$B$24="NFR",Leiested!G24,0)+IF(Leiested!$B$28="NFR",Leiested!G28,0)+IF(Leiested!$B$32="NFR",Leiested!G32,0)+IF(Leiested!$B$36="NFR",Leiested!G36,0)+IF(Leiested!$B$40="NFR",Leiested!G40,0)+IF(Leiested!$B$44="NFR",Leiested!G44,0)+IF(Leiested!$B$48="NFR",Leiested!G48,0)+IF(Leiested!$B$52="NFR",Leiested!G52,0)+IF(Leiested!$B$56="NFR",Leiested!G56,0)+IF(Leiested!$B$60="NFR",Leiested!G60,0)+IF(Leiested!$B$64="NFR",Leiested!G64,0)) -> 0 | DS46: =-(IF(Leiested!$B$8="NFR",Leiested!H8,0)+IF(Leiested!$B$12="NFR",Leiested!H12,0)+IF(Leiested!$B$16="NFR",Leiested!H16,0)+IF(Leiested!$B$20="NFR",Leiested!H20,0)+IF(Leiested!$B$24="NFR",Leiested!H24,0)+IF(Leiested!$B$28="NFR",Leiested!H28,0)+IF(Leiested!$B$32="NFR",Leiested!H32,0)+IF(Leiested!$B$36="NFR",Leiested!H36,0)+IF(Leiested!$B$40="NFR",Leiested!H40,0)+IF(Leiested!$B$44="NFR",Leiested!H44,0)+IF(Leiested!$B$48="NFR",Leiested!H48,0)+IF(Leiested!$B$52="NFR",Leiested!H52,0)+IF(Leiested!$B$56="NFR",Leiested!H56,0)+IF(Leiested!$B$60="NFR",Leiested!H60,0)+IF(Leiested!$B$64="NFR",Leiested!H64,0)) -> 0 | DT46: =-(IF(Leiested!$B$8="NFR",Leiested!I8,0)+IF(Leiested!$B$12="NFR",Leiested!I12,0)+IF(Leiested!$B$16="NFR",Leiested!I16,0)+IF(Leiested!$B$20="NFR",Leiested!I20,0)+IF(Leiested!$B$24="NFR",Leiested!I24,0)+IF(Leiested!$B$28="NFR",Leiested!I28,0)+IF(Leiested!$B$32="NFR",Leiested!I32,0)+IF(Leiested!$B$36="NFR",Leiested!I36,0)+IF(Leiested!$B$40="NFR",Leiested!I40,0)+IF(Leiested!$B$44="NFR",Leiested!I44,0)+IF(Leiested!$B$48="NFR",Leiested!I48,0)+IF(Leiested!$B$52="NFR",Leiested!I52,0)+IF(Leiested!$B$56="NFR",Leiested!I56,0)+IF(Leiested!$B$60="NFR",Leiested!I60,0)+IF(Leiested!$B$64="NFR",Leiested!I64,0)) -> 0 | DU46: =-(IF(Leiested!$B$8="NFR",Leiested!J8,0)+IF(Leiested!$B$12="NFR",Leiested!J12,0)+IF(Leiested!$B$16="NFR",Leiested!J16,0)+IF(Leiested!$B$20="NFR",Leiested!J20,0)+IF(Leiested!$B$24="NFR",Leiested!J24,0)+IF(Leiested!$B$28="NFR",Leiested!J28,0)+IF(Leiested!$B$32="NFR",Leiested!J32,0)+IF(Leiested!$B$36="NFR",Leiested!J36,0)+IF(Leiested!$B$40="NFR",Leiested!J40,0)+IF(Leiested!$B$44="NFR",Leiested!J44,0)+IF(Leiested!$B$48="NFR",Leiested!J48,0)+IF(Leiested!$B$52="NFR",Leiested!J52,0)+IF(Leiested!$B$56="NFR",Leiested!J56,0)+IF(Leiested!$B$60="NFR",Leiested!J60,0)+IF(Leiested!$B$64="NFR",Leiested!J64,0)) -> 0 | DV46: =-(IF(Leiested!$B$8="NFR",Leiested!K8,0)+IF(Leiested!$B$12="NFR",Leiested!K12,0)+IF(Leiested!$B$16="NFR",Leiested!K16,0)+IF(Leiested!$B$20="NFR",Leiested!K20,0)+IF(Leiested!$B$24="NFR",Leiested!K24,0)+IF(Leiested!$B$28="NFR",Leiested!K28,0)+IF(Leiested!$B$32="NFR",Leiested!K32,0)+IF(Leiested!$B$36="NFR",Leiested!K36,0)+IF(Leiested!$B$40="NFR",Leiested!K40,0)+IF(Leiested!$B$44="NFR",Leiested!K44,0)+IF(Leiested!$B$48="NFR",Leiested!K48,0)+IF(Leiested!$B$52="NFR",Leiested!K52,0)+IF(Leiested!$B$56="NFR",Leiested!K56,0)+IF(Leiested!$B$60="NFR",Leiested!K60,0)+IF(Leiested!$B$64="NFR",Leiested!K64,0)) -> 0 | DW46: =-(IF(Leiested!$B$8="NFR",Leiested!L8,0)+IF(Leiested!$B$12="NFR",Leiested!L12,0)+IF(Leiested!$B$16="NFR",Leiested!L16,0)+IF(Leiested!$B$20="NFR",Leiested!L20,0)+IF(Leiested!$B$24="NFR",Leiested!L24,0)+IF(Leiested!$B$28="NFR",Leiested!L28,0)+IF(Leiested!$B$32="NFR",Leiested!L32,0)+IF(Leiested!$B$36="NFR",Leiested!L36,0)+IF(Leiested!$B$40="NFR",Leiested!L40,0)+IF(Leiested!$B$44="NFR",Leiested!L44,0)+IF(Leiested!$B$48="NFR",Leiested!L48,0)+IF(Leiested!$B$52="NFR",Leiested!L52,0)+IF(Leiested!$B$56="NFR",Leiested!L56,0)+IF(Leiested!$B$60="NFR",Leiested!L60,0)+IF(Leiested!$B$64="NFR",Leiested!L64,0)) -> 0 | DX46: =-(IF(Leiested!$B$8="NFR",Leiested!M8,0)+IF(Leiested!$B$12="NFR",Leiested!M12,0)+IF(Leiested!$B$16="NFR",Leiested!M16,0)+IF(Leiested!$B$20="NFR",Leiested!M20,0)+IF(Leiested!$B$24="NFR",Leiested!M24,0)+IF(Leiested!$B$28="NFR",Leiested!M28,0)+IF(Leiested!$B$32="NFR",Leiested!M32,0)+IF(Leiested!$B$36="NFR",Leiested!M36,0)+IF(Leiested!$B$40="NFR",Leiested!M40,0)+IF(Leiested!$B$44="NFR",Leiested!M44,0)+IF(Leiested!$B$48="NFR",Leiested!M48,0)+IF(Leiested!$B$52="NFR",Leiested!M52,0)+IF(Leiested!$B$56="NFR",Leiested!M56,0)+IF(Leiested!$B$60="NFR",Leiested!M60,0)+IF(Leiested!$B$64="NFR",Leiested!M64,0)) -> 0 | DY46: =-(IF(Leiested!$B$8="NFR",Leiested!N8,0)+IF(Leiested!$B$12="NFR",Leiested!N12,0)+IF(Leiested!$B$16="NFR",Leiested!N16,0)+IF(Leiested!$B$20="NFR",Leiested!N20,0)+IF(Leiested!$B$24="NFR",Leiested!N24,0)+IF(Leiested!$B$28="NFR",Leiested!N28,0)+IF(Leiested!$B$32="NFR",Leiested!N32,0)+IF(Leiested!$B$36="NFR",Leiested!N36,0)+IF(Leiested!$B$40="NFR",Leiested!N40,0)+IF(Leiested!$B$44="NFR",Leiested!N44,0)+IF(Leiested!$B$48="NFR",Leiested!N48,0)+IF(Leiested!$B$52="NFR",Leiested!N52,0)+IF(Leiested!$B$56="NFR",Leiested!N56,0)+IF(Leiested!$B$60="NFR",Leiested!N60,0)+IF(Leiested!$B$64="NFR",Leiested!N64,0)) -> 0 | DZ46: =-(IF(Leiested!$B$8="NFR",Leiested!O8,0)+IF(Leiested!$B$12="NFR",Leiested!O12,0)+IF(Leiested!$B$16="NFR",Leiested!O16,0)+IF(Leiested!$B$20="NFR",Leiested!O20,0)+IF(Leiested!$B$24="NFR",Leiested!O24,0)+IF(Leiested!$B$28="NFR",Leiested!O28,0)+IF(Leiested!$B$32="NFR",Leiested!O32,0)+IF(Leiested!$B$36="NFR",Leiested!O36,0)+IF(Leiested!$B$40="NFR",Leiested!O40,0)+IF(Leiested!$B$44="NFR",Leiested!O44,0)+IF(Leiested!$B$48="NFR",Leiested!O48,0)+IF(Leiested!$B$52="NFR",Leiested!O52,0)+IF(Leiested!$B$56="NFR",Leiested!O56,0)+IF(Leiested!$B$60="NFR",Leiested!O60,0)+IF(Leiested!$B$64="NFR",Leiested!O64,0)) -> 0 | EA46: =-(IF(Leiested!$B$8="NFR",Leiested!P8,0)+IF(Leiested!$B$12="NFR",Leiested!P12,0)+IF(Leiested!$B$16="NFR",Leiested!P16,0)+IF(Leiested!$B$20="NFR",Leiested!P20,0)+IF(Leiested!$B$24="NFR",Leiested!P24,0)+IF(Leiested!$B$28="NFR",Leiested!P28,0)+IF(Leiested!$B$32="NFR",Leiested!P32,0)+IF(Leiested!$B$36="NFR",Leiested!P36,0)+IF(Leiested!$B$40="NFR",Leiested!P40,0)+IF(Leiested!$B$44="NFR",Leiested!P44,0)+IF(Leiested!$B$48="NFR",Leiested!P48,0)+IF(Leiested!$B$52="NFR",Leiested!P52,0)+IF(Leiested!$B$56="NFR",Leiested!P56,0)+IF(Leiested!$B$60="NFR",Leiested!P60,0)+IF(Leiested!$B$64="NFR",Leiested!P64,0)) -> 0 | EB46: =-(IF(Leiested!$B$8="NFR",Leiested!Q8,0)+IF(Leiested!$B$12="NFR",Leiested!Q12,0)+IF(Leiested!$B$16="NFR",Leiested!Q16,0)+IF(Leiested!$B$20="NFR",Leiested!Q20,0)+IF(Leiested!$B$24="NFR",Leiested!Q24,0)+IF(Leiested!$B$28="NFR",Leiested!Q28,0)+IF(Leiested!$B$32="NFR",Leiested!Q32,0)+IF(Leiested!$B$36="NFR",Leiested!Q36,0)+IF(Leiested!$B$40="NFR",Leiested!Q40,0)+IF(Leiested!$B$44="NFR",Leiested!Q44,0)+IF(Leiested!$B$48="NFR",Leiested!Q48,0)+IF(Leiested!$B$52="NFR",Leiested!Q52,0)+IF(Leiested!$B$56="NFR",Leiested!Q56,0)+IF(Leiested!$B$60="NFR",Leiested!Q60,0)+IF(Leiested!$B$64="NFR",Leiested!Q64,0)) -> 0 | EC46: 0 | EE46: Leiested - eksternt finansiert | EF46: =-(IF(Leiested!$B$8="Private",Leiested!E8,0)+IF(Leiested!$B$12="Private",Leiested!E12,0)+IF(Leiested!$B$16="Private",Leiested!E16,0)+IF(Leiested!$B$20="Private",Leiested!E20,0)+IF(Leiested!$B$24="Private",Leiested!E24,0)+IF(Leiested!$B$28="Private",Leiested!E28,0)+IF(Leiested!$B$32="Private",Leiested!E32,0)) -> 0 | EG46: =-(IF(Leiested!$B$8="Private",Leiested!F8,0)+IF(Leiested!$B$12="Private",Leiested!F12,0)+IF(Leiested!$B$16="Private",Leiested!F16,0)+IF(Leiested!$B$20="Private",Leiested!F20,0)+IF(Leiested!$B$24="Private",Leiested!F24,0)+IF(Leiested!$B$28="Private",Leiested!F28,0)+IF(Leiested!$B$32="Private",Leiested!F32,0)) -> 0 | EH46: =-(IF(Leiested!$B$8="Private",Leiested!G8,0)+IF(Leiested!$B$12="Private",Leiested!G12,0)+IF(Leiested!$B$16="Private",Leiested!G16,0)+IF(Leiested!$B$20="Private",Leiested!G20,0)+IF(Leiested!$B$24="Private",Leiested!G24,0)+IF(Leiested!$B$28="Private",Leiested!G28,0)+IF(Leiested!$B$32="Private",Leiested!G32,0)) -> 0 | EI46: =-(IF(Leiested!$B$8="Private",Leiested!H8,0)+IF(Leiested!$B$12="Private",Leiested!H12,0)+IF(Leiested!$B$16="Private",Leiested!H16,0)+IF(Leiested!$B$20="Private",Leiested!H20,0)+IF(Leiested!$B$24="Private",Leiested!H24,0)+IF(Leiested!$B$28="Private",Leiested!H28,0)+IF(Leiested!$B$32="Private",Leiested!H32,0)) -> 0 | EJ46: =-(IF(Leiested!$B$8="Private",Leiested!I8,0)+IF(Leiested!$B$12="Private",Leiested!I12,0)+IF(Leiested!$B$16="Private",Leiested!I16,0)+IF(Leiested!$B$20="Private",Leiested!I20,0)+IF(Leiested!$B$24="Private",Leiested!I24,0)+IF(Leiested!$B$28="Private",Leiested!I28,0)+IF(Leiested!$B$32="Private",Leiested!I32,0)) -> 0 | EK46: =-(IF(Leiested!$B$8="Private",Leiested!J8,0)+IF(Leiested!$B$12="Private",Leiested!J12,0)+IF(Leiested!$B$16="Private",Leiested!J16,0)+IF(Leiested!$B$20="Private",Leiested!J20,0)+IF(Leiested!$B$24="Private",Leiested!J24,0)+IF(Leiested!$B$28="Private",Leiested!J28,0)+IF(Leiested!$B$32="Private",Leiested!J32,0)) -> 0 | EL46: =-(IF(Leiested!$B$8="Private",Leiested!K8,0)+IF(Leiested!$B$12="Private",Leiested!K12,0)+IF(Leiested!$B$16="Private",Leiested!K16,0)+IF(Leiested!$B$20="Private",Leiested!K20,0)+IF(Leiested!$B$24="Private",Leiested!K24,0)+IF(Leiested!$B$28="Private",Leiested!K28,0)+IF(Leiested!$B$32="Private",Leiested!K32,0)) -> 0 | EM46: =-(IF(Leiested!$B$8="Private",Leiested!L8,0)+IF(Leiested!$B$12="Private",Leiested!L12,0)+IF(Leiested!$B$16="Private",Leiested!L16,0)+IF(Leiested!$B$20="Private",Leiested!L20,0)+IF(Leiested!$B$24="Private",Leiested!L24,0)+IF(Leiested!$B$28="Private",Leiested!L28,0)+IF(Leiested!$B$32="Private",Leiested!L32,0)) -> 0 | EN46: =-(IF(Leiested!$B$8="Private",Leiested!M8,0)+IF(Leiested!$B$12="Private",Leiested!M12,0)+IF(Leiested!$B$16="Private",Leiested!M16,0)+IF(Leiested!$B$20="Private",Leiested!M20,0)+IF(Leiested!$B$24="Private",Leiested!M24,0)+IF(Leiested!$B$28="Private",Leiested!M28,0)+IF(Leiested!$B$32="Private",Leiested!M32,0)) -> 0 | EO46: =-(IF(Leiested!$B$8="Private",Leiested!N8,0)+IF(Leiested!$B$12="Private",Leiested!N12,0)+IF(Leiested!$B$16="Private",Leiested!N16,0)+IF(Leiested!$B$20="Private",Leiested!N20,0)+IF(Leiested!$B$24="Private",Leiested!N24,0)+IF(Leiested!$B$28="Private",Leiested!N28,0)+IF(Leiested!$B$32="Private",Leiested!N32,0)) -> 0 | EP46: =-(IF(Leiested!$B$8="Private",Leiested!O8,0)+IF(Leiested!$B$12="Private",Leiested!O12,0)+IF(Leiested!$B$16="Private",Leiested!O16,0)+IF(Leiested!$B$20="Private",Leiested!O20,0)+IF(Leiested!$B$24="Private",Leiested!O24,0)+IF(Leiested!$B$28="Private",Leiested!O28,0)+IF(Leiested!$B$32="Private",Leiested!O32,0)) -> 0 | EQ46: =-(IF(Leiested!$B$8="Private",Leiested!P8,0)+IF(Leiested!$B$12="Private",Leiested!P12,0)+IF(Leiested!$B$16="Private",Leiested!P16,0)+IF(Leiested!$B$20="Private",Leiested!P20,0)+IF(Leiested!$B$24="Private",Leiested!P24,0)+IF(Leiested!$B$28="Private",Leiested!P28,0)+IF(Leiested!$B$32="Private",Leiested!P32,0)) -> 0 | ER46: =-(IF(Leiested!$B$8="Private",Leiested!Q8,0)+IF(Leiested!$B$12="Private",Leiested!Q12,0)+IF(Leiested!$B$16="Private",Leiested!Q16,0)+IF(Leiested!$B$20="Private",Leiested!Q20,0)+IF(Leiested!$B$24="Private",Leiested!Q24,0)+IF(Leiested!$B$28="Private",Leiested!Q28,0)+IF(Leiested!$B$32="Private",Leiested!Q32,0)) -> 0 | ES46: 0 | EU46: Leiested - eksternt finansiert | EV46: =-(IF(Leiested!B8="Internasjonale",Leiested!E8,0)+IF(Leiested!$B$12="Internasjonale",Leiested!E12,0)+IF(Leiested!$B$16="Internasjonale",Leiested!E16,0)+IF(Leiested!$B$20="Internasjonale",Leiested!E20,0)+IF(Leiested!$B$24="Internasjonale",Leiested!E24,0)+IF(Leiested!B28="Internasjonale",Leiested!E28,0)+IF(Leiested!$B$32="Internasjonale",Leiested!E32,0)) -> 0 | EW46: =-(IF(Leiested!C8="Internasjonale",Leiested!F8,0)+IF(Leiested!$B$12="Internasjonale",Leiested!F12,0)+IF(Leiested!$B$16="Internasjonale",Leiested!F16,0)+IF(Leiested!$B$20="Internasjonale",Leiested!F20,0)+IF(Leiested!$B$24="Internasjonale",Leiested!F24,0)+IF(Leiested!C28="Internasjonale",Leiested!F28,0)+IF(Leiested!$B$32="Internasjonale",Leiested!F32,0)) -> 0 | EX46: =-(IF(Leiested!D8="Internasjonale",Leiested!G8,0)+IF(Leiested!$B$12="Internasjonale",Leiested!G12,0)+IF(Leiested!$B$16="Internasjonale",Leiested!G16,0)+IF(Leiested!$B$20="Internasjonale",Leiested!G20,0)+IF(Leiested!$B$24="Internasjonale",Leiested!G24,0)+IF(Leiested!D28="Internasjonale",Leiested!G28,0)+IF(Leiested!$B$32="Internasjonale",Leiested!G32,0)) -> 0 | EY46: =-(IF(Leiested!E8="Internasjonale",Leiested!H8,0)+IF(Leiested!$B$12="Internasjonale",Leiested!H12,0)+IF(Leiested!$B$16="Internasjonale",Leiested!H16,0)+IF(Leiested!$B$20="Internasjonale",Leiested!H20,0)+IF(Leiested!$B$24="Internasjonale",Leiested!H24,0)+IF(Leiested!E28="Internasjonale",Leiested!H28,0)+IF(Leiested!$B$32="Internasjonale",Leiested!H32,0)) -> 0 | EZ46: =-(IF(Leiested!F8="Internasjonale",Leiested!I8,0)+IF(Leiested!$B$12="Internasjonale",Leiested!I12,0)+IF(Leiested!$B$16="Internasjonale",Leiested!I16,0)+IF(Leiested!$B$20="Internasjonale",Leiested!I20,0)+IF(Leiested!$B$24="Internasjonale",Leiested!I24,0)+IF(Leiested!F28="Internasjonale",Leiested!I28,0)+IF(Leiested!$B$32="Internasjonale",Leiested!I32,0)) -> 0 | FA46: =-(IF(Leiested!G8="Internasjonale",Leiested!J8,0)+IF(Leiested!$B$12="Internasjonale",Leiested!J12,0)+IF(Leiested!$B$16="Internasjonale",Leiested!J16,0)+IF(Leiested!$B$20="Internasjonale",Leiested!J20,0)+IF(Leiested!$B$24="Internasjonale",Leiested!J24,0)+IF(Leiested!G28="Internasjonale",Leiested!J28,0)+IF(Leiested!$B$32="Internasjonale",Leiested!J32,0)) -> 0 | FB46: =-(IF(Leiested!H8="Internasjonale",Leiested!K8,0)+IF(Leiested!$B$12="Internasjonale",Leiested!K12,0)+IF(Leiested!$B$16="Internasjonale",Leiested!K16,0)+IF(Leiested!$B$20="Internasjonale",Leiested!K20,0)+IF(Leiested!$B$24="Internasjonale",Leiested!K24,0)+IF(Leiested!H28="Internasjonale",Leiested!K28,0)+IF(Leiested!$B$32="Internasjonale",Leiested!K32,0)) -> 0 | FC46: =-(IF(Leiested!I8="Internasjonale",Leiested!L8,0)+IF(Leiested!$B$12="Internasjonale",Leiested!L12,0)+IF(Leiested!$B$16="Internasjonale",Leiested!L16,0)+IF(Leiested!$B$20="Internasjonale",Leiested!L20,0)+IF(Leiested!$B$24="Internasjonale",Leiested!L24,0)+IF(Leiested!I28="Internasjonale",Leiested!L28,0)+IF(Leiested!$B$32="Internasjonale",Leiested!L32,0)) -> 0 | FD46: =-(IF(Leiested!J8="Internasjonale",Leiested!M8,0)+IF(Leiested!$B$12="Internasjonale",Leiested!M12,0)+IF(Leiested!$B$16="Internasjonale",Leiested!M16,0)+IF(Leiested!$B$20="Internasjonale",Leiested!M20,0)+IF(Leiested!$B$24="Internasjonale",Leiested!M24,0)+IF(Leiested!J28="Internasjonale",Leiested!M28,0)+IF(Leiested!$B$32="Internasjonale",Leiested!M32,0)) -> 0 | FE46: =-(IF(Leiested!K8="Internasjonale",Leiested!N8,0)+IF(Leiested!$B$12="Internasjonale",Leiested!N12,0)+IF(Leiested!$B$16="Internasjonale",Leiested!N16,0)+IF(Leiested!$B$20="Internasjonale",Leiested!N20,0)+IF(Leiested!$B$24="Internasjonale",Leiested!N24,0)+IF(Leiested!K28="Internasjonale",Leiested!N28,0)+IF(Leiested!$B$32="Internasjonale",Leiested!N32,0)) -> 0 | FF46: =-(IF(Leiested!L8="Internasjonale",Leiested!O8,0)+IF(Leiested!$B$12="Internasjonale",Leiested!O12,0)+IF(Leiested!$B$16="Internasjonale",Leiested!O16,0)+IF(Leiested!$B$20="Internasjonale",Leiested!O20,0)+IF(Leiested!$B$24="Internasjonale",Leiested!O24,0)+IF(Leiested!L28="Internasjonale",Leiested!O28,0)+IF(Leiested!$B$32="Internasjonale",Leiested!O32,0)) -> 0 | FG46: =-(IF(Leiested!M8="Internasjonale",Leiested!P8,0)+IF(Leiested!$B$12="Internasjonale",Leiested!P12,0)+IF(Leiested!$B$16="Internasjonale",Leiested!P16,0)+IF(Leiested!$B$20="Internasjonale",Leiested!P20,0)+IF(Leiested!$B$24="Internasjonale",Leiested!P24,0)+IF(Leiested!M28="Internasjonale",Leiested!P28,0)+IF(Leiested!$B$32="Internasjonale",Leiested!P32,0)) -> 0 | FH46: =-(IF(Leiested!N8="Internasjonale",Leiested!Q8,0)+IF(Leiested!$B$12="Internasjonale",Leiested!Q12,0)+IF(Leiested!$B$16="Internasjonale",Leiested!Q16,0)+IF(Leiested!$B$20="Internasjonale",Leiested!Q20,0)+IF(Leiested!$B$24="Internasjonale",Leiested!Q24,0)+IF(Leiested!N28="Internasjonale",Leiested!Q28,0)+IF(Leiested!$B$32="Internasjonale",Leiested!Q32,0)) -> 0 | FI46: 0 | FK46: Leiested - eksternt finansiert | FL46: =-(IF(Leiested!B8="Offentlige",Leiested!E8,0)+IF(Leiested!$B$12="Offentlige",Leiested!E12,0)+IF(Leiested!$B$16="Offentlige",Leiested!E16,0)+IF(Leiested!$B$20="Offentlige",Leiested!E20,0)+IF(Leiested!$B$24="Offentlige",Leiested!E24,0)+IF(Leiested!B28="Offentlige",Leiested!E28,0)+IF(Leiested!$B$32="Offentlige",Leiested!E32,0)) -> 0 | FM46: =-(IF(Leiested!C8="Offentlige",Leiested!F8,0)+IF(Leiested!$B$12="Offentlige",Leiested!F12,0)+IF(Leiested!$B$16="Offentlige",Leiested!F16,0)+IF(Leiested!$B$20="Offentlige",Leiested!F20,0)+IF(Leiested!$B$24="Offentlige",Leiested!F24,0)+IF(Leiested!C28="Offentlige",Leiested!F28,0)+IF(Leiested!$B$32="Offentlige",Leiested!F32,0)) -> 0 | FN46: =-(IF(Leiested!D8="Offentlige",Leiested!G8,0)+IF(Leiested!$B$12="Offentlige",Leiested!G12,0)+IF(Leiested!$B$16="Offentlige",Leiested!G16,0)+IF(Leiested!$B$20="Offentlige",Leiested!G20,0)+IF(Leiested!$B$24="Offentlige",Leiested!G24,0)+IF(Leiested!D28="Offentlige",Leiested!G28,0)+IF(Leiested!$B$32="Offentlige",Leiested!G32,0)) -> 0 | FO46: =-(IF(Leiested!E8="Offentlige",Leiested!H8,0)+IF(Leiested!$B$12="Offentlige",Leiested!H12,0)+IF(Leiested!$B$16="Offentlige",Leiested!H16,0)+IF(Leiested!$B$20="Offentlige",Leiested!H20,0)+IF(Leiested!$B$24="Offentlige",Leiested!H24,0)+IF(Leiested!E28="Offentlige",Leiested!H28,0)+IF(Leiested!$B$32="Offentlige",Leiested!H32,0)) -> 0 | FP46: =-(IF(Leiested!F8="Offentlige",Leiested!I8,0)+IF(Leiested!$B$12="Offentlige",Leiested!I12,0)+IF(Leiested!$B$16="Offentlige",Leiested!I16,0)+IF(Leiested!$B$20="Offentlige",Leiested!I20,0)+IF(Leiested!$B$24="Offentlige",Leiested!I24,0)+IF(Leiested!F28="Offentlige",Leiested!I28,0)+IF(Leiested!$B$32="Offentlige",Leiested!I32,0)) -> 0 | FQ46: =-(IF(Leiested!G8="Offentlige",Leiested!J8,0)+IF(Leiested!$B$12="Offentlige",Leiested!J12,0)+IF(Leiested!$B$16="Offentlige",Leiested!J16,0)+IF(Leiested!$B$20="Offentlige",Leiested!J20,0)+IF(Leiested!$B$24="Offentlige",Leiested!J24,0)+IF(Leiested!G28="Offentlige",Leiested!J28,0)+IF(Leiested!$B$32="Offentlige",Leiested!J32,0)) -> 0 | FR46: =-(IF(Leiested!H8="Offentlige",Leiested!K8,0)+IF(Leiested!$B$12="Offentlige",Leiested!K12,0)+IF(Leiested!$B$16="Offentlige",Leiested!K16,0)+IF(Leiested!$B$20="Offentlige",Leiested!K20,0)+IF(Leiested!$B$24="Offentlige",Leiested!K24,0)+IF(Leiested!H28="Offentlige",Leiested!K28,0)+IF(Leiested!$B$32="Offentlige",Leiested!K32,0)) -> 0 | FS46: =-(IF(Leiested!I8="Offentlige",Leiested!L8,0)+IF(Leiested!$B$12="Offentlige",Leiested!L12,0)+IF(Leiested!$B$16="Offentlige",Leiested!L16,0)+IF(Leiested!$B$20="Offentlige",Leiested!L20,0)+IF(Leiested!$B$24="Offentlige",Leiested!L24,0)+IF(Leiested!I28="Offentlige",Leiested!L28,0)+IF(Leiested!$B$32="Offentlige",Leiested!L32,0)) -> 0 | FT46: =-(IF(Leiested!J8="Offentlige",Leiested!M8,0)+IF(Leiested!$B$12="Offentlige",Leiested!M12,0)+IF(Leiested!$B$16="Offentlige",Leiested!M16,0)+IF(Leiested!$B$20="Offentlige",Leiested!M20,0)+IF(Leiested!$B$24="Offentlige",Leiested!M24,0)+IF(Leiested!J28="Offentlige",Leiested!M28,0)+IF(Leiested!$B$32="Offentlige",Leiested!M32,0)) -> 0 | FU46: =-(IF(Leiested!K8="Offentlige",Leiested!N8,0)+IF(Leiested!$B$12="Offentlige",Leiested!N12,0)+IF(Leiested!$B$16="Offentlige",Leiested!N16,0)+IF(Leiested!$B$20="Offentlige",Leiested!N20,0)+IF(Leiested!$B$24="Offentlige",Leiested!N24,0)+IF(Leiested!K28="Offentlige",Leiested!N28,0)+IF(Leiested!$B$32="Offentlige",Leiested!N32,0)) -> 0 | FV46: =-(IF(Leiested!L8="Offentlige",Leiested!O8,0)+IF(Leiested!$B$12="Offentlige",Leiested!O12,0)+IF(Leiested!$B$16="Offentlige",Leiested!O16,0)+IF(Leiested!$B$20="Offentlige",Leiested!O20,0)+IF(Leiested!$B$24="Offentlige",Leiested!O24,0)+IF(Leiested!L28="Offentlige",Leiested!O28,0)+IF(Leiested!$B$32="Offentlige",Leiested!O32,0)) -> 0 | FW46: =-(IF(Leiested!M8="Offentlige",Leiested!P8,0)+IF(Leiested!$B$12="Offentlige",Leiested!P12,0)+IF(Leiested!$B$16="Offentlige",Leiested!P16,0)+IF(Leiested!$B$20="Offentlige",Leiested!P20,0)+IF(Leiested!$B$24="Offentlige",Leiested!P24,0)+IF(Leiested!M28="Offentlige",Leiested!P28,0)+IF(Leiested!$B$32="Offentlige",Leiested!P32,0)) -> 0 | FX46: =-(IF(Leiested!N8="Offentlige",Leiested!Q8,0)+IF(Leiested!$B$12="Offentlige",Leiested!Q12,0)+IF(Leiested!$B$16="Offentlige",Leiested!Q16,0)+IF(Leiested!$B$20="Offentlige",Leiested!Q20,0)+IF(Leiested!$B$24="Offentlige",Leiested!Q24,0)+IF(Leiested!N28="Offentlige",Leiested!Q28,0)+IF(Leiested!$B$32="Offentlige",Leiested!Q32,0)) -> 0 | FY46: 0 | GB46: Leiested - eksternt finansiert | GC46: =IF($H46=$GB$1,AR46,0) -> 0 | GD46: =IF($H46=$GB$1,-AS46,0) -> 0 | GE46: 0 | GF46: 0 | GG46: 0 | GH46: 0 | GI46: 0 | GJ46: 0 | GK46: 0 | GL46: 0 | GM46: 0 | GN46: 0 | GO46: 0 | GP46: 0
B47: Sentral egenfinansiering | F47: 0 | H47: Egenandel | AR47: 0 | AS47: 0 | AT47: 0 | AU47: 0 | AV47: 0 | AW47: 0 | AX47: 0 | AY47: 0 | AZ47: 0 | BA47: 0 | BB47: 0 | BC47: 0 | BD47: 0 | BE47: 0 | CX47: Sentral egenfinansiering | DO47: Sentral egenfinansiering | EE47: Sentral egenfinansiering | EU47: Sentral egenfinansiering | FK47: Sentral egenfinansiering | GB47: Sentral egenfinansiering | GC47: =IF($H47=$GB$1,AR47,0) -> 0 | GD47: =IF($H47=$GB$1,AS47,0) -> 0 | GE47: 0 | GF47: 0 | GG47: 0 | GH47: 0 | GI47: 0 | GJ47: 0 | GK47: 0 | GL47: 0 | GM47: 0 | GN47: 0 | GO47: 0 | GP47: 0
B48: Egenfinansiert drift fra instituttet | F48: 0 | H48: Egenandel | AR48: 0 | AS48: 0 | AT48: 0 | AU48: 0 | AV48: 0 | AW48: 0 | AX48: 0 | AY48: 0 | AZ48: 0 | BA48: 0 | BB48: 0 | BC48: 0 | BD48: 0 | BE48: 0 | CX48: Egenfinansiert drift fra instituttet | CY48: 0 | CZ48: 0 | DA48: 0 | DB48: 0 | DC48: 0 | DD48: 0 | DE48: 0 | DF48: 0 | DG48: 0 | DH48: 0 | DI48: 0 | DJ48: 0 | DK48: 0 | DL48: 0 | DO48: Egenfinansiert drift fra instituttet | DP48: =IF($H48="NFR",CY48,0) -> 0 | DQ48: 0 | DR48: 0 | DS48: 0 | DT48: 0 | DU48: 0 | DV48: 0 | DW48: 0 | DX48: 0 | DY48: 0 | DZ48: =IF($H48="NFR",DI48,0) -> 0 | EA48: =IF($H48="NFR",DJ48,0) -> 0 | EB48: =IF($H48="NFR",DK48,0) -> 0 | EC48: 0 | EE48: Egenfinansiert drift fra instituttet | EF48: =IF($H48=$EE$1,CY48,0) -> 0 | EG48: 0 | EH48: 0 | EI48: 0 | EJ48: 0 | EK48: 0 | EL48: 0 | EM48: 0 | EN48: 0 | EO48: 0 | EP48: 0 | EQ48: 0 | ER48: 0 | ES48: 0 | EU48: Egenfinansiert drift fra instituttet | EV48: =IF($H48=$EU$1,CY48,0) -> 0 | EW48: 0 | EX48: 0 | EY48: 0 | EZ48: 0 | FA48: 0 | FB48: 0 | FC48: 0 | FD48: 0 | FE48: 0 | FF48: 0 | FG48: 0 | FH48: 0 | FI48: 0 | FK48: Egenfinansiert drift fra instituttet | FL48: =IF($H48=$FK$1,CY48,0) -> 0 | FM48: 0 | FN48: 0 | FO48: 0 | FP48: 0 | FQ48: 0 | FR48: 0 | FS48: 0 | FT48: 0 | FU48: 0 | FV48: 0 | FW48: 0 | FX48: 0 | FY48: 0 | GB48: Egenfinansiert drift fra instituttet | GC48: =IF($H48=$GB$1,AR48,0) -> 0 | GD48: 0 | GE48: 0 | GF48: 0 | GG48: 0 | GH48: 0 | GI48: 0 | GJ48: 0 | GK48: 0 | GL48: 0 | GM48: 0 | GN48: 0 | GO48: 0 | GP48: 0
B49: Sum drift | C49: =SUM(C41:C48) -> -2500000 | F49: =SUM(F41:F48) -> 2500000 | K49: =SUM(K41:K48) -> 0 | L49: 0 | M49: 468750 | N49: 625000 | O49: 625000 | P49: 625000 | Q49: 156250 | R49: 0 | S49: 0 | T49: 0 | U49: =SUM(U41:U48) -> 0 | V49: 0 | W49: 0 | AR49: =SUM(AR41:AR48) -> 0 | AS49: 0 | AT49: 468750 | AU49: 625000 | AV49: 625000 | AW49: 625000 | AX49: 156250 | AY49: 0 | AZ49: 0 | BA49: 0 | BB49: =SUM(BB41:BB48) -> 0 | BC49: 0 | BD49: 0 | BE49: =SUM(AR49:BA49) -> 2500000 | CX49: Sum drift | CY49: =SUM(CY42:CY48) -> 0 | CZ49: 0 | DA49: -468750 | DB49: -625000 | DC49: -625000 | DD49: -625000 | DE49: -156250 | DF49: 0 | DG49: 0 | DH49: 0 | DI49: =SUM(DI42:DI48) -> 0 | DJ49: 0 | DK49: 0 | DL49: -2500000 | DO49: Sum drift | DP49: 0 | DQ49: 0 | DR49: 0 | DS49: 0 | DT49: 0 | DU49: 0 | DV49: 0 | DW49: 0 | DX49: 0 | DY49: 0 | DZ49: 0 | EA49: 0 | EB49: 0 | EC49: 0 | EE49: Sum drift | EF49: 0 | EG49: 0 | EH49: 0 | EI49: 0 | EJ49: 0 | EK49: 0 | EL49: 0 | EM49: 0 | EN49: 0 | EO49: 0 | EP49: 0 | EQ49: 0 | ER49: 0 | ES49: 0 | EU49: Sum drift | EV49: 0 | EW49: 0 | EX49: 0 | EY49: 0 | EZ49: 0 | FA49: 0 | FB49: 0 | FC49: 0 | FD49: 0 | FE49: 0 | FF49: 0 | FG49: 0 | FH49: 0 | FI49: 0 | FK49: Sum drift | FL49: 0 | FM49: 0 | FN49: 0 | FO49: 0 | FP49: 0 | FQ49: 0 | FR49: 0 | FS49: 0 | FT49: 0 | FU49: 0 | FV49: 0 | FW49: 0 | FX49: 0 | FY49: 0 | GB49: Sum drift | GC49: =SUM(GC42:GC48) -> 0 | GD49: 0 | GE49: 0 | GF49: 0 | GG49: 0 | GH49: 0 | GI49: 0 | GJ49: 0 | GK49: 0 | GL49: 0 | GM49: =SUM(GM42:GM48) -> 0 | GN49: 0 | GO49: 0 | GP49: 0
K50: REGISTRER INNTEKTER | EE50: 0 | EU50: 0 | FK50: 0 | GB50: 0
B51: Inntekter fast eksternt beløp | C51: Inntekter | F51: Totalt | J51: Kommentarfelt | K51: =K40 -> 2024 | L51: 2025 | M51: 2026 | N51: 2027 | O51: 2028 | P51: 2029 | Q51: 2030 | R51: 2031 | S51: 2032 | T51: 2033 | U51: =U40 -> 2034 | V51: 2035 | W51: 2036 | AR51: =K51 -> 2024 | AS51: 2025 | AT51: 2026 | AU51: 2027 | AV51: 2028 | AW51: 2029 | AX51: 2030 | AY51: 2031 | AZ51: 2032 | BA51: 2033 | BB51: 2034 | BC51: 2035 | BD51: 2036 | CY51: =AR51 -> 2024 | CZ51: 2025 | DA51: 2026 | DB51: 2027 | DC51: 2028 | DD51: 2029 | DE51: 2030 | DF51: 2031 | DG51: 2032 | DH51: 2033 | DI51: =BB51 -> 2034 | DJ51: 2035 | DK51: 2036 | DL51: Totalt | DP51: =AR51 -> 2024 | DQ51: 2025 | DR51: 2026 | DS51: 2027 | DT51: 2028 | DU51: 2029 | DV51: 2030 | DW51: 2031 | DX51: 2032 | DY51: 2033 | DZ51: =BB51 -> 2034 | EA51: =BC51 -> 2035 | EB51: =BD51 -> 2036 | EC51: =EC3 -> Totalt | EE51: 0 | EF51: =EF46 -> 0 | EG51: 0 | EH51: 0 | EI51: 0 | EJ51: 0 | EK51: 0 | EL51: 0 | EM51: 0 | EN51: 0 | EO51: 0 | EP51: =EP46 -> 0 | EQ51: 0 | ER51: 0 | ES51: 0 | EU51: 0 | EV51: =EV46 -> 0 | EW51: 0 | EX51: 0 | EY51: 0 | EZ51: 0 | FA51: 0 | FB51: 0 | FC51: 0 | FD51: 0 | FE51: 0 | FF51: =FF46 -> 0 | FG51: 0 | FH51: 0 | FI51: 0 | FK51: 0 | FL51: =FL46 -> 0 | FM51: 0 | FN51: 0 | FO51: 0 | FP51: 0 | FQ51: 0 | FR51: 0 | FS51: 0 | FT51: 0 | FU51: 0 | FV51: =FV46 -> 0 | FW51: 0 | FX51: 0 | FY51: 0 | GB51: 0 | GC51: =GC46 -> 0 | GD51: 0 | GE51: 0 | GF51: 0 | GG51: 0 | GH51: 0 | GI51: 0 | GJ51: 0 | GK51: 0 | GL51: 0 | GM51: =GM46 -> 0 | GN51: 0 | GO51: 0 | GP51: 0
B52: Internasjonal finansiering | F52: =SUM(K52:W52) -> 0 | AR52: 0 | AS52: 0 | AT52: 0 | AU52: 0 | AV52: 0 | AW52: 0 | AX52: 0 | AY52: 0 | AZ52: 0 | BA52: 0 | BB52: 0 | BC52: 0 | BD52: 0 | BE52: =SUM(AR52:BD52) -> 0 | CX52: =B52 -> Internasjonal finansiering | CY52: =IF($H52="Egenandel",0,-AR52) -> 0 | CZ52: 0 | DA52: 0 | DB52: 0 | DC52: 0 | DD52: 0 | DE52: 0 | DF52: 0 | DG52: 0 | DH52: 0 | DI52: =IF($H52="Egenandel",0,-BB52) -> 0 | DJ52: 0 | DK52: 0 | DL52: =SUM(CY52:DK52) -> 0 | EE52: 0 | EU52: 0 | FK52: 0 | GB52: 0
B53: Anne offentlig finansiering | F53: =SUM(K53:W53) -> 0 | AR53: 0 | AS53: 0 | AT53: 0 | AU53: 0 | AV53: 0 | AW53: 0 | AX53: 0 | AY53: 0 | AZ53: 0 | BA53: 0 | BB53: 0 | BC53: 0 | BD53: 0 | BE53: 0 | CX53: Anne offentlig finansiering | CY53: 0 | CZ53: 0 | DA53: 0 | DB53: 0 | DC53: 0 | DD53: 0 | DE53: 0 | DF53: 0 | DG53: 0 | DH53: 0 | DI53: 0 | DJ53: 0 | DK53: 0 | DL53: 0 | DO53: =CX53 -> Anne offentlig finansiering | DP53: =IF($H53="NFR",CY53,0) -> 0 | DQ53: 0 | DR53: 0 | DS53: 0 | DT53: 0 | DU53: 0 | DV53: 0 | DW53: 0 | DX53: 0 | DY53: 0 | DZ53: =IF($H53="NFR",DI53,0) -> 0 | EA53: =IF($H53="NFR",DJ53,0) -> 0 | EB53: =IF($H53="NFR",DK53,0) -> 0 | EC53: =SUM(DP53:EB53) -> 0 | EE53: Anne offentlig finansiering | EF53: =IF($H53=$EE$1,CY53,0) -> 0 | EG53: 0 | EH53: 0 | EI53: 0 | EJ53: 0 | EK53: 0 | EL53: 0 | EM53: 0 | EN53: 0 | EO53: 0 | EP53: 0 | EQ53: 0 | ER53: 0 | ES53: =SUM(EF53:ER53) -> 0 | EU53: Anne offentlig finansiering | EV53: =IF($H53=$EU$1,CY53,0) -> 0 | EW53: 0 | EX53: 0 | EY53: 0 | EZ53: 0 | FA53: 0 | FB53: 0 | FC53: 0 | FD53: 0 | FE53: 0 | FF53: 0 | FG53: 0 | FH53: 0 | FI53: =SUM(EV53:FH53) -> 0 | FK53: Anne offentlig finansiering | FL53: =IF($H53=$FK$1,CY53,0) -> 0 | FM53: 0 | FN53: 0 | FO53: 0 | FP53: 0 | FQ53: 0 | FR53: 0 | FS53: 0 | FT53: 0 | FU53: 0 | FV53: 0 | FW53: 0 | FX53: 0 | FY53: =SUM(FL53:FX53) -> 0 | GB53: Anne offentlig finansiering | GC53: =IF($H53=$GB$1,AR53,0) -> 0 | GD53: =IF($H53=$GB$1,-AS53,0) -> 0 | GE53: 0 | GF53: 0 | GG53: 0 | GH53: 0 | GI53: 0 | GJ53: 0 | GK53: 0 | GL53: 0 | GM53: 0 | GN53: 0 | GO53: 0 | GP53: =SUM(GC53:GO53) -> 0
B54: Annen privat finansiering | F54: 0 | AR54: 0 | AS54: 0 | AT54: 0 | AU54: 0 | AV54: 0 | AW54: 0 | AX54: 0 | AY54: 0 | AZ54: 0 | BA54: 0 | BB54: 0 | BC54: 0 | BD54: 0 | BE54: 0 | CX54: Annen privat finansiering | CY54: 0 | CZ54: 0 | DA54: 0 | DB54: 0 | DC54: 0 | DD54: 0 | DE54: 0 | DF54: 0 | DG54: 0 | DH54: 0 | DI54: 0 | DJ54: 0 | DK54: 0 | DL54: 0 | DO54: Annen privat finansiering | DP54: 0 | DQ54: 0 | DR54: 0 | DS54: 0 | DT54: 0 | DU54: 0 | DV54: 0 | DW54: 0 | DX54: 0 | DY54: 0 | DZ54: 0 | EA54: 0 | EB54: 0 | EC54: 0 | EE54: Annen privat finansiering | EF54: 0 | EG54: 0 | EH54: 0 | EI54: 0 | EJ54: 0 | EK54: 0 | EL54: 0 | EM54: 0 | EN54: 0 | EO54: 0 | EP54: 0 | EQ54: 0 | ER54: 0 | ES54: 0 | EU54: Annen privat finansiering | EV54: 0 | EW54: 0 | EX54: 0 | EY54: 0 | EZ54: 0 | FA54: 0 | FB54: 0 | FC54: 0 | FD54: 0 | FE54: 0 | FF54: 0 | FG54: 0 | FH54: 0 | FI54: 0 | FK54: Annen privat finansiering | FL54: 0 | FM54: 0 | FN54: 0 | FO54: 0 | FP54: 0 | FQ54: 0 | FR54: 0 | FS54: 0 | FT54: 0 | FU54: 0 | FV54: 0 | FW54: 0 | FX54: 0 | FY54: 0 | GB54: Annen privat finansiering | GC54: =IF($H54=$GB$1,AR54,0) -> 0 | GD54: 0 | GE54: 0 | GF54: 0 | GG54: 0 | GH54: 0 | GI54: 0 | GJ54: 0 | GK54: 0 | GL54: 0 | GM54: 0 | GN54: 0 | GO54: 0 | GP54: 0
B55: Fra Norges Forskningsråd | F55: 0 | AR55: 0 | AS55: 0 | AT55: 0 | AU55: 0 | AV55: 0 | AW55: 0 | AX55: 0 | AY55: 0 | AZ55: 0 | BA55: 0 | BB55: 0 | BC55: 0 | BD55: 0 | BE55: 0 | CX55: Fra Norges Forskningsråd | CY55: 0 | CZ55: 0 | DA55: 0 | DB55: 0 | DC55: 0 | DD55: 0 | DE55: 0 | DF55: 0 | DG55: 0 | DH55: 0 | DI55: 0 | DJ55: 0 | DK55: 0 | DL55: 0 | DO55: Fra Norges Forskningsråd | DP55: 0 | DQ55: 0 | DR55: 0 | DS55: 0 | DT55: 0 | DU55: 0 | DV55: 0 | DW55: 0 | DX55: 0 | DY55: 0 | DZ55: 0 | EA55: 0 | EB55: 0 | EC55: 0 | EE55: Fra Norges Forskningsråd | EF55: 0 | EG55: 0 | EH55: 0 | EI55: 0 | EJ55: 0 | EK55: 0 | EL55: 0 | EM55: 0 | EN55: 0 | EO55: 0 | EP55: 0 | EQ55: 0 | ER55: 0 | ES55: 0 | EU55: Fra Norges Forskningsråd | EV55: 0 | EW55: 0 | EX55: 0 | EY55: 0 | EZ55: 0 | FA55: 0 | FB55: 0 | FC55: 0 | FD55: 0 | FE55: 0 | FF55: 0 | FG55: 0 | FH55: 0 | FI55: 0 | FK55: Fra Norges Forskningsråd | FL55: 0 | FM55: 0 | FN55: 0 | FO55: 0 | FP55: 0 | FQ55: 0 | FR55: 0 | FS55: 0 | FT55: 0 | FU55: 0 | FV55: 0 | FW55: 0 | FX55: 0 | FY55: 0 | GB55: Fra Norges Forskningsråd | GC55: =IF($H55=$GB$1,AR55,0) -> 0 | GD55: 0 | GE55: 0 | GF55: 0 | GG55: 0 | GH55: 0 | GI55: 0 | GJ55: 0 | GK55: 0 | GL55: 0 | GM55: 0 | GN55: 0 | GO55: 0 | GP55: 0
B56: Viderefordelte midler | C56: =IF(Registrering!$B$28="Fast beløp",0,IF(Registrering!$B$28="Sats for ekst. fin. overhead",0,-F56)) -> 0 | F56: 0 | AR56: 0 | AS56: 0 | AT56: 0 | AU56: 0 | AV56: 0 | AW56: 0 | AX56: 0 | AY56: 0 | AZ56: 0 | BA56: 0 | BB56: 0 | BC56: 0 | BD56: 0 | BE56: 0 | CX56: Viderefordelte midler | CY56: 0 | CZ56: 0 | DA56: 0 | DB56: 0 | DC56: 0 | DD56: 0 | DE56: 0 | DF56: 0 | DG56: 0 | DH56: 0 | DI56: 0 | DJ56: 0 | DK56: 0 | DL56: 0 | DO56: Viderefordelte midler | DP56: =IF($H56="NFR",CY56,0) -> 0 | DQ56: =IF($H56="NFR",CZ56,0) -> 0 | DR56: =IF($H56="NFR",DA56,0) -> 0 | DS56: =IF($H56="NFR",DB56,0) -> 0 | DT56: =IF($H56="NFR",DC56,0) -> 0 | DU56: =IF($H56="NFR",DD56,0) -> 0 | DV56: =IF($H56="NFR",DE56,0) -> 0 | DW56: =IF($H56="NFR",DF56,0) -> 0 | DX56: =IF($H56="NFR",DG56,0) -> 0 | DY56: =IF($H56="NFR",DH56,0) -> 0 | DZ56: 0 | EA56: 0 | EB56: 0 | EC56: 0 | ES56: 0 | FI56: 0 | FY56: 0 | GP56: 0
B57: Sum | C57: =SUM(C52:C56) -> 0 | F57: =SUM(F52:F56) -> 0 | K57: =SUM(K52:K56) -> 0 | L57: 0 | M57: 0 | N57: 0 | O57: 0 | P57: 0 | Q57: 0 | R57: 0 | S57: 0 | T57: 0 | U57: =SUM(U52:U56) -> 0 | V57: 0 | W57: 0 | AR57: =SUM(AR52:AR56) -> 0 | AS57: 0 | AT57: 0 | AU57: 0 | AV57: 0 | AW57: 0 | AX57: 0 | AY57: 0 | AZ57: 0 | BA57: 0 | BB57: =SUM(BB52:BB56) -> 0 | BC57: 0 | BD57: 0 | BE57: =SUM(AR57:BA57) -> 0 | CX57: Sum | CY57: =SUM(CY52:CY56) -> 0 | CZ57: 0 | DA57: 0 | DB57: 0 | DC57: 0 | DD57: 0 | DE57: 0 | DF57: 0 | DG57: 0 | DH57: 0 | DI57: =SUM(DI52:DI56) -> 0 | DJ57: 0 | DK57: 0 | DL57: 0 | DO57: Sum | DP57: =IF($H57="NFR",CY57,0) -> 0 | DQ57: =IF($H57="NFR",CZ57,0) -> 0 | DR57: 0 | DS57: 0 | DT57: 0 | DU57: 0 | DV57: 0 | DW57: 0 | DX57: 0 | DY57: 0 | DZ57: 0 | EA57: 0 | EB57: 0 | EC57: 0 | EE57: Sum | EF57: =IF($H57=$EE$1,CY57,0) -> 0 | EG57: 0 | EH57: 0 | EI57: 0 | EJ57: 0 | EK57: 0 | EL57: 0 | EM57: 0 | EN57: 0 | EO57: 0 | EP57: 0 | EQ57: 0 | ER57: 0 | ES57: 0 | EU57: Sum | EV57: =IF($H57=$EU$1,CY57,0) -> 0 | EW57: 0 | EX57: 0 | EY57: 0 | EZ57: 0 | FA57: 0 | FB57: 0 | FC57: 0 | FD57: 0 | FE57: 0 | FF57: 0 | FG57: 0 | FH57: 0 | FI57: 0 | FK57: Sum | FL57: =IF($H57=$FK$1,CY57,0) -> 0 | FM57: 0 | FN57: 0 | FO57: 0 | FP57: 0 | FQ57: 0 | FR57: 0 | FS57: 0 | FT57: 0 | FU57: 0 | FV57: 0 | FW57: 0 | FX57: 0 | FY57: 0 | GB57: Sum | GC57: =SUM(GC53:GC55) -> 0 | GD57: 0 | GE57: 0 | GF57: 0 | GG57: 0 | GH57: 0 | GI57: 0 | GJ57: 0 | GK57: 0 | GL57: 0 | GM57: =SUM(GM53:GM55) -> 0 | GN57: 0 | GO57: 0 | GP57: 0
CX59: Sats for ekst. fin. overhead | CY59: =-(AR10+AR17+AR30)*(1+Registrering!$I$28)+CY49 -> 0 | CZ59: =-(AS10+AS17+AS30)*(1+Registrering!$I$28)+CZ49 -> 0 | DA59: =-(AT10+AT17+AT30)*(1+Registrering!$I$28)+DA49 -> -2754633.866 | DB59: =-(AU10+AU17+AU30)*(1+Registrering!$I$28)+DB49 -> -5209335.841 | DC59: =-(AV10+AV17+AV30)*(1+Registrering!$I$28)+DC49 -> -5633064.236 | DD59: =-(AW10+AW17+AW30)*(1+Registrering!$I$28)+DD49 -> -3729720.249 | DE59: =-(AX10+AX17+AX30)*(1+Registrering!$I$28)+DE49 -> -926223.0064 | DF59: =-(AY10+AY17+AY30)*(1+Registrering!$I$28)+DF49 -> 0 | DG59: =-(AZ10+AZ17+AZ30)*(1+Registrering!$I$28)+DG49 -> 0 | DH59: =-(BA10+BA17+BA30)*(1+Registrering!$I$28)+DH49 -> 0 | DI59: =-(BB10+BB17+BB30)*(1+Registrering!$I$28)+DI49 -> 0 | DJ59: =-(BC10+BC17+BC30)*(1+Registrering!$I$28)+DJ49 -> 0 | DK59: =-(BD10+BD17+BD30)*(1+Registrering!$I$28)+DK49 -> 0 | DL59: =SUM(CY59:DK59) -> -18252977.2
B60: Eksterne inntekter | C60: =C49+C38+C30+C24+C17+C10+C57 -> -28315650 | F60: =SUM(K60:W60) -> -28315650 | K60: =IFERROR(VLOOKUP(Registrering!$B$28,$CX$59:$DL$62,2,FALSE),0) -> 0 | L60: =IFERROR(VLOOKUP(Registrering!$B$28,$CX$59:$DL$62,3,FALSE),0) -> 0 | M60: =IFERROR(VLOOKUP(Registrering!$B$28,$CX$59:$DL$62,4,FALSE),0) -> -4260900 | N60: =IFERROR(VLOOKUP(Registrering!$B$28,$CX$59:$DL$62,5,FALSE),0) -> -8193400 | O60: =IFERROR(VLOOKUP(Registrering!$B$28,$CX$59:$DL$62,6,FALSE),0) -> -8919400 | P60: =IFERROR(VLOOKUP(Registrering!$B$28,$CX$59:$DL$62,7,FALSE),0) -> -5633500 | Q60: =IFERROR(VLOOKUP(Registrering!$B$28,$CX$59:$DL$62,8,FALSE),0) -> -1308450 | R60: =IFERROR(VLOOKUP(Registrering!$B$28,$CX$59:$DL$62,9,FALSE),0) -> 0 | S60: =IFERROR(VLOOKUP(Registrering!$B$28,$CX$59:$DL$62,10,FALSE),0) -> 0 | T60: =IFERROR(VLOOKUP(Registrering!$B$28,$CX$59:$DL$62,11,FALSE),0) -> 0 | U60: =IFERROR(VLOOKUP(Registrering!$B$28,$CX$59:$DL$62,12,FALSE),0) -> 0 | V60: =IFERROR(VLOOKUP(Registrering!$B$28,$CX$59:$DL$62,13,FALSE),0) -> 0 | W60: =IFERROR(VLOOKUP(Registrering!$B$28,$CX$59:$DL$62,14,FALSE),0) -> 0 | CX60: Rundsummer NFR | CY60: =CY49+CY32+CY38+CY56 -> 0 | CZ60: 0 | DA60: -4260900 | DB60: -8193400 | DC60: -8919400 | DD60: -5633500 | DE60: -1308450 | DF60: 0 | DG60: 0 | DH60: =DH49+DH32+DH38+DH56 -> 0 | DI60: =DI49+DI32+DI38+DI56 -> 0 | DJ60: 0 | DK60: 0 | DL60: -28315650 | DP60: =SUM(DP$42:DP$48)+SUM(DP$35:DP$37)+SUM(DP$27:DP$29)+SUM(DP$13:DP$16)+SUM(DP$4:DP$9) -> 0 | DQ60: 0 | DR60: -4260900 | DS60: -8193400 | DT60: -8919400 | DU60: -5633500 | DV60: -1308450 | DW60: 0 | DX60: 0 | DY60: 0 | DZ60: 0 | EA60: 0 | EB60: 0 | EC60: -28315650 | ED60: =SUM(ED42:ED48)+SUM(ED35:ED37)+SUM(ED27:ED29)+SUM(ED13:ED16)+SUM(ED4:ED9) -> 0 | EE60: 0 | EF60: 0 | EG60: 0 | EH60: 0 | EI60: 0 | EJ60: 0 | EK60: 0 | EL60: 0 | EM60: 0 | EN60: 0 | EO60: 0 | EP60: 0 | EQ60: 0 | ER60: 0 | ES60: 0 | ET60: 0 | EU60: 0 | EV60: 0 | EW60: 0 | EX60: 0 | EY60: 0 | EZ60: 0 | FA60: 0 | FB60: 0 | FC60: 0 | FD60: 0 | FE60: 0 | FF60: 0 | FG60: 0 | FH60: 0 | FI60: 0 | FJ60: 0 | FK60: 0 | FL60: 0 | FM60: 0 | FN60: 0 | FO60: 0 | FP60: 0 | FQ60: 0 | FR60: 0 | FS60: 0 | FT60: 0 | FU60: 0 | FV60: 0 | FW60: 0 | FX60: 0 | FY60: 0 | GB60: =SUM(GB42:GB48)+SUM(GB35:GB37)+SUM(GB27:GB29)+SUM(GB13:GB16)+SUM(GB4:GB9) -> 0 | GC60: 0 | GD60: 0 | GE60: 0 | GF60: 0 | GG60: 0 | GH60: 0 | GI60: 0 | GJ60: 0 | GK60: 0 | GL60: 0 | GM60: 0 | GN60: 0 | GO60: 0 | GP60: 0
B61: Egenandel | F61: =SUM(K61:W61) -> -7217415.818 | K61: =CY62 -> 0 | L61: =CZ62 -> -378393.3725 | M61: -1566548.562 | N61: -1621377.762 | O61: -1678125.984 | P61: -1465940.019 | Q61: -507030.1188 | R61: 0 | S61: 0 | T61: 0 | U61: =DI62 -> 0 | V61: =DJ62 -> 0 | W61: =DK62 -> 0 | CX61: Fast beløp | CY61: =K57-K56 -> 0 | CZ61: 0 | DA61: 0 | DB61: 0 | DC61: 0 | DD61: 0 | DE61: 0 | DF61: 0 | DG61: 0 | DH61: 0 | DI61: 0 | DJ61: 0 | DK61: 0 | DL61: 0 | DO61: Lønn | DP61: =DP32+DP38 -> 0 | DQ61: 0 | DR61: -3792150 | DS61: -7568400 | DT61: -8294400 | DU61: -5008500 | DV61: -1152200 | DW61: 0 | DX61: 0 | DY61: 0 | DZ61: =DZ32+DZ38 -> 0 | EA61: 0 | EB61: 0 | EC61: =EC38+EC32+EC17+EC10 -> -51631300
B62: Totale kostnader | F62: =SUM(K62:W62) -> 35533065.82 | K62: =AR62 -> 0 | L62: =AS62 -> 378393.3725 | M62: 5781357.297 | N62: 9759091.585 | O62: 10510237.05 | P62: 7178890.714 | Q62: 1925095.799 | R62: 0 | S62: 0 | T62: 0 | U62: =BB62 -> 0 | V62: =BC62 -> 0 | W62: =BD62 -> 0 | AR62: =AR32+AR38+AR49+AR56+BF32 -> 0 | AS62: 378393.3725 | AT62: 5781357.297 | AU62: 9759091.585 | AV62: 10510237.05 | AW62: 7178890.714 | AX62: 1925095.799 | AY62: 0 | AZ62: 0 | BA62: 0 | BB62: =BB32+BB38+BB49+BB56+BP32 -> 0 | BC62: =BC32+BC38+BC49+BC56+BQ32 -> 0 | BD62: =BD32+BD38+BD49+BD56+BR32 -> 0 | BE62: =SUM(AR62:BD62) -> 35533065.82 | CX62: Egenandel | CY62: =-(AR24+CJ32+GC60) -> 0 | CZ62: -378393.3725 | DA62: -1566548.562 | DB62: -1621377.762 | DC62: -1678125.984 | DD62: -1465940.019 | DE62: -507030.1188 | DF62: 0 | DG62: 0 | DH62: 0 | DI62: 0 | DJ62: 0 | DK62: 0 | DL62: -7217415.818
B63: Resultat | F63: =SUM(K63:W63) -> -1.396983862e-09 | K63: =SUM(K60:K62)+K67 -> 0 | L63: =SUM(L60:L62)+L67 -> 0 | M63: -46091.26533 | N63: -55686.17709 | O63: -87288.93327 | P63: 79450.69514 | Q63: 109615.6806 | R63: 0 | S63: 0 | T63: 0 | U63: 0 | V63: 0 | W63: 0
B65: Sum eksterne inntekter for instituttet | F65: =SUM(K65:W65) -> -28315650 | K65: =K60 -> 0 | L65: =L60 -> 0 | M65: -4260900 | N65: -8193400 | O65: -8919400 | P65: -5633500 | Q65: -1308450 | R65: 0 | S65: 0 | T65: 0 | U65: =U60 -> 0 | V65: 0 | W65: 0
B66: Inntekter fra LOS | F66: =SUM(K66:W66) -> 0
B67: Inntekter fra FAK (utover eventuelle rekrutteringsstillinger) | F67: =SUM(K67:W67) -> 0
B68: Sum eksterne inntekter for instituttet | F68: =SUM(K68:W68) -> -28315650 | K68: =SUM(K65:K67) -> 0 | L68: =SUM(L65:L67) -> 0 | M68: -4260900 | N68: -8193400 | O68: -8919400 | P68: -5633500 | Q68: -1308450 | R68: 0 | S68: 0 | T68: 0 | U68: =SUM(U65:U67) -> 0 | V68: 0 | W68: 0
B70: Total overhead (indirekte kostnader) | E70: =IFERROR((SUM(GS32:HE32))/(SUM(AR32:BD32)),0) -> 0.5696092725 | F70: IK - splitt (eksternt dekning av indirekte kostnader:
B71: Benyttet påslag overhead (indirekte kostnader) | E71: =IF(E72>E70,E72,E70) -> 0.638779113 | F71: IK på lønnskostnader dekket eksternt: | H71: =E10+E17+E30 -> 10062672.8
B72: Finansiørs betalingsvillighet for Eksternt finansiert overhead | E72: =IFERROR(IF(E73="",-SUM(Budsjett!$F$60+$F$38+F66+F67,(Budsjett!$F$49-$F$45-F48+$F$56),Budsjett!$D$10,Budsjett!$D$17,$D$30)/SUM(Budsjett!$D$10+Budsjett!$D$17+$D$30),E73),0) -> 0.638779113 | F72: Ekstern dekning av IK: | H72: =CH32 -> 10062672.8
B73: Prosjekteiers policy for Eksternt finansiert overhead | F73: IK - splitt i Unit 4 (anslagsvis) | H73: =H72/H71 -> 1 | CX73: Prosjektleder/adm.leder | CY73: =SUMIF($CX$4:$CX$16,$CX73,CY$4:CY$16) -> 0 | CZ73: 0 | DA73: 0 | DB73: 0 | DC73: 0 | DD73: 0 | DE73: 0 | DF73: 0 | DG73: 0 | DH73: 0 | DI73: 0 | DJ73: 0 | DK73: 0 | DL73: =SUM(CY73:DK73) -> 0
DL74: 0
B75: Salderingsbeløp (overføres til generelle driftsmidler) | E75: =-F63 -> 1.396983862e-09 | CX75: Forsker - professor | CY75: =SUMIF($CX$4:$CX$16,$CX75,CY$4:CY$16) -> 0 | CZ75: 0 | DA75: -71550 | DB75: -296800 | DC75: -307200 | DD75: -318000 | DE75: -246900 | DF75: 0 | DG75: 0 | DH75: 0 | DI75: 0 | DJ75: 0 | DK75: 0 | DL75: -1240450
CX76: Forsker - 1.aman. | CY76: 0 | CZ76: 0 | DA76: 0 | DB76: 0 | DC76: 0 | DD76: 0 | DE76: 0 | DF76: 0 | DG76: 0 | DH76: 0 | DI76: 0 | DJ76: 0 | DK76: 0 | DL76: 0
CX77: Gjesteforsker | CY77: 0 | CZ77: 0 | DA77: 0 | DB77: 0 | DC77: 0 | DD77: 0 | DE77: 0 | DF77: 0 | DG77: 0 | DH77: 0 | DI77: 0 | DJ77: 0 | DK77: 0 | DL77: 0
CX78: Postdoktor / Forsker | CY78: 0 | CZ78: 0 | DA78: -1359450 | DB78: -2893800 | DC78: -3072000 | DD78: -1987500 | DE78: -411500 | DF78: 0 | DG78: 0 | DH78: 0 | DI78: 0 | DJ78: 0 | DK78: 0 | DL78: -9724250
CX79: Stipendiat | CY79: 0 | CZ79: 0 | DA79: -2146500 | DB79: -4081000 | DC79: -4608000 | DD79: -2385000 | DE79: -411500 | DF79: 0 | DG79: 0 | DH79: 0 | DI79: 0 | DJ79: 0 | DK79: 0 | DL79: -13632000

Sheet Budsjett_FL (hidden)
A1: Alle beløp er angitt i hele kroner | C1: Prosjekttittel: | D1: =Registrering!B3 -> Haiex | AR1: LØNNS- OG DRIFTSKOSTNADER | AX1: =AR4*K92 -> 0 | BC1: OVERHEADKOSTNADER | BO1: Eksternt finansiert overhead | CA1: Internt finansiert overhead | CM1: Ekstern finansiering | CZ1: NFR | DM1: Private | DZ1: Internasjonale | EM1: Offentlige | FA1: Egenandel | FO1: Overhead ved rundsummer
K2: REGISTRER MÅNEDSVERK
B3: Prosjektansatte | C3: Inntekter | D3: Lønn og sos. kostn. | E3: Overhead | F3: Totalt | G3: Årsv | H3: Finansiør | I3: Årslønn | J3: Navn | K3: =Tabeller!D1 -> 2024 | L3: =K3+1 -> 2025 | M3: =L3+1 -> 2026 | N3: 2027 | O3: 2028 | P3: 2029 | Q3: 2030 | R3: 2031 | S3: 2032 | T3: =S3+1 -> 2033 | AG3: Bruttolønn | AH3: inkl lønnsv. | AI3: Lønn | AJ3: Feriep | AK3: AGA | AL3: Pensjon | AM3: inkl sos.avg. | AN3: inkl. ind.kost. | AO3: Timesats | AR3: =K3 -> 2024 | AS3: 2025 | AT3: 2026 | AU3: 2027 | AV3: 2028 | AW3: 2029 | AX3: 2030 | AY3: 2031 | AZ3: 2032 | BA3: 2033 | BC3: =AR3 -> 2024 | BD3: =AS3 -> 2025 | BE3: 2026 | BF3: 2027 | BG3: 2028 | BH3: 2029 | BI3: 2030 | BJ3: 2031 | BK3: 2032 | BL3: 2033 | BO3: =BC3 -> 2024 | BP3: =BD3 -> 2025 | BQ3: 2026 | BR3: 2027 | BS3: 2028 | BT3: 2029 | BU3: 2030 | BV3: 2031 | BW3: 2032 | BX3: 2033 | CA3: =CM3 -> 2024 | CB3: 2025 | CC3: 2026 | CD3: 2027 | CE3: 2028 | CF3: 2029 | CG3: 2030 | CH3: 2031 | CI3: 2032 | CJ3: 2033 | CM3: =BO3 -> 2024 | CN3: =BP3 -> 2025 | CO3: 2026 | CP3: 2027 | CQ3: 2028 | CR3: 2029 | CS3: 2030 | CT3: 2031 | CU3: 2032 | CV3: 2033 | CW3: Totalt | DA3: =BO3 -> 2024 | DB3: =BP3 -> 2025 | DC3: 2026 | DD3: 2027 | DE3: 2028 | DF3: 2029 | DG3: 2030 | DH3: 2031 | DI3: 2032 | DJ3: 2033 | DK3: 0 | DN3: =CA3 -> 2024 | DO3: =CB3 -> 2025 | DP3: 2026 | DQ3: 2027 | DR3: 2028 | DS3: 2029 | DT3: 2030 | DU3: 2031 | DV3: 2032 | DW3: 2033 | DX3: 0 | EA3: =CM3 -> 2024 | EB3: =CN3 -> 2025 | EC3: 2026 | ED3: 2027 | EE3: 2028 | EF3: 2029 | EG3: 2030 | EH3: 2031 | EI3: 2032 | EJ3: 2033 | EK3: Totalt | EN3: =DA3 -> 2024 | EO3: =DB3 -> 2025 | EP3: 2026 | EQ3: 2027 | ER3: 2028 | ES3: 2029 | ET3: 2030 | EU3: 2031 | EV3: 2032 | EW3: 2033 | EX3: 0 | FB3: =DN3 -> 2024 | FC3: 2025 | FD3: 2026 | FE3: 2027 | FF3: 2028 | FG3: 2029 | FH3: 2030 | FI3: 2031 | FJ3: 2032 | FK3: 2033 | FL3: 0 | FO3: =AR3 -> 2024 | FP3: =AS3 -> 2025 | FQ3: 2026 | FR3: 2027 | FS3: 2028 | FT3: 2029 | FU3: 2030 | FV3: 2031 | FW3: 2032 | FX3: 2033
